Workbook

Sheet Menu
E26: Empresa: | G26: Empresa ABCDE

Sheet CAD_AREA
B12: Áreas da Empresa | C12: Meta de acidente mensal | D12: desempate | E12: Total | F12: Biológico | G12: Físico | H12: Químico | I12: Outro | J12: perigo | K12: área | L12: funcionários da área | O12: acidentes | P12: área | Q12: Ferida levemente | R12: Ferida | S12: Ferida Gravemente | T12: Óbito | U12: total | V12: % total | X12: repet | Y12: area | Z12: desempate | AA12: exames | AB12: O exame não apontou complicações | AC12: O exame apontou complicações | AD12: Todas | BA12: Cargos | BB12: Todos | CB12: Colaboradores | CC12: Cargo | CD12: Área da Empresa | CF12: desempate | CG12: O exame não apontou complicações | CH12: O exame apontou complicações
A13: =SUM(D13:E13) -> 1.000001 | B13: ADM | C13: 1 | D13: 1e-06 | E13: =COUNTIFS(PPRA!$C$13:$C$614,CAD_AREA!B13) -> 1 | F13: =COUNTIFS(PPRA!$C$13:$C$614,CAD_AREA!$B13,PPRA!$D$13:$D$614,CAD_AREA!F$12) -> 0 | G13: =COUNTIFS(PPRA!$C$13:$C$614,CAD_AREA!$B13,PPRA!$D$13:$D$614,CAD_AREA!G$12) -> 1 | H13: =COUNTIFS(PPRA!$C$13:$C$614,CAD_AREA!$B13,PPRA!$D$13:$D$614,CAD_AREA!H$12) -> 0 | I13: =COUNTIFS(PPRA!$C$13:$C$614,CAD_AREA!$B13,PPRA!$D$13:$D$614,CAD_AREA!I$12) -> 0 | J13: =SUMIFS(PPRA!$A$13:$A$614,PPRA!$C$13:$C$614,CAD_AREA!B13) -> 16.000001 | K13: =B13 -> ADM | L13: =COUNTIFS(CAD_AREA!$CD$13:$CD$113,CAD_AREA!$B$13:$B$113) -> 1 | N13: =SUM(O13+D13) -> 1e-06 | O13: =COUNTIFS('C-A'!$E$13:$E$1013,CAD_AREA!$B$13:$B$1013) -> 0 | P13: =B13 -> ADM | Q13: =COUNTIFS('C-A'!$E$13:$E$1013,CAD_AREA!$P$13:$P$1013,'C-A'!$G$13:$G$1013,CAD_AREA!Q$12) -> 0 | R13: =COUNTIFS('C-A'!$E$13:$E$1013,CAD_AREA!$P$13:$P$1013,'C-A'!$G$13:$G$1013,CAD_AREA!R$12) -> 0 | S13: =COUNTIFS('C-A'!$E$13:$E$1013,CAD_AREA!$P$13:$P$1013,'C-A'!$G$13:$G$1013,CAD_AREA!S$12) -> 0 | T13: =COUNTIFS('C-A'!$E$13:$E$1013,CAD_AREA!$P$13:$P$1013,'C-A'!$G$13:$G$1013,CAD_AREA!T$12) -> 0 | U13: =SUM(Q13:T13) -> 0 | V13: =U13/'C-A'!$P$13 -> 0 | X13: =SUM(Z13:AA13) -> 1e-06 | Y13: =B13 -> ADM | Z13: =D13 -> 1e-06 | AA13: =COUNTIFS('C-E'!$D$13:$D$1001,CAD_AREA!$B$13:$B$513) -> 0 | AB13: =COUNTIFS('C-E'!$D$13:$D$1001,CAD_AREA!$Y13,'C-E'!$H$13:$H$1001,CAD_AREA!AB$12) -> 0 | AC13: =COUNTIFS('C-E'!$D$13:$D$1001,CAD_AREA!$Y13,'C-E'!$H$13:$H$1001,CAD_AREA!AC$12) -> 0 | AD13: =IF(B13="","",B13) -> ADM | BA13: Auxiliar | BB13: =IF(BA13="","",BA13) -> Auxiliar | CA13: =SUM(CF13,CH13) -> 1e-06 | CB13: João Pedro | CC13: Auxiliar | CD13: PROD | CE13: =CB13 -> João Pedro | CF13: 1e-06 | CG13: =COUNTIFS('C-E'!$B$13:$B$1001,CAD_AREA!$CB13,'C-E'!$H$13:$H$1001,CAD_AREA!CG$12) -> 1 | CH13: =COUNTIFS('C-E'!$B$13:$B$1001,CAD_AREA!$CB13,'C-E'!$H$13:$H$1001,CAD_AREA!CH$12) -> 0
A14: 2e-06 | B14: PROD | C14: 1 | D14: =D13+$D$13 -> 2e-06 | E14: =COUNTIFS(PPRA!$C$13:$C$614,CAD_AREA!B14) -> 0 | F14: =COUNTIFS(PPRA!$C$13:$C$614,CAD_AREA!$B14,PPRA!$D$13:$D$614,CAD_AREA!F$12) -> 0 | G14: =COUNTIFS(PPRA!$C$13:$C$614,CAD_AREA!$B14,PPRA!$D$13:$D$614,CAD_AREA!G$12) -> 0 | H14: =COUNTIFS(PPRA!$C$13:$C$614,CAD_AREA!$B14,PPRA!$D$13:$D$614,CAD_AREA!H$12) -> 0 | I14: =COUNTIFS(PPRA!$C$13:$C$614,CAD_AREA!$B14,PPRA!$D$13:$D$614,CAD_AREA!I$12) -> 0 | J14: =SUMIFS(PPRA!$A$13:$A$614,PPRA!$C$13:$C$614,CAD_AREA!B14) -> 0 | K14: =B14 -> PROD | L14: =COUNTIFS(CAD_AREA!$CD$13:$CD$113,CAD_AREA!$B$13:$B$113) -> 1 | N14: =SUM(O14+D14) -> 1.000002 | O14: =COUNTIFS('C-A'!$E$13:$E$1013,CAD_AREA!$B$13:$B$1013) -> 1 | P14: =B14 -> PROD | Q14: =COUNTIFS('C-A'!$E$13:$E$1013,CAD_AREA!$P$13:$P$1013,'C-A'!$G$13:$G$1013,CAD_AREA!Q$12) -> 0 | R14: =COUNTIFS('C-A'!$E$13:$E$1013,CAD_AREA!$P$13:$P$1013,'C-A'!$G$13:$G$1013,CAD_AREA!R$12) -> 1 | S14: =COUNTIFS('C-A'!$E$13:$E$1013,CAD_AREA!$P$13:$P$1013,'C-A'!$G$13:$G$1013,CAD_AREA!S$12) -> 0 | T14: =COUNTIFS('C-A'!$E$13:$E$1013,CAD_AREA!$P$13:$P$1013,'C-A'!$G$13:$G$1013,CAD_AREA!T$12) -> 0 | U14: =SUM(Q14:T14) -> 1 | V14: =U14/'C-A'!$P$13 -> 1 | X14: 1.000002 | Y14: =B14 -> PROD | Z14: =D14 -> 2e-06 | AA14: =COUNTIFS('C-E'!$D$13:$D$1001,CAD_AREA!$B$13:$B$513) -> 1 | AB14: =COUNTIFS('C-E'!$D$13:$D$1001,CAD_AREA!$Y14,'C-E'!$H$13:$H$1001,CAD_AREA!AB$12) -> 1 | AC14: =COUNTIFS('C-E'!$D$13:$D$1001,CAD_AREA!$Y14,'C-E'!$H$13:$H$1001,CAD_AREA!AC$12) -> 0 | AD14: =IF(B14="","",B14) -> PROD | BA14: Analista | BB14: Analista | CA14: 2e-06 | CB14: José Alves | CC14: Analista | CD14: ADM | CE14: José Alves | CF14: =CF13+$CF$13 -> 2e-06 | CG14: =COUNTIFS('C-E'!$B$13:$B$1001,CAD_AREA!$CB14,'C-E'!$H$13:$H$1001,CAD_AREA!CG$12) -> 0 | CH14: =COUNTIFS('C-E'!$B$13:$B$1001,CAD_AREA!$CB14,'C-E'!$H$13:$H$1001,CAD_AREA!CH$12) -> 0
A15: 3e-06 | D15: =D14+$D$13 -> 3e-06 | E15: =COUNTIFS(PPRA!$C$13:$C$614,CAD_AREA!B15) -> 0 | F15: =COUNTIFS(PPRA!$C$13:$C$614,CAD_AREA!$B15,PPRA!$D$13:$D$614,CAD_AREA!F$12) -> 0 | G15: =COUNTIFS(PPRA!$C$13:$C$614,CAD_AREA!$B15,PPRA!$D$13:$D$614,CAD_AREA!G$12) -> 0 | H15: =COUNTIFS(PPRA!$C$13:$C$614,CAD_AREA!$B15,PPRA!$D$13:$D$614,CAD_AREA!H$12) -> 0 | I15: =COUNTIFS(PPRA!$C$13:$C$614,CAD_AREA!$B15,PPRA!$D$13:$D$614,CAD_AREA!I$12) -> 0 | J15: =SUMIFS(PPRA!$A$13:$A$614,PPRA!$C$13:$C$614,CAD_AREA!B15) -> 0 | K15: 0 | L15: =COUNTIFS(CAD_AREA!$CD$13:$CD$113,CAD_AREA!$B$13:$B$113) -> 0 | N15: 3e-06 | O15: =COUNTIFS('C-A'!$E$13:$E$1013,CAD_AREA!$B$13:$B$1013) -> 0 | P15: 0 | Q15: =COUNTIFS('C-A'!$E$13:$E$1013,CAD_AREA!$P$13:$P$1013,'C-A'!$G$13:$G$1013,CAD_AREA!Q$12) -> 0 | R15: =COUNTIFS('C-A'!$E$13:$E$1013,CAD_AREA!$P$13:$P$1013,'C-A'!$G$13:$G$1013,CAD_AREA!R$12) -> 0 | S15: =COUNTIFS('C-A'!$E$13:$E$1013,CAD_AREA!$P$13:$P$1013,'C-A'!$G$13:$G$1013,CAD_AREA!S$12) -> 0 | T15: =COUNTIFS('C-A'!$E$13:$E$1013,CAD_AREA!$P$13:$P$1013,'C-A'!$G$13:$G$1013,CAD_AREA!T$12) -> 0 | U15: 0 | V15: =U15/'C-A'!$P$13 -> 0 | X15: 3e-06 | Y15: 0 | Z15: 3e-06 | AA15: =COUNTIFS('C-E'!$D$13:$D$1001,CAD_AREA!$B$13:$B$513) -> 0 | AB15: =COUNTIFS('C-E'!$D$13:$D$1001,CAD_AREA!$Y15,'C-E'!$H$13:$H$1001,CAD_AREA!AB$12) -> 0 | AC15: =COUNTIFS('C-E'!$D$13:$D$1001,CAD_AREA!$Y15,'C-E'!$H$13:$H$1001,CAD_AREA!AC$12) -> 0 | CA15: 3e-06 | CE15: 0 | CF15: 3e-06 | CG15: =COUNTIFS('C-E'!$B$13:$B$1001,CAD_AREA!$CB15,'C-E'!$H$13:$H$1001,CAD_AREA!CG$12) -> 0 | CH15: =COUNTIFS('C-E'!$B$13:$B$1001,CAD_AREA!$CB15,'C-E'!$H$13:$H$1001,CAD_AREA!CH$12) -> 0
A16: 4e-06 | D16: 4e-06 | E16: =COUNTIFS(PPRA!$C$13:$C$614,CAD_AREA!B16) -> 0 | F16: =COUNTIFS(PPRA!$C$13:$C$614,CAD_AREA!$B16,PPRA!$D$13:$D$614,CAD_AREA!F$12) -> 0 | G16: =COUNTIFS(PPRA!$C$13:$C$614,CAD_AREA!$B16,PPRA!$D$13:$D$614,CAD_AREA!G$12) -> 0 | H16: =COUNTIFS(PPRA!$C$13:$C$614,CAD_AREA!$B16,PPRA!$D$13:$D$614,CAD_AREA!H$12) -> 0 | I16: =COUNTIFS(PPRA!$C$13:$C$614,CAD_AREA!$B16,PPRA!$D$13:$D$614,CAD_AREA!I$12) -> 0 | J16: =SUMIFS(PPRA!$A$13:$A$614,PPRA!$C$13:$C$614,CAD_AREA!B16) -> 0 | K16: 0 | L16: =COUNTIFS(CAD_AREA!$CD$13:$CD$113,CAD_AREA!$B$13:$B$113) -> 0 | N16: 4e-06 | O16: =COUNTIFS('C-A'!$E$13:$E$1013,CAD_AREA!$B$13:$B$1013) -> 0 | P16: 0 | Q16: =COUNTIFS('C-A'!$E$13:$E$1013,CAD_AREA!$P$13:$P$1013,'C-A'!$G$13:$G$1013,CAD_AREA!Q$12) -> 0 | R16: =COUNTIFS('C-A'!$E$13:$E$1013,CAD_AREA!$P$13:$P$1013,'C-A'!$G$13:$G$1013,CAD_AREA!R$12) -> 0 | S16: =COUNTIFS('C-A'!$E$13:$E$1013,CAD_AREA!$P$13:$P$1013,'C-A'!$G$13:$G$1013,CAD_AREA!S$12) -> 0 | T16: =COUNTIFS('C-A'!$E$13:$E$1013,CAD_AREA!$P$13:$P$1013,'C-A'!$G$13:$G$1013,CAD_AREA!T$12) -> 0 | U16: 0 | V16: =U16/'C-A'!$P$13 -> 0 | X16: 4e-06 | Y16: 0 | Z16: 4e-06 | AA16: =COUNTIFS('C-E'!$D$13:$D$1001,CAD_AREA!$B$13:$B$513) -> 0 | AB16: =COUNTIFS('C-E'!$D$13:$D$1001,CAD_AREA!$Y16,'C-E'!$H$13:$H$1001,CAD_AREA!AB$12) -> 0 | AC16: =COUNTIFS('C-E'!$D$13:$D$1001,CAD_AREA!$Y16,'C-E'!$H$13:$H$1001,CAD_AREA!AC$12) -> 0 | CA16: 4e-06 | CE16: 0 | CF16: 4e-06 | CG16: =COUNTIFS('C-E'!$B$13:$B$1001,CAD_AREA!$CB16,'C-E'!$H$13:$H$1001,CAD_AREA!CG$12) -> 0 | CH16: =COUNTIFS('C-E'!$B$13:$B$1001,CAD_AREA!$CB16,'C-E'!$H$13:$H$1001,CAD_AREA!CH$12) -> 0
A17: 5e-06 | D17: 5e-06 | E17: =COUNTIFS(PPRA!$C$13:$C$614,CAD_AREA!B17) -> 0 | F17: =COUNTIFS(PPRA!$C$13:$C$614,CAD_AREA!$B17,PPRA!$D$13:$D$614,CAD_AREA!F$12) -> 0 | G17: =COUNTIFS(PPRA!$C$13:$C$614,CAD_AREA!$B17,PPRA!$D$13:$D$614,CAD_AREA!G$12) -> 0 | H17: =COUNTIFS(PPRA!$C$13:$C$614,CAD_AREA!$B17,PPRA!$D$13:$D$614,CAD_AREA!H$12) -> 0 | I17: =COUNTIFS(PPRA!$C$13:$C$614,CAD_AREA!$B17,PPRA!$D$13:$D$614,CAD_AREA!I$12) -> 0 | J17: =SUMIFS(PPRA!$A$13:$A$614,PPRA!$C$13:$C$614,CAD_AREA!B17) -> 0 | K17: 0 | L17: =COUNTIFS(CAD_AREA!$CD$13:$CD$113,CAD_AREA!$B$13:$B$113) -> 0 | N17: 5e-06 | O17: =COUNTIFS('C-A'!$E$13:$E$1013,CAD_AREA!$B$13:$B$1013) -> 0 | P17: 0 | Q17: =COUNTIFS('C-A'!$E$13:$E$1013,CAD_AREA!$P$13:$P$1013,'C-A'!$G$13:$G$1013,CAD_AREA!Q$12) -> 0 | R17: =COUNTIFS('C-A'!$E$13:$E$1013,CAD_AREA!$P$13:$P$1013,'C-A'!$G$13:$G$1013,CAD_AREA!R$12) -> 0 | S17: =COUNTIFS('C-A'!$E$13:$E$1013,CAD_AREA!$P$13:$P$1013,'C-A'!$G$13:$G$1013,CAD_AREA!S$12) -> 0 | T17: =COUNTIFS('C-A'!$E$13:$E$1013,CAD_AREA!$P$13:$P$1013,'C-A'!$G$13:$G$1013,CAD_AREA!T$12) -> 0 | U17: 0 | V17: =U17/'C-A'!$P$13 -> 0 | X17: 5e-06 | Y17: 0 | Z17: 5e-06 | AA17: =COUNTIFS('C-E'!$D$13:$D$1001,CAD_AREA!$B$13:$B$513) -> 0 | AB17: =COUNTIFS('C-E'!$D$13:$D$1001,CAD_AREA!$Y17,'C-E'!$H$13:$H$1001,CAD_AREA!AB$12) -> 0 | AC17: =COUNTIFS('C-E'!$D$13:$D$1001,CAD_AREA!$Y17,'C-E'!$H$13:$H$1001,CAD_AREA!AC$12) -> 0 | CA17: 5e-06 | CE17: 0 | CF17: 5e-06 | CG17: =COUNTIFS('C-E'!$B$13:$B$1001,CAD_AREA!$CB17,'C-E'!$H$13:$H$1001,CAD_AREA!CG$12) -> 0 | CH17: =COUNTIFS('C-E'!$B$13:$B$1001,CAD_AREA!$CB17,'C-E'!$H$13:$H$1001,CAD_AREA!CH$12) -> 0
A18: 6e-06 | D18: 6e-06 | E18: =COUNTIFS(PPRA!$C$13:$C$614,CAD_AREA!B18) -> 0 | F18: =COUNTIFS(PPRA!$C$13:$C$614,CAD_AREA!$B18,PPRA!$D$13:$D$614,CAD_AREA!F$12) -> 0 | G18: =COUNTIFS(PPRA!$C$13:$C$614,CAD_AREA!$B18,PPRA!$D$13:$D$614,CAD_AREA!G$12) -> 0 | H18: =COUNTIFS(PPRA!$C$13:$C$614,CAD_AREA!$B18,PPRA!$D$13:$D$614,CAD_AREA!H$12) -> 0 | I18: =COUNTIFS(PPRA!$C$13:$C$614,CAD_AREA!$B18,PPRA!$D$13:$D$614,CAD_AREA!I$12) -> 0 | J18: =SUMIFS(PPRA!$A$13:$A$614,PPRA!$C$13:$C$614,CAD_AREA!B18) -> 0 | K18: 0 | L18: =COUNTIFS(CAD_AREA!$CD$13:$CD$113,CAD_AREA!$B$13:$B$113) -> 0 | N18: 6e-06 | O18: =COUNTIFS('C-A'!$E$13:$E$1013,CAD_AREA!$B$13:$B$1013) -> 0 | P18: 0 | Q18: =COUNTIFS('C-A'!$E$13:$E$1013,CAD_AREA!$P$13:$P$1013,'C-A'!$G$13:$G$1013,CAD_AREA!Q$12) -> 0 | R18: =COUNTIFS('C-A'!$E$13:$E$1013,CAD_AREA!$P$13:$P$1013,'C-A'!$G$13:$G$1013,CAD_AREA!R$12) -> 0 | S18: =COUNTIFS('C-A'!$E$13:$E$1013,CAD_AREA!$P$13:$P$1013,'C-A'!$G$13:$G$1013,CAD_AREA!S$12) -> 0 | T18: =COUNTIFS('C-A'!$E$13:$E$1013,CAD_AREA!$P$13:$P$1013,'C-A'!$G$13:$G$1013,CAD_AREA!T$12) -> 0 | U18: 0 | V18: =U18/'C-A'!$P$13 -> 0 | X18: 6e-06 | Y18: 0 | Z18: 6e-06 | AA18: =COUNTIFS('C-E'!$D$13:$D$1001,CAD_AREA!$B$13:$B$513) -> 0 | AB18: =COUNTIFS('C-E'!$D$13:$D$1001,CAD_AREA!$Y18,'C-E'!$H$13:$H$1001,CAD_AREA!AB$12) -> 0 | AC18: =COUNTIFS('C-E'!$D$13:$D$1001,CAD_AREA!$Y18,'C-E'!$H$13:$H$1001,CAD_AREA!AC$12) -> 0 | CA18: 6e-06 | CE18: 0 | CF18: 6e-06 | CG18: =COUNTIFS('C-E'!$B$13:$B$1001,CAD_AREA!$CB18,'C-E'!$H$13:$H$1001,CAD_AREA!CG$12) -> 0 | CH18: =COUNTIFS('C-E'!$B$13:$B$1001,CAD_AREA!$CB18,'C-E'!$H$13:$H$1001,CAD_AREA!CH$12) -> 0
A19: 7e-06 | D19: 7e-06 | E19: =COUNTIFS(PPRA!$C$13:$C$614,CAD_AREA!B19) -> 0 | F19: =COUNTIFS(PPRA!$C$13:$C$614,CAD_AREA!$B19,PPRA!$D$13:$D$614,CAD_AREA!F$12) -> 0 | G19: =COUNTIFS(PPRA!$C$13:$C$614,CAD_AREA!$B19,PPRA!$D$13:$D$614,CAD_AREA!G$12) -> 0 | H19: =COUNTIFS(PPRA!$C$13:$C$614,CAD_AREA!$B19,PPRA!$D$13:$D$614,CAD_AREA!H$12) -> 0 | I19: =COUNTIFS(PPRA!$C$13:$C$614,CAD_AREA!$B19,PPRA!$D$13:$D$614,CAD_AREA!I$12) -> 0 | J19: =SUMIFS(PPRA!$A$13:$A$614,PPRA!$C$13:$C$614,CAD_AREA!B19) -> 0 | K19: 0 | L19: =COUNTIFS(CAD_AREA!$CD$13:$CD$113,CAD_AREA!$B$13:$B$113) -> 0 | N19: 7e-06 | O19: =COUNTIFS('C-A'!$E$13:$E$1013,CAD_AREA!$B$13:$B$1013) -> 0 | P19: 0 | Q19: =COUNTIFS('C-A'!$E$13:$E$1013,CAD_AREA!$P$13:$P$1013,'C-A'!$G$13:$G$1013,CAD_AREA!Q$12) -> 0 | R19: =COUNTIFS('C-A'!$E$13:$E$1013,CAD_AREA!$P$13:$P$1013,'C-A'!$G$13:$G$1013,CAD_AREA!R$12) -> 0 | S19: =COUNTIFS('C-A'!$E$13:$E$1013,CAD_AREA!$P$13:$P$1013,'C-A'!$G$13:$G$1013,CAD_AREA!S$12) -> 0 | T19: =COUNTIFS('C-A'!$E$13:$E$1013,CAD_AREA!$P$13:$P$1013,'C-A'!$G$13:$G$1013,CAD_AREA!T$12) -> 0 | U19: 0 | V19: =U19/'C-A'!$P$13 -> 0 | X19: 7e-06 | Y19: 0 | Z19: 7e-06 | AA19: =COUNTIFS('C-E'!$D$13:$D$1001,CAD_AREA!$B$13:$B$513) -> 0 | AB19: =COUNTIFS('C-E'!$D$13:$D$1001,CAD_AREA!$Y19,'C-E'!$H$13:$H$1001,CAD_AREA!AB$12) -> 0 | AC19: =COUNTIFS('C-E'!$D$13:$D$1001,CAD_AREA!$Y19,'C-E'!$H$13:$H$1001,CAD_AREA!AC$12) -> 0 | CA19: 7e-06 | CE19: 0 | CF19: 7e-06 | CG19: =COUNTIFS('C-E'!$B$13:$B$1001,CAD_AREA!$CB19,'C-E'!$H$13:$H$1001,CAD_AREA!CG$12) -> 0 | CH19: =COUNTIFS('C-E'!$B$13:$B$1001,CAD_AREA!$CB19,'C-E'!$H$13:$H$1001,CAD_AREA!CH$12) -> 0
A20: 8e-06 | D20: 8e-06 | E20: =COUNTIFS(PPRA!$C$13:$C$614,CAD_AREA!B20) -> 0 | F20: =COUNTIFS(PPRA!$C$13:$C$614,CAD_AREA!$B20,PPRA!$D$13:$D$614,CAD_AREA!F$12) -> 0 | G20: =COUNTIFS(PPRA!$C$13:$C$614,CAD_AREA!$B20,PPRA!$D$13:$D$614,CAD_AREA!G$12) -> 0 | H20: =COUNTIFS(PPRA!$C$13:$C$614,CAD_AREA!$B20,PPRA!$D$13:$D$614,CAD_AREA!H$12) -> 0 | I20: =COUNTIFS(PPRA!$C$13:$C$614,CAD_AREA!$B20,PPRA!$D$13:$D$614,CAD_AREA!I$12) -> 0 | J20: =SUMIFS(PPRA!$A$13:$A$614,PPRA!$C$13:$C$614,CAD_AREA!B20) -> 0 | K20: 0 | L20: =COUNTIFS(CAD_AREA!$CD$13:$CD$113,CAD_AREA!$B$13:$B$113) -> 0 | N20: 8e-06 | O20: =COUNTIFS('C-A'!$E$13:$E$1013,CAD_AREA!$B$13:$B$1013) -> 0 | P20: 0 | Q20: =COUNTIFS('C-A'!$E$13:$E$1013,CAD_AREA!$P$13:$P$1013,'C-A'!$G$13:$G$1013,CAD_AREA!Q$12) -> 0 | R20: =COUNTIFS('C-A'!$E$13:$E$1013,CAD_AREA!$P$13:$P$1013,'C-A'!$G$13:$G$1013,CAD_AREA!R$12) -> 0 | S20: =COUNTIFS('C-A'!$E$13:$E$1013,CAD_AREA!$P$13:$P$1013,'C-A'!$G$13:$G$1013,CAD_AREA!S$12) -> 0 | T20: =COUNTIFS('C-A'!$E$13:$E$1013,CAD_AREA!$P$13:$P$1013,'C-A'!$G$13:$G$1013,CAD_AREA!T$12) -> 0 | U20: 0 | V20: =U20/'C-A'!$P$13 -> 0 | X20: 8e-06 | Y20: 0 | Z20: 8e-06 | AA20: =COUNTIFS('C-E'!$D$13:$D$1001,CAD_AREA!$B$13:$B$513) -> 0 | AB20: =COUNTIFS('C-E'!$D$13:$D$1001,CAD_AREA!$Y20,'C-E'!$H$13:$H$1001,CAD_AREA!AB$12) -> 0 | AC20: =COUNTIFS('C-E'!$D$13:$D$1001,CAD_AREA!$Y20,'C-E'!$H$13:$H$1001,CAD_AREA!AC$12) -> 0 | CA20: 8e-06 | CE20: 0 | CF20: 8e-06 | CG20: =COUNTIFS('C-E'!$B$13:$B$1001,CAD_AREA!$CB20,'C-E'!$H$13:$H$1001,CAD_AREA!CG$12) -> 0 | CH20: =COUNTIFS('C-E'!$B$13:$B$1001,CAD_AREA!$CB20,'C-E'!$H$13:$H$1001,CAD_AREA!CH$12) -> 0
A21: 9e-06 | D21: 9e-06 | E21: =COUNTIFS(PPRA!$C$13:$C$614,CAD_AREA!B21) -> 0 | F21: =COUNTIFS(PPRA!$C$13:$C$614,CAD_AREA!$B21,PPRA!$D$13:$D$614,CAD_AREA!F$12) -> 0 | G21: =COUNTIFS(PPRA!$C$13:$C$614,CAD_AREA!$B21,PPRA!$D$13:$D$614,CAD_AREA!G$12) -> 0 | H21: =COUNTIFS(PPRA!$C$13:$C$614,CAD_AREA!$B21,PPRA!$D$13:$D$614,CAD_AREA!H$12) -> 0 | I21: =COUNTIFS(PPRA!$C$13:$C$614,CAD_AREA!$B21,PPRA!$D$13:$D$614,CAD_AREA!I$12) -> 0 | J21: =SUMIFS(PPRA!$A$13:$A$614,PPRA!$C$13:$C$614,CAD_AREA!B21) -> 0 | K21: 0 | L21: =COUNTIFS(CAD_AREA!$CD$13:$CD$113,CAD_AREA!$B$13:$B$113) -> 0 | N21: 9e-06 | O21: =COUNTIFS('C-A'!$E$13:$E$1013,CAD_AREA!$B$13:$B$1013) -> 0 | P21: 0 | Q21: =COUNTIFS('C-A'!$E$13:$E$1013,CAD_AREA!$P$13:$P$1013,'C-A'!$G$13:$G$1013,CAD_AREA!Q$12) -> 0 | R21: =COUNTIFS('C-A'!$E$13:$E$1013,CAD_AREA!$P$13:$P$1013,'C-A'!$G$13:$G$1013,CAD_AREA!R$12) -> 0 | S21: =COUNTIFS('C-A'!$E$13:$E$1013,CAD_AREA!$P$13:$P$1013,'C-A'!$G$13:$G$1013,CAD_AREA!S$12) -> 0 | T21: =COUNTIFS('C-A'!$E$13:$E$1013,CAD_AREA!$P$13:$P$1013,'C-A'!$G$13:$G$1013,CAD_AREA!T$12) -> 0 | U21: 0 | V21: =U21/'C-A'!$P$13 -> 0 | X21: 9e-06 | Y21: 0 | Z21: 9e-06 | AA21: =COUNTIFS('C-E'!$D$13:$D$1001,CAD_AREA!$B$13:$B$513) -> 0 | AB21: =COUNTIFS('C-E'!$D$13:$D$1001,CAD_AREA!$Y21,'C-E'!$H$13:$H$1001,CAD_AREA!AB$12) -> 0 | AC21: =COUNTIFS('C-E'!$D$13:$D$1001,CAD_AREA!$Y21,'C-E'!$H$13:$H$1001,CAD_AREA!AC$12) -> 0 | CA21: 9e-06 | CE21: 0 | CF21: 9e-06 | CG21: =COUNTIFS('C-E'!$B$13:$B$1001,CAD_AREA!$CB21,'C-E'!$H$13:$H$1001,CAD_AREA!CG$12) -> 0 | CH21: =COUNTIFS('C-E'!$B$13:$B$1001,CAD_AREA!$CB21,'C-E'!$H$13:$H$1001,CAD_AREA!CH$12) -> 0
A22: 1e-05 | D22: 1e-05 | E22: =COUNTIFS(PPRA!$C$13:$C$614,CAD_AREA!B22) -> 0 | F22: =COUNTIFS(PPRA!$C$13:$C$614,CAD_AREA!$B22,PPRA!$D$13:$D$614,CAD_AREA!F$12) -> 0 | G22: =COUNTIFS(PPRA!$C$13:$C$614,CAD_AREA!$B22,PPRA!$D$13:$D$614,CAD_AREA!G$12) -> 0 | H22: =COUNTIFS(PPRA!$C$13:$C$614,CAD_AREA!$B22,PPRA!$D$13:$D$614,CAD_AREA!H$12) -> 0 | I22: =COUNTIFS(PPRA!$C$13:$C$614,CAD_AREA!$B22,PPRA!$D$13:$D$614,CAD_AREA!I$12) -> 0 | J22: =SUMIFS(PPRA!$A$13:$A$614,PPRA!$C$13:$C$614,CAD_AREA!B22) -> 0 | K22: 0 | L22: =COUNTIFS(CAD_AREA!$CD$13:$CD$113,CAD_AREA!$B$13:$B$113) -> 0 | N22: 1e-05 | O22: =COUNTIFS('C-A'!$E$13:$E$1013,CAD_AREA!$B$13:$B$1013) -> 0 | P22: 0 | Q22: =COUNTIFS('C-A'!$E$13:$E$1013,CAD_AREA!$P$13:$P$1013,'C-A'!$G$13:$G$1013,CAD_AREA!Q$12) -> 0 | R22: =COUNTIFS('C-A'!$E$13:$E$1013,CAD_AREA!$P$13:$P$1013,'C-A'!$G$13:$G$1013,CAD_AREA!R$12) -> 0 | S22: =COUNTIFS('C-A'!$E$13:$E$1013,CAD_AREA!$P$13:$P$1013,'C-A'!$G$13:$G$1013,CAD_AREA!S$12) -> 0 | T22: =COUNTIFS('C-A'!$E$13:$E$1013,CAD_AREA!$P$13:$P$1013,'C-A'!$G$13:$G$1013,CAD_AREA!T$12) -> 0 | U22: 0 | V22: =U22/'C-A'!$P$13 -> 0 | X22: 1e-05 | Y22: 0 | Z22: 1e-05 | AA22: =COUNTIFS('C-E'!$D$13:$D$1001,CAD_AREA!$B$13:$B$513) -> 0 | AB22: =COUNTIFS('C-E'!$D$13:$D$1001,CAD_AREA!$Y22,'C-E'!$H$13:$H$1001,CAD_AREA!AB$12) -> 0 | AC22: =COUNTIFS('C-E'!$D$13:$D$1001,CAD_AREA!$Y22,'C-E'!$H$13:$H$1001,CAD_AREA!AC$12) -> 0 | CA22: 1e-05 | CE22: 0 | CF22: 1e-05 | CG22: =COUNTIFS('C-E'!$B$13:$B$1001,CAD_AREA!$CB22,'C-E'!$H$13:$H$1001,CAD_AREA!CG$12) -> 0 | CH22: =COUNTIFS('C-E'!$B$13:$B$1001,CAD_AREA!$CB22,'C-E'!$H$13:$H$1001,CAD_AREA!CH$12) -> 0
A23: 1.1e-05 | D23: 1.1e-05 | E23: =COUNTIFS(PPRA!$C$13:$C$614,CAD_AREA!B23) -> 0 | F23: =COUNTIFS(PPRA!$C$13:$C$614,CAD_AREA!$B23,PPRA!$D$13:$D$614,CAD_AREA!F$12) -> 0 | G23: =COUNTIFS(PPRA!$C$13:$C$614,CAD_AREA!$B23,PPRA!$D$13:$D$614,CAD_AREA!G$12) -> 0 | H23: =COUNTIFS(PPRA!$C$13:$C$614,CAD_AREA!$B23,PPRA!$D$13:$D$614,CAD_AREA!H$12) -> 0 | I23: =COUNTIFS(PPRA!$C$13:$C$614,CAD_AREA!$B23,PPRA!$D$13:$D$614,CAD_AREA!I$12) -> 0 | J23: =SUMIFS(PPRA!$A$13:$A$614,PPRA!$C$13:$C$614,CAD_AREA!B23) -> 0 | K23: 0 | L23: =COUNTIFS(CAD_AREA!$CD$13:$CD$113,CAD_AREA!$B$13:$B$113) -> 0 | N23: 1.1e-05 | O23: =COUNTIFS('C-A'!$E$13:$E$1013,CAD_AREA!$B$13:$B$1013) -> 0 | P23: 0 | Q23: =COUNTIFS('C-A'!$E$13:$E$1013,CAD_AREA!$P$13:$P$1013,'C-A'!$G$13:$G$1013,CAD_AREA!Q$12) -> 0 | R23: =COUNTIFS('C-A'!$E$13:$E$1013,CAD_AREA!$P$13:$P$1013,'C-A'!$G$13:$G$1013,CAD_AREA!R$12) -> 0 | S23: =COUNTIFS('C-A'!$E$13:$E$1013,CAD_AREA!$P$13:$P$1013,'C-A'!$G$13:$G$1013,CAD_AREA!S$12) -> 0 | T23: =COUNTIFS('C-A'!$E$13:$E$1013,CAD_AREA!$P$13:$P$1013,'C-A'!$G$13:$G$1013,CAD_AREA!T$12) -> 0 | U23: 0 | V23: =U23/'C-A'!$P$13 -> 0 | X23: 1.1e-05 | Y23: 0 | Z23: 1.1e-05 | AA23: =COUNTIFS('C-E'!$D$13:$D$1001,CAD_AREA!$B$13:$B$513) -> 0 | AB23: =COUNTIFS('C-E'!$D$13:$D$1001,CAD_AREA!$Y23,'C-E'!$H$13:$H$1001,CAD_AREA!AB$12) -> 0 | AC23: =COUNTIFS('C-E'!$D$13:$D$1001,CAD_AREA!$Y23,'C-E'!$H$13:$H$1001,CAD_AREA!AC$12) -> 0 | CA23: 1.1e-05 | CE23: 0 | CF23: 1.1e-05 | CG23: =COUNTIFS('C-E'!$B$13:$B$1001,CAD_AREA!$CB23,'C-E'!$H$13:$H$1001,CAD_AREA!CG$12) -> 0 | CH23: =COUNTIFS('C-E'!$B$13:$B$1001,CAD_AREA!$CB23,'C-E'!$H$13:$H$1001,CAD_AREA!CH$12) -> 0
A24: 1.2e-05 | D24: 1.2e-05 | E24: =COUNTIFS(PPRA!$C$13:$C$614,CAD_AREA!B24) -> 0 | F24: =COUNTIFS(PPRA!$C$13:$C$614,CAD_AREA!$B24,PPRA!$D$13:$D$614,CAD_AREA!F$12) -> 0 | G24: =COUNTIFS(PPRA!$C$13:$C$614,CAD_AREA!$B24,PPRA!$D$13:$D$614,CAD_AREA!G$12) -> 0 | H24: =COUNTIFS(PPRA!$C$13:$C$614,CAD_AREA!$B24,PPRA!$D$13:$D$614,CAD_AREA!H$12) -> 0 | I24: =COUNTIFS(PPRA!$C$13:$C$614,CAD_AREA!$B24,PPRA!$D$13:$D$614,CAD_AREA!I$12) -> 0 | J24: =SUMIFS(PPRA!$A$13:$A$614,PPRA!$C$13:$C$614,CAD_AREA!B24) -> 0 | K24: 0 | L24: =COUNTIFS(CAD_AREA!$CD$13:$CD$113,CAD_AREA!$B$13:$B$113) -> 0 | N24: 1.2e-05 | O24: =COUNTIFS('C-A'!$E$13:$E$1013,CAD_AREA!$B$13:$B$1013) -> 0 | P24: 0 | Q24: =COUNTIFS('C-A'!$E$13:$E$1013,CAD_AREA!$P$13:$P$1013,'C-A'!$G$13:$G$1013,CAD_AREA!Q$12) -> 0 | R24: =COUNTIFS('C-A'!$E$13:$E$1013,CAD_AREA!$P$13:$P$1013,'C-A'!$G$13:$G$1013,CAD_AREA!R$12) -> 0 | S24: =COUNTIFS('C-A'!$E$13:$E$1013,CAD_AREA!$P$13:$P$1013,'C-A'!$G$13:$G$1013,CAD_AREA!S$12) -> 0 | T24: =COUNTIFS('C-A'!$E$13:$E$1013,CAD_AREA!$P$13:$P$1013,'C-A'!$G$13:$G$1013,CAD_AREA!T$12) -> 0 | U24: 0 | V24: =U24/'C-A'!$P$13 -> 0 | X24: 1.2e-05 | Y24: 0 | Z24: 1.2e-05 | AA24: =COUNTIFS('C-E'!$D$13:$D$1001,CAD_AREA!$B$13:$B$513) -> 0 | AB24: =COUNTIFS('C-E'!$D$13:$D$1001,CAD_AREA!$Y24,'C-E'!$H$13:$H$1001,CAD_AREA!AB$12) -> 0 | AC24: =COUNTIFS('C-E'!$D$13:$D$1001,CAD_AREA!$Y24,'C-E'!$H$13:$H$1001,CAD_AREA!AC$12) -> 0 | CA24: 1.2e-05 | CE24: 0 | CF24: 1.2e-05 | CG24: =COUNTIFS('C-E'!$B$13:$B$1001,CAD_AREA!$CB24,'C-E'!$H$13:$H$1001,CAD_AREA!CG$12) -> 0 | CH24: =COUNTIFS('C-E'!$B$13:$B$1001,CAD_AREA!$CB24,'C-E'!$H$13:$H$1001,CAD_AREA!CH$12) -> 0
A25: 1.3e-05 | D25: 1.3e-05 | E25: =COUNTIFS(PPRA!$C$13:$C$614,CAD_AREA!B25) -> 0 | F25: =COUNTIFS(PPRA!$C$13:$C$614,CAD_AREA!$B25,PPRA!$D$13:$D$614,CAD_AREA!F$12) -> 0 | G25: =COUNTIFS(PPRA!$C$13:$C$614,CAD_AREA!$B25,PPRA!$D$13:$D$614,CAD_AREA!G$12) -> 0 | H25: =COUNTIFS(PPRA!$C$13:$C$614,CAD_AREA!$B25,PPRA!$D$13:$D$614,CAD_AREA!H$12) -> 0 | I25: =COUNTIFS(PPRA!$C$13:$C$614,CAD_AREA!$B25,PPRA!$D$13:$D$614,CAD_AREA!I$12) -> 0 | J25: =SUMIFS(PPRA!$A$13:$A$614,PPRA!$C$13:$C$614,CAD_AREA!B25) -> 0 | K25: 0 | L25: =COUNTIFS(CAD_AREA!$CD$13:$CD$113,CAD_AREA!$B$13:$B$113) -> 0 | N25: 1.3e-05 | O25: =COUNTIFS('C-A'!$E$13:$E$1013,CAD_AREA!$B$13:$B$1013) -> 0 | P25: 0 | Q25: =COUNTIFS('C-A'!$E$13:$E$1013,CAD_AREA!$P$13:$P$1013,'C-A'!$G$13:$G$1013,CAD_AREA!Q$12) -> 0 | R25: =COUNTIFS('C-A'!$E$13:$E$1013,CAD_AREA!$P$13:$P$1013,'C-A'!$G$13:$G$1013,CAD_AREA!R$12) -> 0 | S25: =COUNTIFS('C-A'!$E$13:$E$1013,CAD_AREA!$P$13:$P$1013,'C-A'!$G$13:$G$1013,CAD_AREA!S$12) -> 0 | T25: =COUNTIFS('C-A'!$E$13:$E$1013,CAD_AREA!$P$13:$P$1013,'C-A'!$G$13:$G$1013,CAD_AREA!T$12) -> 0 | U25: 0 | V25: =U25/'C-A'!$P$13 -> 0 | X25: 1.3e-05 | Y25: 0 | Z25: 1.3e-05 | AA25: =COUNTIFS('C-E'!$D$13:$D$1001,CAD_AREA!$B$13:$B$513) -> 0 | AB25: =COUNTIFS('C-E'!$D$13:$D$1001,CAD_AREA!$Y25,'C-E'!$H$13:$H$1001,CAD_AREA!AB$12) -> 0 | AC25: =COUNTIFS('C-E'!$D$13:$D$1001,CAD_AREA!$Y25,'C-E'!$H$13:$H$1001,CAD_AREA!AC$12) -> 0 | CA25: 1.3e-05 | CE25: 0 | CF25: 1.3e-05 | CG25: =COUNTIFS('C-E'!$B$13:$B$1001,CAD_AREA!$CB25,'C-E'!$H$13:$H$1001,CAD_AREA!CG$12) -> 0 | CH25: =COUNTIFS('C-E'!$B$13:$B$1001,CAD_AREA!$CB25,'C-E'!$H$13:$H$1001,CAD_AREA!CH$12) -> 0
A26: 1.4e-05 | D26: 1.4e-05 | E26: =COUNTIFS(PPRA!$C$13:$C$614,CAD_AREA!B26) -> 0 | F26: =COUNTIFS(PPRA!$C$13:$C$614,CAD_AREA!$B26,PPRA!$D$13:$D$614,CAD_AREA!F$12) -> 0 | G26: =COUNTIFS(PPRA!$C$13:$C$614,CAD_AREA!$B26,PPRA!$D$13:$D$614,CAD_AREA!G$12) -> 0 | H26: =COUNTIFS(PPRA!$C$13:$C$614,CAD_AREA!$B26,PPRA!$D$13:$D$614,CAD_AREA!H$12) -> 0 | I26: =COUNTIFS(PPRA!$C$13:$C$614,CAD_AREA!$B26,PPRA!$D$13:$D$614,CAD_AREA!I$12) -> 0 | J26: =SUMIFS(PPRA!$A$13:$A$614,PPRA!$C$13:$C$614,CAD_AREA!B26) -> 0 | K26: 0 | L26: =COUNTIFS(CAD_AREA!$CD$13:$CD$113,CAD_AREA!$B$13:$B$113) -> 0 | N26: 1.4e-05 | O26: =COUNTIFS('C-A'!$E$13:$E$1013,CAD_AREA!$B$13:$B$1013) -> 0 | P26: 0 | Q26: =COUNTIFS('C-A'!$E$13:$E$1013,CAD_AREA!$P$13:$P$1013,'C-A'!$G$13:$G$1013,CAD_AREA!Q$12) -> 0 | R26: =COUNTIFS('C-A'!$E$13:$E$1013,CAD_AREA!$P$13:$P$1013,'C-A'!$G$13:$G$1013,CAD_AREA!R$12) -> 0 | S26: =COUNTIFS('C-A'!$E$13:$E$1013,CAD_AREA!$P$13:$P$1013,'C-A'!$G$13:$G$1013,CAD_AREA!S$12) -> 0 | T26: =COUNTIFS('C-A'!$E$13:$E$1013,CAD_AREA!$P$13:$P$1013,'C-A'!$G$13:$G$1013,CAD_AREA!T$12) -> 0 | U26: 0 | V26: =U26/'C-A'!$P$13 -> 0 | X26: 1.4e-05 | Y26: 0 | Z26: 1.4e-05 | AA26: =COUNTIFS('C-E'!$D$13:$D$1001,CAD_AREA!$B$13:$B$513) -> 0 | AB26: =COUNTIFS('C-E'!$D$13:$D$1001,CAD_AREA!$Y26,'C-E'!$H$13:$H$1001,CAD_AREA!AB$12) -> 0 | AC26: =COUNTIFS('C-E'!$D$13:$D$1001,CAD_AREA!$Y26,'C-E'!$H$13:$H$1001,CAD_AREA!AC$12) -> 0 | CA26: 1.4e-05 | CE26: 0 | CF26: 1.4e-05 | CG26: =COUNTIFS('C-E'!$B$13:$B$1001,CAD_AREA!$CB26,'C-E'!$H$13:$H$1001,CAD_AREA!CG$12) -> 0 | CH26: =COUNTIFS('C-E'!$B$13:$B$1001,CAD_AREA!$CB26,'C-E'!$H$13:$H$1001,CAD_AREA!CH$12) -> 0
A27: 1.5e-05 | D27: 1.5e-05 | E27: =COUNTIFS(PPRA!$C$13:$C$614,CAD_AREA!B27) -> 0 | F27: =COUNTIFS(PPRA!$C$13:$C$614,CAD_AREA!$B27,PPRA!$D$13:$D$614,CAD_AREA!F$12) -> 0 | G27: =COUNTIFS(PPRA!$C$13:$C$614,CAD_AREA!$B27,PPRA!$D$13:$D$614,CAD_AREA!G$12) -> 0 | H27: =COUNTIFS(PPRA!$C$13:$C$614,CAD_AREA!$B27,PPRA!$D$13:$D$614,CAD_AREA!H$12) -> 0 | I27: =COUNTIFS(PPRA!$C$13:$C$614,CAD_AREA!$B27,PPRA!$D$13:$D$614,CAD_AREA!I$12) -> 0 | J27: =SUMIFS(PPRA!$A$13:$A$614,PPRA!$C$13:$C$614,CAD_AREA!B27) -> 0 | K27: 0 | L27: =COUNTIFS(CAD_AREA!$CD$13:$CD$113,CAD_AREA!$B$13:$B$113) -> 0 | N27: 1.5e-05 | O27: =COUNTIFS('C-A'!$E$13:$E$1013,CAD_AREA!$B$13:$B$1013) -> 0 | P27: 0 | Q27: =COUNTIFS('C-A'!$E$13:$E$1013,CAD_AREA!$P$13:$P$1013,'C-A'!$G$13:$G$1013,CAD_AREA!Q$12) -> 0 | R27: =COUNTIFS('C-A'!$E$13:$E$1013,CAD_AREA!$P$13:$P$1013,'C-A'!$G$13:$G$1013,CAD_AREA!R$12) -> 0 | S27: =COUNTIFS('C-A'!$E$13:$E$1013,CAD_AREA!$P$13:$P$1013,'C-A'!$G$13:$G$1013,CAD_AREA!S$12) -> 0 | T27: =COUNTIFS('C-A'!$E$13:$E$1013,CAD_AREA!$P$13:$P$1013,'C-A'!$G$13:$G$1013,CAD_AREA!T$12) -> 0 | U27: 0 | V27: =U27/'C-A'!$P$13 -> 0 | X27: 1.5e-05 | Y27: 0 | Z27: 1.5e-05 | AA27: =COUNTIFS('C-E'!$D$13:$D$1001,CAD_AREA!$B$13:$B$513) -> 0 | AB27: =COUNTIFS('C-E'!$D$13:$D$1001,CAD_AREA!$Y27,'C-E'!$H$13:$H$1001,CAD_AREA!AB$12) -> 0 | AC27: =COUNTIFS('C-E'!$D$13:$D$1001,CAD_AREA!$Y27,'C-E'!$H$13:$H$1001,CAD_AREA!AC$12) -> 0 | CA27: 1.5e-05 | CE27: 0 | CF27: 1.5e-05 | CG27: =COUNTIFS('C-E'!$B$13:$B$1001,CAD_AREA!$CB27,'C-E'!$H$13:$H$1001,CAD_AREA!CG$12) -> 0 | CH27: =COUNTIFS('C-E'!$B$13:$B$1001,CAD_AREA!$CB27,'C-E'!$H$13:$H$1001,CAD_AREA!CH$12) -> 0
A28: 1.6e-05 | D28: 1.6e-05 | E28: =COUNTIFS(PPRA!$C$13:$C$614,CAD_AREA!B28) -> 0 | F28: =COUNTIFS(PPRA!$C$13:$C$614,CAD_AREA!$B28,PPRA!$D$13:$D$614,CAD_AREA!F$12) -> 0 | G28: =COUNTIFS(PPRA!$C$13:$C$614,CAD_AREA!$B28,PPRA!$D$13:$D$614,CAD_AREA!G$12) -> 0 | H28: =COUNTIFS(PPRA!$C$13:$C$614,CAD_AREA!$B28,PPRA!$D$13:$D$614,CAD_AREA!H$12) -> 0 | I28: =COUNTIFS(PPRA!$C$13:$C$614,CAD_AREA!$B28,PPRA!$D$13:$D$614,CAD_AREA!I$12) -> 0 | J28: =SUMIFS(PPRA!$A$13:$A$614,PPRA!$C$13:$C$614,CAD_AREA!B28) -> 0 | K28: 0 | L28: =COUNTIFS(CAD_AREA!$CD$13:$CD$113,CAD_AREA!$B$13:$B$113) -> 0 | N28: 1.6e-05 | O28: =COUNTIFS('C-A'!$E$13:$E$1013,CAD_AREA!$B$13:$B$1013) -> 0 | P28: 0 | Q28: =COUNTIFS('C-A'!$E$13:$E$1013,CAD_AREA!$P$13:$P$1013,'C-A'!$G$13:$G$1013,CAD_AREA!Q$12) -> 0 | R28: =COUNTIFS('C-A'!$E$13:$E$1013,CAD_AREA!$P$13:$P$1013,'C-A'!$G$13:$G$1013,CAD_AREA!R$12) -> 0 | S28: =COUNTIFS('C-A'!$E$13:$E$1013,CAD_AREA!$P$13:$P$1013,'C-A'!$G$13:$G$1013,CAD_AREA!S$12) -> 0 | T28: =COUNTIFS('C-A'!$E$13:$E$1013,CAD_AREA!$P$13:$P$1013,'C-A'!$G$13:$G$1013,CAD_AREA!T$12) -> 0 | U28: 0 | V28: =U28/'C-A'!$P$13 -> 0 | X28: 1.6e-05 | Y28: 0 | Z28: 1.6e-05 | AA28: =COUNTIFS('C-E'!$D$13:$D$1001,CAD_AREA!$B$13:$B$513) -> 0 | AB28: =COUNTIFS('C-E'!$D$13:$D$1001,CAD_AREA!$Y28,'C-E'!$H$13:$H$1001,CAD_AREA!AB$12) -> 0 | AC28: =COUNTIFS('C-E'!$D$13:$D$1001,CAD_AREA!$Y28,'C-E'!$H$13:$H$1001,CAD_AREA!AC$12) -> 0 | CA28: 1.6e-05 | CE28: 0 | CF28: 1.6e-05 | CG28: =COUNTIFS('C-E'!$B$13:$B$1001,CAD_AREA!$CB28,'C-E'!$H$13:$H$1001,CAD_AREA!CG$12) -> 0 | CH28: =COUNTIFS('C-E'!$B$13:$B$1001,CAD_AREA!$CB28,'C-E'!$H$13:$H$1001,CAD_AREA!CH$12) -> 0
A29: 1.7e-05 | D29: 1.7e-05 | E29: =COUNTIFS(PPRA!$C$13:$C$614,CAD_AREA!B29) -> 0 | F29: =COUNTIFS(PPRA!$C$13:$C$614,CAD_AREA!$B29,PPRA!$D$13:$D$614,CAD_AREA!F$12) -> 0 | G29: =COUNTIFS(PPRA!$C$13:$C$614,CAD_AREA!$B29,PPRA!$D$13:$D$614,CAD_AREA!G$12) -> 0 | H29: =COUNTIFS(PPRA!$C$13:$C$614,CAD_AREA!$B29,PPRA!$D$13:$D$614,CAD_AREA!H$12) -> 0 | I29: =COUNTIFS(PPRA!$C$13:$C$614,CAD_AREA!$B29,PPRA!$D$13:$D$614,CAD_AREA!I$12) -> 0 | J29: =SUMIFS(PPRA!$A$13:$A$614,PPRA!$C$13:$C$614,CAD_AREA!B29) -> 0 | K29: 0 | L29: =COUNTIFS(CAD_AREA!$CD$13:$CD$113,CAD_AREA!$B$13:$B$113) -> 0 | N29: 1.7e-05 | O29: =COUNTIFS('C-A'!$E$13:$E$1013,CAD_AREA!$B$13:$B$1013) -> 0 | P29: 0 | Q29: =COUNTIFS('C-A'!$E$13:$E$1013,CAD_AREA!$P$13:$P$1013,'C-A'!$G$13:$G$1013,CAD_AREA!Q$12) -> 0 | R29: =COUNTIFS('C-A'!$E$13:$E$1013,CAD_AREA!$P$13:$P$1013,'C-A'!$G$13:$G$1013,CAD_AREA!R$12) -> 0 | S29: =COUNTIFS('C-A'!$E$13:$E$1013,CAD_AREA!$P$13:$P$1013,'C-A'!$G$13:$G$1013,CAD_AREA!S$12) -> 0 | T29: =COUNTIFS('C-A'!$E$13:$E$1013,CAD_AREA!$P$13:$P$1013,'C-A'!$G$13:$G$1013,CAD_AREA!T$12) -> 0 | U29: 0 | V29: =U29/'C-A'!$P$13 -> 0 | X29: 1.7e-05 | Y29: 0 | Z29: 1.7e-05 | AA29: =COUNTIFS('C-E'!$D$13:$D$1001,CAD_AREA!$B$13:$B$513) -> 0 | AB29: =COUNTIFS('C-E'!$D$13:$D$1001,CAD_AREA!$Y29,'C-E'!$H$13:$H$1001,CAD_AREA!AB$12) -> 0 | AC29: =COUNTIFS('C-E'!$D$13:$D$1001,CAD_AREA!$Y29,'C-E'!$H$13:$H$1001,CAD_AREA!AC$12) -> 0 | CA29: 1.7e-05 | CE29: 0 | CF29: 1.7e-05 | CG29: =COUNTIFS('C-E'!$B$13:$B$1001,CAD_AREA!$CB29,'C-E'!$H$13:$H$1001,CAD_AREA!CG$12) -> 0 | CH29: =COUNTIFS('C-E'!$B$13:$B$1001,CAD_AREA!$CB29,'C-E'!$H$13:$H$1001,CAD_AREA!CH$12) -> 0
A30: 1.8e-05 | D30: 1.8e-05 | E30: =COUNTIFS(PPRA!$C$13:$C$614,CAD_AREA!B30) -> 0 | F30: =COUNTIFS(PPRA!$C$13:$C$614,CAD_AREA!$B30,PPRA!$D$13:$D$614,CAD_AREA!F$12) -> 0 | G30: =COUNTIFS(PPRA!$C$13:$C$614,CAD_AREA!$B30,PPRA!$D$13:$D$614,CAD_AREA!G$12) -> 0 | H30: =COUNTIFS(PPRA!$C$13:$C$614,CAD_AREA!$B30,PPRA!$D$13:$D$614,CAD_AREA!H$12) -> 0 | I30: =COUNTIFS(PPRA!$C$13:$C$614,CAD_AREA!$B30,PPRA!$D$13:$D$614,CAD_AREA!I$12) -> 0 | J30: =SUMIFS(PPRA!$A$13:$A$614,PPRA!$C$13:$C$614,CAD_AREA!B30) -> 0 | K30: 0 | L30: =COUNTIFS(CAD_AREA!$CD$13:$CD$113,CAD_AREA!$B$13:$B$113) -> 0 | N30: 1.8e-05 | O30: =COUNTIFS('C-A'!$E$13:$E$1013,CAD_AREA!$B$13:$B$1013) -> 0 | P30: 0 | Q30: =COUNTIFS('C-A'!$E$13:$E$1013,CAD_AREA!$P$13:$P$1013,'C-A'!$G$13:$G$1013,CAD_AREA!Q$12) -> 0 | R30: =COUNTIFS('C-A'!$E$13:$E$1013,CAD_AREA!$P$13:$P$1013,'C-A'!$G$13:$G$1013,CAD_AREA!R$12) -> 0 | S30: =COUNTIFS('C-A'!$E$13:$E$1013,CAD_AREA!$P$13:$P$1013,'C-A'!$G$13:$G$1013,CAD_AREA!S$12) -> 0 | T30: =COUNTIFS('C-A'!$E$13:$E$1013,CAD_AREA!$P$13:$P$1013,'C-A'!$G$13:$G$1013,CAD_AREA!T$12) -> 0 | U30: 0 | V30: =U30/'C-A'!$P$13 -> 0 | X30: 1.8e-05 | Y30: 0 | Z30: 1.8e-05 | AA30: =COUNTIFS('C-E'!$D$13:$D$1001,CAD_AREA!$B$13:$B$513) -> 0 | AB30: =COUNTIFS('C-E'!$D$13:$D$1001,CAD_AREA!$Y30,'C-E'!$H$13:$H$1001,CAD_AREA!AB$12) -> 0 | AC30: =COUNTIFS('C-E'!$D$13:$D$1001,CAD_AREA!$Y30,'C-E'!$H$13:$H$1001,CAD_AREA!AC$12) -> 0 | CA30: 1.8e-05 | CE30: 0 | CF30: 1.8e-05 | CG30: =COUNTIFS('C-E'!$B$13:$B$1001,CAD_AREA!$CB30,'C-E'!$H$13:$H$1001,CAD_AREA!CG$12) -> 0 | CH30: =COUNTIFS('C-E'!$B$13:$B$1001,CAD_AREA!$CB30,'C-E'!$H$13:$H$1001,CAD_AREA!CH$12) -> 0
A31: 1.9e-05 | D31: 1.9e-05 | E31: =COUNTIFS(PPRA!$C$13:$C$614,CAD_AREA!B31) -> 0 | F31: =COUNTIFS(PPRA!$C$13:$C$614,CAD_AREA!$B31,PPRA!$D$13:$D$614,CAD_AREA!F$12) -> 0 | G31: =COUNTIFS(PPRA!$C$13:$C$614,CAD_AREA!$B31,PPRA!$D$13:$D$614,CAD_AREA!G$12) -> 0 | H31: =COUNTIFS(PPRA!$C$13:$C$614,CAD_AREA!$B31,PPRA!$D$13:$D$614,CAD_AREA!H$12) -> 0 | I31: =COUNTIFS(PPRA!$C$13:$C$614,CAD_AREA!$B31,PPRA!$D$13:$D$614,CAD_AREA!I$12) -> 0 | J31: =SUMIFS(PPRA!$A$13:$A$614,PPRA!$C$13:$C$614,CAD_AREA!B31) -> 0 | K31: 0 | L31: =COUNTIFS(CAD_AREA!$CD$13:$CD$113,CAD_AREA!$B$13:$B$113) -> 0 | N31: 1.9e-05 | O31: =COUNTIFS('C-A'!$E$13:$E$1013,CAD_AREA!$B$13:$B$1013) -> 0 | P31: 0 | Q31: =COUNTIFS('C-A'!$E$13:$E$1013,CAD_AREA!$P$13:$P$1013,'C-A'!$G$13:$G$1013,CAD_AREA!Q$12) -> 0 | R31: =COUNTIFS('C-A'!$E$13:$E$1013,CAD_AREA!$P$13:$P$1013,'C-A'!$G$13:$G$1013,CAD_AREA!R$12) -> 0 | S31: =COUNTIFS('C-A'!$E$13:$E$1013,CAD_AREA!$P$13:$P$1013,'C-A'!$G$13:$G$1013,CAD_AREA!S$12) -> 0 | T31: =COUNTIFS('C-A'!$E$13:$E$1013,CAD_AREA!$P$13:$P$1013,'C-A'!$G$13:$G$1013,CAD_AREA!T$12) -> 0 | U31: 0 | V31: =U31/'C-A'!$P$13 -> 0 | X31: 1.9e-05 | Y31: 0 | Z31: 1.9e-05 | AA31: =COUNTIFS('C-E'!$D$13:$D$1001,CAD_AREA!$B$13:$B$513) -> 0 | AB31: =COUNTIFS('C-E'!$D$13:$D$1001,CAD_AREA!$Y31,'C-E'!$H$13:$H$1001,CAD_AREA!AB$12) -> 0 | AC31: =COUNTIFS('C-E'!$D$13:$D$1001,CAD_AREA!$Y31,'C-E'!$H$13:$H$1001,CAD_AREA!AC$12) -> 0 | CA31: 1.9e-05 | CE31: 0 | CF31: 1.9e-05 | CG31: =COUNTIFS('C-E'!$B$13:$B$1001,CAD_AREA!$CB31,'C-E'!$H$13:$H$1001,CAD_AREA!CG$12) -> 0 | CH31: =COUNTIFS('C-E'!$B$13:$B$1001,CAD_AREA!$CB31,'C-E'!$H$13:$H$1001,CAD_AREA!CH$12) -> 0
A32: 2e-05 | D32: 2e-05 | E32: =COUNTIFS(PPRA!$C$13:$C$614,CAD_AREA!B32) -> 0 | F32: =COUNTIFS(PPRA!$C$13:$C$614,CAD_AREA!$B32,PPRA!$D$13:$D$614,CAD_AREA!F$12) -> 0 | G32: =COUNTIFS(PPRA!$C$13:$C$614,CAD_AREA!$B32,PPRA!$D$13:$D$614,CAD_AREA!G$12) -> 0 | H32: =COUNTIFS(PPRA!$C$13:$C$614,CAD_AREA!$B32,PPRA!$D$13:$D$614,CAD_AREA!H$12) -> 0 | I32: =COUNTIFS(PPRA!$C$13:$C$614,CAD_AREA!$B32,PPRA!$D$13:$D$614,CAD_AREA!I$12) -> 0 | J32: =SUMIFS(PPRA!$A$13:$A$614,PPRA!$C$13:$C$614,CAD_AREA!B32) -> 0 | K32: 0 | L32: =COUNTIFS(CAD_AREA!$CD$13:$CD$113,CAD_AREA!$B$13:$B$113) -> 0 | N32: 2e-05 | O32: =COUNTIFS('C-A'!$E$13:$E$1013,CAD_AREA!$B$13:$B$1013) -> 0 | P32: 0 | Q32: =COUNTIFS('C-A'!$E$13:$E$1013,CAD_AREA!$P$13:$P$1013,'C-A'!$G$13:$G$1013,CAD_AREA!Q$12) -> 0 | R32: =COUNTIFS('C-A'!$E$13:$E$1013,CAD_AREA!$P$13:$P$1013,'C-A'!$G$13:$G$1013,CAD_AREA!R$12) -> 0 | S32: =COUNTIFS('C-A'!$E$13:$E$1013,CAD_AREA!$P$13:$P$1013,'C-A'!$G$13:$G$1013,CAD_AREA!S$12) -> 0 | T32: =COUNTIFS('C-A'!$E$13:$E$1013,CAD_AREA!$P$13:$P$1013,'C-A'!$G$13:$G$1013,CAD_AREA!T$12) -> 0 | U32: 0 | V32: =U32/'C-A'!$P$13 -> 0 | X32: 2e-05 | Y32: 0 | Z32: 2e-05 | AA32: =COUNTIFS('C-E'!$D$13:$D$1001,CAD_AREA!$B$13:$B$513) -> 0 | AB32: =COUNTIFS('C-E'!$D$13:$D$1001,CAD_AREA!$Y32,'C-E'!$H$13:$H$1001,CAD_AREA!AB$12) -> 0 | AC32: =COUNTIFS('C-E'!$D$13:$D$1001,CAD_AREA!$Y32,'C-E'!$H$13:$H$1001,CAD_AREA!AC$12) -> 0 | CA32: 2e-05 | CE32: 0 | CF32: 2e-05 | CG32: =COUNTIFS('C-E'!$B$13:$B$1001,CAD_AREA!$CB32,'C-E'!$H$13:$H$1001,CAD_AREA!CG$12) -> 0 | CH32: =COUNTIFS('C-E'!$B$13:$B$1001,CAD_AREA!$CB32,'C-E'!$H$13:$H$1001,CAD_AREA!CH$12) -> 0
A33: 2.1e-05 | D33: 2.1e-05 | E33: =COUNTIFS(PPRA!$C$13:$C$614,CAD_AREA!B33) -> 0 | F33: =COUNTIFS(PPRA!$C$13:$C$614,CAD_AREA!$B33,PPRA!$D$13:$D$614,CAD_AREA!F$12) -> 0 | G33: =COUNTIFS(PPRA!$C$13:$C$614,CAD_AREA!$B33,PPRA!$D$13:$D$614,CAD_AREA!G$12) -> 0 | H33: =COUNTIFS(PPRA!$C$13:$C$614,CAD_AREA!$B33,PPRA!$D$13:$D$614,CAD_AREA!H$12) -> 0 | I33: =COUNTIFS(PPRA!$C$13:$C$614,CAD_AREA!$B33,PPRA!$D$13:$D$614,CAD_AREA!I$12) -> 0 | J33: =SUMIFS(PPRA!$A$13:$A$614,PPRA!$C$13:$C$614,CAD_AREA!B33) -> 0 | K33: 0 | L33: =COUNTIFS(CAD_AREA!$CD$13:$CD$113,CAD_AREA!$B$13:$B$113) -> 0 | N33: 2.1e-05 | O33: =COUNTIFS('C-A'!$E$13:$E$1013,CAD_AREA!$B$13:$B$1013) -> 0 | P33: 0 | Q33: =COUNTIFS('C-A'!$E$13:$E$1013,CAD_AREA!$P$13:$P$1013,'C-A'!$G$13:$G$1013,CAD_AREA!Q$12) -> 0 | R33: =COUNTIFS('C-A'!$E$13:$E$1013,CAD_AREA!$P$13:$P$1013,'C-A'!$G$13:$G$1013,CAD_AREA!R$12) -> 0 | S33: =COUNTIFS('C-A'!$E$13:$E$1013,CAD_AREA!$P$13:$P$1013,'C-A'!$G$13:$G$1013,CAD_AREA!S$12) -> 0 | T33: =COUNTIFS('C-A'!$E$13:$E$1013,CAD_AREA!$P$13:$P$1013,'C-A'!$G$13:$G$1013,CAD_AREA!T$12) -> 0 | U33: 0 | V33: =U33/'C-A'!$P$13 -> 0 | X33: 2.1e-05 | Y33: 0 | Z33: 2.1e-05 | AA33: =COUNTIFS('C-E'!$D$13:$D$1001,CAD_AREA!$B$13:$B$513) -> 0 | AB33: =COUNTIFS('C-E'!$D$13:$D$1001,CAD_AREA!$Y33,'C-E'!$H$13:$H$1001,CAD_AREA!AB$12) -> 0 | AC33: =COUNTIFS('C-E'!$D$13:$D$1001,CAD_AREA!$Y33,'C-E'!$H$13:$H$1001,CAD_AREA!AC$12) -> 0 | CA33: 2.1e-05 | CE33: 0 | CF33: 2.1e-05 | CG33: =COUNTIFS('C-E'!$B$13:$B$1001,CAD_AREA!$CB33,'C-E'!$H$13:$H$1001,CAD_AREA!CG$12) -> 0 | CH33: =COUNTIFS('C-E'!$B$13:$B$1001,CAD_AREA!$CB33,'C-E'!$H$13:$H$1001,CAD_AREA!CH$12) -> 0
A34: 2.2e-05 | D34: 2.2e-05 | E34: =COUNTIFS(PPRA!$C$13:$C$614,CAD_AREA!B34) -> 0 | F34: =COUNTIFS(PPRA!$C$13:$C$614,CAD_AREA!$B34,PPRA!$D$13:$D$614,CAD_AREA!F$12) -> 0 | G34: =COUNTIFS(PPRA!$C$13:$C$614,CAD_AREA!$B34,PPRA!$D$13:$D$614,CAD_AREA!G$12) -> 0 | H34: =COUNTIFS(PPRA!$C$13:$C$614,CAD_AREA!$B34,PPRA!$D$13:$D$614,CAD_AREA!H$12) -> 0 | I34: =COUNTIFS(PPRA!$C$13:$C$614,CAD_AREA!$B34,PPRA!$D$13:$D$614,CAD_AREA!I$12) -> 0 | J34: =SUMIFS(PPRA!$A$13:$A$614,PPRA!$C$13:$C$614,CAD_AREA!B34) -> 0 | K34: 0 | L34: =COUNTIFS(CAD_AREA!$CD$13:$CD$113,CAD_AREA!$B$13:$B$113) -> 0 | N34: 2.2e-05 | O34: =COUNTIFS('C-A'!$E$13:$E$1013,CAD_AREA!$B$13:$B$1013) -> 0 | P34: 0 | Q34: =COUNTIFS('C-A'!$E$13:$E$1013,CAD_AREA!$P$13:$P$1013,'C-A'!$G$13:$G$1013,CAD_AREA!Q$12) -> 0 | R34: =COUNTIFS('C-A'!$E$13:$E$1013,CAD_AREA!$P$13:$P$1013,'C-A'!$G$13:$G$1013,CAD_AREA!R$12) -> 0 | S34: =COUNTIFS('C-A'!$E$13:$E$1013,CAD_AREA!$P$13:$P$1013,'C-A'!$G$13:$G$1013,CAD_AREA!S$12) -> 0 | T34: =COUNTIFS('C-A'!$E$13:$E$1013,CAD_AREA!$P$13:$P$1013,'C-A'!$G$13:$G$1013,CAD_AREA!T$12) -> 0 | U34: 0 | V34: =U34/'C-A'!$P$13 -> 0 | X34: 2.2e-05 | Y34: 0 | Z34: 2.2e-05 | AA34: =COUNTIFS('C-E'!$D$13:$D$1001,CAD_AREA!$B$13:$B$513) -> 0 | AB34: =COUNTIFS('C-E'!$D$13:$D$1001,CAD_AREA!$Y34,'C-E'!$H$13:$H$1001,CAD_AREA!AB$12) -> 0 | AC34: =COUNTIFS('C-E'!$D$13:$D$1001,CAD_AREA!$Y34,'C-E'!$H$13:$H$1001,CAD_AREA!AC$12) -> 0 | CA34: 2.2e-05 | CE34: 0 | CF34: 2.2e-05 | CG34: =COUNTIFS('C-E'!$B$13:$B$1001,CAD_AREA!$CB34,'C-E'!$H$13:$H$1001,CAD_AREA!CG$12) -> 0 | CH34: =COUNTIFS('C-E'!$B$13:$B$1001,CAD_AREA!$CB34,'C-E'!$H$13:$H$1001,CAD_AREA!CH$12) -> 0
A35: 2.3e-05 | D35: 2.3e-05 | E35: =COUNTIFS(PPRA!$C$13:$C$614,CAD_AREA!B35) -> 0 | F35: =COUNTIFS(PPRA!$C$13:$C$614,CAD_AREA!$B35,PPRA!$D$13:$D$614,CAD_AREA!F$12) -> 0 | G35: =COUNTIFS(PPRA!$C$13:$C$614,CAD_AREA!$B35,PPRA!$D$13:$D$614,CAD_AREA!G$12) -> 0 | H35: =COUNTIFS(PPRA!$C$13:$C$614,CAD_AREA!$B35,PPRA!$D$13:$D$614,CAD_AREA!H$12) -> 0 | I35: =COUNTIFS(PPRA!$C$13:$C$614,CAD_AREA!$B35,PPRA!$D$13:$D$614,CAD_AREA!I$12) -> 0 | J35: =SUMIFS(PPRA!$A$13:$A$614,PPRA!$C$13:$C$614,CAD_AREA!B35) -> 0 | K35: 0 | L35: =COUNTIFS(CAD_AREA!$CD$13:$CD$113,CAD_AREA!$B$13:$B$113) -> 0 | N35: 2.3e-05 | O35: =COUNTIFS('C-A'!$E$13:$E$1013,CAD_AREA!$B$13:$B$1013) -> 0 | P35: 0 | Q35: =COUNTIFS('C-A'!$E$13:$E$1013,CAD_AREA!$P$13:$P$1013,'C-A'!$G$13:$G$1013,CAD_AREA!Q$12) -> 0 | R35: =COUNTIFS('C-A'!$E$13:$E$1013,CAD_AREA!$P$13:$P$1013,'C-A'!$G$13:$G$1013,CAD_AREA!R$12) -> 0 | S35: =COUNTIFS('C-A'!$E$13:$E$1013,CAD_AREA!$P$13:$P$1013,'C-A'!$G$13:$G$1013,CAD_AREA!S$12) -> 0 | T35: =COUNTIFS('C-A'!$E$13:$E$1013,CAD_AREA!$P$13:$P$1013,'C-A'!$G$13:$G$1013,CAD_AREA!T$12) -> 0 | U35: 0 | V35: =U35/'C-A'!$P$13 -> 0 | X35: 2.3e-05 | Y35: 0 | Z35: 2.3e-05 | AA35: =COUNTIFS('C-E'!$D$13:$D$1001,CAD_AREA!$B$13:$B$513) -> 0 | AB35: =COUNTIFS('C-E'!$D$13:$D$1001,CAD_AREA!$Y35,'C-E'!$H$13:$H$1001,CAD_AREA!AB$12) -> 0 | AC35: =COUNTIFS('C-E'!$D$13:$D$1001,CAD_AREA!$Y35,'C-E'!$H$13:$H$1001,CAD_AREA!AC$12) -> 0 | CA35: 2.3e-05 | CE35: 0 | CF35: 2.3e-05 | CG35: =COUNTIFS('C-E'!$B$13:$B$1001,CAD_AREA!$CB35,'C-E'!$H$13:$H$1001,CAD_AREA!CG$12) -> 0 | CH35: =COUNTIFS('C-E'!$B$13:$B$1001,CAD_AREA!$CB35,'C-E'!$H$13:$H$1001,CAD_AREA!CH$12) -> 0
A36: 2.4e-05 | D36: 2.4e-05 | E36: =COUNTIFS(PPRA!$C$13:$C$614,CAD_AREA!B36) -> 0 | F36: =COUNTIFS(PPRA!$C$13:$C$614,CAD_AREA!$B36,PPRA!$D$13:$D$614,CAD_AREA!F$12) -> 0 | G36: =COUNTIFS(PPRA!$C$13:$C$614,CAD_AREA!$B36,PPRA!$D$13:$D$614,CAD_AREA!G$12) -> 0 | H36: =COUNTIFS(PPRA!$C$13:$C$614,CAD_AREA!$B36,PPRA!$D$13:$D$614,CAD_AREA!H$12) -> 0 | I36: =COUNTIFS(PPRA!$C$13:$C$614,CAD_AREA!$B36,PPRA!$D$13:$D$614,CAD_AREA!I$12) -> 0 | J36: =SUMIFS(PPRA!$A$13:$A$614,PPRA!$C$13:$C$614,CAD_AREA!B36) -> 0 | K36: 0 | L36: =COUNTIFS(CAD_AREA!$CD$13:$CD$113,CAD_AREA!$B$13:$B$113) -> 0 | N36: 2.4e-05 | O36: =COUNTIFS('C-A'!$E$13:$E$1013,CAD_AREA!$B$13:$B$1013) -> 0 | P36: 0 | Q36: =COUNTIFS('C-A'!$E$13:$E$1013,CAD_AREA!$P$13:$P$1013,'C-A'!$G$13:$G$1013,CAD_AREA!Q$12) -> 0 | R36: =COUNTIFS('C-A'!$E$13:$E$1013,CAD_AREA!$P$13:$P$1013,'C-A'!$G$13:$G$1013,CAD_AREA!R$12) -> 0 | S36: =COUNTIFS('C-A'!$E$13:$E$1013,CAD_AREA!$P$13:$P$1013,'C-A'!$G$13:$G$1013,CAD_AREA!S$12) -> 0 | T36: =COUNTIFS('C-A'!$E$13:$E$1013,CAD_AREA!$P$13:$P$1013,'C-A'!$G$13:$G$1013,CAD_AREA!T$12) -> 0 | U36: 0 | V36: =U36/'C-A'!$P$13 -> 0 | X36: 2.4e-05 | Y36: 0 | Z36: 2.4e-05 | AA36: =COUNTIFS('C-E'!$D$13:$D$1001,CAD_AREA!$B$13:$B$513) -> 0 | AB36: =COUNTIFS('C-E'!$D$13:$D$1001,CAD_AREA!$Y36,'C-E'!$H$13:$H$1001,CAD_AREA!AB$12) -> 0 | AC36: =COUNTIFS('C-E'!$D$13:$D$1001,CAD_AREA!$Y36,'C-E'!$H$13:$H$1001,CAD_AREA!AC$12) -> 0 | CA36: 2.4e-05 | CE36: 0 | CF36: 2.4e-05 | CG36: =COUNTIFS('C-E'!$B$13:$B$1001,CAD_AREA!$CB36,'C-E'!$H$13:$H$1001,CAD_AREA!CG$12) -> 0 | CH36: =COUNTIFS('C-E'!$B$13:$B$1001,CAD_AREA!$CB36,'C-E'!$H$13:$H$1001,CAD_AREA!CH$12) -> 0
A37: 2.5e-05 | D37: 2.5e-05 | E37: =COUNTIFS(PPRA!$C$13:$C$614,CAD_AREA!B37) -> 0 | F37: =COUNTIFS(PPRA!$C$13:$C$614,CAD_AREA!$B37,PPRA!$D$13:$D$614,CAD_AREA!F$12) -> 0 | G37: =COUNTIFS(PPRA!$C$13:$C$614,CAD_AREA!$B37,PPRA!$D$13:$D$614,CAD_AREA!G$12) -> 0 | H37: =COUNTIFS(PPRA!$C$13:$C$614,CAD_AREA!$B37,PPRA!$D$13:$D$614,CAD_AREA!H$12) -> 0 | I37: =COUNTIFS(PPRA!$C$13:$C$614,CAD_AREA!$B37,PPRA!$D$13:$D$614,CAD_AREA!I$12) -> 0 | J37: =SUMIFS(PPRA!$A$13:$A$614,PPRA!$C$13:$C$614,CAD_AREA!B37) -> 0 | K37: 0 | L37: =COUNTIFS(CAD_AREA!$CD$13:$CD$113,CAD_AREA!$B$13:$B$113) -> 0 | N37: 2.5e-05 | O37: =COUNTIFS('C-A'!$E$13:$E$1013,CAD_AREA!$B$13:$B$1013) -> 0 | P37: 0 | Q37: =COUNTIFS('C-A'!$E$13:$E$1013,CAD_AREA!$P$13:$P$1013,'C-A'!$G$13:$G$1013,CAD_AREA!Q$12) -> 0 | R37: =COUNTIFS('C-A'!$E$13:$E$1013,CAD_AREA!$P$13:$P$1013,'C-A'!$G$13:$G$1013,CAD_AREA!R$12) -> 0 | S37: =COUNTIFS('C-A'!$E$13:$E$1013,CAD_AREA!$P$13:$P$1013,'C-A'!$G$13:$G$1013,CAD_AREA!S$12) -> 0 | T37: =COUNTIFS('C-A'!$E$13:$E$1013,CAD_AREA!$P$13:$P$1013,'C-A'!$G$13:$G$1013,CAD_AREA!T$12) -> 0 | U37: 0 | V37: =U37/'C-A'!$P$13 -> 0 | X37: 2.5e-05 | Y37: 0 | Z37: 2.5e-05 | AA37: =COUNTIFS('C-E'!$D$13:$D$1001,CAD_AREA!$B$13:$B$513) -> 0 | AB37: =COUNTIFS('C-E'!$D$13:$D$1001,CAD_AREA!$Y37,'C-E'!$H$13:$H$1001,CAD_AREA!AB$12) -> 0 | AC37: =COUNTIFS('C-E'!$D$13:$D$1001,CAD_AREA!$Y37,'C-E'!$H$13:$H$1001,CAD_AREA!AC$12) -> 0 | CA37: 2.5e-05 | CE37: 0 | CF37: 2.5e-05 | CG37: =COUNTIFS('C-E'!$B$13:$B$1001,CAD_AREA!$CB37,'C-E'!$H$13:$H$1001,CAD_AREA!CG$12) -> 0 | CH37: =COUNTIFS('C-E'!$B$13:$B$1001,CAD_AREA!$CB37,'C-E'!$H$13:$H$1001,CAD_AREA!CH$12) -> 0
A38: 2.6e-05 | D38: 2.6e-05 | E38: =COUNTIFS(PPRA!$C$13:$C$614,CAD_AREA!B38) -> 0 | F38: =COUNTIFS(PPRA!$C$13:$C$614,CAD_AREA!$B38,PPRA!$D$13:$D$614,CAD_AREA!F$12) -> 0 | G38: =COUNTIFS(PPRA!$C$13:$C$614,CAD_AREA!$B38,PPRA!$D$13:$D$614,CAD_AREA!G$12) -> 0 | H38: =COUNTIFS(PPRA!$C$13:$C$614,CAD_AREA!$B38,PPRA!$D$13:$D$614,CAD_AREA!H$12) -> 0 | I38: =COUNTIFS(PPRA!$C$13:$C$614,CAD_AREA!$B38,PPRA!$D$13:$D$614,CAD_AREA!I$12) -> 0 | J38: =SUMIFS(PPRA!$A$13:$A$614,PPRA!$C$13:$C$614,CAD_AREA!B38) -> 0 | K38: 0 | L38: =COUNTIFS(CAD_AREA!$CD$13:$CD$113,CAD_AREA!$B$13:$B$113) -> 0 | N38: 2.6e-05 | O38: =COUNTIFS('C-A'!$E$13:$E$1013,CAD_AREA!$B$13:$B$1013) -> 0 | P38: 0 | Q38: =COUNTIFS('C-A'!$E$13:$E$1013,CAD_AREA!$P$13:$P$1013,'C-A'!$G$13:$G$1013,CAD_AREA!Q$12) -> 0 | R38: =COUNTIFS('C-A'!$E$13:$E$1013,CAD_AREA!$P$13:$P$1013,'C-A'!$G$13:$G$1013,CAD_AREA!R$12) -> 0 | S38: =COUNTIFS('C-A'!$E$13:$E$1013,CAD_AREA!$P$13:$P$1013,'C-A'!$G$13:$G$1013,CAD_AREA!S$12) -> 0 | T38: =COUNTIFS('C-A'!$E$13:$E$1013,CAD_AREA!$P$13:$P$1013,'C-A'!$G$13:$G$1013,CAD_AREA!T$12) -> 0 | U38: 0 | V38: =U38/'C-A'!$P$13 -> 0 | X38: 2.6e-05 | Y38: 0 | Z38: 2.6e-05 | AA38: =COUNTIFS('C-E'!$D$13:$D$1001,CAD_AREA!$B$13:$B$513) -> 0 | AB38: =COUNTIFS('C-E'!$D$13:$D$1001,CAD_AREA!$Y38,'C-E'!$H$13:$H$1001,CAD_AREA!AB$12) -> 0 | AC38: =COUNTIFS('C-E'!$D$13:$D$1001,CAD_AREA!$Y38,'C-E'!$H$13:$H$1001,CAD_AREA!AC$12) -> 0 | CA38: 2.6e-05 | CE38: 0 | CF38: 2.6e-05 | CG38: =COUNTIFS('C-E'!$B$13:$B$1001,CAD_AREA!$CB38,'C-E'!$H$13:$H$1001,CAD_AREA!CG$12) -> 0 | CH38: =COUNTIFS('C-E'!$B$13:$B$1001,CAD_AREA!$CB38,'C-E'!$H$13:$H$1001,CAD_AREA!CH$12) -> 0
A39: 2.7e-05 | D39: 2.7e-05 | E39: =COUNTIFS(PPRA!$C$13:$C$614,CAD_AREA!B39) -> 0 | F39: =COUNTIFS(PPRA!$C$13:$C$614,CAD_AREA!$B39,PPRA!$D$13:$D$614,CAD_AREA!F$12) -> 0 | G39: =COUNTIFS(PPRA!$C$13:$C$614,CAD_AREA!$B39,PPRA!$D$13:$D$614,CAD_AREA!G$12) -> 0 | H39: =COUNTIFS(PPRA!$C$13:$C$614,CAD_AREA!$B39,PPRA!$D$13:$D$614,CAD_AREA!H$12) -> 0 | I39: =COUNTIFS(PPRA!$C$13:$C$614,CAD_AREA!$B39,PPRA!$D$13:$D$614,CAD_AREA!I$12) -> 0 | J39: =SUMIFS(PPRA!$A$13:$A$614,PPRA!$C$13:$C$614,CAD_AREA!B39) -> 0 | K39: 0 | L39: =COUNTIFS(CAD_AREA!$CD$13:$CD$113,CAD_AREA!$B$13:$B$113) -> 0 | N39: 2.7e-05 | O39: =COUNTIFS('C-A'!$E$13:$E$1013,CAD_AREA!$B$13:$B$1013) -> 0 | P39: 0 | Q39: =COUNTIFS('C-A'!$E$13:$E$1013,CAD_AREA!$P$13:$P$1013,'C-A'!$G$13:$G$1013,CAD_AREA!Q$12) -> 0 | R39: =COUNTIFS('C-A'!$E$13:$E$1013,CAD_AREA!$P$13:$P$1013,'C-A'!$G$13:$G$1013,CAD_AREA!R$12) -> 0 | S39: =COUNTIFS('C-A'!$E$13:$E$1013,CAD_AREA!$P$13:$P$1013,'C-A'!$G$13:$G$1013,CAD_AREA!S$12) -> 0 | T39: =COUNTIFS('C-A'!$E$13:$E$1013,CAD_AREA!$P$13:$P$1013,'C-A'!$G$13:$G$1013,CAD_AREA!T$12) -> 0 | U39: 0 | V39: =U39/'C-A'!$P$13 -> 0 | X39: 2.7e-05 | Y39: 0 | Z39: 2.7e-05 | AA39: =COUNTIFS('C-E'!$D$13:$D$1001,CAD_AREA!$B$13:$B$513) -> 0 | AB39: =COUNTIFS('C-E'!$D$13:$D$1001,CAD_AREA!$Y39,'C-E'!$H$13:$H$1001,CAD_AREA!AB$12) -> 0 | AC39: =COUNTIFS('C-E'!$D$13:$D$1001,CAD_AREA!$Y39,'C-E'!$H$13:$H$1001,CAD_AREA!AC$12) -> 0 | CA39: 2.7e-05 | CE39: 0 | CF39: 2.7e-05 | CG39: =COUNTIFS('C-E'!$B$13:$B$1001,CAD_AREA!$CB39,'C-E'!$H$13:$H$1001,CAD_AREA!CG$12) -> 0 | CH39: =COUNTIFS('C-E'!$B$13:$B$1001,CAD_AREA!$CB39,'C-E'!$H$13:$H$1001,CAD_AREA!CH$12) -> 0
A40: 2.8e-05 | D40: 2.8e-05 | E40: =COUNTIFS(PPRA!$C$13:$C$614,CAD_AREA!B40) -> 0 | F40: =COUNTIFS(PPRA!$C$13:$C$614,CAD_AREA!$B40,PPRA!$D$13:$D$614,CAD_AREA!F$12) -> 0 | G40: =COUNTIFS(PPRA!$C$13:$C$614,CAD_AREA!$B40,PPRA!$D$13:$D$614,CAD_AREA!G$12) -> 0 | H40: =COUNTIFS(PPRA!$C$13:$C$614,CAD_AREA!$B40,PPRA!$D$13:$D$614,CAD_AREA!H$12) -> 0 | I40: =COUNTIFS(PPRA!$C$13:$C$614,CAD_AREA!$B40,PPRA!$D$13:$D$614,CAD_AREA!I$12) -> 0 | J40: =SUMIFS(PPRA!$A$13:$A$614,PPRA!$C$13:$C$614,CAD_AREA!B40) -> 0 | K40: 0 | L40: =COUNTIFS(CAD_AREA!$CD$13:$CD$113,CAD_AREA!$B$13:$B$113) -> 0 | N40: 2.8e-05 | O40: =COUNTIFS('C-A'!$E$13:$E$1013,CAD_AREA!$B$13:$B$1013) -> 0 | P40: 0 | Q40: =COUNTIFS('C-A'!$E$13:$E$1013,CAD_AREA!$P$13:$P$1013,'C-A'!$G$13:$G$1013,CAD_AREA!Q$12) -> 0 | R40: =COUNTIFS('C-A'!$E$13:$E$1013,CAD_AREA!$P$13:$P$1013,'C-A'!$G$13:$G$1013,CAD_AREA!R$12) -> 0 | S40: =COUNTIFS('C-A'!$E$13:$E$1013,CAD_AREA!$P$13:$P$1013,'C-A'!$G$13:$G$1013,CAD_AREA!S$12) -> 0 | T40: =COUNTIFS('C-A'!$E$13:$E$1013,CAD_AREA!$P$13:$P$1013,'C-A'!$G$13:$G$1013,CAD_AREA!T$12) -> 0 | U40: 0 | V40: =U40/'C-A'!$P$13 -> 0 | X40: 2.8e-05 | Y40: 0 | Z40: 2.8e-05 | AA40: =COUNTIFS('C-E'!$D$13:$D$1001,CAD_AREA!$B$13:$B$513) -> 0 | AB40: =COUNTIFS('C-E'!$D$13:$D$1001,CAD_AREA!$Y40,'C-E'!$H$13:$H$1001,CAD_AREA!AB$12) -> 0 | AC40: =COUNTIFS('C-E'!$D$13:$D$1001,CAD_AREA!$Y40,'C-E'!$H$13:$H$1001,CAD_AREA!AC$12) -> 0 | CA40: 2.8e-05 | CE40: 0 | CF40: 2.8e-05 | CG40: =COUNTIFS('C-E'!$B$13:$B$1001,CAD_AREA!$CB40,'C-E'!$H$13:$H$1001,CAD_AREA!CG$12) -> 0 | CH40: =COUNTIFS('C-E'!$B$13:$B$1001,CAD_AREA!$CB40,'C-E'!$H$13:$H$1001,CAD_AREA!CH$12) -> 0
A41: 2.9e-05 | D41: 2.9e-05 | E41: =COUNTIFS(PPRA!$C$13:$C$614,CAD_AREA!B41) -> 0 | F41: =COUNTIFS(PPRA!$C$13:$C$614,CAD_AREA!$B41,PPRA!$D$13:$D$614,CAD_AREA!F$12) -> 0 | G41: =COUNTIFS(PPRA!$C$13:$C$614,CAD_AREA!$B41,PPRA!$D$13:$D$614,CAD_AREA!G$12) -> 0 | H41: =COUNTIFS(PPRA!$C$13:$C$614,CAD_AREA!$B41,PPRA!$D$13:$D$614,CAD_AREA!H$12) -> 0 | I41: =COUNTIFS(PPRA!$C$13:$C$614,CAD_AREA!$B41,PPRA!$D$13:$D$614,CAD_AREA!I$12) -> 0 | J41: =SUMIFS(PPRA!$A$13:$A$614,PPRA!$C$13:$C$614,CAD_AREA!B41) -> 0 | K41: 0 | L41: =COUNTIFS(CAD_AREA!$CD$13:$CD$113,CAD_AREA!$B$13:$B$113) -> 0 | N41: 2.9e-05 | O41: =COUNTIFS('C-A'!$E$13:$E$1013,CAD_AREA!$B$13:$B$1013) -> 0 | P41: 0 | Q41: =COUNTIFS('C-A'!$E$13:$E$1013,CAD_AREA!$P$13:$P$1013,'C-A'!$G$13:$G$1013,CAD_AREA!Q$12) -> 0 | R41: =COUNTIFS('C-A'!$E$13:$E$1013,CAD_AREA!$P$13:$P$1013,'C-A'!$G$13:$G$1013,CAD_AREA!R$12) -> 0 | S41: =COUNTIFS('C-A'!$E$13:$E$1013,CAD_AREA!$P$13:$P$1013,'C-A'!$G$13:$G$1013,CAD_AREA!S$12) -> 0 | T41: =COUNTIFS('C-A'!$E$13:$E$1013,CAD_AREA!$P$13:$P$1013,'C-A'!$G$13:$G$1013,CAD_AREA!T$12) -> 0 | U41: 0 | V41: =U41/'C-A'!$P$13 -> 0 | X41: 2.9e-05 | Y41: 0 | Z41: 2.9e-05 | AA41: =COUNTIFS('C-E'!$D$13:$D$1001,CAD_AREA!$B$13:$B$513) -> 0 | AB41: =COUNTIFS('C-E'!$D$13:$D$1001,CAD_AREA!$Y41,'C-E'!$H$13:$H$1001,CAD_AREA!AB$12) -> 0 | AC41: =COUNTIFS('C-E'!$D$13:$D$1001,CAD_AREA!$Y41,'C-E'!$H$13:$H$1001,CAD_AREA!AC$12) -> 0 | CA41: 2.9e-05 | CE41: 0 | CF41: 2.9e-05 | CG41: =COUNTIFS('C-E'!$B$13:$B$1001,CAD_AREA!$CB41,'C-E'!$H$13:$H$1001,CAD_AREA!CG$12) -> 0 | CH41: =COUNTIFS('C-E'!$B$13:$B$1001,CAD_AREA!$CB41,'C-E'!$H$13:$H$1001,CAD_AREA!CH$12) -> 0
A42: 3e-05 | D42: 3e-05 | E42: =COUNTIFS(PPRA!$C$13:$C$614,CAD_AREA!B42) -> 0 | F42: =COUNTIFS(PPRA!$C$13:$C$614,CAD_AREA!$B42,PPRA!$D$13:$D$614,CAD_AREA!F$12) -> 0 | G42: =COUNTIFS(PPRA!$C$13:$C$614,CAD_AREA!$B42,PPRA!$D$13:$D$614,CAD_AREA!G$12) -> 0 | H42: =COUNTIFS(PPRA!$C$13:$C$614,CAD_AREA!$B42,PPRA!$D$13:$D$614,CAD_AREA!H$12) -> 0 | I42: =COUNTIFS(PPRA!$C$13:$C$614,CAD_AREA!$B42,PPRA!$D$13:$D$614,CAD_AREA!I$12) -> 0 | J42: =SUMIFS(PPRA!$A$13:$A$614,PPRA!$C$13:$C$614,CAD_AREA!B42) -> 0 | K42: 0 | L42: =COUNTIFS(CAD_AREA!$CD$13:$CD$113,CAD_AREA!$B$13:$B$113) -> 0 | N42: 3e-05 | O42: =COUNTIFS('C-A'!$E$13:$E$1013,CAD_AREA!$B$13:$B$1013) -> 0 | P42: 0 | Q42: =COUNTIFS('C-A'!$E$13:$E$1013,CAD_AREA!$P$13:$P$1013,'C-A'!$G$13:$G$1013,CAD_AREA!Q$12) -> 0 | R42: =COUNTIFS('C-A'!$E$13:$E$1013,CAD_AREA!$P$13:$P$1013,'C-A'!$G$13:$G$1013,CAD_AREA!R$12) -> 0 | S42: =COUNTIFS('C-A'!$E$13:$E$1013,CAD_AREA!$P$13:$P$1013,'C-A'!$G$13:$G$1013,CAD_AREA!S$12) -> 0 | T42: =COUNTIFS('C-A'!$E$13:$E$1013,CAD_AREA!$P$13:$P$1013,'C-A'!$G$13:$G$1013,CAD_AREA!T$12) -> 0 | U42: 0 | V42: =U42/'C-A'!$P$13 -> 0 | X42: 3e-05 | Y42: 0 | Z42: 3e-05 | AA42: =COUNTIFS('C-E'!$D$13:$D$1001,CAD_AREA!$B$13:$B$513) -> 0 | AB42: =COUNTIFS('C-E'!$D$13:$D$1001,CAD_AREA!$Y42,'C-E'!$H$13:$H$1001,CAD_AREA!AB$12) -> 0 | AC42: =COUNTIFS('C-E'!$D$13:$D$1001,CAD_AREA!$Y42,'C-E'!$H$13:$H$1001,CAD_AREA!AC$12) -> 0 | CA42: 3e-05 | CE42: 0 | CF42: 3e-05 | CG42: =COUNTIFS('C-E'!$B$13:$B$1001,CAD_AREA!$CB42,'C-E'!$H$13:$H$1001,CAD_AREA!CG$12) -> 0 | CH42: =COUNTIFS('C-E'!$B$13:$B$1001,CAD_AREA!$CB42,'C-E'!$H$13:$H$1001,CAD_AREA!CH$12) -> 0
A43: 3.1e-05 | D43: 3.1e-05 | E43: =COUNTIFS(PPRA!$C$13:$C$614,CAD_AREA!B43) -> 0 | F43: =COUNTIFS(PPRA!$C$13:$C$614,CAD_AREA!$B43,PPRA!$D$13:$D$614,CAD_AREA!F$12) -> 0 | G43: =COUNTIFS(PPRA!$C$13:$C$614,CAD_AREA!$B43,PPRA!$D$13:$D$614,CAD_AREA!G$12) -> 0 | H43: =COUNTIFS(PPRA!$C$13:$C$614,CAD_AREA!$B43,PPRA!$D$13:$D$614,CAD_AREA!H$12) -> 0 | I43: =COUNTIFS(PPRA!$C$13:$C$614,CAD_AREA!$B43,PPRA!$D$13:$D$614,CAD_AREA!I$12) -> 0 | J43: =SUMIFS(PPRA!$A$13:$A$614,PPRA!$C$13:$C$614,CAD_AREA!B43) -> 0 | K43: 0 | L43: =COUNTIFS(CAD_AREA!$CD$13:$CD$113,CAD_AREA!$B$13:$B$113) -> 0 | N43: 3.1e-05 | O43: =COUNTIFS('C-A'!$E$13:$E$1013,CAD_AREA!$B$13:$B$1013) -> 0 | P43: 0 | Q43: =COUNTIFS('C-A'!$E$13:$E$1013,CAD_AREA!$P$13:$P$1013,'C-A'!$G$13:$G$1013,CAD_AREA!Q$12) -> 0 | R43: =COUNTIFS('C-A'!$E$13:$E$1013,CAD_AREA!$P$13:$P$1013,'C-A'!$G$13:$G$1013,CAD_AREA!R$12) -> 0 | S43: =COUNTIFS('C-A'!$E$13:$E$1013,CAD_AREA!$P$13:$P$1013,'C-A'!$G$13:$G$1013,CAD_AREA!S$12) -> 0 | T43: =COUNTIFS('C-A'!$E$13:$E$1013,CAD_AREA!$P$13:$P$1013,'C-A'!$G$13:$G$1013,CAD_AREA!T$12) -> 0 | U43: 0 | V43: =U43/'C-A'!$P$13 -> 0 | X43: 3.1e-05 | Y43: 0 | Z43: 3.1e-05 | AA43: =COUNTIFS('C-E'!$D$13:$D$1001,CAD_AREA!$B$13:$B$513) -> 0 | AB43: =COUNTIFS('C-E'!$D$13:$D$1001,CAD_AREA!$Y43,'C-E'!$H$13:$H$1001,CAD_AREA!AB$12) -> 0 | AC43: =COUNTIFS('C-E'!$D$13:$D$1001,CAD_AREA!$Y43,'C-E'!$H$13:$H$1001,CAD_AREA!AC$12) -> 0 | CA43: 3.1e-05 | CE43: 0 | CF43: 3.1e-05 | CG43: =COUNTIFS('C-E'!$B$13:$B$1001,CAD_AREA!$CB43,'C-E'!$H$13:$H$1001,CAD_AREA!CG$12) -> 0 | CH43: =COUNTIFS('C-E'!$B$13:$B$1001,CAD_AREA!$CB43,'C-E'!$H$13:$H$1001,CAD_AREA!CH$12) -> 0
A44: 3.2e-05 | D44: 3.2e-05 | E44: =COUNTIFS(PPRA!$C$13:$C$614,CAD_AREA!B44) -> 0 | F44: =COUNTIFS(PPRA!$C$13:$C$614,CAD_AREA!$B44,PPRA!$D$13:$D$614,CAD_AREA!F$12) -> 0 | G44: =COUNTIFS(PPRA!$C$13:$C$614,CAD_AREA!$B44,PPRA!$D$13:$D$614,CAD_AREA!G$12) -> 0 | H44: =COUNTIFS(PPRA!$C$13:$C$614,CAD_AREA!$B44,PPRA!$D$13:$D$614,CAD_AREA!H$12) -> 0 | I44: =COUNTIFS(PPRA!$C$13:$C$614,CAD_AREA!$B44,PPRA!$D$13:$D$614,CAD_AREA!I$12) -> 0 | J44: =SUMIFS(PPRA!$A$13:$A$614,PPRA!$C$13:$C$614,CAD_AREA!B44) -> 0 | K44: 0 | L44: =COUNTIFS(CAD_AREA!$CD$13:$CD$113,CAD_AREA!$B$13:$B$113) -> 0 | N44: 3.2e-05 | O44: =COUNTIFS('C-A'!$E$13:$E$1013,CAD_AREA!$B$13:$B$1013) -> 0 | P44: 0 | Q44: =COUNTIFS('C-A'!$E$13:$E$1013,CAD_AREA!$P$13:$P$1013,'C-A'!$G$13:$G$1013,CAD_AREA!Q$12) -> 0 | R44: =COUNTIFS('C-A'!$E$13:$E$1013,CAD_AREA!$P$13:$P$1013,'C-A'!$G$13:$G$1013,CAD_AREA!R$12) -> 0 | S44: =COUNTIFS('C-A'!$E$13:$E$1013,CAD_AREA!$P$13:$P$1013,'C-A'!$G$13:$G$1013,CAD_AREA!S$12) -> 0 | T44: =COUNTIFS('C-A'!$E$13:$E$1013,CAD_AREA!$P$13:$P$1013,'C-A'!$G$13:$G$1013,CAD_AREA!T$12) -> 0 | U44: 0 | V44: =U44/'C-A'!$P$13 -> 0 | X44: 3.2e-05 | Y44: 0 | Z44: 3.2e-05 | AA44: =COUNTIFS('C-E'!$D$13:$D$1001,CAD_AREA!$B$13:$B$513) -> 0 | AB44: =COUNTIFS('C-E'!$D$13:$D$1001,CAD_AREA!$Y44,'C-E'!$H$13:$H$1001,CAD_AREA!AB$12) -> 0 | AC44: =COUNTIFS('C-E'!$D$13:$D$1001,CAD_AREA!$Y44,'C-E'!$H$13:$H$1001,CAD_AREA!AC$12) -> 0 | CA44: 3.2e-05 | CE44: 0 | CF44: 3.2e-05 | CG44: =COUNTIFS('C-E'!$B$13:$B$1001,CAD_AREA!$CB44,'C-E'!$H$13:$H$1001,CAD_AREA!CG$12) -> 0 | CH44: =COUNTIFS('C-E'!$B$13:$B$1001,CAD_AREA!$CB44,'C-E'!$H$13:$H$1001,CAD_AREA!CH$12) -> 0
A45: =SUM(D45:E45) -> 3.3e-05 | D45: 3.3e-05 | E45: =COUNTIFS(PPRA!$C$13:$C$614,CAD_AREA!B45) -> 0 | F45: =COUNTIFS(PPRA!$C$13:$C$614,CAD_AREA!$B45,PPRA!$D$13:$D$614,CAD_AREA!F$12) -> 0 | G45: =COUNTIFS(PPRA!$C$13:$C$614,CAD_AREA!$B45,PPRA!$D$13:$D$614,CAD_AREA!G$12) -> 0 | H45: =COUNTIFS(PPRA!$C$13:$C$614,CAD_AREA!$B45,PPRA!$D$13:$D$614,CAD_AREA!H$12) -> 0 | I45: =COUNTIFS(PPRA!$C$13:$C$614,CAD_AREA!$B45,PPRA!$D$13:$D$614,CAD_AREA!I$12) -> 0 | J45: =SUMIFS(PPRA!$A$13:$A$614,PPRA!$C$13:$C$614,CAD_AREA!B45) -> 0 | K45: 0 | L45: =COUNTIFS(CAD_AREA!$CD$13:$CD$113,CAD_AREA!$B$13:$B$113) -> 0 | N45: 3.3e-05 | O45: =COUNTIFS('C-A'!$E$13:$E$1013,CAD_AREA!$B$13:$B$1013) -> 0 | P45: 0 | Q45: =COUNTIFS('C-A'!$E$13:$E$1013,CAD_AREA!$P$13:$P$1013,'C-A'!$G$13:$G$1013,CAD_AREA!Q$12) -> 0 | R45: =COUNTIFS('C-A'!$E$13:$E$1013,CAD_AREA!$P$13:$P$1013,'C-A'!$G$13:$G$1013,CAD_AREA!R$12) -> 0 | S45: =COUNTIFS('C-A'!$E$13:$E$1013,CAD_AREA!$P$13:$P$1013,'C-A'!$G$13:$G$1013,CAD_AREA!S$12) -> 0 | T45: =COUNTIFS('C-A'!$E$13:$E$1013,CAD_AREA!$P$13:$P$1013,'C-A'!$G$13:$G$1013,CAD_AREA!T$12) -> 0 | U45: 0 | V45: =U45/'C-A'!$P$13 -> 0 | X45: 3.3e-05 | Y45: 0 | Z45: 3.3e-05 | AA45: =COUNTIFS('C-E'!$D$13:$D$1001,CAD_AREA!$B$13:$B$513) -> 0 | AB45: =COUNTIFS('C-E'!$D$13:$D$1001,CAD_AREA!$Y45,'C-E'!$H$13:$H$1001,CAD_AREA!AB$12) -> 0 | AC45: =COUNTIFS('C-E'!$D$13:$D$1001,CAD_AREA!$Y45,'C-E'!$H$13:$H$1001,CAD_AREA!AC$12) -> 0 | BB45: =IF(BA45="","",BA45) ->  | CA45: =SUM(CF45,CH45) -> 3.3e-05 | CE45: =CB45 -> 0 | CF45: 3.3e-05 | CG45: =COUNTIFS('C-E'!$B$13:$B$1001,CAD_AREA!$CB45,'C-E'!$H$13:$H$1001,CAD_AREA!CG$12) -> 0 | CH45: =COUNTIFS('C-E'!$B$13:$B$1001,CAD_AREA!$CB45,'C-E'!$H$13:$H$1001,CAD_AREA!CH$12) -> 0
A46: 3.4e-05 | D46: 3.4e-05 | E46: =COUNTIFS(PPRA!$C$13:$C$614,CAD_AREA!B46) -> 0 | F46: =COUNTIFS(PPRA!$C$13:$C$614,CAD_AREA!$B46,PPRA!$D$13:$D$614,CAD_AREA!F$12) -> 0 | G46: =COUNTIFS(PPRA!$C$13:$C$614,CAD_AREA!$B46,PPRA!$D$13:$D$614,CAD_AREA!G$12) -> 0 | H46: =COUNTIFS(PPRA!$C$13:$C$614,CAD_AREA!$B46,PPRA!$D$13:$D$614,CAD_AREA!H$12) -> 0 | I46: =COUNTIFS(PPRA!$C$13:$C$614,CAD_AREA!$B46,PPRA!$D$13:$D$614,CAD_AREA!I$12) -> 0 | J46: =SUMIFS(PPRA!$A$13:$A$614,PPRA!$C$13:$C$614,CAD_AREA!B46) -> 0 | K46: 0 | L46: =COUNTIFS(CAD_AREA!$CD$13:$CD$113,CAD_AREA!$B$13:$B$113) -> 0 | N46: 3.4e-05 | O46: =COUNTIFS('C-A'!$E$13:$E$1013,CAD_AREA!$B$13:$B$1013) -> 0 | P46: 0 | Q46: =COUNTIFS('C-A'!$E$13:$E$1013,CAD_AREA!$P$13:$P$1013,'C-A'!$G$13:$G$1013,CAD_AREA!Q$12) -> 0 | R46: =COUNTIFS('C-A'!$E$13:$E$1013,CAD_AREA!$P$13:$P$1013,'C-A'!$G$13:$G$1013,CAD_AREA!R$12) -> 0 | S46: =COUNTIFS('C-A'!$E$13:$E$1013,CAD_AREA!$P$13:$P$1013,'C-A'!$G$13:$G$1013,CAD_AREA!S$12) -> 0 | T46: =COUNTIFS('C-A'!$E$13:$E$1013,CAD_AREA!$P$13:$P$1013,'C-A'!$G$13:$G$1013,CAD_AREA!T$12) -> 0 | U46: 0 | V46: =U46/'C-A'!$P$13 -> 0 | X46: 3.4e-05 | Y46: 0 | Z46: 3.4e-05 | AA46: =COUNTIFS('C-E'!$D$13:$D$1001,CAD_AREA!$B$13:$B$513) -> 0 | AB46: =COUNTIFS('C-E'!$D$13:$D$1001,CAD_AREA!$Y46,'C-E'!$H$13:$H$1001,CAD_AREA!AB$12) -> 0 | AC46: =COUNTIFS('C-E'!$D$13:$D$1001,CAD_AREA!$Y46,'C-E'!$H$13:$H$1001,CAD_AREA!AC$12) -> 0 | CA46: 3.4e-05 | CE46: 0 | CF46: =CF45+$CF$13 -> 3.4e-05 | CG46: =COUNTIFS('C-E'!$B$13:$B$1001,CAD_AREA!$CB46,'C-E'!$H$13:$H$1001,CAD_AREA!CG$12) -> 0 | CH46: =COUNTIFS('C-E'!$B$13:$B$1001,CAD_AREA!$CB46,'C-E'!$H$13:$H$1001,CAD_AREA!CH$12) -> 0
A47: 3.5e-05 | D47: 3.5e-05 | E47: =COUNTIFS(PPRA!$C$13:$C$614,CAD_AREA!B47) -> 0 | F47: =COUNTIFS(PPRA!$C$13:$C$614,CAD_AREA!$B47,PPRA!$D$13:$D$614,CAD_AREA!F$12) -> 0 | G47: =COUNTIFS(PPRA!$C$13:$C$614,CAD_AREA!$B47,PPRA!$D$13:$D$614,CAD_AREA!G$12) -> 0 | H47: =COUNTIFS(PPRA!$C$13:$C$614,CAD_AREA!$B47,PPRA!$D$13:$D$614,CAD_AREA!H$12) -> 0 | I47: =COUNTIFS(PPRA!$C$13:$C$614,CAD_AREA!$B47,PPRA!$D$13:$D$614,CAD_AREA!I$12) -> 0 | J47: =SUMIFS(PPRA!$A$13:$A$614,PPRA!$C$13:$C$614,CAD_AREA!B47) -> 0 | K47: 0 | L47: =COUNTIFS(CAD_AREA!$CD$13:$CD$113,CAD_AREA!$B$13:$B$113) -> 0 | N47: 3.5e-05 | O47: =COUNTIFS('C-A'!$E$13:$E$1013,CAD_AREA!$B$13:$B$1013) -> 0 | P47: 0 | Q47: =COUNTIFS('C-A'!$E$13:$E$1013,CAD_AREA!$P$13:$P$1013,'C-A'!$G$13:$G$1013,CAD_AREA!Q$12) -> 0 | R47: =COUNTIFS('C-A'!$E$13:$E$1013,CAD_AREA!$P$13:$P$1013,'C-A'!$G$13:$G$1013,CAD_AREA!R$12) -> 0 | S47: =COUNTIFS('C-A'!$E$13:$E$1013,CAD_AREA!$P$13:$P$1013,'C-A'!$G$13:$G$1013,CAD_AREA!S$12) -> 0 | T47: =COUNTIFS('C-A'!$E$13:$E$1013,CAD_AREA!$P$13:$P$1013,'C-A'!$G$13:$G$1013,CAD_AREA!T$12) -> 0 | U47: 0 | V47: =U47/'C-A'!$P$13 -> 0 | X47: 3.5e-05 | Y47: 0 | Z47: 3.5e-05 | AA47: =COUNTIFS('C-E'!$D$13:$D$1001,CAD_AREA!$B$13:$B$513) -> 0 | AB47: =COUNTIFS('C-E'!$D$13:$D$1001,CAD_AREA!$Y47,'C-E'!$H$13:$H$1001,CAD_AREA!AB$12) -> 0 | AC47: =COUNTIFS('C-E'!$D$13:$D$1001,CAD_AREA!$Y47,'C-E'!$H$13:$H$1001,CAD_AREA!AC$12) -> 0 | CA47: 3.5e-05 | CE47: 0 | CF47: 3.5e-05 | CG47: =COUNTIFS('C-E'!$B$13:$B$1001,CAD_AREA!$CB47,'C-E'!$H$13:$H$1001,CAD_AREA!CG$12) -> 0 | CH47: =COUNTIFS('C-E'!$B$13:$B$1001,CAD_AREA!$CB47,'C-E'!$H$13:$H$1001,CAD_AREA!CH$12) -> 0
A48: 3.6e-05 | D48: 3.6e-05 | E48: =COUNTIFS(PPRA!$C$13:$C$614,CAD_AREA!B48) -> 0 | F48: =COUNTIFS(PPRA!$C$13:$C$614,CAD_AREA!$B48,PPRA!$D$13:$D$614,CAD_AREA!F$12) -> 0 | G48: =COUNTIFS(PPRA!$C$13:$C$614,CAD_AREA!$B48,PPRA!$D$13:$D$614,CAD_AREA!G$12) -> 0 | H48: =COUNTIFS(PPRA!$C$13:$C$614,CAD_AREA!$B48,PPRA!$D$13:$D$614,CAD_AREA!H$12) -> 0 | I48: =COUNTIFS(PPRA!$C$13:$C$614,CAD_AREA!$B48,PPRA!$D$13:$D$614,CAD_AREA!I$12) -> 0 | J48: =SUMIFS(PPRA!$A$13:$A$614,PPRA!$C$13:$C$614,CAD_AREA!B48) -> 0 | K48: 0 | L48: =COUNTIFS(CAD_AREA!$CD$13:$CD$113,CAD_AREA!$B$13:$B$113) -> 0 | N48: 3.6e-05 | O48: =COUNTIFS('C-A'!$E$13:$E$1013,CAD_AREA!$B$13:$B$1013) -> 0 | P48: 0 | Q48: =COUNTIFS('C-A'!$E$13:$E$1013,CAD_AREA!$P$13:$P$1013,'C-A'!$G$13:$G$1013,CAD_AREA!Q$12) -> 0 | R48: =COUNTIFS('C-A'!$E$13:$E$1013,CAD_AREA!$P$13:$P$1013,'C-A'!$G$13:$G$1013,CAD_AREA!R$12) -> 0 | S48: =COUNTIFS('C-A'!$E$13:$E$1013,CAD_AREA!$P$13:$P$1013,'C-A'!$G$13:$G$1013,CAD_AREA!S$12) -> 0 | T48: =COUNTIFS('C-A'!$E$13:$E$1013,CAD_AREA!$P$13:$P$1013,'C-A'!$G$13:$G$1013,CAD_AREA!T$12) -> 0 | U48: 0 | V48: =U48/'C-A'!$P$13 -> 0 | X48: 3.6e-05 | Y48: 0 | Z48: 3.6e-05 | AA48: =COUNTIFS('C-E'!$D$13:$D$1001,CAD_AREA!$B$13:$B$513) -> 0 | AB48: =COUNTIFS('C-E'!$D$13:$D$1001,CAD_AREA!$Y48,'C-E'!$H$13:$H$1001,CAD_AREA!AB$12) -> 0 | AC48: =COUNTIFS('C-E'!$D$13:$D$1001,CAD_AREA!$Y48,'C-E'!$H$13:$H$1001,CAD_AREA!AC$12) -> 0 | CA48: 3.6e-05 | CE48: 0 | CF48: 3.6e-05 | CG48: =COUNTIFS('C-E'!$B$13:$B$1001,CAD_AREA!$CB48,'C-E'!$H$13:$H$1001,CAD_AREA!CG$12) -> 0 | CH48: =COUNTIFS('C-E'!$B$13:$B$1001,CAD_AREA!$CB48,'C-E'!$H$13:$H$1001,CAD_AREA!CH$12) -> 0
A49: 3.7e-05 | D49: 3.7e-05 | E49: =COUNTIFS(PPRA!$C$13:$C$614,CAD_AREA!B49) -> 0 | F49: =COUNTIFS(PPRA!$C$13:$C$614,CAD_AREA!$B49,PPRA!$D$13:$D$614,CAD_AREA!F$12) -> 0 | G49: =COUNTIFS(PPRA!$C$13:$C$614,CAD_AREA!$B49,PPRA!$D$13:$D$614,CAD_AREA!G$12) -> 0 | H49: =COUNTIFS(PPRA!$C$13:$C$614,CAD_AREA!$B49,PPRA!$D$13:$D$614,CAD_AREA!H$12) -> 0 | I49: =COUNTIFS(PPRA!$C$13:$C$614,CAD_AREA!$B49,PPRA!$D$13:$D$614,CAD_AREA!I$12) -> 0 | J49: =SUMIFS(PPRA!$A$13:$A$614,PPRA!$C$13:$C$614,CAD_AREA!B49) -> 0 | K49: 0 | L49: =COUNTIFS(CAD_AREA!$CD$13:$CD$113,CAD_AREA!$B$13:$B$113) -> 0 | N49: 3.7e-05 | O49: =COUNTIFS('C-A'!$E$13:$E$1013,CAD_AREA!$B$13:$B$1013) -> 0 | P49: 0 | Q49: =COUNTIFS('C-A'!$E$13:$E$1013,CAD_AREA!$P$13:$P$1013,'C-A'!$G$13:$G$1013,CAD_AREA!Q$12) -> 0 | R49: =COUNTIFS('C-A'!$E$13:$E$1013,CAD_AREA!$P$13:$P$1013,'C-A'!$G$13:$G$1013,CAD_AREA!R$12) -> 0 | S49: =COUNTIFS('C-A'!$E$13:$E$1013,CAD_AREA!$P$13:$P$1013,'C-A'!$G$13:$G$1013,CAD_AREA!S$12) -> 0 | T49: =COUNTIFS('C-A'!$E$13:$E$1013,CAD_AREA!$P$13:$P$1013,'C-A'!$G$13:$G$1013,CAD_AREA!T$12) -> 0 | U49: 0 | V49: =U49/'C-A'!$P$13 -> 0 | X49: 3.7e-05 | Y49: 0 | Z49: 3.7e-05 | AA49: =COUNTIFS('C-E'!$D$13:$D$1001,CAD_AREA!$B$13:$B$513) -> 0 | AB49: =COUNTIFS('C-E'!$D$13:$D$1001,CAD_AREA!$Y49,'C-E'!$H$13:$H$1001,CAD_AREA!AB$12) -> 0 | AC49: =COUNTIFS('C-E'!$D$13:$D$1001,CAD_AREA!$Y49,'C-E'!$H$13:$H$1001,CAD_AREA!AC$12) -> 0 | CA49: 3.7e-05 | CE49: 0 | CF49: 3.7e-05 | CG49: =COUNTIFS('C-E'!$B$13:$B$1001,CAD_AREA!$CB49,'C-E'!$H$13:$H$1001,CAD_AREA!CG$12) -> 0 | CH49: =COUNTIFS('C-E'!$B$13:$B$1001,CAD_AREA!$CB49,'C-E'!$H$13:$H$1001,CAD_AREA!CH$12) -> 0
A50: 3.8e-05 | D50: 3.8e-05 | E50: =COUNTIFS(PPRA!$C$13:$C$614,CAD_AREA!B50) -> 0 | F50: =COUNTIFS(PPRA!$C$13:$C$614,CAD_AREA!$B50,PPRA!$D$13:$D$614,CAD_AREA!F$12) -> 0 | G50: =COUNTIFS(PPRA!$C$13:$C$614,CAD_AREA!$B50,PPRA!$D$13:$D$614,CAD_AREA!G$12) -> 0 | H50: =COUNTIFS(PPRA!$C$13:$C$614,CAD_AREA!$B50,PPRA!$D$13:$D$614,CAD_AREA!H$12) -> 0 | I50: =COUNTIFS(PPRA!$C$13:$C$614,CAD_AREA!$B50,PPRA!$D$13:$D$614,CAD_AREA!I$12) -> 0 | J50: =SUMIFS(PPRA!$A$13:$A$614,PPRA!$C$13:$C$614,CAD_AREA!B50) -> 0 | K50: 0 | L50: =COUNTIFS(CAD_AREA!$CD$13:$CD$113,CAD_AREA!$B$13:$B$113) -> 0 | N50: 3.8e-05 | O50: =COUNTIFS('C-A'!$E$13:$E$1013,CAD_AREA!$B$13:$B$1013) -> 0 | P50: 0 | Q50: =COUNTIFS('C-A'!$E$13:$E$1013,CAD_AREA!$P$13:$P$1013,'C-A'!$G$13:$G$1013,CAD_AREA!Q$12) -> 0 | R50: =COUNTIFS('C-A'!$E$13:$E$1013,CAD_AREA!$P$13:$P$1013,'C-A'!$G$13:$G$1013,CAD_AREA!R$12) -> 0 | S50: =COUNTIFS('C-A'!$E$13:$E$1013,CAD_AREA!$P$13:$P$1013,'C-A'!$G$13:$G$1013,CAD_AREA!S$12) -> 0 | T50: =COUNTIFS('C-A'!$E$13:$E$1013,CAD_AREA!$P$13:$P$1013,'C-A'!$G$13:$G$1013,CAD_AREA!T$12) -> 0 | U50: 0 | V50: =U50/'C-A'!$P$13 -> 0 | X50: 3.8e-05 | Y50: 0 | Z50: 3.8e-05 | AA50: =COUNTIFS('C-E'!$D$13:$D$1001,CAD_AREA!$B$13:$B$513) -> 0 | AB50: =COUNTIFS('C-E'!$D$13:$D$1001,CAD_AREA!$Y50,'C-E'!$H$13:$H$1001,CAD_AREA!AB$12) -> 0 | AC50: =COUNTIFS('C-E'!$D$13:$D$1001,CAD_AREA!$Y50,'C-E'!$H$13:$H$1001,CAD_AREA!AC$12) -> 0 | CA50: 3.8e-05 | CE50: 0 | CF50: 3.8e-05 | CG50: =COUNTIFS('C-E'!$B$13:$B$1001,CAD_AREA!$CB50,'C-E'!$H$13:$H$1001,CAD_AREA!CG$12) -> 0 | CH50: =COUNTIFS('C-E'!$B$13:$B$1001,CAD_AREA!$CB50,'C-E'!$H$13:$H$1001,CAD_AREA!CH$12) -> 0
A51: 3.9e-05 | D51: 3.9e-05 | E51: =COUNTIFS(PPRA!$C$13:$C$614,CAD_AREA!B51) -> 0 | F51: =COUNTIFS(PPRA!$C$13:$C$614,CAD_AREA!$B51,PPRA!$D$13:$D$614,CAD_AREA!F$12) -> 0 | G51: =COUNTIFS(PPRA!$C$13:$C$614,CAD_AREA!$B51,PPRA!$D$13:$D$614,CAD_AREA!G$12) -> 0 | H51: =COUNTIFS(PPRA!$C$13:$C$614,CAD_AREA!$B51,PPRA!$D$13:$D$614,CAD_AREA!H$12) -> 0 | I51: =COUNTIFS(PPRA!$C$13:$C$614,CAD_AREA!$B51,PPRA!$D$13:$D$614,CAD_AREA!I$12) -> 0 | J51: =SUMIFS(PPRA!$A$13:$A$614,PPRA!$C$13:$C$614,CAD_AREA!B51) -> 0 | K51: 0 | L51: =COUNTIFS(CAD_AREA!$CD$13:$CD$113,CAD_AREA!$B$13:$B$113) -> 0 | N51: 3.9e-05 | O51: =COUNTIFS('C-A'!$E$13:$E$1013,CAD_AREA!$B$13:$B$1013) -> 0 | P51: 0 | Q51: =COUNTIFS('C-A'!$E$13:$E$1013,CAD_AREA!$P$13:$P$1013,'C-A'!$G$13:$G$1013,CAD_AREA!Q$12) -> 0 | R51: =COUNTIFS('C-A'!$E$13:$E$1013,CAD_AREA!$P$13:$P$1013,'C-A'!$G$13:$G$1013,CAD_AREA!R$12) -> 0 | S51: =COUNTIFS('C-A'!$E$13:$E$1013,CAD_AREA!$P$13:$P$1013,'C-A'!$G$13:$G$1013,CAD_AREA!S$12) -> 0 | T51: =COUNTIFS('C-A'!$E$13:$E$1013,CAD_AREA!$P$13:$P$1013,'C-A'!$G$13:$G$1013,CAD_AREA!T$12) -> 0 | U51: 0 | V51: =U51/'C-A'!$P$13 -> 0 | X51: 3.9e-05 | Y51: 0 | Z51: 3.9e-05 | AA51: =COUNTIFS('C-E'!$D$13:$D$1001,CAD_AREA!$B$13:$B$513) -> 0 | AB51: =COUNTIFS('C-E'!$D$13:$D$1001,CAD_AREA!$Y51,'C-E'!$H$13:$H$1001,CAD_AREA!AB$12) -> 0 | AC51: =COUNTIFS('C-E'!$D$13:$D$1001,CAD_AREA!$Y51,'C-E'!$H$13:$H$1001,CAD_AREA!AC$12) -> 0 | CA51: 3.9e-05 | CE51: 0 | CF51: 3.9e-05 | CG51: =COUNTIFS('C-E'!$B$13:$B$1001,CAD_AREA!$CB51,'C-E'!$H$13:$H$1001,CAD_AREA!CG$12) -> 0 | CH51: =COUNTIFS('C-E'!$B$13:$B$1001,CAD_AREA!$CB51,'C-E'!$H$13:$H$1001,CAD_AREA!CH$12) -> 0
A52: 4e-05 | D52: 4e-05 | E52: =COUNTIFS(PPRA!$C$13:$C$614,CAD_AREA!B52) -> 0 | F52: =COUNTIFS(PPRA!$C$13:$C$614,CAD_AREA!$B52,PPRA!$D$13:$D$614,CAD_AREA!F$12) -> 0 | G52: =COUNTIFS(PPRA!$C$13:$C$614,CAD_AREA!$B52,PPRA!$D$13:$D$614,CAD_AREA!G$12) -> 0 | H52: =COUNTIFS(PPRA!$C$13:$C$614,CAD_AREA!$B52,PPRA!$D$13:$D$614,CAD_AREA!H$12) -> 0 | I52: =COUNTIFS(PPRA!$C$13:$C$614,CAD_AREA!$B52,PPRA!$D$13:$D$614,CAD_AREA!I$12) -> 0 | J52: =SUMIFS(PPRA!$A$13:$A$614,PPRA!$C$13:$C$614,CAD_AREA!B52) -> 0 | K52: 0 | L52: =COUNTIFS(CAD_AREA!$CD$13:$CD$113,CAD_AREA!$B$13:$B$113) -> 0 | N52: 4e-05 | O52: =COUNTIFS('C-A'!$E$13:$E$1013,CAD_AREA!$B$13:$B$1013) -> 0 | P52: 0 | Q52: =COUNTIFS('C-A'!$E$13:$E$1013,CAD_AREA!$P$13:$P$1013,'C-A'!$G$13:$G$1013,CAD_AREA!Q$12) -> 0 | R52: =COUNTIFS('C-A'!$E$13:$E$1013,CAD_AREA!$P$13:$P$1013,'C-A'!$G$13:$G$1013,CAD_AREA!R$12) -> 0 | S52: =COUNTIFS('C-A'!$E$13:$E$1013,CAD_AREA!$P$13:$P$1013,'C-A'!$G$13:$G$1013,CAD_AREA!S$12) -> 0 | T52: =COUNTIFS('C-A'!$E$13:$E$1013,CAD_AREA!$P$13:$P$1013,'C-A'!$G$13:$G$1013,CAD_AREA!T$12) -> 0 | U52: 0 | V52: =U52/'C-A'!$P$13 -> 0 | X52: 4e-05 | Y52: 0 | Z52: 4e-05 | AA52: =COUNTIFS('C-E'!$D$13:$D$1001,CAD_AREA!$B$13:$B$513) -> 0 | AB52: =COUNTIFS('C-E'!$D$13:$D$1001,CAD_AREA!$Y52,'C-E'!$H$13:$H$1001,CAD_AREA!AB$12) -> 0 | AC52: =COUNTIFS('C-E'!$D$13:$D$1001,CAD_AREA!$Y52,'C-E'!$H$13:$H$1001,CAD_AREA!AC$12) -> 0 | CA52: 4e-05 | CE52: 0 | CF52: 4e-05 | CG52: =COUNTIFS('C-E'!$B$13:$B$1001,CAD_AREA!$CB52,'C-E'!$H$13:$H$1001,CAD_AREA!CG$12) -> 0 | CH52: =COUNTIFS('C-E'!$B$13:$B$1001,CAD_AREA!$CB52,'C-E'!$H$13:$H$1001,CAD_AREA!CH$12) -> 0
A53: 4.1e-05 | D53: 4.1e-05 | E53: =COUNTIFS(PPRA!$C$13:$C$614,CAD_AREA!B53) -> 0 | F53: =COUNTIFS(PPRA!$C$13:$C$614,CAD_AREA!$B53,PPRA!$D$13:$D$614,CAD_AREA!F$12) -> 0 | G53: =COUNTIFS(PPRA!$C$13:$C$614,CAD_AREA!$B53,PPRA!$D$13:$D$614,CAD_AREA!G$12) -> 0 | H53: =COUNTIFS(PPRA!$C$13:$C$614,CAD_AREA!$B53,PPRA!$D$13:$D$614,CAD_AREA!H$12) -> 0 | I53: =COUNTIFS(PPRA!$C$13:$C$614,CAD_AREA!$B53,PPRA!$D$13:$D$614,CAD_AREA!I$12) -> 0 | J53: =SUMIFS(PPRA!$A$13:$A$614,PPRA!$C$13:$C$614,CAD_AREA!B53) -> 0 | K53: 0 | L53: =COUNTIFS(CAD_AREA!$CD$13:$CD$113,CAD_AREA!$B$13:$B$113) -> 0 | N53: 4.1e-05 | O53: =COUNTIFS('C-A'!$E$13:$E$1013,CAD_AREA!$B$13:$B$1013) -> 0 | P53: 0 | Q53: =COUNTIFS('C-A'!$E$13:$E$1013,CAD_AREA!$P$13:$P$1013,'C-A'!$G$13:$G$1013,CAD_AREA!Q$12) -> 0 | R53: =COUNTIFS('C-A'!$E$13:$E$1013,CAD_AREA!$P$13:$P$1013,'C-A'!$G$13:$G$1013,CAD_AREA!R$12) -> 0 | S53: =COUNTIFS('C-A'!$E$13:$E$1013,CAD_AREA!$P$13:$P$1013,'C-A'!$G$13:$G$1013,CAD_AREA!S$12) -> 0 | T53: =COUNTIFS('C-A'!$E$13:$E$1013,CAD_AREA!$P$13:$P$1013,'C-A'!$G$13:$G$1013,CAD_AREA!T$12) -> 0 | U53: 0 | V53: =U53/'C-A'!$P$13 -> 0 | X53: 4.1e-05 | Y53: 0 | Z53: 4.1e-05 | AA53: =COUNTIFS('C-E'!$D$13:$D$1001,CAD_AREA!$B$13:$B$513) -> 0 | AB53: =COUNTIFS('C-E'!$D$13:$D$1001,CAD_AREA!$Y53,'C-E'!$H$13:$H$1001,CAD_AREA!AB$12) -> 0 | AC53: =COUNTIFS('C-E'!$D$13:$D$1001,CAD_AREA!$Y53,'C-E'!$H$13:$H$1001,CAD_AREA!AC$12) -> 0 | CA53: 4.1e-05 | CE53: 0 | CF53: 4.1e-05 | CG53: =COUNTIFS('C-E'!$B$13:$B$1001,CAD_AREA!$CB53,'C-E'!$H$13:$H$1001,CAD_AREA!CG$12) -> 0 | CH53: =COUNTIFS('C-E'!$B$13:$B$1001,CAD_AREA!$CB53,'C-E'!$H$13:$H$1001,CAD_AREA!CH$12) -> 0
A54: 4.2e-05 | D54: 4.2e-05 | E54: =COUNTIFS(PPRA!$C$13:$C$614,CAD_AREA!B54) -> 0 | F54: =COUNTIFS(PPRA!$C$13:$C$614,CAD_AREA!$B54,PPRA!$D$13:$D$614,CAD_AREA!F$12) -> 0 | G54: =COUNTIFS(PPRA!$C$13:$C$614,CAD_AREA!$B54,PPRA!$D$13:$D$614,CAD_AREA!G$12) -> 0 | H54: =COUNTIFS(PPRA!$C$13:$C$614,CAD_AREA!$B54,PPRA!$D$13:$D$614,CAD_AREA!H$12) -> 0 | I54: =COUNTIFS(PPRA!$C$13:$C$614,CAD_AREA!$B54,PPRA!$D$13:$D$614,CAD_AREA!I$12) -> 0 | J54: =SUMIFS(PPRA!$A$13:$A$614,PPRA!$C$13:$C$614,CAD_AREA!B54) -> 0 | K54: 0 | L54: =COUNTIFS(CAD_AREA!$CD$13:$CD$113,CAD_AREA!$B$13:$B$113) -> 0 | N54: 4.2e-05 | O54: =COUNTIFS('C-A'!$E$13:$E$1013,CAD_AREA!$B$13:$B$1013) -> 0 | P54: 0 | Q54: =COUNTIFS('C-A'!$E$13:$E$1013,CAD_AREA!$P$13:$P$1013,'C-A'!$G$13:$G$1013,CAD_AREA!Q$12) -> 0 | R54: =COUNTIFS('C-A'!$E$13:$E$1013,CAD_AREA!$P$13:$P$1013,'C-A'!$G$13:$G$1013,CAD_AREA!R$12) -> 0 | S54: =COUNTIFS('C-A'!$E$13:$E$1013,CAD_AREA!$P$13:$P$1013,'C-A'!$G$13:$G$1013,CAD_AREA!S$12) -> 0 | T54: =COUNTIFS('C-A'!$E$13:$E$1013,CAD_AREA!$P$13:$P$1013,'C-A'!$G$13:$G$1013,CAD_AREA!T$12) -> 0 | U54: 0 | V54: =U54/'C-A'!$P$13 -> 0 | X54: 4.2e-05 | Y54: 0 | Z54: 4.2e-05 | AA54: =COUNTIFS('C-E'!$D$13:$D$1001,CAD_AREA!$B$13:$B$513) -> 0 | AB54: =COUNTIFS('C-E'!$D$13:$D$1001,CAD_AREA!$Y54,'C-E'!$H$13:$H$1001,CAD_AREA!AB$12) -> 0 | AC54: =COUNTIFS('C-E'!$D$13:$D$1001,CAD_AREA!$Y54,'C-E'!$H$13:$H$1001,CAD_AREA!AC$12) -> 0 | CA54: 4.2e-05 | CE54: 0 | CF54: 4.2e-05 | CG54: =COUNTIFS('C-E'!$B$13:$B$1001,CAD_AREA!$CB54,'C-E'!$H$13:$H$1001,CAD_AREA!CG$12) -> 0 | CH54: =COUNTIFS('C-E'!$B$13:$B$1001,CAD_AREA!$CB54,'C-E'!$H$13:$H$1001,CAD_AREA!CH$12) -> 0
A55: 4.3e-05 | D55: 4.3e-05 | E55: =COUNTIFS(PPRA!$C$13:$C$614,CAD_AREA!B55) -> 0 | F55: =COUNTIFS(PPRA!$C$13:$C$614,CAD_AREA!$B55,PPRA!$D$13:$D$614,CAD_AREA!F$12) -> 0 | G55: =COUNTIFS(PPRA!$C$13:$C$614,CAD_AREA!$B55,PPRA!$D$13:$D$614,CAD_AREA!G$12) -> 0 | H55: =COUNTIFS(PPRA!$C$13:$C$614,CAD_AREA!$B55,PPRA!$D$13:$D$614,CAD_AREA!H$12) -> 0 | I55: =COUNTIFS(PPRA!$C$13:$C$614,CAD_AREA!$B55,PPRA!$D$13:$D$614,CAD_AREA!I$12) -> 0 | J55: =SUMIFS(PPRA!$A$13:$A$614,PPRA!$C$13:$C$614,CAD_AREA!B55) -> 0 | K55: 0 | L55: =COUNTIFS(CAD_AREA!$CD$13:$CD$113,CAD_AREA!$B$13:$B$113) -> 0 | N55: 4.3e-05 | O55: =COUNTIFS('C-A'!$E$13:$E$1013,CAD_AREA!$B$13:$B$1013) -> 0 | P55: 0 | Q55: =COUNTIFS('C-A'!$E$13:$E$1013,CAD_AREA!$P$13:$P$1013,'C-A'!$G$13:$G$1013,CAD_AREA!Q$12) -> 0 | R55: =COUNTIFS('C-A'!$E$13:$E$1013,CAD_AREA!$P$13:$P$1013,'C-A'!$G$13:$G$1013,CAD_AREA!R$12) -> 0 | S55: =COUNTIFS('C-A'!$E$13:$E$1013,CAD_AREA!$P$13:$P$1013,'C-A'!$G$13:$G$1013,CAD_AREA!S$12) -> 0 | T55: =COUNTIFS('C-A'!$E$13:$E$1013,CAD_AREA!$P$13:$P$1013,'C-A'!$G$13:$G$1013,CAD_AREA!T$12) -> 0 | U55: 0 | V55: =U55/'C-A'!$P$13 -> 0 | X55: 4.3e-05 | Y55: 0 | Z55: 4.3e-05 | AA55: =COUNTIFS('C-E'!$D$13:$D$1001,CAD_AREA!$B$13:$B$513) -> 0 | AB55: =COUNTIFS('C-E'!$D$13:$D$1001,CAD_AREA!$Y55,'C-E'!$H$13:$H$1001,CAD_AREA!AB$12) -> 0 | AC55: =COUNTIFS('C-E'!$D$13:$D$1001,CAD_AREA!$Y55,'C-E'!$H$13:$H$1001,CAD_AREA!AC$12) -> 0 | CA55: 4.3e-05 | CE55: 0 | CF55: 4.3e-05 | CG55: =COUNTIFS('C-E'!$B$13:$B$1001,CAD_AREA!$CB55,'C-E'!$H$13:$H$1001,CAD_AREA!CG$12) -> 0 | CH55: =COUNTIFS('C-E'!$B$13:$B$1001,CAD_AREA!$CB55,'C-E'!$H$13:$H$1001,CAD_AREA!CH$12) -> 0
A56: 4.4e-05 | D56: 4.4e-05 | E56: =COUNTIFS(PPRA!$C$13:$C$614,CAD_AREA!B56) -> 0 | F56: =COUNTIFS(PPRA!$C$13:$C$614,CAD_AREA!$B56,PPRA!$D$13:$D$614,CAD_AREA!F$12) -> 0 | G56: =COUNTIFS(PPRA!$C$13:$C$614,CAD_AREA!$B56,PPRA!$D$13:$D$614,CAD_AREA!G$12) -> 0 | H56: =COUNTIFS(PPRA!$C$13:$C$614,CAD_AREA!$B56,PPRA!$D$13:$D$614,CAD_AREA!H$12) -> 0 | I56: =COUNTIFS(PPRA!$C$13:$C$614,CAD_AREA!$B56,PPRA!$D$13:$D$614,CAD_AREA!I$12) -> 0 | J56: =SUMIFS(PPRA!$A$13:$A$614,PPRA!$C$13:$C$614,CAD_AREA!B56) -> 0 | K56: 0 | L56: =COUNTIFS(CAD_AREA!$CD$13:$CD$113,CAD_AREA!$B$13:$B$113) -> 0 | N56: 4.4e-05 | O56: =COUNTIFS('C-A'!$E$13:$E$1013,CAD_AREA!$B$13:$B$1013) -> 0 | P56: 0 | Q56: =COUNTIFS('C-A'!$E$13:$E$1013,CAD_AREA!$P$13:$P$1013,'C-A'!$G$13:$G$1013,CAD_AREA!Q$12) -> 0 | R56: =COUNTIFS('C-A'!$E$13:$E$1013,CAD_AREA!$P$13:$P$1013,'C-A'!$G$13:$G$1013,CAD_AREA!R$12) -> 0 | S56: =COUNTIFS('C-A'!$E$13:$E$1013,CAD_AREA!$P$13:$P$1013,'C-A'!$G$13:$G$1013,CAD_AREA!S$12) -> 0 | T56: =COUNTIFS('C-A'!$E$13:$E$1013,CAD_AREA!$P$13:$P$1013,'C-A'!$G$13:$G$1013,CAD_AREA!T$12) -> 0 | U56: 0 | V56: =U56/'C-A'!$P$13 -> 0 | X56: 4.4e-05 | Y56: 0 | Z56: 4.4e-05 | AA56: =COUNTIFS('C-E'!$D$13:$D$1001,CAD_AREA!$B$13:$B$513) -> 0 | AB56: =COUNTIFS('C-E'!$D$13:$D$1001,CAD_AREA!$Y56,'C-E'!$H$13:$H$1001,CAD_AREA!AB$12) -> 0 | AC56: =COUNTIFS('C-E'!$D$13:$D$1001,CAD_AREA!$Y56,'C-E'!$H$13:$H$1001,CAD_AREA!AC$12) -> 0 | CA56: 4.4e-05 | CE56: 0 | CF56: 4.4e-05 | CG56: =COUNTIFS('C-E'!$B$13:$B$1001,CAD_AREA!$CB56,'C-E'!$H$13:$H$1001,CAD_AREA!CG$12) -> 0 | CH56: =COUNTIFS('C-E'!$B$13:$B$1001,CAD_AREA!$CB56,'C-E'!$H$13:$H$1001,CAD_AREA!CH$12) -> 0
A57: 4.5e-05 | D57: 4.5e-05 | E57: =COUNTIFS(PPRA!$C$13:$C$614,CAD_AREA!B57) -> 0 | F57: =COUNTIFS(PPRA!$C$13:$C$614,CAD_AREA!$B57,PPRA!$D$13:$D$614,CAD_AREA!F$12) -> 0 | G57: =COUNTIFS(PPRA!$C$13:$C$614,CAD_AREA!$B57,PPRA!$D$13:$D$614,CAD_AREA!G$12) -> 0 | H57: =COUNTIFS(PPRA!$C$13:$C$614,CAD_AREA!$B57,PPRA!$D$13:$D$614,CAD_AREA!H$12) -> 0 | I57: =COUNTIFS(PPRA!$C$13:$C$614,CAD_AREA!$B57,PPRA!$D$13:$D$614,CAD_AREA!I$12) -> 0 | J57: =SUMIFS(PPRA!$A$13:$A$614,PPRA!$C$13:$C$614,CAD_AREA!B57) -> 0 | K57: 0 | L57: =COUNTIFS(CAD_AREA!$CD$13:$CD$113,CAD_AREA!$B$13:$B$113) -> 0 | N57: 4.5e-05 | O57: =COUNTIFS('C-A'!$E$13:$E$1013,CAD_AREA!$B$13:$B$1013) -> 0 | P57: 0 | Q57: =COUNTIFS('C-A'!$E$13:$E$1013,CAD_AREA!$P$13:$P$1013,'C-A'!$G$13:$G$1013,CAD_AREA!Q$12) -> 0 | R57: =COUNTIFS('C-A'!$E$13:$E$1013,CAD_AREA!$P$13:$P$1013,'C-A'!$G$13:$G$1013,CAD_AREA!R$12) -> 0 | S57: =COUNTIFS('C-A'!$E$13:$E$1013,CAD_AREA!$P$13:$P$1013,'C-A'!$G$13:$G$1013,CAD_AREA!S$12) -> 0 | T57: =COUNTIFS('C-A'!$E$13:$E$1013,CAD_AREA!$P$13:$P$1013,'C-A'!$G$13:$G$1013,CAD_AREA!T$12) -> 0 | U57: 0 | V57: =U57/'C-A'!$P$13 -> 0 | X57: 4.5e-05 | Y57: 0 | Z57: 4.5e-05 | AA57: =COUNTIFS('C-E'!$D$13:$D$1001,CAD_AREA!$B$13:$B$513) -> 0 | AB57: =COUNTIFS('C-E'!$D$13:$D$1001,CAD_AREA!$Y57,'C-E'!$H$13:$H$1001,CAD_AREA!AB$12) -> 0 | AC57: =COUNTIFS('C-E'!$D$13:$D$1001,CAD_AREA!$Y57,'C-E'!$H$13:$H$1001,CAD_AREA!AC$12) -> 0 | CA57: 4.5e-05 | CE57: 0 | CF57: 4.5e-05 | CG57: =COUNTIFS('C-E'!$B$13:$B$1001,CAD_AREA!$CB57,'C-E'!$H$13:$H$1001,CAD_AREA!CG$12) -> 0 | CH57: =COUNTIFS('C-E'!$B$13:$B$1001,CAD_AREA!$CB57,'C-E'!$H$13:$H$1001,CAD_AREA!CH$12) -> 0
A58: 4.6e-05 | D58: 4.6e-05 | E58: =COUNTIFS(PPRA!$C$13:$C$614,CAD_AREA!B58) -> 0 | F58: =COUNTIFS(PPRA!$C$13:$C$614,CAD_AREA!$B58,PPRA!$D$13:$D$614,CAD_AREA!F$12) -> 0 | G58: =COUNTIFS(PPRA!$C$13:$C$614,CAD_AREA!$B58,PPRA!$D$13:$D$614,CAD_AREA!G$12) -> 0 | H58: =COUNTIFS(PPRA!$C$13:$C$614,CAD_AREA!$B58,PPRA!$D$13:$D$614,CAD_AREA!H$12) -> 0 | I58: =COUNTIFS(PPRA!$C$13:$C$614,CAD_AREA!$B58,PPRA!$D$13:$D$614,CAD_AREA!I$12) -> 0 | J58: =SUMIFS(PPRA!$A$13:$A$614,PPRA!$C$13:$C$614,CAD_AREA!B58) -> 0 | K58: 0 | L58: =COUNTIFS(CAD_AREA!$CD$13:$CD$113,CAD_AREA!$B$13:$B$113) -> 0 | N58: 4.6e-05 | O58: =COUNTIFS('C-A'!$E$13:$E$1013,CAD_AREA!$B$13:$B$1013) -> 0 | P58: 0 | Q58: =COUNTIFS('C-A'!$E$13:$E$1013,CAD_AREA!$P$13:$P$1013,'C-A'!$G$13:$G$1013,CAD_AREA!Q$12) -> 0 | R58: =COUNTIFS('C-A'!$E$13:$E$1013,CAD_AREA!$P$13:$P$1013,'C-A'!$G$13:$G$1013,CAD_AREA!R$12) -> 0 | S58: =COUNTIFS('C-A'!$E$13:$E$1013,CAD_AREA!$P$13:$P$1013,'C-A'!$G$13:$G$1013,CAD_AREA!S$12) -> 0 | T58: =COUNTIFS('C-A'!$E$13:$E$1013,CAD_AREA!$P$13:$P$1013,'C-A'!$G$13:$G$1013,CAD_AREA!T$12) -> 0 | U58: 0 | V58: =U58/'C-A'!$P$13 -> 0 | X58: 4.6e-05 | Y58: 0 | Z58: 4.6e-05 | AA58: =COUNTIFS('C-E'!$D$13:$D$1001,CAD_AREA!$B$13:$B$513) -> 0 | AB58: =COUNTIFS('C-E'!$D$13:$D$1001,CAD_AREA!$Y58,'C-E'!$H$13:$H$1001,CAD_AREA!AB$12) -> 0 | AC58: =COUNTIFS('C-E'!$D$13:$D$1001,CAD_AREA!$Y58,'C-E'!$H$13:$H$1001,CAD_AREA!AC$12) -> 0 | CA58: 4.6e-05 | CE58: 0 | CF58: 4.6e-05 | CG58: =COUNTIFS('C-E'!$B$13:$B$1001,CAD_AREA!$CB58,'C-E'!$H$13:$H$1001,CAD_AREA!CG$12) -> 0 | CH58: =COUNTIFS('C-E'!$B$13:$B$1001,CAD_AREA!$CB58,'C-E'!$H$13:$H$1001,CAD_AREA!CH$12) -> 0
A59: 4.7e-05 | D59: 4.7e-05 | E59: =COUNTIFS(PPRA!$C$13:$C$614,CAD_AREA!B59) -> 0 | F59: =COUNTIFS(PPRA!$C$13:$C$614,CAD_AREA!$B59,PPRA!$D$13:$D$614,CAD_AREA!F$12) -> 0 | G59: =COUNTIFS(PPRA!$C$13:$C$614,CAD_AREA!$B59,PPRA!$D$13:$D$614,CAD_AREA!G$12) -> 0 | H59: =COUNTIFS(PPRA!$C$13:$C$614,CAD_AREA!$B59,PPRA!$D$13:$D$614,CAD_AREA!H$12) -> 0 | I59: =COUNTIFS(PPRA!$C$13:$C$614,CAD_AREA!$B59,PPRA!$D$13:$D$614,CAD_AREA!I$12) -> 0 | J59: =SUMIFS(PPRA!$A$13:$A$614,PPRA!$C$13:$C$614,CAD_AREA!B59) -> 0 | K59: 0 | L59: =COUNTIFS(CAD_AREA!$CD$13:$CD$113,CAD_AREA!$B$13:$B$113) -> 0 | N59: 4.7e-05 | O59: =COUNTIFS('C-A'!$E$13:$E$1013,CAD_AREA!$B$13:$B$1013) -> 0 | P59: 0 | Q59: =COUNTIFS('C-A'!$E$13:$E$1013,CAD_AREA!$P$13:$P$1013,'C-A'!$G$13:$G$1013,CAD_AREA!Q$12) -> 0 | R59: =COUNTIFS('C-A'!$E$13:$E$1013,CAD_AREA!$P$13:$P$1013,'C-A'!$G$13:$G$1013,CAD_AREA!R$12) -> 0 | S59: =COUNTIFS('C-A'!$E$13:$E$1013,CAD_AREA!$P$13:$P$1013,'C-A'!$G$13:$G$1013,CAD_AREA!S$12) -> 0 | T59: =COUNTIFS('C-A'!$E$13:$E$1013,CAD_AREA!$P$13:$P$1013,'C-A'!$G$13:$G$1013,CAD_AREA!T$12) -> 0 | U59: 0 | V59: =U59/'C-A'!$P$13 -> 0 | X59: 4.7e-05 | Y59: 0 | Z59: 4.7e-05 | AA59: =COUNTIFS('C-E'!$D$13:$D$1001,CAD_AREA!$B$13:$B$513) -> 0 | AB59: =COUNTIFS('C-E'!$D$13:$D$1001,CAD_AREA!$Y59,'C-E'!$H$13:$H$1001,CAD_AREA!AB$12) -> 0 | AC59: =COUNTIFS('C-E'!$D$13:$D$1001,CAD_AREA!$Y59,'C-E'!$H$13:$H$1001,CAD_AREA!AC$12) -> 0 | CA59: 4.7e-05 | CE59: 0 | CF59: 4.7e-05 | CG59: =COUNTIFS('C-E'!$B$13:$B$1001,CAD_AREA!$CB59,'C-E'!$H$13:$H$1001,CAD_AREA!CG$12) -> 0 | CH59: =COUNTIFS('C-E'!$B$13:$B$1001,CAD_AREA!$CB59,'C-E'!$H$13:$H$1001,CAD_AREA!CH$12) -> 0
A60: 4.8e-05 | D60: 4.8e-05 | E60: =COUNTIFS(PPRA!$C$13:$C$614,CAD_AREA!B60) -> 0 | F60: =COUNTIFS(PPRA!$C$13:$C$614,CAD_AREA!$B60,PPRA!$D$13:$D$614,CAD_AREA!F$12) -> 0 | G60: =COUNTIFS(PPRA!$C$13:$C$614,CAD_AREA!$B60,PPRA!$D$13:$D$614,CAD_AREA!G$12) -> 0 | H60: =COUNTIFS(PPRA!$C$13:$C$614,CAD_AREA!$B60,PPRA!$D$13:$D$614,CAD_AREA!H$12) -> 0 | I60: =COUNTIFS(PPRA!$C$13:$C$614,CAD_AREA!$B60,PPRA!$D$13:$D$614,CAD_AREA!I$12) -> 0 | J60: =SUMIFS(PPRA!$A$13:$A$614,PPRA!$C$13:$C$614,CAD_AREA!B60) -> 0 | K60: 0 | L60: =COUNTIFS(CAD_AREA!$CD$13:$CD$113,CAD_AREA!$B$13:$B$113) -> 0 | N60: 4.8e-05 | O60: =COUNTIFS('C-A'!$E$13:$E$1013,CAD_AREA!$B$13:$B$1013) -> 0 | P60: 0 | Q60: =COUNTIFS('C-A'!$E$13:$E$1013,CAD_AREA!$P$13:$P$1013,'C-A'!$G$13:$G$1013,CAD_AREA!Q$12) -> 0 | R60: =COUNTIFS('C-A'!$E$13:$E$1013,CAD_AREA!$P$13:$P$1013,'C-A'!$G$13:$G$1013,CAD_AREA!R$12) -> 0 | S60: =COUNTIFS('C-A'!$E$13:$E$1013,CAD_AREA!$P$13:$P$1013,'C-A'!$G$13:$G$1013,CAD_AREA!S$12) -> 0 | T60: =COUNTIFS('C-A'!$E$13:$E$1013,CAD_AREA!$P$13:$P$1013,'C-A'!$G$13:$G$1013,CAD_AREA!T$12) -> 0 | U60: 0 | V60: =U60/'C-A'!$P$13 -> 0 | X60: 4.8e-05 | Y60: 0 | Z60: 4.8e-05 | AA60: =COUNTIFS('C-E'!$D$13:$D$1001,CAD_AREA!$B$13:$B$513) -> 0 | AB60: =COUNTIFS('C-E'!$D$13:$D$1001,CAD_AREA!$Y60,'C-E'!$H$13:$H$1001,CAD_AREA!AB$12) -> 0 | AC60: =COUNTIFS('C-E'!$D$13:$D$1001,CAD_AREA!$Y60,'C-E'!$H$13:$H$1001,CAD_AREA!AC$12) -> 0 | CA60: 4.8e-05 | CE60: 0 | CF60: 4.8e-05 | CG60: =COUNTIFS('C-E'!$B$13:$B$1001,CAD_AREA!$CB60,'C-E'!$H$13:$H$1001,CAD_AREA!CG$12) -> 0 | CH60: =COUNTIFS('C-E'!$B$13:$B$1001,CAD_AREA!$CB60,'C-E'!$H$13:$H$1001,CAD_AREA!CH$12) -> 0
A61: 4.9e-05 | D61: 4.9e-05 | E61: =COUNTIFS(PPRA!$C$13:$C$614,CAD_AREA!B61) -> 0 | F61: =COUNTIFS(PPRA!$C$13:$C$614,CAD_AREA!$B61,PPRA!$D$13:$D$614,CAD_AREA!F$12) -> 0 | G61: =COUNTIFS(PPRA!$C$13:$C$614,CAD_AREA!$B61,PPRA!$D$13:$D$614,CAD_AREA!G$12) -> 0 | H61: =COUNTIFS(PPRA!$C$13:$C$614,CAD_AREA!$B61,PPRA!$D$13:$D$614,CAD_AREA!H$12) -> 0 | I61: =COUNTIFS(PPRA!$C$13:$C$614,CAD_AREA!$B61,PPRA!$D$13:$D$614,CAD_AREA!I$12) -> 0 | J61: =SUMIFS(PPRA!$A$13:$A$614,PPRA!$C$13:$C$614,CAD_AREA!B61) -> 0 | K61: 0 | L61: =COUNTIFS(CAD_AREA!$CD$13:$CD$113,CAD_AREA!$B$13:$B$113) -> 0 | N61: 4.9e-05 | O61: =COUNTIFS('C-A'!$E$13:$E$1013,CAD_AREA!$B$13:$B$1013) -> 0 | P61: 0 | Q61: =COUNTIFS('C-A'!$E$13:$E$1013,CAD_AREA!$P$13:$P$1013,'C-A'!$G$13:$G$1013,CAD_AREA!Q$12) -> 0 | R61: =COUNTIFS('C-A'!$E$13:$E$1013,CAD_AREA!$P$13:$P$1013,'C-A'!$G$13:$G$1013,CAD_AREA!R$12) -> 0 | S61: =COUNTIFS('C-A'!$E$13:$E$1013,CAD_AREA!$P$13:$P$1013,'C-A'!$G$13:$G$1013,CAD_AREA!S$12) -> 0 | T61: =COUNTIFS('C-A'!$E$13:$E$1013,CAD_AREA!$P$13:$P$1013,'C-A'!$G$13:$G$1013,CAD_AREA!T$12) -> 0 | U61: 0 | V61: =U61/'C-A'!$P$13 -> 0 | X61: 4.9e-05 | Y61: 0 | Z61: 4.9e-05 | AA61: =COUNTIFS('C-E'!$D$13:$D$1001,CAD_AREA!$B$13:$B$513) -> 0 | AB61: =COUNTIFS('C-E'!$D$13:$D$1001,CAD_AREA!$Y61,'C-E'!$H$13:$H$1001,CAD_AREA!AB$12) -> 0 | AC61: =COUNTIFS('C-E'!$D$13:$D$1001,CAD_AREA!$Y61,'C-E'!$H$13:$H$1001,CAD_AREA!AC$12) -> 0 | CA61: 4.9e-05 | CE61: 0 | CF61: 4.9e-05 | CG61: =COUNTIFS('C-E'!$B$13:$B$1001,CAD_AREA!$CB61,'C-E'!$H$13:$H$1001,CAD_AREA!CG$12) -> 0 | CH61: =COUNTIFS('C-E'!$B$13:$B$1001,CAD_AREA!$CB61,'C-E'!$H$13:$H$1001,CAD_AREA!CH$12) -> 0
A62: 5e-05 | D62: 5e-05 | E62: =COUNTIFS(PPRA!$C$13:$C$614,CAD_AREA!B62) -> 0 | F62: =COUNTIFS(PPRA!$C$13:$C$614,CAD_AREA!$B62,PPRA!$D$13:$D$614,CAD_AREA!F$12) -> 0 | G62: =COUNTIFS(PPRA!$C$13:$C$614,CAD_AREA!$B62,PPRA!$D$13:$D$614,CAD_AREA!G$12) -> 0 | H62: =COUNTIFS(PPRA!$C$13:$C$614,CAD_AREA!$B62,PPRA!$D$13:$D$614,CAD_AREA!H$12) -> 0 | I62: =COUNTIFS(PPRA!$C$13:$C$614,CAD_AREA!$B62,PPRA!$D$13:$D$614,CAD_AREA!I$12) -> 0 | J62: =SUMIFS(PPRA!$A$13:$A$614,PPRA!$C$13:$C$614,CAD_AREA!B62) -> 0 | K62: 0 | L62: =COUNTIFS(CAD_AREA!$CD$13:$CD$113,CAD_AREA!$B$13:$B$113) -> 0 | N62: 5e-05 | O62: =COUNTIFS('C-A'!$E$13:$E$1013,CAD_AREA!$B$13:$B$1013) -> 0 | P62: 0 | Q62: =COUNTIFS('C-A'!$E$13:$E$1013,CAD_AREA!$P$13:$P$1013,'C-A'!$G$13:$G$1013,CAD_AREA!Q$12) -> 0 | R62: =COUNTIFS('C-A'!$E$13:$E$1013,CAD_AREA!$P$13:$P$1013,'C-A'!$G$13:$G$1013,CAD_AREA!R$12) -> 0 | S62: =COUNTIFS('C-A'!$E$13:$E$1013,CAD_AREA!$P$13:$P$1013,'C-A'!$G$13:$G$1013,CAD_AREA!S$12) -> 0 | T62: =COUNTIFS('C-A'!$E$13:$E$1013,CAD_AREA!$P$13:$P$1013,'C-A'!$G$13:$G$1013,CAD_AREA!T$12) -> 0 | U62: 0 | V62: =U62/'C-A'!$P$13 -> 0 | X62: 5e-05 | Y62: 0 | Z62: 5e-05 | AA62: =COUNTIFS('C-E'!$D$13:$D$1001,CAD_AREA!$B$13:$B$513) -> 0 | AB62: =COUNTIFS('C-E'!$D$13:$D$1001,CAD_AREA!$Y62,'C-E'!$H$13:$H$1001,CAD_AREA!AB$12) -> 0 | AC62: =COUNTIFS('C-E'!$D$13:$D$1001,CAD_AREA!$Y62,'C-E'!$H$13:$H$1001,CAD_AREA!AC$12) -> 0 | CA62: 5e-05 | CE62: 0 | CF62: 5e-05 | CG62: =COUNTIFS('C-E'!$B$13:$B$1001,CAD_AREA!$CB62,'C-E'!$H$13:$H$1001,CAD_AREA!CG$12) -> 0 | CH62: =COUNTIFS('C-E'!$B$13:$B$1001,CAD_AREA!$CB62,'C-E'!$H$13:$H$1001,CAD_AREA!CH$12) -> 0
A63: 5.1e-05 | D63: 5.1e-05 | E63: =COUNTIFS(PPRA!$C$13:$C$614,CAD_AREA!B63) -> 0 | F63: =COUNTIFS(PPRA!$C$13:$C$614,CAD_AREA!$B63,PPRA!$D$13:$D$614,CAD_AREA!F$12) -> 0 | G63: =COUNTIFS(PPRA!$C$13:$C$614,CAD_AREA!$B63,PPRA!$D$13:$D$614,CAD_AREA!G$12) -> 0 | H63: =COUNTIFS(PPRA!$C$13:$C$614,CAD_AREA!$B63,PPRA!$D$13:$D$614,CAD_AREA!H$12) -> 0 | I63: =COUNTIFS(PPRA!$C$13:$C$614,CAD_AREA!$B63,PPRA!$D$13:$D$614,CAD_AREA!I$12) -> 0 | J63: =SUMIFS(PPRA!$A$13:$A$614,PPRA!$C$13:$C$614,CAD_AREA!B63) -> 0 | K63: 0 | L63: =COUNTIFS(CAD_AREA!$CD$13:$CD$113,CAD_AREA!$B$13:$B$113) -> 0 | N63: 5.1e-05 | O63: =COUNTIFS('C-A'!$E$13:$E$1013,CAD_AREA!$B$13:$B$1013) -> 0 | P63: 0 | Q63: =COUNTIFS('C-A'!$E$13:$E$1013,CAD_AREA!$P$13:$P$1013,'C-A'!$G$13:$G$1013,CAD_AREA!Q$12) -> 0 | R63: =COUNTIFS('C-A'!$E$13:$E$1013,CAD_AREA!$P$13:$P$1013,'C-A'!$G$13:$G$1013,CAD_AREA!R$12) -> 0 | S63: =COUNTIFS('C-A'!$E$13:$E$1013,CAD_AREA!$P$13:$P$1013,'C-A'!$G$13:$G$1013,CAD_AREA!S$12) -> 0 | T63: =COUNTIFS('C-A'!$E$13:$E$1013,CAD_AREA!$P$13:$P$1013,'C-A'!$G$13:$G$1013,CAD_AREA!T$12) -> 0 | U63: 0 | V63: =U63/'C-A'!$P$13 -> 0 | X63: 5.1e-05 | Y63: 0 | Z63: 5.1e-05 | AA63: =COUNTIFS('C-E'!$D$13:$D$1001,CAD_AREA!$B$13:$B$513) -> 0 | AB63: =COUNTIFS('C-E'!$D$13:$D$1001,CAD_AREA!$Y63,'C-E'!$H$13:$H$1001,CAD_AREA!AB$12) -> 0 | AC63: =COUNTIFS('C-E'!$D$13:$D$1001,CAD_AREA!$Y63,'C-E'!$H$13:$H$1001,CAD_AREA!AC$12) -> 0 | CA63: 5.1e-05 | CE63: 0 | CF63: 5.1e-05 | CG63: =COUNTIFS('C-E'!$B$13:$B$1001,CAD_AREA!$CB63,'C-E'!$H$13:$H$1001,CAD_AREA!CG$12) -> 0 | CH63: =COUNTIFS('C-E'!$B$13:$B$1001,CAD_AREA!$CB63,'C-E'!$H$13:$H$1001,CAD_AREA!CH$12) -> 0
B64: Todas | C64: a | D64: a | E64: a | F64: a | G64: a | H64: a | I64: a | J64: a | K64: a | L64: a | N64: a | O64: a | P64: a | Q64: a | R64: a | S64: a | T64: a | U64: a | V64: a | X64: a | Z64: a | AA64: a | AB64: =COUNTIFS('C-E'!$D$13:$D$1001,CAD_AREA!$Y64,'C-E'!$H$13:$H$1001,CAD_AREA!AB$12) -> 0 | AC64: =COUNTIFS('C-E'!$D$13:$D$1001,CAD_AREA!$Y64,'C-E'!$H$13:$H$1001,CAD_AREA!AC$12) -> 0 | AD64: Todas | CA64: 5.2e-05 | CE64: 0 | CF64: 5.2e-05 | CG64: =COUNTIFS('C-E'!$B$13:$B$1001,CAD_AREA!$CB64,'C-E'!$H$13:$H$1001,CAD_AREA!CG$12) -> 0 | CH64: =COUNTIFS('C-E'!$B$13:$B$1001,CAD_AREA!$CB64,'C-E'!$H$13:$H$1001,CAD_AREA!CH$12) -> 0
CA65: 5.3e-05 | CE65: 0 | CF65: 5.3e-05 | CG65: =COUNTIFS('C-E'!$B$13:$B$1001,CAD_AREA!$CB65,'C-E'!$H$13:$H$1001,CAD_AREA!CG$12) -> 0 | CH65: =COUNTIFS('C-E'!$B$13:$B$1001,CAD_AREA!$CB65,'C-E'!$H$13:$H$1001,CAD_AREA!CH$12) -> 0
CA66: 5.4e-05 | CE66: 0 | CF66: 5.4e-05 | CG66: =COUNTIFS('C-E'!$B$13:$B$1001,CAD_AREA!$CB66,'C-E'!$H$13:$H$1001,CAD_AREA!CG$12) -> 0 | CH66: =COUNTIFS('C-E'!$B$13:$B$1001,CAD_AREA!$CB66,'C-E'!$H$13:$H$1001,CAD_AREA!CH$12) -> 0
CA67: 5.5e-05 | CE67: 0 | CF67: 5.5e-05 | CG67: =COUNTIFS('C-E'!$B$13:$B$1001,CAD_AREA!$CB67,'C-E'!$H$13:$H$1001,CAD_AREA!CG$12) -> 0 | CH67: =COUNTIFS('C-E'!$B$13:$B$1001,CAD_AREA!$CB67,'C-E'!$H$13:$H$1001,CAD_AREA!CH$12) -> 0
CA68: 5.6e-05 | CE68: 0 | CF68: 5.6e-05 | CG68: =COUNTIFS('C-E'!$B$13:$B$1001,CAD_AREA!$CB68,'C-E'!$H$13:$H$1001,CAD_AREA!CG$12) -> 0 | CH68: =COUNTIFS('C-E'!$B$13:$B$1001,CAD_AREA!$CB68,'C-E'!$H$13:$H$1001,CAD_AREA!CH$12) -> 0
CA69: 5.7e-05 | CE69: 0 | CF69: 5.7e-05 | CG69: =COUNTIFS('C-E'!$B$13:$B$1001,CAD_AREA!$CB69,'C-E'!$H$13:$H$1001,CAD_AREA!CG$12) -> 0 | CH69: =COUNTIFS('C-E'!$B$13:$B$1001,CAD_AREA!$CB69,'C-E'!$H$13:$H$1001,CAD_AREA!CH$12) -> 0
CA70: 5.8e-05 | CE70: 0 | CF70: 5.8e-05 | CG70: =COUNTIFS('C-E'!$B$13:$B$1001,CAD_AREA!$CB70,'C-E'!$H$13:$H$1001,CAD_AREA!CG$12) -> 0 | CH70: =COUNTIFS('C-E'!$B$13:$B$1001,CAD_AREA!$CB70,'C-E'!$H$13:$H$1001,CAD_AREA!CH$12) -> 0
CA71: 5.9e-05 | CE71: 0 | CF71: 5.9e-05 | CG71: =COUNTIFS('C-E'!$B$13:$B$1001,CAD_AREA!$CB71,'C-E'!$H$13:$H$1001,CAD_AREA!CG$12) -> 0 | CH71: =COUNTIFS('C-E'!$B$13:$B$1001,CAD_AREA!$CB71,'C-E'!$H$13:$H$1001,CAD_AREA!CH$12) -> 0
CA72: 6e-05 | CE72: 0 | CF72: 6e-05 | CG72: =COUNTIFS('C-E'!$B$13:$B$1001,CAD_AREA!$CB72,'C-E'!$H$13:$H$1001,CAD_AREA!CG$12) -> 0 | CH72: =COUNTIFS('C-E'!$B$13:$B$1001,CAD_AREA!$CB72,'C-E'!$H$13:$H$1001,CAD_AREA!CH$12) -> 0
CA73: 6.1e-05 | CE73: 0 | CF73: 6.1e-05 | CG73: =COUNTIFS('C-E'!$B$13:$B$1001,CAD_AREA!$CB73,'C-E'!$H$13:$H$1001,CAD_AREA!CG$12) -> 0 | CH73: =COUNTIFS('C-E'!$B$13:$B$1001,CAD_AREA!$CB73,'C-E'!$H$13:$H$1001,CAD_AREA!CH$12) -> 0
CA74: 6.2e-05 | CE74: 0 | CF74: 6.2e-05 | CG74: =COUNTIFS('C-E'!$B$13:$B$1001,CAD_AREA!$CB74,'C-E'!$H$13:$H$1001,CAD_AREA!CG$12) -> 0 | CH74: =COUNTIFS('C-E'!$B$13:$B$1001,CAD_AREA!$CB74,'C-E'!$H$13:$H$1001,CAD_AREA!CH$12) -> 0
CA75: 6.3e-05 | CE75: 0 | CF75: 6.3e-05 | CG75: =COUNTIFS('C-E'!$B$13:$B$1001,CAD_AREA!$CB75,'C-E'!$H$13:$H$1001,CAD_AREA!CG$12) -> 0 | CH75: =COUNTIFS('C-E'!$B$13:$B$1001,CAD_AREA!$CB75,'C-E'!$H$13:$H$1001,CAD_AREA!CH$12) -> 0
CA76: 6.4e-05 | CE76: 0 | CF76: 6.4e-05 | CG76: =COUNTIFS('C-E'!$B$13:$B$1001,CAD_AREA!$CB76,'C-E'!$H$13:$H$1001,CAD_AREA!CG$12) -> 0 | CH76: =COUNTIFS('C-E'!$B$13:$B$1001,CAD_AREA!$CB76,'C-E'!$H$13:$H$1001,CAD_AREA!CH$12) -> 0
BB77: =IF(BA77="","",BA77) ->  | CA77: =SUM(CF77,CH77) -> 6.5e-05 | CE77: =CB77 -> 0 | CF77: 6.5e-05 | CG77: =COUNTIFS('C-E'!$B$13:$B$1001,CAD_AREA!$CB77,'C-E'!$H$13:$H$1001,CAD_AREA!CG$12) -> 0 | CH77: =COUNTIFS('C-E'!$B$13:$B$1001,CAD_AREA!$CB77,'C-E'!$H$13:$H$1001,CAD_AREA!CH$12) -> 0
CA78: 6.6e-05 | CE78: 0 | CF78: =CF77+$CF$13 -> 6.6e-05 | CG78: =COUNTIFS('C-E'!$B$13:$B$1001,CAD_AREA!$CB78,'C-E'!$H$13:$H$1001,CAD_AREA!CG$12) -> 0 | CH78: =COUNTIFS('C-E'!$B$13:$B$1001,CAD_AREA!$CB78,'C-E'!$H$13:$H$1001,CAD_AREA!CH$12) -> 0
CA79: 6.7e-05 | CE79: 0 | CF79: 6.7e-05 | CG79: =COUNTIFS('C-E'!$B$13:$B$1001,CAD_AREA!$CB79,'C-E'!$H$13:$H$1001,CAD_AREA!CG$12) -> 0 | CH79: =COUNTIFS('C-E'!$B$13:$B$1001,CAD_AREA!$CB79,'C-E'!$H$13:$H$1001,CAD_AREA!CH$12) -> 0
CA80: 6.8e-05 | CE80: 0 | CF80: 6.8e-05 | CG80: =COUNTIFS('C-E'!$B$13:$B$1001,CAD_AREA!$CB80,'C-E'!$H$13:$H$1001,CAD_AREA!CG$12) -> 0 | CH80: =COUNTIFS('C-E'!$B$13:$B$1001,CAD_AREA!$CB80,'C-E'!$H$13:$H$1001,CAD_AREA!CH$12) -> 0
CA81: 6.9e-05 | CE81: 0 | CF81: 6.9e-05 | CG81: =COUNTIFS('C-E'!$B$13:$B$1001,CAD_AREA!$CB81,'C-E'!$H$13:$H$1001,CAD_AREA!CG$12) -> 0 | CH81: =COUNTIFS('C-E'!$B$13:$B$1001,CAD_AREA!$CB81,'C-E'!$H$13:$H$1001,CAD_AREA!CH$12) -> 0
CA82: 7e-05 | CE82: 0 | CF82: 7e-05 | CG82: =COUNTIFS('C-E'!$B$13:$B$1001,CAD_AREA!$CB82,'C-E'!$H$13:$H$1001,CAD_AREA!CG$12) -> 0 | CH82: =COUNTIFS('C-E'!$B$13:$B$1001,CAD_AREA!$CB82,'C-E'!$H$13:$H$1001,CAD_AREA!CH$12) -> 0
CA83: 7.1e-05 | CE83: 0 | CF83: 7.1e-05 | CG83: =COUNTIFS('C-E'!$B$13:$B$1001,CAD_AREA!$CB83,'C-E'!$H$13:$H$1001,CAD_AREA!CG$12) -> 0 | CH83: =COUNTIFS('C-E'!$B$13:$B$1001,CAD_AREA!$CB83,'C-E'!$H$13:$H$1001,CAD_AREA!CH$12) -> 0
CA84: 7.2e-05 | CE84: 0 | CF84: 7.2e-05 | CG84: =COUNTIFS('C-E'!$B$13:$B$1001,CAD_AREA!$CB84,'C-E'!$H$13:$H$1001,CAD_AREA!CG$12) -> 0 | CH84: =COUNTIFS('C-E'!$B$13:$B$1001,CAD_AREA!$CB84,'C-E'!$H$13:$H$1001,CAD_AREA!CH$12) -> 0
CA85: 7.3e-05 | CE85: 0 | CF85: 7.3e-05 | CG85: =COUNTIFS('C-E'!$B$13:$B$1001,CAD_AREA!$CB85,'C-E'!$H$13:$H$1001,CAD_AREA!CG$12) -> 0 | CH85: =COUNTIFS('C-E'!$B$13:$B$1001,CAD_AREA!$CB85,'C-E'!$H$13:$H$1001,CAD_AREA!CH$12) -> 0
CA86: 7.4e-05 | CE86: 0 | CF86: 7.4e-05 | CG86: =COUNTIFS('C-E'!$B$13:$B$1001,CAD_AREA!$CB86,'C-E'!$H$13:$H$1001,CAD_AREA!CG$12) -> 0 | CH86: =COUNTIFS('C-E'!$B$13:$B$1001,CAD_AREA!$CB86,'C-E'!$H$13:$H$1001,CAD_AREA!CH$12) -> 0
CA87: 7.5e-05 | CE87: 0 | CF87: 7.5e-05 | CG87: =COUNTIFS('C-E'!$B$13:$B$1001,CAD_AREA!$CB87,'C-E'!$H$13:$H$1001,CAD_AREA!CG$12) -> 0 | CH87: =COUNTIFS('C-E'!$B$13:$B$1001,CAD_AREA!$CB87,'C-E'!$H$13:$H$1001,CAD_AREA!CH$12) -> 0
CA88: 7.6e-05 | CE88: 0 | CF88: 7.6e-05 | CG88: =COUNTIFS('C-E'!$B$13:$B$1001,CAD_AREA!$CB88,'C-E'!$H$13:$H$1001,CAD_AREA!CG$12) -> 0 | CH88: =COUNTIFS('C-E'!$B$13:$B$1001,CAD_AREA!$CB88,'C-E'!$H$13:$H$1001,CAD_AREA!CH$12) -> 0
CA89: 7.7e-05 | CE89: 0 | CF89: 7.7e-05 | CG89: =COUNTIFS('C-E'!$B$13:$B$1001,CAD_AREA!$CB89,'C-E'!$H$13:$H$1001,CAD_AREA!CG$12) -> 0 | CH89: =COUNTIFS('C-E'!$B$13:$B$1001,CAD_AREA!$CB89,'C-E'!$H$13:$H$1001,CAD_AREA!CH$12) -> 0
CA90: 7.8e-05 | CE90: 0 | CF90: 7.8e-05 | CG90: =COUNTIFS('C-E'!$B$13:$B$1001,CAD_AREA!$CB90,'C-E'!$H$13:$H$1001,CAD_AREA!CG$12) -> 0 | CH90: =COUNTIFS('C-E'!$B$13:$B$1001,CAD_AREA!$CB90,'C-E'!$H$13:$H$1001,CAD_AREA!CH$12) -> 0
CA91: 7.9e-05 | CE91: 0 | CF91: 7.9e-05 | CG91: =COUNTIFS('C-E'!$B$13:$B$1001,CAD_AREA!$CB91,'C-E'!$H$13:$H$1001,CAD_AREA!CG$12) -> 0 | CH91: =COUNTIFS('C-E'!$B$13:$B$1001,CAD_AREA!$CB91,'C-E'!$H$13:$H$1001,CAD_AREA!CH$12) -> 0
CA92: 8e-05 | CE92: 0 | CF92: 8e-05 | CG92: =COUNTIFS('C-E'!$B$13:$B$1001,CAD_AREA!$CB92,'C-E'!$H$13:$H$1001,CAD_AREA!CG$12) -> 0 | CH92: =COUNTIFS('C-E'!$B$13:$B$1001,CAD_AREA!$CB92,'C-E'!$H$13:$H$1001,CAD_AREA!CH$12) -> 0
CA93: 8.1e-05 | CE93: 0 | CF93: 8.1e-05 | CG93: =COUNTIFS('C-E'!$B$13:$B$1001,CAD_AREA!$CB93,'C-E'!$H$13:$H$1001,CAD_AREA!CG$12) -> 0 | CH93: =COUNTIFS('C-E'!$B$13:$B$1001,CAD_AREA!$CB93,'C-E'!$H$13:$H$1001,CAD_AREA!CH$12) -> 0
CA94: 8.2e-05 | CE94: 0 | CF94: 8.2e-05 | CG94: =COUNTIFS('C-E'!$B$13:$B$1001,CAD_AREA!$CB94,'C-E'!$H$13:$H$1001,CAD_AREA!CG$12) -> 0 | CH94: =COUNTIFS('C-E'!$B$13:$B$1001,CAD_AREA!$CB94,'C-E'!$H$13:$H$1001,CAD_AREA!CH$12) -> 0
CA95: 8.3e-05 | CE95: 0 | CF95: 8.3e-05 | CG95: =COUNTIFS('C-E'!$B$13:$B$1001,CAD_AREA!$CB95,'C-E'!$H$13:$H$1001,CAD_AREA!CG$12) -> 0 | CH95: =COUNTIFS('C-E'!$B$13:$B$1001,CAD_AREA!$CB95,'C-E'!$H$13:$H$1001,CAD_AREA!CH$12) -> 0
CA96: 8.4e-05 | CE96: 0 | CF96: 8.4e-05 | CG96: =COUNTIFS('C-E'!$B$13:$B$1001,CAD_AREA!$CB96,'C-E'!$H$13:$H$1001,CAD_AREA!CG$12) -> 0 | CH96: =COUNTIFS('C-E'!$B$13:$B$1001,CAD_AREA!$CB96,'C-E'!$H$13:$H$1001,CAD_AREA!CH$12) -> 0
CA97: 8.5e-05 | CE97: 0 | CF97: 8.5e-05 | CG97: =COUNTIFS('C-E'!$B$13:$B$1001,CAD_AREA!$CB97,'C-E'!$H$13:$H$1001,CAD_AREA!CG$12) -> 0 | CH97: =COUNTIFS('C-E'!$B$13:$B$1001,CAD_AREA!$CB97,'C-E'!$H$13:$H$1001,CAD_AREA!CH$12) -> 0
CA98: 8.6e-05 | CE98: 0 | CF98: 8.6e-05 | CG98: =COUNTIFS('C-E'!$B$13:$B$1001,CAD_AREA!$CB98,'C-E'!$H$13:$H$1001,CAD_AREA!CG$12) -> 0 | CH98: =COUNTIFS('C-E'!$B$13:$B$1001,CAD_AREA!$CB98,'C-E'!$H$13:$H$1001,CAD_AREA!CH$12) -> 0
CA99: 8.7e-05 | CE99: 0 | CF99: 8.7e-05 | CG99: =COUNTIFS('C-E'!$B$13:$B$1001,CAD_AREA!$CB99,'C-E'!$H$13:$H$1001,CAD_AREA!CG$12) -> 0 | CH99: =COUNTIFS('C-E'!$B$13:$B$1001,CAD_AREA!$CB99,'C-E'!$H$13:$H$1001,CAD_AREA!CH$12) -> 0
CA100: 8.8e-05 | CE100: 0 | CF100: 8.8e-05 | CG100: =COUNTIFS('C-E'!$B$13:$B$1001,CAD_AREA!$CB100,'C-E'!$H$13:$H$1001,CAD_AREA!CG$12) -> 0 | CH100: =COUNTIFS('C-E'!$B$13:$B$1001,CAD_AREA!$CB100,'C-E'!$H$13:$H$1001,CAD_AREA!CH$12) -> 0
CA101: 8.9e-05 | CE101: 0 | CF101: 8.9e-05 | CG101: =COUNTIFS('C-E'!$B$13:$B$1001,CAD_AREA!$CB101,'C-E'!$H$13:$H$1001,CAD_AREA!CG$12) -> 0 | CH101: =COUNTIFS('C-E'!$B$13:$B$1001,CAD_AREA!$CB101,'C-E'!$H$13:$H$1001,CAD_AREA!CH$12) -> 0
CA102: 9e-05 | CE102: 0 | CF102: 9e-05 | CG102: =COUNTIFS('C-E'!$B$13:$B$1001,CAD_AREA!$CB102,'C-E'!$H$13:$H$1001,CAD_AREA!CG$12) -> 0 | CH102: =COUNTIFS('C-E'!$B$13:$B$1001,CAD_AREA!$CB102,'C-E'!$H$13:$H$1001,CAD_AREA!CH$12) -> 0
CA103: 9.1e-05 | CE103: 0 | CF103: 9.1e-05 | CG103: =COUNTIFS('C-E'!$B$13:$B$1001,CAD_AREA!$CB103,'C-E'!$H$13:$H$1001,CAD_AREA!CG$12) -> 0 | CH103: =COUNTIFS('C-E'!$B$13:$B$1001,CAD_AREA!$CB103,'C-E'!$H$13:$H$1001,CAD_AREA!CH$12) -> 0
CA104: 9.2e-05 | CE104: 0 | CF104: 9.2e-05 | CG104: =COUNTIFS('C-E'!$B$13:$B$1001,CAD_AREA!$CB104,'C-E'!$H$13:$H$1001,CAD_AREA!CG$12) -> 0 | CH104: =COUNTIFS('C-E'!$B$13:$B$1001,CAD_AREA!$CB104,'C-E'!$H$13:$H$1001,CAD_AREA!CH$12) -> 0
CA105: 9.3e-05 | CE105: 0 | CF105: 9.3e-05 | CG105: =COUNTIFS('C-E'!$B$13:$B$1001,CAD_AREA!$CB105,'C-E'!$H$13:$H$1001,CAD_AREA!CG$12) -> 0 | CH105: =COUNTIFS('C-E'!$B$13:$B$1001,CAD_AREA!$CB105,'C-E'!$H$13:$H$1001,CAD_AREA!CH$12) -> 0
CA106: 9.4e-05 | CE106: 0 | CF106: 9.4e-05 | CG106: =COUNTIFS('C-E'!$B$13:$B$1001,CAD_AREA!$CB106,'C-E'!$H$13:$H$1001,CAD_AREA!CG$12) -> 0 | CH106: =COUNTIFS('C-E'!$B$13:$B$1001,CAD_AREA!$CB106,'C-E'!$H$13:$H$1001,CAD_AREA!CH$12) -> 0
CA107: 9.5e-05 | CE107: 0 | CF107: 9.5e-05 | CG107: =COUNTIFS('C-E'!$B$13:$B$1001,CAD_AREA!$CB107,'C-E'!$H$13:$H$1001,CAD_AREA!CG$12) -> 0 | CH107: =COUNTIFS('C-E'!$B$13:$B$1001,CAD_AREA!$CB107,'C-E'!$H$13:$H$1001,CAD_AREA!CH$12) -> 0
CA108: 9.6e-05 | CE108: 0 | CF108: 9.6e-05 | CG108: =COUNTIFS('C-E'!$B$13:$B$1001,CAD_AREA!$CB108,'C-E'!$H$13:$H$1001,CAD_AREA!CG$12) -> 0 | CH108: =COUNTIFS('C-E'!$B$13:$B$1001,CAD_AREA!$CB108,'C-E'!$H$13:$H$1001,CAD_AREA!CH$12) -> 0
BB109: =IF(BA109="","",BA109) ->  | CA109: 9.7e-05 | CE109: 0 | CF109: 9.7e-05 | CG109: =COUNTIFS('C-E'!$B$13:$B$1001,CAD_AREA!$CB109,'C-E'!$H$13:$H$1001,CAD_AREA!CG$12) -> 0 | CH109: =COUNTIFS('C-E'!$B$13:$B$1001,CAD_AREA!$CB109,'C-E'!$H$13:$H$1001,CAD_AREA!CH$12) -> 0
CA110: 9.8e-05 | CE110: 0 | CF110: 9.8e-05 | CG110: =COUNTIFS('C-E'!$B$13:$B$1001,CAD_AREA!$CB110,'C-E'!$H$13:$H$1001,CAD_AREA!CG$12) -> 0 | CH110: =COUNTIFS('C-E'!$B$13:$B$1001,CAD_AREA!$CB110,'C-E'!$H$13:$H$1001,CAD_AREA!CH$12) -> 0
CA111: 9.9e-05 | CE111: 0 | CF111: 9.9e-05 | CG111: =COUNTIFS('C-E'!$B$13:$B$1001,CAD_AREA!$CB111,'C-E'!$H$13:$H$1001,CAD_AREA!CG$12) -> 0 | CH111: =COUNTIFS('C-E'!$B$13:$B$1001,CAD_AREA!$CB111,'C-E'!$H$13:$H$1001,CAD_AREA!CH$12) -> 0
CA112: 0.0001 | CE112: 0 | CF112: 0.0001 | CG112: =COUNTIFS('C-E'!$B$13:$B$1001,CAD_AREA!$CB112,'C-E'!$H$13:$H$1001,CAD_AREA!CG$12) -> 0 | CH112: =COUNTIFS('C-E'!$B$13:$B$1001,CAD_AREA!$CB112,'C-E'!$H$13:$H$1001,CAD_AREA!CH$12) -> 0
CA113: 0.000101 | CE113: 0 | CF113: 0.000101 | CG113: =COUNTIFS('C-E'!$B$13:$B$1001,CAD_AREA!$CB113,'C-E'!$H$13:$H$1001,CAD_AREA!CG$12) -> 0 | CH113: =COUNTIFS('C-E'!$B$13:$B$1001,CAD_AREA!$CB113,'C-E'!$H$13:$H$1001,CAD_AREA!CH$12) -> 0
CF114: a | CG114: a | CH114: a

Sheet PPRA
B12: Descrição doRisco | C12: Área | D12: Tipo de Risco | E12: Frequência de Exposição | F12: Possíveis danos à saúde | G12: Graduação do Risco | H12: Gravidade | I12: Medidas de controle existentes | J12: Precisa de EPI? | K12: Se sim, qual? | M12: Eventual | N12: 1 | P12: Baixo | Q12: 1 | S12: Insignificante | T12: 1 | V12: =E12 -> Frequência de Exposição | W12: =F12 -> Possíveis danos à saúde | X12: =G12 -> Graduação do Risco | Y12: Pontuação | AB12: desempate
A13: =AA13 -> 16.000001 | B13: r 1 | C13: ADM | D13: Físico | E13: Intermitente | F13: Médio | G13: Alto | H13: =Y13 -> 16 | M13: Intermitente | N13: 2 | P13: Médio | Q13: 2 | S13: Baixo | T13: 2 | V13: =IF(E13="","",VLOOKUP(E13,$M$12:$N$14,2,FALSE)) -> 2 | W13: =IF(F13="","",VLOOKUP(F13,$P$12:$Q$15,2,FALSE)) -> 2 | X13: =IF(G13="","",VLOOKUP(G13,$S$12:$T$16,2,FALSE)) -> 4 | Y13: =IF(V13="","",IFERROR(V13*W13*X13,0)) -> 16 | AA13: =IFERROR(AB13+Y13,AB13) -> 16.000001 | AB13: =0.000001 -> 1e-06 | AC13: =IF(B13="","",B13) -> r 1
A14: 2e-06 | H14: =Y14 ->  | M14: Permanente | N14: 3 | P14: Alto | Q14: 3 | S14: Médio | T14: 3 | Y14: =IF(V14="","",IFERROR(V14*W14*X14,0)) ->  | AA14: =IFERROR(AB14+Y14,AB14) -> 2e-06 | AB14: =AB13+$AB$13 -> 2e-06 | AC14: =IF(B14="","",B14) -> 
A15: 3e-06 | P15: Iminente | Q15: 4 | S15: Alto | T15: 4 | AA15: 3e-06 | AB15: 3e-06
A16: 4e-06 | S16: Crítico | T16: 5 | AA16: 4e-06 | AB16: 4e-06
A17: 5e-06 | AA17: 5e-06 | AB17: 5e-06
A18: 6e-06 | AA18: 6e-06 | AB18: 6e-06
A19: 7e-06 | AA19: 7e-06 | AB19: 7e-06
A20: 8e-06 | AA20: 8e-06 | AB20: 8e-06
A21: 9e-06 | AA21: 9e-06 | AB21: 9e-06
A22: 1e-05 | AA22: 1e-05 | AB22: 1e-05
A23: 1.1e-05 | AA23: 1.1e-05 | AB23: 1.1e-05
A24: 1.2e-05 | AA24: 1.2e-05 | AB24: 1.2e-05
A25: 1.3e-05 | AA25: 1.3e-05 | AB25: 1.3e-05
A26: 1.4e-05 | AA26: 1.4e-05 | AB26: 1.4e-05
A27: 1.5e-05 | AA27: 1.5e-05 | AB27: 1.5e-05
A28: 1.6e-05 | AA28: 1.6e-05 | AB28: 1.6e-05
A29: 1.7e-05 | AA29: 1.7e-05 | AB29: 1.7e-05
A30: 1.8e-05 | AA30: 1.8e-05 | AB30: 1.8e-05
A31: 1.9e-05 | AA31: 1.9e-05 | AB31: 1.9e-05
A32: 2e-05 | AA32: 2e-05 | AB32: 2e-05
A33: 2.1e-05 | AA33: 2.1e-05 | AB33: 2.1e-05
A34: 2.2e-05 | AA34: 2.2e-05 | AB34: 2.2e-05
A35: 2.3e-05 | AA35: 2.3e-05 | AB35: 2.3e-05
A36: 2.4e-05 | AA36: 2.4e-05 | AB36: 2.4e-05
A37: 2.5e-05 | AA37: 2.5e-05 | AB37: 2.5e-05
A38: 2.6e-05 | AA38: 2.6e-05 | AB38: 2.6e-05
A39: 2.7e-05 | AA39: 2.7e-05 | AB39: 2.7e-05
A40: 2.8e-05 | AA40: 2.8e-05 | AB40: 2.8e-05
A41: 2.9e-05 | AA41: 2.9e-05 | AB41: 2.9e-05
A42: 3e-05 | AA42: 3e-05 | AB42: 3e-05
A43: 3.1e-05 | AA43: 3.1e-05 | AB43: 3.1e-05
A44: 3.2e-05 | AA44: 3.2e-05 | AB44: 3.2e-05
A45: 3.3e-05 | AA45: 3.3e-05 | AB45: 3.3e-05
A46: 3.4e-05 | AA46: 3.4e-05 | AB46: 3.4e-05
A47: 3.5e-05 | AA47: 3.5e-05 | AB47: 3.5e-05
A48: 3.6e-05 | AA48: 3.6e-05 | AB48: 3.6e-05
A49: 3.7e-05 | AA49: 3.7e-05 | AB49: 3.7e-05
A50: 3.8e-05 | AA50: 3.8e-05 | AB50: 3.8e-05
A51: 3.9e-05 | AA51: 3.9e-05 | AB51: 3.9e-05
A52: 4e-05 | AA52: 4e-05 | AB52: 4e-05
A53: 4.1e-05 | AA53: 4.1e-05 | AB53: 4.1e-05
A54: 4.2e-05 | AA54: 4.2e-05 | AB54: 4.2e-05
A55: 4.3e-05 | AA55: 4.3e-05 | AB55: 4.3e-05
A56: 4.4e-05 | AA56: 4.4e-05 | AB56: 4.4e-05
A57: 4.5e-05 | AA57: 4.5e-05 | AB57: 4.5e-05
A58: 4.6e-05 | AA58: 4.6e-05 | AB58: 4.6e-05
A59: 4.7e-05 | AA59: 4.7e-05 | AB59: 4.7e-05
A60: 4.8e-05 | AA60: 4.8e-05 | AB60: 4.8e-05
A61: 4.9e-05 | AA61: 4.9e-05 | AB61: 4.9e-05
A62: 5e-05 | AA62: 5e-05 | AB62: 5e-05
A63: 5.1e-05 | AA63: 5.1e-05 | AB63: 5.1e-05
A64: 5.2e-05 | AA64: 5.2e-05 | AB64: 5.2e-05
A65: 5.3e-05 | AA65: 5.3e-05 | AB65: 5.3e-05
A66: 5.4e-05 | AA66: 5.4e-05 | AB66: 5.4e-05
A67: 5.5e-05 | AA67: 5.5e-05 | AB67: 5.5e-05
A68: 5.6e-05 | AA68: 5.6e-05 | AB68: 5.6e-05
A69: 5.7e-05 | AA69: 5.7e-05 | AB69: 5.7e-05
A70: 5.8e-05 | AA70: 5.8e-05 | AB70: 5.8e-05
A71: 5.9e-05 | AA71: 5.9e-05 | AB71: 5.9e-05
A72: 6e-05 | AA72: 6e-05 | AB72: 6e-05
A73: 6.1e-05 | AA73: 6.1e-05 | AB73: 6.1e-05
A74: 6.2e-05 | AA74: 6.2e-05 | AB74: 6.2e-05
A75: 6.3e-05 | AA75: 6.3e-05 | AB75: 6.3e-05
A76: 6.4e-05 | AA76: 6.4e-05 | AB76: 6.4e-05
A77: =AA77 -> 6.5e-05 | V77: =IF(E77="","",VLOOKUP(E77,$M$12:$N$14,2,FALSE)) ->  | W77: =IF(F77="","",VLOOKUP(F77,$P$12:$Q$15,2,FALSE)) ->  | X77: =IF(G77="","",VLOOKUP(G77,$S$12:$T$16,2,FALSE)) ->  | AA77: 6.5e-05 | AB77: 6.5e-05
A78: 6.6e-05 | H78: =Y78 ->  | Y78: =IF(V78="","",IFERROR(V78*W78*X78,0)) ->  | AA78: =IFERROR(AB78+Y78,AB78) -> 6.6e-05 | AB78: =AB77+$AB$13 -> 6.6e-05 | AC78: =IF(B78="","",B78) -> 
A79: 6.7e-05 | AA79: 6.7e-05 | AB79: 6.7e-05
A80: 6.8e-05 | AA80: 6.8e-05 | AB80: 6.8e-05
A81: 6.9e-05 | AA81: 6.9e-05 | AB81: 6.9e-05
A82: 7e-05 | AA82: 7e-05 | AB82: 7e-05
A83: 7.1e-05 | AA83: 7.1e-05 | AB83: 7.1e-05
A84: 7.2e-05 | AA84: 7.2e-05 | AB84: 7.2e-05
A85: 7.3e-05 | AA85: 7.3e-05 | AB85: 7.3e-05
A86: 7.4e-05 | AA86: 7.4e-05 | AB86: 7.4e-05
A87: 7.5e-05 | AA87: 7.5e-05 | AB87: 7.5e-05
A88: 7.6e-05 | AA88: 7.6e-05 | AB88: 7.6e-05
A89: 7.7e-05 | AA89: 7.7e-05 | AB89: 7.7e-05
A90: 7.8e-05 | AA90: 7.8e-05 | AB90: 7.8e-05
A91: 7.9e-05 | AA91: 7.9e-05 | AB91: 7.9e-05
A92: 8e-05 | AA92: 8e-05 | AB92: 8e-05
A93: 8.1e-05 | AA93: 8.1e-05 | AB93: 8.1e-05
A94: 8.2e-05 | AA94: 8.2e-05 | AB94: 8.2e-05
A95: 8.3e-05 | AA95: 8.3e-05 | AB95: 8.3e-05
A96: 8.4e-05 | AA96: 8.4e-05 | AB96: 8.4e-05
A97: 8.5e-05 | AA97: 8.5e-05 | AB97: 8.5e-05
A98: 8.6e-05 | AA98: 8.6e-05 | AB98: 8.6e-05
A99: 8.7e-05 | AA99: 8.7e-05 | AB99: 8.7e-05
A100: 8.8e-05 | AA100: 8.8e-05 | AB100: 8.8e-05
A101: 8.9e-05 | AA101: 8.9e-05 | AB101: 8.9e-05
A102: 9e-05 | AA102: 9e-05 | AB102: 9e-05
A103: 9.1e-05 | AA103: 9.1e-05 | AB103: 9.1e-05
A104: 9.2e-05 | AA104: 9.2e-05 | AB104: 9.2e-05
A105: 9.3e-05 | AA105: 9.3e-05 | AB105: 9.3e-05
A106: 9.4e-05 | AA106: 9.4e-05 | AB106: 9.4e-05
A107: 9.5e-05 | AA107: 9.5e-05 | AB107: 9.5e-05
A108: 9.6e-05 | AA108: 9.6e-05 | AB108: 9.6e-05
A109: 9.7e-05 | AA109: 9.7e-05 | AB109: 9.7e-05
A110: 9.8e-05 | AA110: 9.8e-05 | AB110: 9.8e-05
A111: 9.9e-05 | AA111: 9.9e-05 | AB111: 9.9e-05
A112: 0.0001 | AA112: 0.0001 | AB112: 0.0001
A113: 0.000101 | AA113: 0.000101 | AB113: 0.000101
A114: 0.000102 | AA114: 0.000102 | AB114: 0.000102
A115: 0.000103 | AA115: 0.000103 | AB115: 0.000103
A116: 0.000104 | AA116: 0.000104 | AB116: 0.000104
A117: 0.000105 | AA117: 0.000105 | AB117: 0.000105
A118: 0.000106 | AA118: 0.000106 | AB118: 0.000106
A119: 0.000107 | AA119: 0.000107 | AB119: 0.000107
A120: 0.000108 | AA120: 0.000108 | AB120: 0.000108
A121: 0.000109 | AA121: 0.000109 | AB121: 0.000109
A122: 0.00011 | AA122: 0.00011 | AB122: 0.00011
A123: 0.000111 | AA123: 0.000111 | AB123: 0.000111
A124: 0.000112 | AA124: 0.000112 | AB124: 0.000112
A125: 0.000113 | AA125: 0.000113 | AB125: 0.000113
A126: 0.000114 | AA126: 0.000114 | AB126: 0.000114
A127: 0.000115 | AA127: 0.000115 | AB127: 0.000115
A128: 0.000116 | AA128: 0.000116 | AB128: 0.000116
A129: 0.000117 | AA129: 0.000117 | AB129: 0.000117
A130: 0.000118 | AA130: 0.000118 | AB130: 0.000118
A131: 0.000119 | AA131: 0.000119 | AB131: 0.000119
A132: 0.00012 | AA132: 0.00012 | AB132: 0.00012
A133: 0.000121 | AA133: 0.000121 | AB133: 0.000121
A134: 0.000122 | AA134: 0.000122 | AB134: 0.000122
A135: 0.000123 | AA135: 0.000123 | AB135: 0.000123
A136: 0.000124 | AA136: 0.000124 | AB136: 0.000124
A137: 0.000125 | AA137: 0.000125 | AB137: 0.000125
A138: 0.000126 | AA138: 0.000126 | AB138: 0.000126
A139: 0.000127 | AA139: 0.000127 | AB139: 0.000127
A140: 0.000128 | AA140: 0.000128 | AB140: 0.000128
A141: =AA141 -> 0.000129 | V141: =IF(E141="","",VLOOKUP(E141,$M$12:$N$14,2,FALSE)) ->  | W141: =IF(F141="","",VLOOKUP(F141,$P$12:$Q$15,2,FALSE)) ->  | X141: =IF(G141="","",VLOOKUP(G141,$S$12:$T$16,2,FALSE)) ->  | AA141: 0.000129 | AB141: 0.000129
A142: 0.00013 | H142: =Y142 ->  | Y142: =IF(V142="","",IFERROR(V142*W142*X142,0)) ->  | AA142: =IFERROR(AB142+Y142,AB142) -> 0.00013 | AB142: =AB141+$AB$13 -> 0.00013 | AC142: =IF(B142="","",B142) -> 
A143: 0.000131 | AA143: 0.000131 | AB143: 0.000131
A144: 0.000132 | AA144: 0.000132 | AB144: 0.000132
A145: 0.000133 | AA145: 0.000133 | AB145: 0.000133
A146: 0.000134 | AA146: 0.000134 | AB146: 0.000134
A147: 0.000135 | AA147: 0.000135 | AB147: 0.000135
A148: 0.000136 | AA148: 0.000136 | AB148: 0.000136
A149: 0.000137 | AA149: 0.000137 | AB149: 0.000137
A150: 0.000138 | AA150: 0.000138 | AB150: 0.000138
A151: 0.000139 | AA151: 0.000139 | AB151: 0.000139
A152: 0.00014 | AA152: 0.00014 | AB152: 0.00014
A153: 0.000141 | AA153: 0.000141 | AB153: 0.000141
A154: 0.000142 | AA154: 0.000142 | AB154: 0.000142
A155: 0.000143 | AA155: 0.000143 | AB155: 0.000143
A156: 0.000144 | AA156: 0.000144 | AB156: 0.000144
A157: 0.000145 | AA157: 0.000145 | AB157: 0.000145
A158: 0.000146 | AA158: 0.000146 | AB158: 0.000146
A159: 0.000147 | AA159: 0.000147 | AB159: 0.000147
A160: 0.000148 | AA160: 0.000148 | AB160: 0.000148
A161: 0.000149 | AA161: 0.000149 | AB161: 0.000149
A162: 0.00015 | AA162: 0.00015 | AB162: 0.00015
A163: 0.000151 | AA163: 0.000151 | AB163: 0.000151
A164: 0.000152 | AA164: 0.000152 | AB164: 0.000152
A165: 0.000153 | AA165: 0.000153 | AB165: 0.000153
A166: 0.000154 | AA166: 0.000154 | AB166: 0.000154
A167: 0.000155 | AA167: 0.000155 | AB167: 0.000155
A168: 0.000156 | AA168: 0.000156 | AB168: 0.000156
A169: 0.000157 | AA169: 0.000157 | AB169: 0.000157
A170: 0.000158 | AA170: 0.000158 | AB170: 0.000158
A171: 0.000159 | AA171: 0.000159 | AB171: 0.000159
A172: 0.00016 | AA172: 0.00016 | AB172: 0.00016
A173: 0.000161 | AA173: 0.000161 | AB173: 0.000161
A174: 0.000162 | AA174: 0.000162 | AB174: 0.000162
A175: 0.000163 | AA175: 0.000163 | AB175: 0.000163
A176: 0.000164 | AA176: 0.000164 | AB176: 0.000164
A177: 0.000165 | AA177: 0.000165 | AB177: 0.000165
A178: 0.000166 | AA178: 0.000166 | AB178: 0.000166
A179: 0.000167 | AA179: 0.000167 | AB179: 0.000167
A180: 0.000168 | AA180: 0.000168 | AB180: 0.000168
A181: 0.000169 | AA181: 0.000169 | AB181: 0.000169
A182: 0.00017 | AA182: 0.00017 | AB182: 0.00017
A183: 0.000171 | AA183: 0.000171 | AB183: 0.000171
A184: 0.000172 | AA184: 0.000172 | AB184: 0.000172
A185: 0.000173 | AA185: 0.000173 | AB185: 0.000173
A186: 0.000174 | AA186: 0.000174 | AB186: 0.000174
A187: 0.000175 | AA187: 0.000175 | AB187: 0.000175
A188: 0.000176 | AA188: 0.000176 | AB188: 0.000176
A189: 0.000177 | AA189: 0.000177 | AB189: 0.000177
A190: 0.000178 | AA190: 0.000178 | AB190: 0.000178
A191: 0.000179 | AA191: 0.000179 | AB191: 0.000179
A192: 0.00018 | AA192: 0.00018 | AB192: 0.00018
A193: 0.000181 | AA193: 0.000181 | AB193: 0.000181
A194: 0.000182 | AA194: 0.000182 | AB194: 0.000182
A195: 0.000183 | AA195: 0.000183 | AB195: 0.000183
A196: 0.000184 | AA196: 0.000184 | AB196: 0.000184
A197: 0.000185 | AA197: 0.000185 | AB197: 0.000185
A198: 0.000186 | AA198: 0.000186 | AB198: 0.000186
A199: 0.000187 | AA199: 0.000187 | AB199: 0.000187
A200: 0.000188 | AA200: 0.000188 | AB200: 0.000188
A201: 0.000189 | AA201: 0.000189 | AB201: 0.000189
A202: 0.00019 | AA202: 0.00019 | AB202: 0.00019
A203: 0.000191 | AA203: 0.000191 | AB203: 0.000191
A204: 0.000192 | AA204: 0.000192 | AB204: 0.000192
A205: =AA205 -> 0.000193 | V205: =IF(E205="","",VLOOKUP(E205,$M$12:$N$14,2,FALSE)) ->  | W205: =IF(F205="","",VLOOKUP(F205,$P$12:$Q$15,2,FALSE)) ->  | X205: =IF(G205="","",VLOOKUP(G205,$S$12:$T$16,2,FALSE)) ->  | AA205: 0.000193 | AB205: 0.000193
A206: 0.000194 | H206: =Y206 ->  | Y206: =IF(V206="","",IFERROR(V206*W206*X206,0)) ->  | AA206: =IFERROR(AB206+Y206,AB206) -> 0.000194 | AB206: =AB205+$AB$13 -> 0.000194 | AC206: =IF(B206="","",B206) -> 
A207: 0.000195 | AA207: 0.000195 | AB207: 0.000195
A208: 0.000196 | AA208: 0.000196 | AB208: 0.000196
A209: 0.000197 | AA209: 0.000197 | AB209: 0.000197
A210: 0.000198 | AA210: 0.000198 | AB210: 0.000198
A211: 0.000199 | AA211: 0.000199 | AB211: 0.000199
... 404 more rows

Sheet CRONOGRAMA
E12: CRONOGRAMA - PPRA | M12: ELABORADO POR:
M14: APROVADO POR:
B16: Item | C16: Ação | D16: Meta | E16: Estratégia e metodologia | F16: Prioridade | G16: Responsável | H16: Ano: 2021
H17: JAN | I17: FEV | J17: MAR | K17: ABR | L17: MAI | M17: JUN | N17: JUL | O17: AGO | P17: SET | Q17: OUT | R17: NOV | S17: DEZ
B18: 1 | C18: Realizar Capacitação sobre uso dos EPIs | D18: Alcançar 20% dos trabalhadores a cada mês | E18: Treinamento durante o horário de trabalho com no máximo 20 colaboradores | F18: 1 | G18: RH | H18: x | K18: x | N18: x | Q18: x

Sheet PCMSO
A12: repet | B12: Descrição do Exame | C12: Área | D12: Cargo | E12: Frequência | H12: des | I12: qtde | J12: O exame não apontou complicações | K12: O exame apontou complicações
A13: =SUM(H13:I13) -> 1.000001 | B13: Audiometria | C13: PROD | D13: Auxiliar | E13: Anualmente | G13: =B13 -> Audiometria | H13: 1e-06 | I13: =COUNTIFS('C-E'!$E$13:$E$1001,PCMSO!B13) -> 1 | J13: =COUNTIFS('C-E'!$E$13:$E$1001,PCMSO!$B13,'C-E'!$H$13:$H$1001,PCMSO!J$12) -> 1 | K13: =COUNTIFS('C-E'!$E$13:$E$1001,PCMSO!$B13,'C-E'!$H$13:$H$1001,PCMSO!K$12) -> 0
A14: 2e-06 | G14: =B14 -> 0 | H14: =H13+$H$13 -> 2e-06 | I14: =COUNTIFS('C-E'!$E$13:$E$1001,PCMSO!B14) -> 0 | J14: =COUNTIFS('C-E'!$E$13:$E$1001,PCMSO!$B14,'C-E'!$H$13:$H$1001,PCMSO!J$12) -> 0 | K14: =COUNTIFS('C-E'!$E$13:$E$1001,PCMSO!$B14,'C-E'!$H$13:$H$1001,PCMSO!K$12) -> 0
A15: 3e-06 | G15: 0 | H15: =H14+$H$13 -> 3e-06 | I15: =COUNTIFS('C-E'!$E$13:$E$1001,PCMSO!B15) -> 0 | J15: =COUNTIFS('C-E'!$E$13:$E$1001,PCMSO!$B15,'C-E'!$H$13:$H$1001,PCMSO!J$12) -> 0 | K15: =COUNTIFS('C-E'!$E$13:$E$1001,PCMSO!$B15,'C-E'!$H$13:$H$1001,PCMSO!K$12) -> 0
A16: 4e-06 | G16: 0 | H16: 4e-06 | I16: =COUNTIFS('C-E'!$E$13:$E$1001,PCMSO!B16) -> 0 | J16: =COUNTIFS('C-E'!$E$13:$E$1001,PCMSO!$B16,'C-E'!$H$13:$H$1001,PCMSO!J$12) -> 0 | K16: =COUNTIFS('C-E'!$E$13:$E$1001,PCMSO!$B16,'C-E'!$H$13:$H$1001,PCMSO!K$12) -> 0
A17: 5e-06 | G17: 0 | H17: 5e-06 | I17: =COUNTIFS('C-E'!$E$13:$E$1001,PCMSO!B17) -> 0 | J17: =COUNTIFS('C-E'!$E$13:$E$1001,PCMSO!$B17,'C-E'!$H$13:$H$1001,PCMSO!J$12) -> 0 | K17: =COUNTIFS('C-E'!$E$13:$E$1001,PCMSO!$B17,'C-E'!$H$13:$H$1001,PCMSO!K$12) -> 0
A18: 6e-06 | G18: 0 | H18: 6e-06 | I18: =COUNTIFS('C-E'!$E$13:$E$1001,PCMSO!B18) -> 0 | J18: =COUNTIFS('C-E'!$E$13:$E$1001,PCMSO!$B18,'C-E'!$H$13:$H$1001,PCMSO!J$12) -> 0 | K18: =COUNTIFS('C-E'!$E$13:$E$1001,PCMSO!$B18,'C-E'!$H$13:$H$1001,PCMSO!K$12) -> 0
A19: 7e-06 | G19: 0 | H19: 7e-06 | I19: =COUNTIFS('C-E'!$E$13:$E$1001,PCMSO!B19) -> 0 | J19: =COUNTIFS('C-E'!$E$13:$E$1001,PCMSO!$B19,'C-E'!$H$13:$H$1001,PCMSO!J$12) -> 0 | K19: =COUNTIFS('C-E'!$E$13:$E$1001,PCMSO!$B19,'C-E'!$H$13:$H$1001,PCMSO!K$12) -> 0
A20: 8e-06 | G20: 0 | H20: 8e-06 | I20: =COUNTIFS('C-E'!$E$13:$E$1001,PCMSO!B20) -> 0 | J20: =COUNTIFS('C-E'!$E$13:$E$1001,PCMSO!$B20,'C-E'!$H$13:$H$1001,PCMSO!J$12) -> 0 | K20: =COUNTIFS('C-E'!$E$13:$E$1001,PCMSO!$B20,'C-E'!$H$13:$H$1001,PCMSO!K$12) -> 0
A21: 9e-06 | G21: 0 | H21: 9e-06 | I21: =COUNTIFS('C-E'!$E$13:$E$1001,PCMSO!B21) -> 0 | J21: =COUNTIFS('C-E'!$E$13:$E$1001,PCMSO!$B21,'C-E'!$H$13:$H$1001,PCMSO!J$12) -> 0 | K21: =COUNTIFS('C-E'!$E$13:$E$1001,PCMSO!$B21,'C-E'!$H$13:$H$1001,PCMSO!K$12) -> 0
A22: 1e-05 | G22: 0 | H22: 1e-05 | I22: =COUNTIFS('C-E'!$E$13:$E$1001,PCMSO!B22) -> 0 | J22: =COUNTIFS('C-E'!$E$13:$E$1001,PCMSO!$B22,'C-E'!$H$13:$H$1001,PCMSO!J$12) -> 0 | K22: =COUNTIFS('C-E'!$E$13:$E$1001,PCMSO!$B22,'C-E'!$H$13:$H$1001,PCMSO!K$12) -> 0
A23: 1.1e-05 | G23: 0 | H23: 1.1e-05 | I23: =COUNTIFS('C-E'!$E$13:$E$1001,PCMSO!B23) -> 0 | J23: =COUNTIFS('C-E'!$E$13:$E$1001,PCMSO!$B23,'C-E'!$H$13:$H$1001,PCMSO!J$12) -> 0 | K23: =COUNTIFS('C-E'!$E$13:$E$1001,PCMSO!$B23,'C-E'!$H$13:$H$1001,PCMSO!K$12) -> 0
A24: 1.2e-05 | G24: 0 | H24: 1.2e-05 | I24: =COUNTIFS('C-E'!$E$13:$E$1001,PCMSO!B24) -> 0 | J24: =COUNTIFS('C-E'!$E$13:$E$1001,PCMSO!$B24,'C-E'!$H$13:$H$1001,PCMSO!J$12) -> 0 | K24: =COUNTIFS('C-E'!$E$13:$E$1001,PCMSO!$B24,'C-E'!$H$13:$H$1001,PCMSO!K$12) -> 0
A25: 1.3e-05 | G25: 0 | H25: 1.3e-05 | I25: =COUNTIFS('C-E'!$E$13:$E$1001,PCMSO!B25) -> 0 | J25: =COUNTIFS('C-E'!$E$13:$E$1001,PCMSO!$B25,'C-E'!$H$13:$H$1001,PCMSO!J$12) -> 0 | K25: =COUNTIFS('C-E'!$E$13:$E$1001,PCMSO!$B25,'C-E'!$H$13:$H$1001,PCMSO!K$12) -> 0
A26: 1.4e-05 | G26: 0 | H26: 1.4e-05 | I26: =COUNTIFS('C-E'!$E$13:$E$1001,PCMSO!B26) -> 0 | J26: =COUNTIFS('C-E'!$E$13:$E$1001,PCMSO!$B26,'C-E'!$H$13:$H$1001,PCMSO!J$12) -> 0 | K26: =COUNTIFS('C-E'!$E$13:$E$1001,PCMSO!$B26,'C-E'!$H$13:$H$1001,PCMSO!K$12) -> 0
A27: 1.5e-05 | G27: 0 | H27: 1.5e-05 | I27: =COUNTIFS('C-E'!$E$13:$E$1001,PCMSO!B27) -> 0 | J27: =COUNTIFS('C-E'!$E$13:$E$1001,PCMSO!$B27,'C-E'!$H$13:$H$1001,PCMSO!J$12) -> 0 | K27: =COUNTIFS('C-E'!$E$13:$E$1001,PCMSO!$B27,'C-E'!$H$13:$H$1001,PCMSO!K$12) -> 0
A28: 1.6e-05 | G28: 0 | H28: 1.6e-05 | I28: =COUNTIFS('C-E'!$E$13:$E$1001,PCMSO!B28) -> 0 | J28: =COUNTIFS('C-E'!$E$13:$E$1001,PCMSO!$B28,'C-E'!$H$13:$H$1001,PCMSO!J$12) -> 0 | K28: =COUNTIFS('C-E'!$E$13:$E$1001,PCMSO!$B28,'C-E'!$H$13:$H$1001,PCMSO!K$12) -> 0
A29: 1.7e-05 | G29: 0 | H29: 1.7e-05 | I29: =COUNTIFS('C-E'!$E$13:$E$1001,PCMSO!B29) -> 0 | J29: =COUNTIFS('C-E'!$E$13:$E$1001,PCMSO!$B29,'C-E'!$H$13:$H$1001,PCMSO!J$12) -> 0 | K29: =COUNTIFS('C-E'!$E$13:$E$1001,PCMSO!$B29,'C-E'!$H$13:$H$1001,PCMSO!K$12) -> 0
A30: 1.8e-05 | G30: 0 | H30: 1.8e-05 | I30: =COUNTIFS('C-E'!$E$13:$E$1001,PCMSO!B30) -> 0 | J30: =COUNTIFS('C-E'!$E$13:$E$1001,PCMSO!$B30,'C-E'!$H$13:$H$1001,PCMSO!J$12) -> 0 | K30: =COUNTIFS('C-E'!$E$13:$E$1001,PCMSO!$B30,'C-E'!$H$13:$H$1001,PCMSO!K$12) -> 0
A31: 1.9e-05 | G31: 0 | H31: 1.9e-05 | I31: =COUNTIFS('C-E'!$E$13:$E$1001,PCMSO!B31) -> 0 | J31: =COUNTIFS('C-E'!$E$13:$E$1001,PCMSO!$B31,'C-E'!$H$13:$H$1001,PCMSO!J$12) -> 0 | K31: =COUNTIFS('C-E'!$E$13:$E$1001,PCMSO!$B31,'C-E'!$H$13:$H$1001,PCMSO!K$12) -> 0
A32: 2e-05 | G32: 0 | H32: 2e-05 | I32: =COUNTIFS('C-E'!$E$13:$E$1001,PCMSO!B32) -> 0 | J32: =COUNTIFS('C-E'!$E$13:$E$1001,PCMSO!$B32,'C-E'!$H$13:$H$1001,PCMSO!J$12) -> 0 | K32: =COUNTIFS('C-E'!$E$13:$E$1001,PCMSO!$B32,'C-E'!$H$13:$H$1001,PCMSO!K$12) -> 0
A33: 2.1e-05 | G33: 0 | H33: 2.1e-05 | I33: =COUNTIFS('C-E'!$E$13:$E$1001,PCMSO!B33) -> 0 | J33: =COUNTIFS('C-E'!$E$13:$E$1001,PCMSO!$B33,'C-E'!$H$13:$H$1001,PCMSO!J$12) -> 0 | K33: =COUNTIFS('C-E'!$E$13:$E$1001,PCMSO!$B33,'C-E'!$H$13:$H$1001,PCMSO!K$12) -> 0
A34: 2.2e-05 | G34: 0 | H34: 2.2e-05 | I34: =COUNTIFS('C-E'!$E$13:$E$1001,PCMSO!B34) -> 0 | J34: =COUNTIFS('C-E'!$E$13:$E$1001,PCMSO!$B34,'C-E'!$H$13:$H$1001,PCMSO!J$12) -> 0 | K34: =COUNTIFS('C-E'!$E$13:$E$1001,PCMSO!$B34,'C-E'!$H$13:$H$1001,PCMSO!K$12) -> 0
A35: 2.3e-05 | G35: 0 | H35: 2.3e-05 | I35: =COUNTIFS('C-E'!$E$13:$E$1001,PCMSO!B35) -> 0 | J35: =COUNTIFS('C-E'!$E$13:$E$1001,PCMSO!$B35,'C-E'!$H$13:$H$1001,PCMSO!J$12) -> 0 | K35: =COUNTIFS('C-E'!$E$13:$E$1001,PCMSO!$B35,'C-E'!$H$13:$H$1001,PCMSO!K$12) -> 0
A36: 2.4e-05 | G36: 0 | H36: 2.4e-05 | I36: =COUNTIFS('C-E'!$E$13:$E$1001,PCMSO!B36) -> 0 | J36: =COUNTIFS('C-E'!$E$13:$E$1001,PCMSO!$B36,'C-E'!$H$13:$H$1001,PCMSO!J$12) -> 0 | K36: =COUNTIFS('C-E'!$E$13:$E$1001,PCMSO!$B36,'C-E'!$H$13:$H$1001,PCMSO!K$12) -> 0
A37: 2.5e-05 | G37: 0 | H37: 2.5e-05 | I37: =COUNTIFS('C-E'!$E$13:$E$1001,PCMSO!B37) -> 0 | J37: =COUNTIFS('C-E'!$E$13:$E$1001,PCMSO!$B37,'C-E'!$H$13:$H$1001,PCMSO!J$12) -> 0 | K37: =COUNTIFS('C-E'!$E$13:$E$1001,PCMSO!$B37,'C-E'!$H$13:$H$1001,PCMSO!K$12) -> 0
A38: 2.6e-05 | G38: 0 | H38: 2.6e-05 | I38: =COUNTIFS('C-E'!$E$13:$E$1001,PCMSO!B38) -> 0 | J38: =COUNTIFS('C-E'!$E$13:$E$1001,PCMSO!$B38,'C-E'!$H$13:$H$1001,PCMSO!J$12) -> 0 | K38: =COUNTIFS('C-E'!$E$13:$E$1001,PCMSO!$B38,'C-E'!$H$13:$H$1001,PCMSO!K$12) -> 0
A39: 2.7e-05 | G39: 0 | H39: 2.7e-05 | I39: =COUNTIFS('C-E'!$E$13:$E$1001,PCMSO!B39) -> 0 | J39: =COUNTIFS('C-E'!$E$13:$E$1001,PCMSO!$B39,'C-E'!$H$13:$H$1001,PCMSO!J$12) -> 0 | K39: =COUNTIFS('C-E'!$E$13:$E$1001,PCMSO!$B39,'C-E'!$H$13:$H$1001,PCMSO!K$12) -> 0
A40: 2.8e-05 | G40: 0 | H40: 2.8e-05 | I40: =COUNTIFS('C-E'!$E$13:$E$1001,PCMSO!B40) -> 0 | J40: =COUNTIFS('C-E'!$E$13:$E$1001,PCMSO!$B40,'C-E'!$H$13:$H$1001,PCMSO!J$12) -> 0 | K40: =COUNTIFS('C-E'!$E$13:$E$1001,PCMSO!$B40,'C-E'!$H$13:$H$1001,PCMSO!K$12) -> 0
A41: 2.9e-05 | G41: 0 | H41: 2.9e-05 | I41: =COUNTIFS('C-E'!$E$13:$E$1001,PCMSO!B41) -> 0 | J41: =COUNTIFS('C-E'!$E$13:$E$1001,PCMSO!$B41,'C-E'!$H$13:$H$1001,PCMSO!J$12) -> 0 | K41: =COUNTIFS('C-E'!$E$13:$E$1001,PCMSO!$B41,'C-E'!$H$13:$H$1001,PCMSO!K$12) -> 0
A42: 3e-05 | G42: 0 | H42: 3e-05 | I42: =COUNTIFS('C-E'!$E$13:$E$1001,PCMSO!B42) -> 0 | J42: =COUNTIFS('C-E'!$E$13:$E$1001,PCMSO!$B42,'C-E'!$H$13:$H$1001,PCMSO!J$12) -> 0 | K42: =COUNTIFS('C-E'!$E$13:$E$1001,PCMSO!$B42,'C-E'!$H$13:$H$1001,PCMSO!K$12) -> 0
A43: 3.1e-05 | G43: 0 | H43: 3.1e-05 | I43: =COUNTIFS('C-E'!$E$13:$E$1001,PCMSO!B43) -> 0 | J43: =COUNTIFS('C-E'!$E$13:$E$1001,PCMSO!$B43,'C-E'!$H$13:$H$1001,PCMSO!J$12) -> 0 | K43: =COUNTIFS('C-E'!$E$13:$E$1001,PCMSO!$B43,'C-E'!$H$13:$H$1001,PCMSO!K$12) -> 0
A44: 3.2e-05 | G44: 0 | H44: 3.2e-05 | I44: =COUNTIFS('C-E'!$E$13:$E$1001,PCMSO!B44) -> 0 | J44: =COUNTIFS('C-E'!$E$13:$E$1001,PCMSO!$B44,'C-E'!$H$13:$H$1001,PCMSO!J$12) -> 0 | K44: =COUNTIFS('C-E'!$E$13:$E$1001,PCMSO!$B44,'C-E'!$H$13:$H$1001,PCMSO!K$12) -> 0
A45: 3.3e-05 | G45: 0 | H45: 3.3e-05 | I45: =COUNTIFS('C-E'!$E$13:$E$1001,PCMSO!B45) -> 0 | J45: =COUNTIFS('C-E'!$E$13:$E$1001,PCMSO!$B45,'C-E'!$H$13:$H$1001,PCMSO!J$12) -> 0 | K45: =COUNTIFS('C-E'!$E$13:$E$1001,PCMSO!$B45,'C-E'!$H$13:$H$1001,PCMSO!K$12) -> 0
A46: 3.4e-05 | G46: 0 | H46: 3.4e-05 | I46: =COUNTIFS('C-E'!$E$13:$E$1001,PCMSO!B46) -> 0 | J46: =COUNTIFS('C-E'!$E$13:$E$1001,PCMSO!$B46,'C-E'!$H$13:$H$1001,PCMSO!J$12) -> 0 | K46: =COUNTIFS('C-E'!$E$13:$E$1001,PCMSO!$B46,'C-E'!$H$13:$H$1001,PCMSO!K$12) -> 0
A47: 3.5e-05 | G47: 0 | H47: 3.5e-05 | I47: =COUNTIFS('C-E'!$E$13:$E$1001,PCMSO!B47) -> 0 | J47: =COUNTIFS('C-E'!$E$13:$E$1001,PCMSO!$B47,'C-E'!$H$13:$H$1001,PCMSO!J$12) -> 0 | K47: =COUNTIFS('C-E'!$E$13:$E$1001,PCMSO!$B47,'C-E'!$H$13:$H$1001,PCMSO!K$12) -> 0
A48: 3.6e-05 | G48: 0 | H48: 3.6e-05 | I48: =COUNTIFS('C-E'!$E$13:$E$1001,PCMSO!B48) -> 0 | J48: =COUNTIFS('C-E'!$E$13:$E$1001,PCMSO!$B48,'C-E'!$H$13:$H$1001,PCMSO!J$12) -> 0 | K48: =COUNTIFS('C-E'!$E$13:$E$1001,PCMSO!$B48,'C-E'!$H$13:$H$1001,PCMSO!K$12) -> 0
A49: 3.7e-05 | G49: 0 | H49: 3.7e-05 | I49: =COUNTIFS('C-E'!$E$13:$E$1001,PCMSO!B49) -> 0 | J49: =COUNTIFS('C-E'!$E$13:$E$1001,PCMSO!$B49,'C-E'!$H$13:$H$1001,PCMSO!J$12) -> 0 | K49: =COUNTIFS('C-E'!$E$13:$E$1001,PCMSO!$B49,'C-E'!$H$13:$H$1001,PCMSO!K$12) -> 0
A50: 3.8e-05 | G50: 0 | H50: 3.8e-05 | I50: =COUNTIFS('C-E'!$E$13:$E$1001,PCMSO!B50) -> 0 | J50: =COUNTIFS('C-E'!$E$13:$E$1001,PCMSO!$B50,'C-E'!$H$13:$H$1001,PCMSO!J$12) -> 0 | K50: =COUNTIFS('C-E'!$E$13:$E$1001,PCMSO!$B50,'C-E'!$H$13:$H$1001,PCMSO!K$12) -> 0
A51: 3.9e-05 | G51: 0 | H51: 3.9e-05 | I51: =COUNTIFS('C-E'!$E$13:$E$1001,PCMSO!B51) -> 0 | J51: =COUNTIFS('C-E'!$E$13:$E$1001,PCMSO!$B51,'C-E'!$H$13:$H$1001,PCMSO!J$12) -> 0 | K51: =COUNTIFS('C-E'!$E$13:$E$1001,PCMSO!$B51,'C-E'!$H$13:$H$1001,PCMSO!K$12) -> 0
A52: 4e-05 | G52: 0 | H52: 4e-05 | I52: =COUNTIFS('C-E'!$E$13:$E$1001,PCMSO!B52) -> 0 | J52: =COUNTIFS('C-E'!$E$13:$E$1001,PCMSO!$B52,'C-E'!$H$13:$H$1001,PCMSO!J$12) -> 0 | K52: =COUNTIFS('C-E'!$E$13:$E$1001,PCMSO!$B52,'C-E'!$H$13:$H$1001,PCMSO!K$12) -> 0
A53: 4.1e-05 | G53: 0 | H53: 4.1e-05 | I53: =COUNTIFS('C-E'!$E$13:$E$1001,PCMSO!B53) -> 0 | J53: =COUNTIFS('C-E'!$E$13:$E$1001,PCMSO!$B53,'C-E'!$H$13:$H$1001,PCMSO!J$12) -> 0 | K53: =COUNTIFS('C-E'!$E$13:$E$1001,PCMSO!$B53,'C-E'!$H$13:$H$1001,PCMSO!K$12) -> 0
A54: 4.2e-05 | G54: 0 | H54: 4.2e-05 | I54: =COUNTIFS('C-E'!$E$13:$E$1001,PCMSO!B54) -> 0 | J54: =COUNTIFS('C-E'!$E$13:$E$1001,PCMSO!$B54,'C-E'!$H$13:$H$1001,PCMSO!J$12) -> 0 | K54: =COUNTIFS('C-E'!$E$13:$E$1001,PCMSO!$B54,'C-E'!$H$13:$H$1001,PCMSO!K$12) -> 0
A55: 4.3e-05 | G55: 0 | H55: 4.3e-05 | I55: =COUNTIFS('C-E'!$E$13:$E$1001,PCMSO!B55) -> 0 | J55: =COUNTIFS('C-E'!$E$13:$E$1001,PCMSO!$B55,'C-E'!$H$13:$H$1001,PCMSO!J$12) -> 0 | K55: =COUNTIFS('C-E'!$E$13:$E$1001,PCMSO!$B55,'C-E'!$H$13:$H$1001,PCMSO!K$12) -> 0
A56: 4.4e-05 | G56: 0 | H56: 4.4e-05 | I56: =COUNTIFS('C-E'!$E$13:$E$1001,PCMSO!B56) -> 0 | J56: =COUNTIFS('C-E'!$E$13:$E$1001,PCMSO!$B56,'C-E'!$H$13:$H$1001,PCMSO!J$12) -> 0 | K56: =COUNTIFS('C-E'!$E$13:$E$1001,PCMSO!$B56,'C-E'!$H$13:$H$1001,PCMSO!K$12) -> 0
A57: 4.5e-05 | G57: 0 | H57: 4.5e-05 | I57: =COUNTIFS('C-E'!$E$13:$E$1001,PCMSO!B57) -> 0 | J57: =COUNTIFS('C-E'!$E$13:$E$1001,PCMSO!$B57,'C-E'!$H$13:$H$1001,PCMSO!J$12) -> 0 | K57: =COUNTIFS('C-E'!$E$13:$E$1001,PCMSO!$B57,'C-E'!$H$13:$H$1001,PCMSO!K$12) -> 0
A58: 4.6e-05 | G58: 0 | H58: 4.6e-05 | I58: =COUNTIFS('C-E'!$E$13:$E$1001,PCMSO!B58) -> 0 | J58: =COUNTIFS('C-E'!$E$13:$E$1001,PCMSO!$B58,'C-E'!$H$13:$H$1001,PCMSO!J$12) -> 0 | K58: =COUNTIFS('C-E'!$E$13:$E$1001,PCMSO!$B58,'C-E'!$H$13:$H$1001,PCMSO!K$12) -> 0
A59: 4.7e-05 | G59: 0 | H59: 4.7e-05 | I59: =COUNTIFS('C-E'!$E$13:$E$1001,PCMSO!B59) -> 0 | J59: =COUNTIFS('C-E'!$E$13:$E$1001,PCMSO!$B59,'C-E'!$H$13:$H$1001,PCMSO!J$12) -> 0 | K59: =COUNTIFS('C-E'!$E$13:$E$1001,PCMSO!$B59,'C-E'!$H$13:$H$1001,PCMSO!K$12) -> 0
A60: 4.8e-05 | G60: 0 | H60: 4.8e-05 | I60: =COUNTIFS('C-E'!$E$13:$E$1001,PCMSO!B60) -> 0 | J60: =COUNTIFS('C-E'!$E$13:$E$1001,PCMSO!$B60,'C-E'!$H$13:$H$1001,PCMSO!J$12) -> 0 | K60: =COUNTIFS('C-E'!$E$13:$E$1001,PCMSO!$B60,'C-E'!$H$13:$H$1001,PCMSO!K$12) -> 0
A61: 4.9e-05 | G61: 0 | H61: 4.9e-05 | I61: =COUNTIFS('C-E'!$E$13:$E$1001,PCMSO!B61) -> 0 | J61: =COUNTIFS('C-E'!$E$13:$E$1001,PCMSO!$B61,'C-E'!$H$13:$H$1001,PCMSO!J$12) -> 0 | K61: =COUNTIFS('C-E'!$E$13:$E$1001,PCMSO!$B61,'C-E'!$H$13:$H$1001,PCMSO!K$12) -> 0
A62: 5e-05 | G62: 0 | H62: 5e-05 | I62: =COUNTIFS('C-E'!$E$13:$E$1001,PCMSO!B62) -> 0 | J62: =COUNTIFS('C-E'!$E$13:$E$1001,PCMSO!$B62,'C-E'!$H$13:$H$1001,PCMSO!J$12) -> 0 | K62: =COUNTIFS('C-E'!$E$13:$E$1001,PCMSO!$B62,'C-E'!$H$13:$H$1001,PCMSO!K$12) -> 0
A63: 5.1e-05 | G63: 0 | H63: 5.1e-05 | I63: =COUNTIFS('C-E'!$E$13:$E$1001,PCMSO!B63) -> 0 | J63: =COUNTIFS('C-E'!$E$13:$E$1001,PCMSO!$B63,'C-E'!$H$13:$H$1001,PCMSO!J$12) -> 0 | K63: =COUNTIFS('C-E'!$E$13:$E$1001,PCMSO!$B63,'C-E'!$H$13:$H$1001,PCMSO!K$12) -> 0
A64: 5.2e-05 | G64: 0 | H64: 5.2e-05 | I64: =COUNTIFS('C-E'!$E$13:$E$1001,PCMSO!B64) -> 0 | J64: =COUNTIFS('C-E'!$E$13:$E$1001,PCMSO!$B64,'C-E'!$H$13:$H$1001,PCMSO!J$12) -> 0 | K64: =COUNTIFS('C-E'!$E$13:$E$1001,PCMSO!$B64,'C-E'!$H$13:$H$1001,PCMSO!K$12) -> 0
A65: 5.3e-05 | G65: 0 | H65: 5.3e-05 | I65: =COUNTIFS('C-E'!$E$13:$E$1001,PCMSO!B65) -> 0 | J65: =COUNTIFS('C-E'!$E$13:$E$1001,PCMSO!$B65,'C-E'!$H$13:$H$1001,PCMSO!J$12) -> 0 | K65: =COUNTIFS('C-E'!$E$13:$E$1001,PCMSO!$B65,'C-E'!$H$13:$H$1001,PCMSO!K$12) -> 0
A66: 5.4e-05 | G66: 0 | H66: 5.4e-05 | I66: =COUNTIFS('C-E'!$E$13:$E$1001,PCMSO!B66) -> 0 | J66: =COUNTIFS('C-E'!$E$13:$E$1001,PCMSO!$B66,'C-E'!$H$13:$H$1001,PCMSO!J$12) -> 0 | K66: =COUNTIFS('C-E'!$E$13:$E$1001,PCMSO!$B66,'C-E'!$H$13:$H$1001,PCMSO!K$12) -> 0
A67: 5.5e-05 | G67: 0 | H67: 5.5e-05 | I67: =COUNTIFS('C-E'!$E$13:$E$1001,PCMSO!B67) -> 0 | J67: =COUNTIFS('C-E'!$E$13:$E$1001,PCMSO!$B67,'C-E'!$H$13:$H$1001,PCMSO!J$12) -> 0 | K67: =COUNTIFS('C-E'!$E$13:$E$1001,PCMSO!$B67,'C-E'!$H$13:$H$1001,PCMSO!K$12) -> 0
A68: 5.6e-05 | G68: 0 | H68: 5.6e-05 | I68: =COUNTIFS('C-E'!$E$13:$E$1001,PCMSO!B68) -> 0 | J68: =COUNTIFS('C-E'!$E$13:$E$1001,PCMSO!$B68,'C-E'!$H$13:$H$1001,PCMSO!J$12) -> 0 | K68: =COUNTIFS('C-E'!$E$13:$E$1001,PCMSO!$B68,'C-E'!$H$13:$H$1001,PCMSO!K$12) -> 0
A69: 5.7e-05 | G69: 0 | H69: 5.7e-05 | I69: =COUNTIFS('C-E'!$E$13:$E$1001,PCMSO!B69) -> 0 | J69: =COUNTIFS('C-E'!$E$13:$E$1001,PCMSO!$B69,'C-E'!$H$13:$H$1001,PCMSO!J$12) -> 0 | K69: =COUNTIFS('C-E'!$E$13:$E$1001,PCMSO!$B69,'C-E'!$H$13:$H$1001,PCMSO!K$12) -> 0
A70: 5.8e-05 | G70: 0 | H70: 5.8e-05 | I70: =COUNTIFS('C-E'!$E$13:$E$1001,PCMSO!B70) -> 0 | J70: =COUNTIFS('C-E'!$E$13:$E$1001,PCMSO!$B70,'C-E'!$H$13:$H$1001,PCMSO!J$12) -> 0 | K70: =COUNTIFS('C-E'!$E$13:$E$1001,PCMSO!$B70,'C-E'!$H$13:$H$1001,PCMSO!K$12) -> 0
A71: 5.9e-05 | G71: 0 | H71: 5.9e-05 | I71: =COUNTIFS('C-E'!$E$13:$E$1001,PCMSO!B71) -> 0 | J71: =COUNTIFS('C-E'!$E$13:$E$1001,PCMSO!$B71,'C-E'!$H$13:$H$1001,PCMSO!J$12) -> 0 | K71: =COUNTIFS('C-E'!$E$13:$E$1001,PCMSO!$B71,'C-E'!$H$13:$H$1001,PCMSO!K$12) -> 0
A72: 6e-05 | G72: 0 | H72: 6e-05 | I72: =COUNTIFS('C-E'!$E$13:$E$1001,PCMSO!B72) -> 0 | J72: =COUNTIFS('C-E'!$E$13:$E$1001,PCMSO!$B72,'C-E'!$H$13:$H$1001,PCMSO!J$12) -> 0 | K72: =COUNTIFS('C-E'!$E$13:$E$1001,PCMSO!$B72,'C-E'!$H$13:$H$1001,PCMSO!K$12) -> 0
A73: 6.1e-05 | G73: 0 | H73: 6.1e-05 | I73: =COUNTIFS('C-E'!$E$13:$E$1001,PCMSO!B73) -> 0 | J73: =COUNTIFS('C-E'!$E$13:$E$1001,PCMSO!$B73,'C-E'!$H$13:$H$1001,PCMSO!J$12) -> 0 | K73: =COUNTIFS('C-E'!$E$13:$E$1001,PCMSO!$B73,'C-E'!$H$13:$H$1001,PCMSO!K$12) -> 0
A74: 6.2e-05 | G74: 0 | H74: 6.2e-05 | I74: =COUNTIFS('C-E'!$E$13:$E$1001,PCMSO!B74) -> 0 | J74: =COUNTIFS('C-E'!$E$13:$E$1001,PCMSO!$B74,'C-E'!$H$13:$H$1001,PCMSO!J$12) -> 0 | K74: =COUNTIFS('C-E'!$E$13:$E$1001,PCMSO!$B74,'C-E'!$H$13:$H$1001,PCMSO!K$12) -> 0
A75: 6.3e-05 | G75: 0 | H75: 6.3e-05 | I75: =COUNTIFS('C-E'!$E$13:$E$1001,PCMSO!B75) -> 0 | J75: =COUNTIFS('C-E'!$E$13:$E$1001,PCMSO!$B75,'C-E'!$H$13:$H$1001,PCMSO!J$12) -> 0 | K75: =COUNTIFS('C-E'!$E$13:$E$1001,PCMSO!$B75,'C-E'!$H$13:$H$1001,PCMSO!K$12) -> 0
A76: 6.4e-05 | G76: 0 | H76: 6.4e-05 | I76: =COUNTIFS('C-E'!$E$13:$E$1001,PCMSO!B76) -> 0 | J76: =COUNTIFS('C-E'!$E$13:$E$1001,PCMSO!$B76,'C-E'!$H$13:$H$1001,PCMSO!J$12) -> 0 | K76: =COUNTIFS('C-E'!$E$13:$E$1001,PCMSO!$B76,'C-E'!$H$13:$H$1001,PCMSO!K$12) -> 0
A77: =SUM(H77:I77) -> 6.5e-05 | G77: 0 | H77: 6.5e-05 | I77: =COUNTIFS('C-E'!$E$13:$E$1001,PCMSO!B77) -> 0 | J77: =COUNTIFS('C-E'!$E$13:$E$1001,PCMSO!$B77,'C-E'!$H$13:$H$1001,PCMSO!J$12) -> 0 | K77: =COUNTIFS('C-E'!$E$13:$E$1001,PCMSO!$B77,'C-E'!$H$13:$H$1001,PCMSO!K$12) -> 0
A78: 6.6e-05 | G78: =B78 -> 0 | H78: 6.6e-05 | I78: =COUNTIFS('C-E'!$E$13:$E$1001,PCMSO!B78) -> 0 | J78: =COUNTIFS('C-E'!$E$13:$E$1001,PCMSO!$B78,'C-E'!$H$13:$H$1001,PCMSO!J$12) -> 0 | K78: =COUNTIFS('C-E'!$E$13:$E$1001,PCMSO!$B78,'C-E'!$H$13:$H$1001,PCMSO!K$12) -> 0
A79: 6.7e-05 | G79: 0 | H79: =H78+$H$13 -> 6.7e-05 | I79: =COUNTIFS('C-E'!$E$13:$E$1001,PCMSO!B79) -> 0 | J79: =COUNTIFS('C-E'!$E$13:$E$1001,PCMSO!$B79,'C-E'!$H$13:$H$1001,PCMSO!J$12) -> 0 | K79: =COUNTIFS('C-E'!$E$13:$E$1001,PCMSO!$B79,'C-E'!$H$13:$H$1001,PCMSO!K$12) -> 0
A80: 6.8e-05 | G80: 0 | H80: 6.8e-05 | I80: =COUNTIFS('C-E'!$E$13:$E$1001,PCMSO!B80) -> 0 | J80: =COUNTIFS('C-E'!$E$13:$E$1001,PCMSO!$B80,'C-E'!$H$13:$H$1001,PCMSO!J$12) -> 0 | K80: =COUNTIFS('C-E'!$E$13:$E$1001,PCMSO!$B80,'C-E'!$H$13:$H$1001,PCMSO!K$12) -> 0
A81: 6.9e-05 | G81: 0 | H81: 6.9e-05 | I81: =COUNTIFS('C-E'!$E$13:$E$1001,PCMSO!B81) -> 0 | J81: =COUNTIFS('C-E'!$E$13:$E$1001,PCMSO!$B81,'C-E'!$H$13:$H$1001,PCMSO!J$12) -> 0 | K81: =COUNTIFS('C-E'!$E$13:$E$1001,PCMSO!$B81,'C-E'!$H$13:$H$1001,PCMSO!K$12) -> 0
A82: 7e-05 | G82: 0 | H82: 7e-05 | I82: =COUNTIFS('C-E'!$E$13:$E$1001,PCMSO!B82) -> 0 | J82: =COUNTIFS('C-E'!$E$13:$E$1001,PCMSO!$B82,'C-E'!$H$13:$H$1001,PCMSO!J$12) -> 0 | K82: =COUNTIFS('C-E'!$E$13:$E$1001,PCMSO!$B82,'C-E'!$H$13:$H$1001,PCMSO!K$12) -> 0
A83: 7.1e-05 | G83: 0 | H83: 7.1e-05 | I83: =COUNTIFS('C-E'!$E$13:$E$1001,PCMSO!B83) -> 0 | J83: =COUNTIFS('C-E'!$E$13:$E$1001,PCMSO!$B83,'C-E'!$H$13:$H$1001,PCMSO!J$12) -> 0 | K83: =COUNTIFS('C-E'!$E$13:$E$1001,PCMSO!$B83,'C-E'!$H$13:$H$1001,PCMSO!K$12) -> 0
A84: 7.2e-05 | G84: 0 | H84: 7.2e-05 | I84: =COUNTIFS('C-E'!$E$13:$E$1001,PCMSO!B84) -> 0 | J84: =COUNTIFS('C-E'!$E$13:$E$1001,PCMSO!$B84,'C-E'!$H$13:$H$1001,PCMSO!J$12) -> 0 | K84: =COUNTIFS('C-E'!$E$13:$E$1001,PCMSO!$B84,'C-E'!$H$13:$H$1001,PCMSO!K$12) -> 0
A85: 7.3e-05 | G85: 0 | H85: 7.3e-05 | I85: =COUNTIFS('C-E'!$E$13:$E$1001,PCMSO!B85) -> 0 | J85: =COUNTIFS('C-E'!$E$13:$E$1001,PCMSO!$B85,'C-E'!$H$13:$H$1001,PCMSO!J$12) -> 0 | K85: =COUNTIFS('C-E'!$E$13:$E$1001,PCMSO!$B85,'C-E'!$H$13:$H$1001,PCMSO!K$12) -> 0
A86: 7.4e-05 | G86: 0 | H86: 7.4e-05 | I86: =COUNTIFS('C-E'!$E$13:$E$1001,PCMSO!B86) -> 0 | J86: =COUNTIFS('C-E'!$E$13:$E$1001,PCMSO!$B86,'C-E'!$H$13:$H$1001,PCMSO!J$12) -> 0 | K86: =COUNTIFS('C-E'!$E$13:$E$1001,PCMSO!$B86,'C-E'!$H$13:$H$1001,PCMSO!K$12) -> 0
A87: 7.5e-05 | G87: 0 | H87: 7.5e-05 | I87: =COUNTIFS('C-E'!$E$13:$E$1001,PCMSO!B87) -> 0 | J87: =COUNTIFS('C-E'!$E$13:$E$1001,PCMSO!$B87,'C-E'!$H$13:$H$1001,PCMSO!J$12) -> 0 | K87: =COUNTIFS('C-E'!$E$13:$E$1001,PCMSO!$B87,'C-E'!$H$13:$H$1001,PCMSO!K$12) -> 0
A88: 7.6e-05 | G88: 0 | H88: 7.6e-05 | I88: =COUNTIFS('C-E'!$E$13:$E$1001,PCMSO!B88) -> 0 | J88: =COUNTIFS('C-E'!$E$13:$E$1001,PCMSO!$B88,'C-E'!$H$13:$H$1001,PCMSO!J$12) -> 0 | K88: =COUNTIFS('C-E'!$E$13:$E$1001,PCMSO!$B88,'C-E'!$H$13:$H$1001,PCMSO!K$12) -> 0
A89: 7.7e-05 | G89: 0 | H89: 7.7e-05 | I89: =COUNTIFS('C-E'!$E$13:$E$1001,PCMSO!B89) -> 0 | J89: =COUNTIFS('C-E'!$E$13:$E$1001,PCMSO!$B89,'C-E'!$H$13:$H$1001,PCMSO!J$12) -> 0 | K89: =COUNTIFS('C-E'!$E$13:$E$1001,PCMSO!$B89,'C-E'!$H$13:$H$1001,PCMSO!K$12) -> 0
A90: 7.8e-05 | G90: 0 | H90: 7.8e-05 | I90: =COUNTIFS('C-E'!$E$13:$E$1001,PCMSO!B90) -> 0 | J90: =COUNTIFS('C-E'!$E$13:$E$1001,PCMSO!$B90,'C-E'!$H$13:$H$1001,PCMSO!J$12) -> 0 | K90: =COUNTIFS('C-E'!$E$13:$E$1001,PCMSO!$B90,'C-E'!$H$13:$H$1001,PCMSO!K$12) -> 0
A91: 7.9e-05 | G91: 0 | H91: 7.9e-05 | I91: =COUNTIFS('C-E'!$E$13:$E$1001,PCMSO!B91) -> 0 | J91: =COUNTIFS('C-E'!$E$13:$E$1001,PCMSO!$B91,'C-E'!$H$13:$H$1001,PCMSO!J$12) -> 0 | K91: =COUNTIFS('C-E'!$E$13:$E$1001,PCMSO!$B91,'C-E'!$H$13:$H$1001,PCMSO!K$12) -> 0
A92: 8e-05 | G92: 0 | H92: 8e-05 | I92: =COUNTIFS('C-E'!$E$13:$E$1001,PCMSO!B92) -> 0 | J92: =COUNTIFS('C-E'!$E$13:$E$1001,PCMSO!$B92,'C-E'!$H$13:$H$1001,PCMSO!J$12) -> 0 | K92: =COUNTIFS('C-E'!$E$13:$E$1001,PCMSO!$B92,'C-E'!$H$13:$H$1001,PCMSO!K$12) -> 0
A93: 8.1e-05 | G93: 0 | H93: 8.1e-05 | I93: =COUNTIFS('C-E'!$E$13:$E$1001,PCMSO!B93) -> 0 | J93: =COUNTIFS('C-E'!$E$13:$E$1001,PCMSO!$B93,'C-E'!$H$13:$H$1001,PCMSO!J$12) -> 0 | K93: =COUNTIFS('C-E'!$E$13:$E$1001,PCMSO!$B93,'C-E'!$H$13:$H$1001,PCMSO!K$12) -> 0
A94: 8.2e-05 | G94: 0 | H94: 8.2e-05 | I94: =COUNTIFS('C-E'!$E$13:$E$1001,PCMSO!B94) -> 0 | J94: =COUNTIFS('C-E'!$E$13:$E$1001,PCMSO!$B94,'C-E'!$H$13:$H$1001,PCMSO!J$12) -> 0 | K94: =COUNTIFS('C-E'!$E$13:$E$1001,PCMSO!$B94,'C-E'!$H$13:$H$1001,PCMSO!K$12) -> 0
A95: 8.3e-05 | G95: 0 | H95: 8.3e-05 | I95: =COUNTIFS('C-E'!$E$13:$E$1001,PCMSO!B95) -> 0 | J95: =COUNTIFS('C-E'!$E$13:$E$1001,PCMSO!$B95,'C-E'!$H$13:$H$1001,PCMSO!J$12) -> 0 | K95: =COUNTIFS('C-E'!$E$13:$E$1001,PCMSO!$B95,'C-E'!$H$13:$H$1001,PCMSO!K$12) -> 0
A96: 8.4e-05 | G96: 0 | H96: 8.4e-05 | I96: =COUNTIFS('C-E'!$E$13:$E$1001,PCMSO!B96) -> 0 | J96: =COUNTIFS('C-E'!$E$13:$E$1001,PCMSO!$B96,'C-E'!$H$13:$H$1001,PCMSO!J$12) -> 0 | K96: =COUNTIFS('C-E'!$E$13:$E$1001,PCMSO!$B96,'C-E'!$H$13:$H$1001,PCMSO!K$12) -> 0
A97: 8.5e-05 | G97: 0 | H97: 8.5e-05 | I97: =COUNTIFS('C-E'!$E$13:$E$1001,PCMSO!B97) -> 0 | J97: =COUNTIFS('C-E'!$E$13:$E$1001,PCMSO!$B97,'C-E'!$H$13:$H$1001,PCMSO!J$12) -> 0 | K97: =COUNTIFS('C-E'!$E$13:$E$1001,PCMSO!$B97,'C-E'!$H$13:$H$1001,PCMSO!K$12) -> 0
A98: 8.6e-05 | G98: 0 | H98: 8.6e-05 | I98: =COUNTIFS('C-E'!$E$13:$E$1001,PCMSO!B98) -> 0 | J98: =COUNTIFS('C-E'!$E$13:$E$1001,PCMSO!$B98,'C-E'!$H$13:$H$1001,PCMSO!J$12) -> 0 | K98: =COUNTIFS('C-E'!$E$13:$E$1001,PCMSO!$B98,'C-E'!$H$13:$H$1001,PCMSO!K$12) -> 0
A99: 8.7e-05 | G99: 0 | H99: 8.7e-05 | I99: =COUNTIFS('C-E'!$E$13:$E$1001,PCMSO!B99) -> 0 | J99: =COUNTIFS('C-E'!$E$13:$E$1001,PCMSO!$B99,'C-E'!$H$13:$H$1001,PCMSO!J$12) -> 0 | K99: =COUNTIFS('C-E'!$E$13:$E$1001,PCMSO!$B99,'C-E'!$H$13:$H$1001,PCMSO!K$12) -> 0
A100: 8.8e-05 | G100: 0 | H100: 8.8e-05 | I100: =COUNTIFS('C-E'!$E$13:$E$1001,PCMSO!B100) -> 0 | J100: =COUNTIFS('C-E'!$E$13:$E$1001,PCMSO!$B100,'C-E'!$H$13:$H$1001,PCMSO!J$12) -> 0 | K100: =COUNTIFS('C-E'!$E$13:$E$1001,PCMSO!$B100,'C-E'!$H$13:$H$1001,PCMSO!K$12) -> 0
A101: 8.9e-05 | G101: 0 | H101: 8.9e-05 | I101: =COUNTIFS('C-E'!$E$13:$E$1001,PCMSO!B101) -> 0 | J101: =COUNTIFS('C-E'!$E$13:$E$1001,PCMSO!$B101,'C-E'!$H$13:$H$1001,PCMSO!J$12) -> 0 | K101: =COUNTIFS('C-E'!$E$13:$E$1001,PCMSO!$B101,'C-E'!$H$13:$H$1001,PCMSO!K$12) -> 0
A102: 9e-05 | G102: 0 | H102: 9e-05 | I102: =COUNTIFS('C-E'!$E$13:$E$1001,PCMSO!B102) -> 0 | J102: =COUNTIFS('C-E'!$E$13:$E$1001,PCMSO!$B102,'C-E'!$H$13:$H$1001,PCMSO!J$12) -> 0 | K102: =COUNTIFS('C-E'!$E$13:$E$1001,PCMSO!$B102,'C-E'!$H$13:$H$1001,PCMSO!K$12) -> 0
A103: 9.1e-05 | G103: 0 | H103: 9.1e-05 | I103: =COUNTIFS('C-E'!$E$13:$E$1001,PCMSO!B103) -> 0 | J103: =COUNTIFS('C-E'!$E$13:$E$1001,PCMSO!$B103,'C-E'!$H$13:$H$1001,PCMSO!J$12) -> 0 | K103: =COUNTIFS('C-E'!$E$13:$E$1001,PCMSO!$B103,'C-E'!$H$13:$H$1001,PCMSO!K$12) -> 0
A104: 9.2e-05 | G104: 0 | H104: 9.2e-05 | I104: =COUNTIFS('C-E'!$E$13:$E$1001,PCMSO!B104) -> 0 | J104: =COUNTIFS('C-E'!$E$13:$E$1001,PCMSO!$B104,'C-E'!$H$13:$H$1001,PCMSO!J$12) -> 0 | K104: =COUNTIFS('C-E'!$E$13:$E$1001,PCMSO!$B104,'C-E'!$H$13:$H$1001,PCMSO!K$12) -> 0
A105: 9.3e-05 | G105: 0 | H105: 9.3e-05 | I105: =COUNTIFS('C-E'!$E$13:$E$1001,PCMSO!B105) -> 0 | J105: =COUNTIFS('C-E'!$E$13:$E$1001,PCMSO!$B105,'C-E'!$H$13:$H$1001,PCMSO!J$12) -> 0 | K105: =COUNTIFS('C-E'!$E$13:$E$1001,PCMSO!$B105,'C-E'!$H$13:$H$1001,PCMSO!K$12) -> 0
A106: 9.4e-05 | G106: 0 | H106: 9.4e-05 | I106: =COUNTIFS('C-E'!$E$13:$E$1001,PCMSO!B106) -> 0 | J106: =COUNTIFS('C-E'!$E$13:$E$1001,PCMSO!$B106,'C-E'!$H$13:$H$1001,PCMSO!J$12) -> 0 | K106: =COUNTIFS('C-E'!$E$13:$E$1001,PCMSO!$B106,'C-E'!$H$13:$H$1001,PCMSO!K$12) -> 0
A107: 9.5e-05 | G107: 0 | H107: 9.5e-05 | I107: =COUNTIFS('C-E'!$E$13:$E$1001,PCMSO!B107) -> 0 | J107: =COUNTIFS('C-E'!$E$13:$E$1001,PCMSO!$B107,'C-E'!$H$13:$H$1001,PCMSO!J$12) -> 0 | K107: =COUNTIFS('C-E'!$E$13:$E$1001,PCMSO!$B107,'C-E'!$H$13:$H$1001,PCMSO!K$12) -> 0
A108: 9.6e-05 | G108: 0 | H108: 9.6e-05 | I108: =COUNTIFS('C-E'!$E$13:$E$1001,PCMSO!B108) -> 0 | J108: =COUNTIFS('C-E'!$E$13:$E$1001,PCMSO!$B108,'C-E'!$H$13:$H$1001,PCMSO!J$12) -> 0 | K108: =COUNTIFS('C-E'!$E$13:$E$1001,PCMSO!$B108,'C-E'!$H$13:$H$1001,PCMSO!K$12) -> 0
A109: 9.7e-05 | G109: 0 | H109: 9.7e-05 | I109: =COUNTIFS('C-E'!$E$13:$E$1001,PCMSO!B109) -> 0 | J109: =COUNTIFS('C-E'!$E$13:$E$1001,PCMSO!$B109,'C-E'!$H$13:$H$1001,PCMSO!J$12) -> 0 | K109: =COUNTIFS('C-E'!$E$13:$E$1001,PCMSO!$B109,'C-E'!$H$13:$H$1001,PCMSO!K$12) -> 0
A110: 9.8e-05 | G110: 0 | H110: 9.8e-05 | I110: =COUNTIFS('C-E'!$E$13:$E$1001,PCMSO!B110) -> 0 | J110: =COUNTIFS('C-E'!$E$13:$E$1001,PCMSO!$B110,'C-E'!$H$13:$H$1001,PCMSO!J$12) -> 0 | K110: =COUNTIFS('C-E'!$E$13:$E$1001,PCMSO!$B110,'C-E'!$H$13:$H$1001,PCMSO!K$12) -> 0
A111: 9.9e-05 | G111: 0 | H111: 9.9e-05 | I111: =COUNTIFS('C-E'!$E$13:$E$1001,PCMSO!B111) -> 0 | J111: =COUNTIFS('C-E'!$E$13:$E$1001,PCMSO!$B111,'C-E'!$H$13:$H$1001,PCMSO!J$12) -> 0 | K111: =COUNTIFS('C-E'!$E$13:$E$1001,PCMSO!$B111,'C-E'!$H$13:$H$1001,PCMSO!K$12) -> 0
A112: 0.0001 | G112: 0 | H112: 0.0001 | I112: =COUNTIFS('C-E'!$E$13:$E$1001,PCMSO!B112) -> 0 | J112: =COUNTIFS('C-E'!$E$13:$E$1001,PCMSO!$B112,'C-E'!$H$13:$H$1001,PCMSO!J$12) -> 0 | K112: =COUNTIFS('C-E'!$E$13:$E$1001,PCMSO!$B112,'C-E'!$H$13:$H$1001,PCMSO!K$12) -> 0
A113: 0.000101 | G113: 0 | H113: 0.000101 | I113: =COUNTIFS('C-E'!$E$13:$E$1001,PCMSO!B113) -> 0 | J113: =COUNTIFS('C-E'!$E$13:$E$1001,PCMSO!$B113,'C-E'!$H$13:$H$1001,PCMSO!J$12) -> 0 | K113: =COUNTIFS('C-E'!$E$13:$E$1001,PCMSO!$B113,'C-E'!$H$13:$H$1001,PCMSO!K$12) -> 0
A114: 0.000102 | G114: 0 | H114: 0.000102 | I114: =COUNTIFS('C-E'!$E$13:$E$1001,PCMSO!B114) -> 0 | J114: =COUNTIFS('C-E'!$E$13:$E$1001,PCMSO!$B114,'C-E'!$H$13:$H$1001,PCMSO!J$12) -> 0 | K114: =COUNTIFS('C-E'!$E$13:$E$1001,PCMSO!$B114,'C-E'!$H$13:$H$1001,PCMSO!K$12) -> 0
A115: 0.000103 | G115: 0 | H115: 0.000103 | I115: =COUNTIFS('C-E'!$E$13:$E$1001,PCMSO!B115) -> 0 | J115: =COUNTIFS('C-E'!$E$13:$E$1001,PCMSO!$B115,'C-E'!$H$13:$H$1001,PCMSO!J$12) -> 0 | K115: =COUNTIFS('C-E'!$E$13:$E$1001,PCMSO!$B115,'C-E'!$H$13:$H$1001,PCMSO!K$12) -> 0
A116: 0.000104 | G116: 0 | H116: 0.000104 | I116: =COUNTIFS('C-E'!$E$13:$E$1001,PCMSO!B116) -> 0 | J116: =COUNTIFS('C-E'!$E$13:$E$1001,PCMSO!$B116,'C-E'!$H$13:$H$1001,PCMSO!J$12) -> 0 | K116: =COUNTIFS('C-E'!$E$13:$E$1001,PCMSO!$B116,'C-E'!$H$13:$H$1001,PCMSO!K$12) -> 0
A117: 0.000105 | G117: 0 | H117: 0.000105 | I117: =COUNTIFS('C-E'!$E$13:$E$1001,PCMSO!B117) -> 0 | J117: =COUNTIFS('C-E'!$E$13:$E$1001,PCMSO!$B117,'C-E'!$H$13:$H$1001,PCMSO!J$12) -> 0 | K117: =COUNTIFS('C-E'!$E$13:$E$1001,PCMSO!$B117,'C-E'!$H$13:$H$1001,PCMSO!K$12) -> 0
A118: 0.000106 | G118: 0 | H118: 0.000106 | I118: =COUNTIFS('C-E'!$E$13:$E$1001,PCMSO!B118) -> 0 | J118: =COUNTIFS('C-E'!$E$13:$E$1001,PCMSO!$B118,'C-E'!$H$13:$H$1001,PCMSO!J$12) -> 0 | K118: =COUNTIFS('C-E'!$E$13:$E$1001,PCMSO!$B118,'C-E'!$H$13:$H$1001,PCMSO!K$12) -> 0
A119: 0.000107 | G119: 0 | H119: 0.000107 | I119: =COUNTIFS('C-E'!$E$13:$E$1001,PCMSO!B119) -> 0 | J119: =COUNTIFS('C-E'!$E$13:$E$1001,PCMSO!$B119,'C-E'!$H$13:$H$1001,PCMSO!J$12) -> 0 | K119: =COUNTIFS('C-E'!$E$13:$E$1001,PCMSO!$B119,'C-E'!$H$13:$H$1001,PCMSO!K$12) -> 0
A120: 0.000108 | G120: 0 | H120: 0.000108 | I120: =COUNTIFS('C-E'!$E$13:$E$1001,PCMSO!B120) -> 0 | J120: =COUNTIFS('C-E'!$E$13:$E$1001,PCMSO!$B120,'C-E'!$H$13:$H$1001,PCMSO!J$12) -> 0 | K120: =COUNTIFS('C-E'!$E$13:$E$1001,PCMSO!$B120,'C-E'!$H$13:$H$1001,PCMSO!K$12) -> 0
A121: 0.000109 | G121: 0 | H121: 0.000109 | I121: =COUNTIFS('C-E'!$E$13:$E$1001,PCMSO!B121) -> 0 | J121: =COUNTIFS('C-E'!$E$13:$E$1001,PCMSO!$B121,'C-E'!$H$13:$H$1001,PCMSO!J$12) -> 0 | K121: =COUNTIFS('C-E'!$E$13:$E$1001,PCMSO!$B121,'C-E'!$H$13:$H$1001,PCMSO!K$12) -> 0
A122: 0.00011 | G122: 0 | H122: 0.00011 | I122: =COUNTIFS('C-E'!$E$13:$E$1001,PCMSO!B122) -> 0 | J122: =COUNTIFS('C-E'!$E$13:$E$1001,PCMSO!$B122,'C-E'!$H$13:$H$1001,PCMSO!J$12) -> 0 | K122: =COUNTIFS('C-E'!$E$13:$E$1001,PCMSO!$B122,'C-E'!$H$13:$H$1001,PCMSO!K$12) -> 0
A123: 0.000111 | G123: 0 | H123: 0.000111 | I123: =COUNTIFS('C-E'!$E$13:$E$1001,PCMSO!B123) -> 0 | J123: =COUNTIFS('C-E'!$E$13:$E$1001,PCMSO!$B123,'C-E'!$H$13:$H$1001,PCMSO!J$12) -> 0 | K123: =COUNTIFS('C-E'!$E$13:$E$1001,PCMSO!$B123,'C-E'!$H$13:$H$1001,PCMSO!K$12) -> 0
A124: 0.000112 | G124: 0 | H124: 0.000112 | I124: =COUNTIFS('C-E'!$E$13:$E$1001,PCMSO!B124) -> 0 | J124: =COUNTIFS('C-E'!$E$13:$E$1001,PCMSO!$B124,'C-E'!$H$13:$H$1001,PCMSO!J$12) -> 0 | K124: =COUNTIFS('C-E'!$E$13:$E$1001,PCMSO!$B124,'C-E'!$H$13:$H$1001,PCMSO!K$12) -> 0
A125: 0.000113 | G125: 0 | H125: 0.000113 | I125: =COUNTIFS('C-E'!$E$13:$E$1001,PCMSO!B125) -> 0 | J125: =COUNTIFS('C-E'!$E$13:$E$1001,PCMSO!$B125,'C-E'!$H$13:$H$1001,PCMSO!J$12) -> 0 | K125: =COUNTIFS('C-E'!$E$13:$E$1001,PCMSO!$B125,'C-E'!$H$13:$H$1001,PCMSO!K$12) -> 0
A126: 0.000114 | G126: 0 | H126: 0.000114 | I126: =COUNTIFS('C-E'!$E$13:$E$1001,PCMSO!B126) -> 0 | J126: =COUNTIFS('C-E'!$E$13:$E$1001,PCMSO!$B126,'C-E'!$H$13:$H$1001,PCMSO!J$12) -> 0 | K126: =COUNTIFS('C-E'!$E$13:$E$1001,PCMSO!$B126,'C-E'!$H$13:$H$1001,PCMSO!K$12) -> 0
A127: 0.000115 | G127: 0 | H127: 0.000115 | I127: =COUNTIFS('C-E'!$E$13:$E$1001,PCMSO!B127) -> 0 | J127: =COUNTIFS('C-E'!$E$13:$E$1001,PCMSO!$B127,'C-E'!$H$13:$H$1001,PCMSO!J$12) -> 0 | K127: =COUNTIFS('C-E'!$E$13:$E$1001,PCMSO!$B127,'C-E'!$H$13:$H$1001,PCMSO!K$12) -> 0
A128: 0.000116 | G128: 0 | H128: 0.000116 | I128: =COUNTIFS('C-E'!$E$13:$E$1001,PCMSO!B128) -> 0 | J128: =COUNTIFS('C-E'!$E$13:$E$1001,PCMSO!$B128,'C-E'!$H$13:$H$1001,PCMSO!J$12) -> 0 | K128: =COUNTIFS('C-E'!$E$13:$E$1001,PCMSO!$B128,'C-E'!$H$13:$H$1001,PCMSO!K$12) -> 0
A129: 0.000117 | G129: 0 | H129: 0.000117 | I129: =COUNTIFS('C-E'!$E$13:$E$1001,PCMSO!B129) -> 0 | J129: =COUNTIFS('C-E'!$E$13:$E$1001,PCMSO!$B129,'C-E'!$H$13:$H$1001,PCMSO!J$12) -> 0 | K129: =COUNTIFS('C-E'!$E$13:$E$1001,PCMSO!$B129,'C-E'!$H$13:$H$1001,PCMSO!K$12) -> 0
A130: 0.000118 | G130: 0 | H130: 0.000118 | I130: =COUNTIFS('C-E'!$E$13:$E$1001,PCMSO!B130) -> 0 | J130: =COUNTIFS('C-E'!$E$13:$E$1001,PCMSO!$B130,'C-E'!$H$13:$H$1001,PCMSO!J$12) -> 0 | K130: =COUNTIFS('C-E'!$E$13:$E$1001,PCMSO!$B130,'C-E'!$H$13:$H$1001,PCMSO!K$12) -> 0
A131: 0.000119 | G131: 0 | H131: 0.000119 | I131: =COUNTIFS('C-E'!$E$13:$E$1001,PCMSO!B131) -> 0 | J131: =COUNTIFS('C-E'!$E$13:$E$1001,PCMSO!$B131,'C-E'!$H$13:$H$1001,PCMSO!J$12) -> 0 | K131: =COUNTIFS('C-E'!$E$13:$E$1001,PCMSO!$B131,'C-E'!$H$13:$H$1001,PCMSO!K$12) -> 0
A132: 0.00012 | G132: 0 | H132: 0.00012 | I132: =COUNTIFS('C-E'!$E$13:$E$1001,PCMSO!B132) -> 0 | J132: =COUNTIFS('C-E'!$E$13:$E$1001,PCMSO!$B132,'C-E'!$H$13:$H$1001,PCMSO!J$12) -> 0 | K132: =COUNTIFS('C-E'!$E$13:$E$1001,PCMSO!$B132,'C-E'!$H$13:$H$1001,PCMSO!K$12) -> 0
A133: 0.000121 | G133: 0 | H133: 0.000121 | I133: =COUNTIFS('C-E'!$E$13:$E$1001,PCMSO!B133) -> 0 | J133: =COUNTIFS('C-E'!$E$13:$E$1001,PCMSO!$B133,'C-E'!$H$13:$H$1001,PCMSO!J$12) -> 0 | K133: =COUNTIFS('C-E'!$E$13:$E$1001,PCMSO!$B133,'C-E'!$H$13:$H$1001,PCMSO!K$12) -> 0
A134: 0.000122 | G134: 0 | H134: 0.000122 | I134: =COUNTIFS('C-E'!$E$13:$E$1001,PCMSO!B134) -> 0 | J134: =COUNTIFS('C-E'!$E$13:$E$1001,PCMSO!$B134,'C-E'!$H$13:$H$1001,PCMSO!J$12) -> 0 | K134: =COUNTIFS('C-E'!$E$13:$E$1001,PCMSO!$B134,'C-E'!$H$13:$H$1001,PCMSO!K$12) -> 0
A135: 0.000123 | G135: 0 | H135: 0.000123 | I135: =COUNTIFS('C-E'!$E$13:$E$1001,PCMSO!B135) -> 0 | J135: =COUNTIFS('C-E'!$E$13:$E$1001,PCMSO!$B135,'C-E'!$H$13:$H$1001,PCMSO!J$12) -> 0 | K135: =COUNTIFS('C-E'!$E$13:$E$1001,PCMSO!$B135,'C-E'!$H$13:$H$1001,PCMSO!K$12) -> 0
A136: 0.000124 | G136: 0 | H136: 0.000124 | I136: =COUNTIFS('C-E'!$E$13:$E$1001,PCMSO!B136) -> 0 | J136: =COUNTIFS('C-E'!$E$13:$E$1001,PCMSO!$B136,'C-E'!$H$13:$H$1001,PCMSO!J$12) -> 0 | K136: =COUNTIFS('C-E'!$E$13:$E$1001,PCMSO!$B136,'C-E'!$H$13:$H$1001,PCMSO!K$12) -> 0
A137: 0.000125 | G137: 0 | H137: 0.000125 | I137: =COUNTIFS('C-E'!$E$13:$E$1001,PCMSO!B137) -> 0 | J137: =COUNTIFS('C-E'!$E$13:$E$1001,PCMSO!$B137,'C-E'!$H$13:$H$1001,PCMSO!J$12) -> 0 | K137: =COUNTIFS('C-E'!$E$13:$E$1001,PCMSO!$B137,'C-E'!$H$13:$H$1001,PCMSO!K$12) -> 0
A138: 0.000126 | G138: 0 | H138: 0.000126 | I138: =COUNTIFS('C-E'!$E$13:$E$1001,PCMSO!B138) -> 0 | J138: =COUNTIFS('C-E'!$E$13:$E$1001,PCMSO!$B138,'C-E'!$H$13:$H$1001,PCMSO!J$12) -> 0 | K138: =COUNTIFS('C-E'!$E$13:$E$1001,PCMSO!$B138,'C-E'!$H$13:$H$1001,PCMSO!K$12) -> 0
A139: 0.000127 | G139: 0 | H139: 0.000127 | I139: =COUNTIFS('C-E'!$E$13:$E$1001,PCMSO!B139) -> 0 | J139: =COUNTIFS('C-E'!$E$13:$E$1001,PCMSO!$B139,'C-E'!$H$13:$H$1001,PCMSO!J$12) -> 0 | K139: =COUNTIFS('C-E'!$E$13:$E$1001,PCMSO!$B139,'C-E'!$H$13:$H$1001,PCMSO!K$12) -> 0
A140: 0.000128 | G140: 0 | H140: 0.000128 | I140: =COUNTIFS('C-E'!$E$13:$E$1001,PCMSO!B140) -> 0 | J140: =COUNTIFS('C-E'!$E$13:$E$1001,PCMSO!$B140,'C-E'!$H$13:$H$1001,PCMSO!J$12) -> 0 | K140: =COUNTIFS('C-E'!$E$13:$E$1001,PCMSO!$B140,'C-E'!$H$13:$H$1001,PCMSO!K$12) -> 0
A141: =SUM(H141:I141) -> 0.000129 | G141: 0 | H141: 0.000129 | I141: =COUNTIFS('C-E'!$E$13:$E$1001,PCMSO!B141) -> 0 | J141: =COUNTIFS('C-E'!$E$13:$E$1001,PCMSO!$B141,'C-E'!$H$13:$H$1001,PCMSO!J$12) -> 0 | K141: =COUNTIFS('C-E'!$E$13:$E$1001,PCMSO!$B141,'C-E'!$H$13:$H$1001,PCMSO!K$12) -> 0
A142: 0.00013 | G142: =B142 -> 0 | H142: 0.00013 | I142: =COUNTIFS('C-E'!$E$13:$E$1001,PCMSO!B142) -> 0 | J142: =COUNTIFS('C-E'!$E$13:$E$1001,PCMSO!$B142,'C-E'!$H$13:$H$1001,PCMSO!J$12) -> 0 | K142: =COUNTIFS('C-E'!$E$13:$E$1001,PCMSO!$B142,'C-E'!$H$13:$H$1001,PCMSO!K$12) -> 0
A143: 0.000131 | G143: 0 | H143: =H142+$H$13 -> 0.000131 | I143: =COUNTIFS('C-E'!$E$13:$E$1001,PCMSO!B143) -> 0 | J143: =COUNTIFS('C-E'!$E$13:$E$1001,PCMSO!$B143,'C-E'!$H$13:$H$1001,PCMSO!J$12) -> 0 | K143: =COUNTIFS('C-E'!$E$13:$E$1001,PCMSO!$B143,'C-E'!$H$13:$H$1001,PCMSO!K$12) -> 0
A144: 0.000132 | G144: 0 | H144: 0.000132 | I144: =COUNTIFS('C-E'!$E$13:$E$1001,PCMSO!B144) -> 0 | J144: =COUNTIFS('C-E'!$E$13:$E$1001,PCMSO!$B144,'C-E'!$H$13:$H$1001,PCMSO!J$12) -> 0 | K144: =COUNTIFS('C-E'!$E$13:$E$1001,PCMSO!$B144,'C-E'!$H$13:$H$1001,PCMSO!K$12) -> 0
A145: 0.000133 | G145: 0 | H145: 0.000133 | I145: =COUNTIFS('C-E'!$E$13:$E$1001,PCMSO!B145) -> 0 | J145: =COUNTIFS('C-E'!$E$13:$E$1001,PCMSO!$B145,'C-E'!$H$13:$H$1001,PCMSO!J$12) -> 0 | K145: =COUNTIFS('C-E'!$E$13:$E$1001,PCMSO!$B145,'C-E'!$H$13:$H$1001,PCMSO!K$12) -> 0
A146: 0.000134 | G146: 0 | H146: 0.000134 | I146: =COUNTIFS('C-E'!$E$13:$E$1001,PCMSO!B146) -> 0 | J146: =COUNTIFS('C-E'!$E$13:$E$1001,PCMSO!$B146,'C-E'!$H$13:$H$1001,PCMSO!J$12) -> 0 | K146: =COUNTIFS('C-E'!$E$13:$E$1001,PCMSO!$B146,'C-E'!$H$13:$H$1001,PCMSO!K$12) -> 0
A147: 0.000135 | G147: 0 | H147: 0.000135 | I147: =COUNTIFS('C-E'!$E$13:$E$1001,PCMSO!B147) -> 0 | J147: =COUNTIFS('C-E'!$E$13:$E$1001,PCMSO!$B147,'C-E'!$H$13:$H$1001,PCMSO!J$12) -> 0 | K147: =COUNTIFS('C-E'!$E$13:$E$1001,PCMSO!$B147,'C-E'!$H$13:$H$1001,PCMSO!K$12) -> 0
A148: 0.000136 | G148: 0 | H148: 0.000136 | I148: =COUNTIFS('C-E'!$E$13:$E$1001,PCMSO!B148) -> 0 | J148: =COUNTIFS('C-E'!$E$13:$E$1001,PCMSO!$B148,'C-E'!$H$13:$H$1001,PCMSO!J$12) -> 0 | K148: =COUNTIFS('C-E'!$E$13:$E$1001,PCMSO!$B148,'C-E'!$H$13:$H$1001,PCMSO!K$12) -> 0
A149: 0.000137 | G149: 0 | H149: 0.000137 | I149: =COUNTIFS('C-E'!$E$13:$E$1001,PCMSO!B149) -> 0 | J149: =COUNTIFS('C-E'!$E$13:$E$1001,PCMSO!$B149,'C-E'!$H$13:$H$1001,PCMSO!J$12) -> 0 | K149: =COUNTIFS('C-E'!$E$13:$E$1001,PCMSO!$B149,'C-E'!$H$13:$H$1001,PCMSO!K$12) -> 0
A150: 0.000138 | G150: 0 | H150: 0.000138 | I150: =COUNTIFS('C-E'!$E$13:$E$1001,PCMSO!B150) -> 0 | J150: =COUNTIFS('C-E'!$E$13:$E$1001,PCMSO!$B150,'C-E'!$H$13:$H$1001,PCMSO!J$12) -> 0 | K150: =COUNTIFS('C-E'!$E$13:$E$1001,PCMSO!$B150,'C-E'!$H$13:$H$1001,PCMSO!K$12) -> 0
A151: 0.000139 | G151: 0 | H151: 0.000139 | I151: =COUNTIFS('C-E'!$E$13:$E$1001,PCMSO!B151) -> 0 | J151: =COUNTIFS('C-E'!$E$13:$E$1001,PCMSO!$B151,'C-E'!$H$13:$H$1001,PCMSO!J$12) -> 0 | K151: =COUNTIFS('C-E'!$E$13:$E$1001,PCMSO!$B151,'C-E'!$H$13:$H$1001,PCMSO!K$12) -> 0
A152: 0.00014 | G152: 0 | H152: 0.00014 | I152: =COUNTIFS('C-E'!$E$13:$E$1001,PCMSO!B152) -> 0 | J152: =COUNTIFS('C-E'!$E$13:$E$1001,PCMSO!$B152,'C-E'!$H$13:$H$1001,PCMSO!J$12) -> 0 | K152: =COUNTIFS('C-E'!$E$13:$E$1001,PCMSO!$B152,'C-E'!$H$13:$H$1001,PCMSO!K$12) -> 0
A153: 0.000141 | G153: 0 | H153: 0.000141 | I153: =COUNTIFS('C-E'!$E$13:$E$1001,PCMSO!B153) -> 0 | J153: =COUNTIFS('C-E'!$E$13:$E$1001,PCMSO!$B153,'C-E'!$H$13:$H$1001,PCMSO!J$12) -> 0 | K153: =COUNTIFS('C-E'!$E$13:$E$1001,PCMSO!$B153,'C-E'!$H$13:$H$1001,PCMSO!K$12) -> 0
A154: 0.000142 | G154: 0 | H154: 0.000142 | I154: =COUNTIFS('C-E'!$E$13:$E$1001,PCMSO!B154) -> 0 | J154: =COUNTIFS('C-E'!$E$13:$E$1001,PCMSO!$B154,'C-E'!$H$13:$H$1001,PCMSO!J$12) -> 0 | K154: =COUNTIFS('C-E'!$E$13:$E$1001,PCMSO!$B154,'C-E'!$H$13:$H$1001,PCMSO!K$12) -> 0
A155: 0.000143 | G155: 0 | H155: 0.000143 | I155: =COUNTIFS('C-E'!$E$13:$E$1001,PCMSO!B155) -> 0 | J155: =COUNTIFS('C-E'!$E$13:$E$1001,PCMSO!$B155,'C-E'!$H$13:$H$1001,PCMSO!J$12) -> 0 | K155: =COUNTIFS('C-E'!$E$13:$E$1001,PCMSO!$B155,'C-E'!$H$13:$H$1001,PCMSO!K$12) -> 0
A156: 0.000144 | G156: 0 | H156: 0.000144 | I156: =COUNTIFS('C-E'!$E$13:$E$1001,PCMSO!B156) -> 0 | J156: =COUNTIFS('C-E'!$E$13:$E$1001,PCMSO!$B156,'C-E'!$H$13:$H$1001,PCMSO!J$12) -> 0 | K156: =COUNTIFS('C-E'!$E$13:$E$1001,PCMSO!$B156,'C-E'!$H$13:$H$1001,PCMSO!K$12) -> 0
A157: 0.000145 | G157: 0 | H157: 0.000145 | I157: =COUNTIFS('C-E'!$E$13:$E$1001,PCMSO!B157) -> 0 | J157: =COUNTIFS('C-E'!$E$13:$E$1001,PCMSO!$B157,'C-E'!$H$13:$H$1001,PCMSO!J$12) -> 0 | K157: =COUNTIFS('C-E'!$E$13:$E$1001,PCMSO!$B157,'C-E'!$H$13:$H$1001,PCMSO!K$12) -> 0
A158: 0.000146 | G158: 0 | H158: 0.000146 | I158: =COUNTIFS('C-E'!$E$13:$E$1001,PCMSO!B158) -> 0 | J158: =COUNTIFS('C-E'!$E$13:$E$1001,PCMSO!$B158,'C-E'!$H$13:$H$1001,PCMSO!J$12) -> 0 | K158: =COUNTIFS('C-E'!$E$13:$E$1001,PCMSO!$B158,'C-E'!$H$13:$H$1001,PCMSO!K$12) -> 0
A159: 0.000147 | G159: 0 | H159: 0.000147 | I159: =COUNTIFS('C-E'!$E$13:$E$1001,PCMSO!B159) -> 0 | J159: =COUNTIFS('C-E'!$E$13:$E$1001,PCMSO!$B159,'C-E'!$H$13:$H$1001,PCMSO!J$12) -> 0 | K159: =COUNTIFS('C-E'!$E$13:$E$1001,PCMSO!$B159,'C-E'!$H$13:$H$1001,PCMSO!K$12) -> 0
A160: 0.000148 | G160: 0 | H160: 0.000148 | I160: =COUNTIFS('C-E'!$E$13:$E$1001,PCMSO!B160) -> 0 | J160: =COUNTIFS('C-E'!$E$13:$E$1001,PCMSO!$B160,'C-E'!$H$13:$H$1001,PCMSO!J$12) -> 0 | K160: =COUNTIFS('C-E'!$E$13:$E$1001,PCMSO!$B160,'C-E'!$H$13:$H$1001,PCMSO!K$12) -> 0
A161: 0.000149 | G161: 0 | H161: 0.000149 | I161: =COUNTIFS('C-E'!$E$13:$E$1001,PCMSO!B161) -> 0 | J161: =COUNTIFS('C-E'!$E$13:$E$1001,PCMSO!$B161,'C-E'!$H$13:$H$1001,PCMSO!J$12) -> 0 | K161: =COUNTIFS('C-E'!$E$13:$E$1001,PCMSO!$B161,'C-E'!$H$13:$H$1001,PCMSO!K$12) -> 0
A162: 0.00015 | G162: 0 | H162: 0.00015 | I162: =COUNTIFS('C-E'!$E$13:$E$1001,PCMSO!B162) -> 0 | J162: =COUNTIFS('C-E'!$E$13:$E$1001,PCMSO!$B162,'C-E'!$H$13:$H$1001,PCMSO!J$12) -> 0 | K162: =COUNTIFS('C-E'!$E$13:$E$1001,PCMSO!$B162,'C-E'!$H$13:$H$1001,PCMSO!K$12) -> 0
A163: 0.000151 | G163: 0 | H163: 0.000151 | I163: =COUNTIFS('C-E'!$E$13:$E$1001,PCMSO!B163) -> 0 | J163: =COUNTIFS('C-E'!$E$13:$E$1001,PCMSO!$B163,'C-E'!$H$13:$H$1001,PCMSO!J$12) -> 0 | K163: =COUNTIFS('C-E'!$E$13:$E$1001,PCMSO!$B163,'C-E'!$H$13:$H$1001,PCMSO!K$12) -> 0
A164: 0.000152 | G164: 0 | H164: 0.000152 | I164: =COUNTIFS('C-E'!$E$13:$E$1001,PCMSO!B164) -> 0 | J164: =COUNTIFS('C-E'!$E$13:$E$1001,PCMSO!$B164,'C-E'!$H$13:$H$1001,PCMSO!J$12) -> 0 | K164: =COUNTIFS('C-E'!$E$13:$E$1001,PCMSO!$B164,'C-E'!$H$13:$H$1001,PCMSO!K$12) -> 0
A165: 0.000153 | G165: 0 | H165: 0.000153 | I165: =COUNTIFS('C-E'!$E$13:$E$1001,PCMSO!B165) -> 0 | J165: =COUNTIFS('C-E'!$E$13:$E$1001,PCMSO!$B165,'C-E'!$H$13:$H$1001,PCMSO!J$12) -> 0 | K165: =COUNTIFS('C-E'!$E$13:$E$1001,PCMSO!$B165,'C-E'!$H$13:$H$1001,PCMSO!K$12) -> 0
A166: 0.000154 | G166: 0 | H166: 0.000154 | I166: =COUNTIFS('C-E'!$E$13:$E$1001,PCMSO!B166) -> 0 | J166: =COUNTIFS('C-E'!$E$13:$E$1001,PCMSO!$B166,'C-E'!$H$13:$H$1001,PCMSO!J$12) -> 0 | K166: =COUNTIFS('C-E'!$E$13:$E$1001,PCMSO!$B166,'C-E'!$H$13:$H$1001,PCMSO!K$12) -> 0
A167: 0.000155 | G167: 0 | H167: 0.000155 | I167: =COUNTIFS('C-E'!$E$13:$E$1001,PCMSO!B167) -> 0 | J167: =COUNTIFS('C-E'!$E$13:$E$1001,PCMSO!$B167,'C-E'!$H$13:$H$1001,PCMSO!J$12) -> 0 | K167: =COUNTIFS('C-E'!$E$13:$E$1001,PCMSO!$B167,'C-E'!$H$13:$H$1001,PCMSO!K$12) -> 0
A168: 0.000156 | G168: 0 | H168: 0.000156 | I168: =COUNTIFS('C-E'!$E$13:$E$1001,PCMSO!B168) -> 0 | J168: =COUNTIFS('C-E'!$E$13:$E$1001,PCMSO!$B168,'C-E'!$H$13:$H$1001,PCMSO!J$12) -> 0 | K168: =COUNTIFS('C-E'!$E$13:$E$1001,PCMSO!$B168,'C-E'!$H$13:$H$1001,PCMSO!K$12) -> 0
A169: 0.000157 | G169: 0 | H169: 0.000157 | I169: =COUNTIFS('C-E'!$E$13:$E$1001,PCMSO!B169) -> 0 | J169: =COUNTIFS('C-E'!$E$13:$E$1001,PCMSO!$B169,'C-E'!$H$13:$H$1001,PCMSO!J$12) -> 0 | K169: =COUNTIFS('C-E'!$E$13:$E$1001,PCMSO!$B169,'C-E'!$H$13:$H$1001,PCMSO!K$12) -> 0
A170: 0.000158 | G170: 0 | H170: 0.000158 | I170: =COUNTIFS('C-E'!$E$13:$E$1001,PCMSO!B170) -> 0 | J170: =COUNTIFS('C-E'!$E$13:$E$1001,PCMSO!$B170,'C-E'!$H$13:$H$1001,PCMSO!J$12) -> 0 | K170: =COUNTIFS('C-E'!$E$13:$E$1001,PCMSO!$B170,'C-E'!$H$13:$H$1001,PCMSO!K$12) -> 0
A171: 0.000159 | G171: 0 | H171: 0.000159 | I171: =COUNTIFS('C-E'!$E$13:$E$1001,PCMSO!B171) -> 0 | J171: =COUNTIFS('C-E'!$E$13:$E$1001,PCMSO!$B171,'C-E'!$H$13:$H$1001,PCMSO!J$12) -> 0 | K171: =COUNTIFS('C-E'!$E$13:$E$1001,PCMSO!$B171,'C-E'!$H$13:$H$1001,PCMSO!K$12) -> 0
A172: 0.00016 | G172: 0 | H172: 0.00016 | I172: =COUNTIFS('C-E'!$E$13:$E$1001,PCMSO!B172) -> 0 | J172: =COUNTIFS('C-E'!$E$13:$E$1001,PCMSO!$B172,'C-E'!$H$13:$H$1001,PCMSO!J$12) -> 0 | K172: =COUNTIFS('C-E'!$E$13:$E$1001,PCMSO!$B172,'C-E'!$H$13:$H$1001,PCMSO!K$12) -> 0
A173: 0.000161 | G173: 0 | H173: 0.000161 | I173: =COUNTIFS('C-E'!$E$13:$E$1001,PCMSO!B173) -> 0 | J173: =COUNTIFS('C-E'!$E$13:$E$1001,PCMSO!$B173,'C-E'!$H$13:$H$1001,PCMSO!J$12) -> 0 | K173: =COUNTIFS('C-E'!$E$13:$E$1001,PCMSO!$B173,'C-E'!$H$13:$H$1001,PCMSO!K$12) -> 0
A174: 0.000162 | G174: 0 | H174: 0.000162 | I174: =COUNTIFS('C-E'!$E$13:$E$1001,PCMSO!B174) -> 0 | J174: =COUNTIFS('C-E'!$E$13:$E$1001,PCMSO!$B174,'C-E'!$H$13:$H$1001,PCMSO!J$12) -> 0 | K174: =COUNTIFS('C-E'!$E$13:$E$1001,PCMSO!$B174,'C-E'!$H$13:$H$1001,PCMSO!K$12) -> 0
A175: 0.000163 | G175: 0 | H175: 0.000163 | I175: =COUNTIFS('C-E'!$E$13:$E$1001,PCMSO!B175) -> 0 | J175: =COUNTIFS('C-E'!$E$13:$E$1001,PCMSO!$B175,'C-E'!$H$13:$H$1001,PCMSO!J$12) -> 0 | K175: =COUNTIFS('C-E'!$E$13:$E$1001,PCMSO!$B175,'C-E'!$H$13:$H$1001,PCMSO!K$12) -> 0
A176: 0.000164 | G176: 0 | H176: 0.000164 | I176: =COUNTIFS('C-E'!$E$13:$E$1001,PCMSO!B176) -> 0 | J176: =COUNTIFS('C-E'!$E$13:$E$1001,PCMSO!$B176,'C-E'!$H$13:$H$1001,PCMSO!J$12) -> 0 | K176: =COUNTIFS('C-E'!$E$13:$E$1001,PCMSO!$B176,'C-E'!$H$13:$H$1001,PCMSO!K$12) -> 0
A177: 0.000165 | G177: 0 | H177: 0.000165 | I177: =COUNTIFS('C-E'!$E$13:$E$1001,PCMSO!B177) -> 0 | J177: =COUNTIFS('C-E'!$E$13:$E$1001,PCMSO!$B177,'C-E'!$H$13:$H$1001,PCMSO!J$12) -> 0 | K177: =COUNTIFS('C-E'!$E$13:$E$1001,PCMSO!$B177,'C-E'!$H$13:$H$1001,PCMSO!K$12) -> 0
A178: 0.000166 | G178: 0 | H178: 0.000166 | I178: =COUNTIFS('C-E'!$E$13:$E$1001,PCMSO!B178) -> 0 | J178: =COUNTIFS('C-E'!$E$13:$E$1001,PCMSO!$B178,'C-E'!$H$13:$H$1001,PCMSO!J$12) -> 0 | K178: =COUNTIFS('C-E'!$E$13:$E$1001,PCMSO!$B178,'C-E'!$H$13:$H$1001,PCMSO!K$12) -> 0
A179: 0.000167 | G179: 0 | H179: 0.000167 | I179: =COUNTIFS('C-E'!$E$13:$E$1001,PCMSO!B179) -> 0 | J179: =COUNTIFS('C-E'!$E$13:$E$1001,PCMSO!$B179,'C-E'!$H$13:$H$1001,PCMSO!J$12) -> 0 | K179: =COUNTIFS('C-E'!$E$13:$E$1001,PCMSO!$B179,'C-E'!$H$13:$H$1001,PCMSO!K$12) -> 0
A180: 0.000168 | G180: 0 | H180: 0.000168 | I180: =COUNTIFS('C-E'!$E$13:$E$1001,PCMSO!B180) -> 0 | J180: =COUNTIFS('C-E'!$E$13:$E$1001,PCMSO!$B180,'C-E'!$H$13:$H$1001,PCMSO!J$12) -> 0 | K180: =COUNTIFS('C-E'!$E$13:$E$1001,PCMSO!$B180,'C-E'!$H$13:$H$1001,PCMSO!K$12) -> 0
A181: 0.000169 | G181: 0 | H181: 0.000169 | I181: =COUNTIFS('C-E'!$E$13:$E$1001,PCMSO!B181) -> 0 | J181: =COUNTIFS('C-E'!$E$13:$E$1001,PCMSO!$B181,'C-E'!$H$13:$H$1001,PCMSO!J$12) -> 0 | K181: =COUNTIFS('C-E'!$E$13:$E$1001,PCMSO!$B181,'C-E'!$H$13:$H$1001,PCMSO!K$12) -> 0
A182: 0.00017 | G182: 0 | H182: 0.00017 | I182: =COUNTIFS('C-E'!$E$13:$E$1001,PCMSO!B182) -> 0 | J182: =COUNTIFS('C-E'!$E$13:$E$1001,PCMSO!$B182,'C-E'!$H$13:$H$1001,PCMSO!J$12) -> 0 | K182: =COUNTIFS('C-E'!$E$13:$E$1001,PCMSO!$B182,'C-E'!$H$13:$H$1001,PCMSO!K$12) -> 0
A183: 0.000171 | G183: 0 | H183: 0.000171 | I183: =COUNTIFS('C-E'!$E$13:$E$1001,PCMSO!B183) -> 0 | J183: =COUNTIFS('C-E'!$E$13:$E$1001,PCMSO!$B183,'C-E'!$H$13:$H$1001,PCMSO!J$12) -> 0 | K183: =COUNTIFS('C-E'!$E$13:$E$1001,PCMSO!$B183,'C-E'!$H$13:$H$1001,PCMSO!K$12) -> 0
A184: 0.000172 | G184: 0 | H184: 0.000172 | I184: =COUNTIFS('C-E'!$E$13:$E$1001,PCMSO!B184) -> 0 | J184: =COUNTIFS('C-E'!$E$13:$E$1001,PCMSO!$B184,'C-E'!$H$13:$H$1001,PCMSO!J$12) -> 0 | K184: =COUNTIFS('C-E'!$E$13:$E$1001,PCMSO!$B184,'C-E'!$H$13:$H$1001,PCMSO!K$12) -> 0
A185: 0.000173 | G185: 0 | H185: 0.000173 | I185: =COUNTIFS('C-E'!$E$13:$E$1001,PCMSO!B185) -> 0 | J185: =COUNTIFS('C-E'!$E$13:$E$1001,PCMSO!$B185,'C-E'!$H$13:$H$1001,PCMSO!J$12) -> 0 | K185: =COUNTIFS('C-E'!$E$13:$E$1001,PCMSO!$B185,'C-E'!$H$13:$H$1001,PCMSO!K$12) -> 0
A186: 0.000174 | G186: 0 | H186: 0.000174 | I186: =COUNTIFS('C-E'!$E$13:$E$1001,PCMSO!B186) -> 0 | J186: =COUNTIFS('C-E'!$E$13:$E$1001,PCMSO!$B186,'C-E'!$H$13:$H$1001,PCMSO!J$12) -> 0 | K186: =COUNTIFS('C-E'!$E$13:$E$1001,PCMSO!$B186,'C-E'!$H$13:$H$1001,PCMSO!K$12) -> 0
A187: 0.000175 | G187: 0 | H187: 0.000175 | I187: =COUNTIFS('C-E'!$E$13:$E$1001,PCMSO!B187) -> 0 | J187: =COUNTIFS('C-E'!$E$13:$E$1001,PCMSO!$B187,'C-E'!$H$13:$H$1001,PCMSO!J$12) -> 0 | K187: =COUNTIFS('C-E'!$E$13:$E$1001,PCMSO!$B187,'C-E'!$H$13:$H$1001,PCMSO!K$12) -> 0
A188: 0.000176 | G188: 0 | H188: 0.000176 | I188: =COUNTIFS('C-E'!$E$13:$E$1001,PCMSO!B188) -> 0 | J188: =COUNTIFS('C-E'!$E$13:$E$1001,PCMSO!$B188,'C-E'!$H$13:$H$1001,PCMSO!J$12) -> 0 | K188: =COUNTIFS('C-E'!$E$13:$E$1001,PCMSO!$B188,'C-E'!$H$13:$H$1001,PCMSO!K$12) -> 0
A189: 0.000177 | G189: 0 | H189: 0.000177 | I189: =COUNTIFS('C-E'!$E$13:$E$1001,PCMSO!B189) -> 0 | J189: =COUNTIFS('C-E'!$E$13:$E$1001,PCMSO!$B189,'C-E'!$H$13:$H$1001,PCMSO!J$12) -> 0 | K189: =COUNTIFS('C-E'!$E$13:$E$1001,PCMSO!$B189,'C-E'!$H$13:$H$1001,PCMSO!K$12) -> 0
A190: 0.000178 | G190: 0 | H190: 0.000178 | I190: =COUNTIFS('C-E'!$E$13:$E$1001,PCMSO!B190) -> 0 | J190: =COUNTIFS('C-E'!$E$13:$E$1001,PCMSO!$B190,'C-E'!$H$13:$H$1001,PCMSO!J$12) -> 0 | K190: =COUNTIFS('C-E'!$E$13:$E$1001,PCMSO!$B190,'C-E'!$H$13:$H$1001,PCMSO!K$12) -> 0
A191: 0.000179 | G191: 0 | H191: 0.000179 | I191: =COUNTIFS('C-E'!$E$13:$E$1001,PCMSO!B191) -> 0 | J191: =COUNTIFS('C-E'!$E$13:$E$1001,PCMSO!$B191,'C-E'!$H$13:$H$1001,PCMSO!J$12) -> 0 | K191: =COUNTIFS('C-E'!$E$13:$E$1001,PCMSO!$B191,'C-E'!$H$13:$H$1001,PCMSO!K$12) -> 0
A192: 0.00018 | G192: 0 | H192: 0.00018 | I192: =COUNTIFS('C-E'!$E$13:$E$1001,PCMSO!B192) -> 0 | J192: =COUNTIFS('C-E'!$E$13:$E$1001,PCMSO!$B192,'C-E'!$H$13:$H$1001,PCMSO!J$12) -> 0 | K192: =COUNTIFS('C-E'!$E$13:$E$1001,PCMSO!$B192,'C-E'!$H$13:$H$1001,PCMSO!K$12) -> 0
A193: 0.000181 | G193: 0 | H193: 0.000181 | I193: =COUNTIFS('C-E'!$E$13:$E$1001,PCMSO!B193) -> 0 | J193: =COUNTIFS('C-E'!$E$13:$E$1001,PCMSO!$B193,'C-E'!$H$13:$H$1001,PCMSO!J$12) -> 0 | K193: =COUNTIFS('C-E'!$E$13:$E$1001,PCMSO!$B193,'C-E'!$H$13:$H$1001,PCMSO!K$12) -> 0
A194: 0.000182 | G194: 0 | H194: 0.000182 | I194: =COUNTIFS('C-E'!$E$13:$E$1001,PCMSO!B194) -> 0 | J194: =COUNTIFS('C-E'!$E$13:$E$1001,PCMSO!$B194,'C-E'!$H$13:$H$1001,PCMSO!J$12) -> 0 | K194: =COUNTIFS('C-E'!$E$13:$E$1001,PCMSO!$B194,'C-E'!$H$13:$H$1001,PCMSO!K$12) -> 0
A195: 0.000183 | G195: 0 | H195: 0.000183 | I195: =COUNTIFS('C-E'!$E$13:$E$1001,PCMSO!B195) -> 0 | J195: =COUNTIFS('C-E'!$E$13:$E$1001,PCMSO!$B195,'C-E'!$H$13:$H$1001,PCMSO!J$12) -> 0 | K195: =COUNTIFS('C-E'!$E$13:$E$1001,PCMSO!$B195,'C-E'!$H$13:$H$1001,PCMSO!K$12) -> 0
A196: 0.000184 | G196: 0 | H196: 0.000184 | I196: =COUNTIFS('C-E'!$E$13:$E$1001,PCMSO!B196) -> 0 | J196: =COUNTIFS('C-E'!$E$13:$E$1001,PCMSO!$B196,'C-E'!$H$13:$H$1001,PCMSO!J$12) -> 0 | K196: =COUNTIFS('C-E'!$E$13:$E$1001,PCMSO!$B196,'C-E'!$H$13:$H$1001,PCMSO!K$12) -> 0
A197: 0.000185 | G197: 0 | H197: 0.000185 | I197: =COUNTIFS('C-E'!$E$13:$E$1001,PCMSO!B197) -> 0 | J197: =COUNTIFS('C-E'!$E$13:$E$1001,PCMSO!$B197,'C-E'!$H$13:$H$1001,PCMSO!J$12) -> 0 | K197: =COUNTIFS('C-E'!$E$13:$E$1001,PCMSO!$B197,'C-E'!$H$13:$H$1001,PCMSO!K$12) -> 0
A198: 0.000186 | G198: 0 | H198: 0.000186 | I198: =COUNTIFS('C-E'!$E$13:$E$1001,PCMSO!B198) -> 0 | J198: =COUNTIFS('C-E'!$E$13:$E$1001,PCMSO!$B198,'C-E'!$H$13:$H$1001,PCMSO!J$12) -> 0 | K198: =COUNTIFS('C-E'!$E$13:$E$1001,PCMSO!$B198,'C-E'!$H$13:$H$1001,PCMSO!K$12) -> 0
A199: 0.000187 | G199: 0 | H199: 0.000187 | I199: =COUNTIFS('C-E'!$E$13:$E$1001,PCMSO!B199) -> 0 | J199: =COUNTIFS('C-E'!$E$13:$E$1001,PCMSO!$B199,'C-E'!$H$13:$H$1001,PCMSO!J$12) -> 0 | K199: =COUNTIFS('C-E'!$E$13:$E$1001,PCMSO!$B199,'C-E'!$H$13:$H$1001,PCMSO!K$12) -> 0
A200: 0.000188 | G200: 0 | H200: 0.000188 | I200: =COUNTIFS('C-E'!$E$13:$E$1001,PCMSO!B200) -> 0 | J200: =COUNTIFS('C-E'!$E$13:$E$1001,PCMSO!$B200,'C-E'!$H$13:$H$1001,PCMSO!J$12) -> 0 | K200: =COUNTIFS('C-E'!$E$13:$E$1001,PCMSO!$B200,'C-E'!$H$13:$H$1001,PCMSO!K$12) -> 0
A201: 0.000189 | G201: 0 | H201: 0.000189 | I201: =COUNTIFS('C-E'!$E$13:$E$1001,PCMSO!B201) -> 0 | J201: =COUNTIFS('C-E'!$E$13:$E$1001,PCMSO!$B201,'C-E'!$H$13:$H$1001,PCMSO!J$12) -> 0 | K201: =COUNTIFS('C-E'!$E$13:$E$1001,PCMSO!$B201,'C-E'!$H$13:$H$1001,PCMSO!K$12) -> 0
A202: 0.00019 | G202: 0 | H202: 0.00019 | I202: =COUNTIFS('C-E'!$E$13:$E$1001,PCMSO!B202) -> 0 | J202: =COUNTIFS('C-E'!$E$13:$E$1001,PCMSO!$B202,'C-E'!$H$13:$H$1001,PCMSO!J$12) -> 0 | K202: =COUNTIFS('C-E'!$E$13:$E$1001,PCMSO!$B202,'C-E'!$H$13:$H$1001,PCMSO!K$12) -> 0
A203: 0.000191 | G203: 0 | H203: 0.000191 | I203: =COUNTIFS('C-E'!$E$13:$E$1001,PCMSO!B203) -> 0 | J203: =COUNTIFS('C-E'!$E$13:$E$1001,PCMSO!$B203,'C-E'!$H$13:$H$1001,PCMSO!J$12) -> 0 | K203: =COUNTIFS('C-E'!$E$13:$E$1001,PCMSO!$B203,'C-E'!$H$13:$H$1001,PCMSO!K$12) -> 0
A204: 0.000192 | G204: 0 | H204: 0.000192 | I204: =COUNTIFS('C-E'!$E$13:$E$1001,PCMSO!B204) -> 0 | J204: =COUNTIFS('C-E'!$E$13:$E$1001,PCMSO!$B204,'C-E'!$H$13:$H$1001,PCMSO!J$12) -> 0 | K204: =COUNTIFS('C-E'!$E$13:$E$1001,PCMSO!$B204,'C-E'!$H$13:$H$1001,PCMSO!K$12) -> 0
A205: =SUM(H205:I205) -> 0.000193 | G205: 0 | H205: 0.000193 | I205: =COUNTIFS('C-E'!$E$13:$E$1001,PCMSO!B205) -> 0 | J205: =COUNTIFS('C-E'!$E$13:$E$1001,PCMSO!$B205,'C-E'!$H$13:$H$1001,PCMSO!J$12) -> 0 | K205: =COUNTIFS('C-E'!$E$13:$E$1001,PCMSO!$B205,'C-E'!$H$13:$H$1001,PCMSO!K$12) -> 0
A206: 0.000194 | G206: =B206 -> 0 | H206: 0.000194 | I206: =COUNTIFS('C-E'!$E$13:$E$1001,PCMSO!B206) -> 0 | J206: =COUNTIFS('C-E'!$E$13:$E$1001,PCMSO!$B206,'C-E'!$H$13:$H$1001,PCMSO!J$12) -> 0 | K206: =COUNTIFS('C-E'!$E$13:$E$1001,PCMSO!$B206,'C-E'!$H$13:$H$1001,PCMSO!K$12) -> 0
A207: 0.000195 | G207: 0 | H207: =H206+$H$13 -> 0.000195 | I207: =COUNTIFS('C-E'!$E$13:$E$1001,PCMSO!B207) -> 0 | J207: =COUNTIFS('C-E'!$E$13:$E$1001,PCMSO!$B207,'C-E'!$H$13:$H$1001,PCMSO!J$12) -> 0 | K207: =COUNTIFS('C-E'!$E$13:$E$1001,PCMSO!$B207,'C-E'!$H$13:$H$1001,PCMSO!K$12) -> 0
A208: 0.000196 | G208: 0 | H208: 0.000196 | I208: =COUNTIFS('C-E'!$E$13:$E$1001,PCMSO!B208) -> 0 | J208: =COUNTIFS('C-E'!$E$13:$E$1001,PCMSO!$B208,'C-E'!$H$13:$H$1001,PCMSO!J$12) -> 0 | K208: =COUNTIFS('C-E'!$E$13:$E$1001,PCMSO!$B208,'C-E'!$H$13:$H$1001,PCMSO!K$12) -> 0
A209: 0.000197 | G209: 0 | H209: 0.000197 | I209: =COUNTIFS('C-E'!$E$13:$E$1001,PCMSO!B209) -> 0 | J209: =COUNTIFS('C-E'!$E$13:$E$1001,PCMSO!$B209,'C-E'!$H$13:$H$1001,PCMSO!J$12) -> 0 | K209: =COUNTIFS('C-E'!$E$13:$E$1001,PCMSO!$B209,'C-E'!$H$13:$H$1001,PCMSO!K$12) -> 0
A210: 0.000198 | G210: 0 | H210: 0.000198 | I210: =COUNTIFS('C-E'!$E$13:$E$1001,PCMSO!B210) -> 0 | J210: =COUNTIFS('C-E'!$E$13:$E$1001,PCMSO!$B210,'C-E'!$H$13:$H$1001,PCMSO!J$12) -> 0 | K210: =COUNTIFS('C-E'!$E$13:$E$1001,PCMSO!$B210,'C-E'!$H$13:$H$1001,PCMSO!K$12) -> 0
A211: 0.000199 | G211: 0 | H211: 0.000199 | I211: =COUNTIFS('C-E'!$E$13:$E$1001,PCMSO!B211) -> 0 | J211: =COUNTIFS('C-E'!$E$13:$E$1001,PCMSO!$B211,'C-E'!$H$13:$H$1001,PCMSO!J$12) -> 0 | K211: =COUNTIFS('C-E'!$E$13:$E$1001,PCMSO!$B211,'C-E'!$H$13:$H$1001,PCMSO!K$12) -> 0
... 404 more rows

Sheet C-A
B12: Data | C12: Relacionado a que risco | D12: Colaborador | E12: Área | F12: Causa do acidente | G12: Situação da vítima | H12: Estava com o equipamento de segurança necessário? | M12: mês | P12: total de acidentes
B13: 2020-09-25 | C13: r 1 | D13: João Pedro | E13: =IF(D13="","",VLOOKUP(D13,CAD_AREA!$CB$13:$CD$113,3,FALSE)) -> PROD | F13: cochilou | G13: Ferida | H13: Sim | J13: 1 | K13: Janeiro | M13: =IF(B13="","",VLOOKUP(MONTH(B13),$J$13:$K$24,2,FALSE)) -> Setembro | P13: =COUNTA($M$13:$M$1013)-COUNTBLANK($M$13:$M$1013) -> 1
E14: =IF(D14="","",VLOOKUP(D14,CAD_AREA!$CB$13:$CD$113,3,FALSE)) ->  | J14: 2 | K14: Fevereiro | M14: =IF(B14="","",VLOOKUP(MONTH(B14),$J$13:$K$24,2,FALSE)) -> 
E15: =IF(D15="","",VLOOKUP(D15,CAD_AREA!$CB$13:$CD$113,3,FALSE)) ->  | J15: 3 | K15: Março
E16: =IF(D16="","",VLOOKUP(D16,CAD_AREA!$CB$13:$CD$113,3,FALSE)) ->  | J16: 4 | K16: Abril
E17: =IF(D17="","",VLOOKUP(D17,CAD_AREA!$CB$13:$CD$113,3,FALSE)) ->  | J17: 5 | K17: Maio
E18: =IF(D18="","",VLOOKUP(D18,CAD_AREA!$CB$13:$CD$113,3,FALSE)) ->  | J18: 6 | K18: Junho
E19: =IF(D19="","",VLOOKUP(D19,CAD_AREA!$CB$13:$CD$113,3,FALSE)) ->  | J19: 7 | K19: Julho
E20: =IF(D20="","",VLOOKUP(D20,CAD_AREA!$CB$13:$CD$113,3,FALSE)) ->  | J20: 8 | K20: Agosto
E21: =IF(D21="","",VLOOKUP(D21,CAD_AREA!$CB$13:$CD$113,3,FALSE)) ->  | J21: 9 | K21: Setembro
E22: =IF(D22="","",VLOOKUP(D22,CAD_AREA!$CB$13:$CD$113,3,FALSE)) ->  | J22: 10 | K22: Outubro
E23: =IF(D23="","",VLOOKUP(D23,CAD_AREA!$CB$13:$CD$113,3,FALSE)) ->  | J23: 11 | K23: Novembro
E24: =IF(D24="","",VLOOKUP(D24,CAD_AREA!$CB$13:$CD$113,3,FALSE)) ->  | J24: 12 | K24: Dezembro
E25: =IF(D25="","",VLOOKUP(D25,CAD_AREA!$CB$13:$CD$113,3,FALSE)) -> 
E26: =IF(D26="","",VLOOKUP(D26,CAD_AREA!$CB$13:$CD$113,3,FALSE)) -> 
E27: =IF(D27="","",VLOOKUP(D27,CAD_AREA!$CB$13:$CD$113,3,FALSE)) -> 
E28: =IF(D28="","",VLOOKUP(D28,CAD_AREA!$CB$13:$CD$113,3,FALSE)) -> 
E29: =IF(D29="","",VLOOKUP(D29,CAD_AREA!$CB$13:$CD$113,3,FALSE)) -> 
E30: =IF(D30="","",VLOOKUP(D30,CAD_AREA!$CB$13:$CD$113,3,FALSE)) -> 
E31: =IF(D31="","",VLOOKUP(D31,CAD_AREA!$CB$13:$CD$113,3,FALSE)) -> 
E32: =IF(D32="","",VLOOKUP(D32,CAD_AREA!$CB$13:$CD$113,3,FALSE)) -> 
E33: =IF(D33="","",VLOOKUP(D33,CAD_AREA!$CB$13:$CD$113,3,FALSE)) -> 
E34: =IF(D34="","",VLOOKUP(D34,CAD_AREA!$CB$13:$CD$113,3,FALSE)) -> 
E35: =IF(D35="","",VLOOKUP(D35,CAD_AREA!$CB$13:$CD$113,3,FALSE)) -> 
E36: =IF(D36="","",VLOOKUP(D36,CAD_AREA!$CB$13:$CD$113,3,FALSE)) -> 
E37: =IF(D37="","",VLOOKUP(D37,CAD_AREA!$CB$13:$CD$113,3,FALSE)) -> 
E38: =IF(D38="","",VLOOKUP(D38,CAD_AREA!$CB$13:$CD$113,3,FALSE)) -> 
E39: =IF(D39="","",VLOOKUP(D39,CAD_AREA!$CB$13:$CD$113,3,FALSE)) -> 
E40: =IF(D40="","",VLOOKUP(D40,CAD_AREA!$CB$13:$CD$113,3,FALSE)) -> 
E41: =IF(D41="","",VLOOKUP(D41,CAD_AREA!$CB$13:$CD$113,3,FALSE)) -> 
E42: =IF(D42="","",VLOOKUP(D42,CAD_AREA!$CB$13:$CD$113,3,FALSE)) -> 
E43: =IF(D43="","",VLOOKUP(D43,CAD_AREA!$CB$13:$CD$113,3,FALSE)) -> 
E44: =IF(D44="","",VLOOKUP(D44,CAD_AREA!$CB$13:$CD$113,3,FALSE)) -> 
E45: =IF(D45="","",VLOOKUP(D45,CAD_AREA!$CB$13:$CD$113,3,FALSE)) -> 
E46: =IF(D46="","",VLOOKUP(D46,CAD_AREA!$CB$13:$CD$113,3,FALSE)) -> 
E47: =IF(D47="","",VLOOKUP(D47,CAD_AREA!$CB$13:$CD$113,3,FALSE)) -> 
E48: =IF(D48="","",VLOOKUP(D48,CAD_AREA!$CB$13:$CD$113,3,FALSE)) -> 
E49: =IF(D49="","",VLOOKUP(D49,CAD_AREA!$CB$13:$CD$113,3,FALSE)) -> 
E50: =IF(D50="","",VLOOKUP(D50,CAD_AREA!$CB$13:$CD$113,3,FALSE)) -> 
E51: =IF(D51="","",VLOOKUP(D51,CAD_AREA!$CB$13:$CD$113,3,FALSE)) -> 
E52: =IF(D52="","",VLOOKUP(D52,CAD_AREA!$CB$13:$CD$113,3,FALSE)) -> 
E53: =IF(D53="","",VLOOKUP(D53,CAD_AREA!$CB$13:$CD$113,3,FALSE)) -> 
E54: =IF(D54="","",VLOOKUP(D54,CAD_AREA!$CB$13:$CD$113,3,FALSE)) -> 
E55: =IF(D55="","",VLOOKUP(D55,CAD_AREA!$CB$13:$CD$113,3,FALSE)) -> 
E56: =IF(D56="","",VLOOKUP(D56,CAD_AREA!$CB$13:$CD$113,3,FALSE)) -> 
E57: =IF(D57="","",VLOOKUP(D57,CAD_AREA!$CB$13:$CD$113,3,FALSE)) -> 
E58: =IF(D58="","",VLOOKUP(D58,CAD_AREA!$CB$13:$CD$113,3,FALSE)) -> 
E59: =IF(D59="","",VLOOKUP(D59,CAD_AREA!$CB$13:$CD$113,3,FALSE)) -> 
E60: =IF(D60="","",VLOOKUP(D60,CAD_AREA!$CB$13:$CD$113,3,FALSE)) -> 
E61: =IF(D61="","",VLOOKUP(D61,CAD_AREA!$CB$13:$CD$113,3,FALSE)) -> 
E62: =IF(D62="","",VLOOKUP(D62,CAD_AREA!$CB$13:$CD$113,3,FALSE)) -> 
E63: =IF(D63="","",VLOOKUP(D63,CAD_AREA!$CB$13:$CD$113,3,FALSE)) -> 
E64: =IF(D64="","",VLOOKUP(D64,CAD_AREA!$CB$13:$CD$113,3,FALSE)) -> 
E65: =IF(D65="","",VLOOKUP(D65,CAD_AREA!$CB$13:$CD$113,3,FALSE)) -> 
E66: =IF(D66="","",VLOOKUP(D66,CAD_AREA!$CB$13:$CD$113,3,FALSE)) -> 
E67: =IF(D67="","",VLOOKUP(D67,CAD_AREA!$CB$13:$CD$113,3,FALSE)) -> 
E68: =IF(D68="","",VLOOKUP(D68,CAD_AREA!$CB$13:$CD$113,3,FALSE)) -> 
E69: =IF(D69="","",VLOOKUP(D69,CAD_AREA!$CB$13:$CD$113,3,FALSE)) -> 
E70: =IF(D70="","",VLOOKUP(D70,CAD_AREA!$CB$13:$CD$113,3,FALSE)) -> 
E71: =IF(D71="","",VLOOKUP(D71,CAD_AREA!$CB$13:$CD$113,3,FALSE)) -> 
E72: =IF(D72="","",VLOOKUP(D72,CAD_AREA!$CB$13:$CD$113,3,FALSE)) -> 
E73: =IF(D73="","",VLOOKUP(D73,CAD_AREA!$CB$13:$CD$113,3,FALSE)) -> 
E74: =IF(D74="","",VLOOKUP(D74,CAD_AREA!$CB$13:$CD$113,3,FALSE)) -> 
E75: =IF(D75="","",VLOOKUP(D75,CAD_AREA!$CB$13:$CD$113,3,FALSE)) -> 
E76: =IF(D76="","",VLOOKUP(D76,CAD_AREA!$CB$13:$CD$113,3,FALSE)) -> 
E77: =IF(D77="","",VLOOKUP(D77,CAD_AREA!$CB$13:$CD$113,3,FALSE)) -> 
E78: =IF(D78="","",VLOOKUP(D78,CAD_AREA!$CB$13:$CD$113,3,FALSE)) ->  | M78: =IF(B78="","",VLOOKUP(MONTH(B78),$J$13:$K$24,2,FALSE)) -> 
E79: =IF(D79="","",VLOOKUP(D79,CAD_AREA!$CB$13:$CD$113,3,FALSE)) -> 
E80: =IF(D80="","",VLOOKUP(D80,CAD_AREA!$CB$13:$CD$113,3,FALSE)) -> 
E81: =IF(D81="","",VLOOKUP(D81,CAD_AREA!$CB$13:$CD$113,3,FALSE)) -> 
E82: =IF(D82="","",VLOOKUP(D82,CAD_AREA!$CB$13:$CD$113,3,FALSE)) -> 
E83: =IF(D83="","",VLOOKUP(D83,CAD_AREA!$CB$13:$CD$113,3,FALSE)) -> 
E84: =IF(D84="","",VLOOKUP(D84,CAD_AREA!$CB$13:$CD$113,3,FALSE)) -> 
E85: =IF(D85="","",VLOOKUP(D85,CAD_AREA!$CB$13:$CD$113,3,FALSE)) -> 
E86: =IF(D86="","",VLOOKUP(D86,CAD_AREA!$CB$13:$CD$113,3,FALSE)) -> 
E87: =IF(D87="","",VLOOKUP(D87,CAD_AREA!$CB$13:$CD$113,3,FALSE)) -> 
E88: =IF(D88="","",VLOOKUP(D88,CAD_AREA!$CB$13:$CD$113,3,FALSE)) -> 
E89: =IF(D89="","",VLOOKUP(D89,CAD_AREA!$CB$13:$CD$113,3,FALSE)) -> 
E90: =IF(D90="","",VLOOKUP(D90,CAD_AREA!$CB$13:$CD$113,3,FALSE)) -> 
E91: =IF(D91="","",VLOOKUP(D91,CAD_AREA!$CB$13:$CD$113,3,FALSE)) -> 
E92: =IF(D92="","",VLOOKUP(D92,CAD_AREA!$CB$13:$CD$113,3,FALSE)) -> 
E93: =IF(D93="","",VLOOKUP(D93,CAD_AREA!$CB$13:$CD$113,3,FALSE)) -> 
E94: =IF(D94="","",VLOOKUP(D94,CAD_AREA!$CB$13:$CD$113,3,FALSE)) -> 
E95: =IF(D95="","",VLOOKUP(D95,CAD_AREA!$CB$13:$CD$113,3,FALSE)) -> 
E96: =IF(D96="","",VLOOKUP(D96,CAD_AREA!$CB$13:$CD$113,3,FALSE)) -> 
E97: =IF(D97="","",VLOOKUP(D97,CAD_AREA!$CB$13:$CD$113,3,FALSE)) -> 
E98: =IF(D98="","",VLOOKUP(D98,CAD_AREA!$CB$13:$CD$113,3,FALSE)) -> 
E99: =IF(D99="","",VLOOKUP(D99,CAD_AREA!$CB$13:$CD$113,3,FALSE)) -> 
E100: =IF(D100="","",VLOOKUP(D100,CAD_AREA!$CB$13:$CD$113,3,FALSE)) -> 
E101: =IF(D101="","",VLOOKUP(D101,CAD_AREA!$CB$13:$CD$113,3,FALSE)) -> 
E102: =IF(D102="","",VLOOKUP(D102,CAD_AREA!$CB$13:$CD$113,3,FALSE)) -> 
E103: =IF(D103="","",VLOOKUP(D103,CAD_AREA!$CB$13:$CD$113,3,FALSE)) -> 
E104: =IF(D104="","",VLOOKUP(D104,CAD_AREA!$CB$13:$CD$113,3,FALSE)) -> 
E105: =IF(D105="","",VLOOKUP(D105,CAD_AREA!$CB$13:$CD$113,3,FALSE)) -> 
E106: =IF(D106="","",VLOOKUP(D106,CAD_AREA!$CB$13:$CD$113,3,FALSE)) -> 
E107: =IF(D107="","",VLOOKUP(D107,CAD_AREA!$CB$13:$CD$113,3,FALSE)) -> 
E108: =IF(D108="","",VLOOKUP(D108,CAD_AREA!$CB$13:$CD$113,3,FALSE)) -> 
E109: =IF(D109="","",VLOOKUP(D109,CAD_AREA!$CB$13:$CD$113,3,FALSE)) -> 
E110: =IF(D110="","",VLOOKUP(D110,CAD_AREA!$CB$13:$CD$113,3,FALSE)) -> 
E111: =IF(D111="","",VLOOKUP(D111,CAD_AREA!$CB$13:$CD$113,3,FALSE)) -> 
E112: =IF(D112="","",VLOOKUP(D112,CAD_AREA!$CB$13:$CD$113,3,FALSE)) -> 
E113: =IF(D113="","",VLOOKUP(D113,CAD_AREA!$CB$13:$CD$113,3,FALSE)) -> 
E114: =IF(D114="","",VLOOKUP(D114,CAD_AREA!$CB$13:$CD$113,3,FALSE)) -> 
E115: =IF(D115="","",VLOOKUP(D115,CAD_AREA!$CB$13:$CD$113,3,FALSE)) -> 
E116: =IF(D116="","",VLOOKUP(D116,CAD_AREA!$CB$13:$CD$113,3,FALSE)) -> 
E117: =IF(D117="","",VLOOKUP(D117,CAD_AREA!$CB$13:$CD$113,3,FALSE)) -> 
E118: =IF(D118="","",VLOOKUP(D118,CAD_AREA!$CB$13:$CD$113,3,FALSE)) -> 
E119: =IF(D119="","",VLOOKUP(D119,CAD_AREA!$CB$13:$CD$113,3,FALSE)) -> 
E120: =IF(D120="","",VLOOKUP(D120,CAD_AREA!$CB$13:$CD$113,3,FALSE)) -> 
E121: =IF(D121="","",VLOOKUP(D121,CAD_AREA!$CB$13:$CD$113,3,FALSE)) -> 
E122: =IF(D122="","",VLOOKUP(D122,CAD_AREA!$CB$13:$CD$113,3,FALSE)) -> 
E123: =IF(D123="","",VLOOKUP(D123,CAD_AREA!$CB$13:$CD$113,3,FALSE)) -> 
E124: =IF(D124="","",VLOOKUP(D124,CAD_AREA!$CB$13:$CD$113,3,FALSE)) -> 
E125: =IF(D125="","",VLOOKUP(D125,CAD_AREA!$CB$13:$CD$113,3,FALSE)) -> 
E126: =IF(D126="","",VLOOKUP(D126,CAD_AREA!$CB$13:$CD$113,3,FALSE)) -> 
E127: =IF(D127="","",VLOOKUP(D127,CAD_AREA!$CB$13:$CD$113,3,FALSE)) -> 
E128: =IF(D128="","",VLOOKUP(D128,CAD_AREA!$CB$13:$CD$113,3,FALSE)) -> 
E129: =IF(D129="","",VLOOKUP(D129,CAD_AREA!$CB$13:$CD$113,3,FALSE)) -> 
E130: =IF(D130="","",VLOOKUP(D130,CAD_AREA!$CB$13:$CD$113,3,FALSE)) -> 
E131: =IF(D131="","",VLOOKUP(D131,CAD_AREA!$CB$13:$CD$113,3,FALSE)) -> 
E132: =IF(D132="","",VLOOKUP(D132,CAD_AREA!$CB$13:$CD$113,3,FALSE)) -> 
E133: =IF(D133="","",VLOOKUP(D133,CAD_AREA!$CB$13:$CD$113,3,FALSE)) -> 
E134: =IF(D134="","",VLOOKUP(D134,CAD_AREA!$CB$13:$CD$113,3,FALSE)) -> 
E135: =IF(D135="","",VLOOKUP(D135,CAD_AREA!$CB$13:$CD$113,3,FALSE)) -> 
E136: =IF(D136="","",VLOOKUP(D136,CAD_AREA!$CB$13:$CD$113,3,FALSE)) -> 
E137: =IF(D137="","",VLOOKUP(D137,CAD_AREA!$CB$13:$CD$113,3,FALSE)) -> 
E138: =IF(D138="","",VLOOKUP(D138,CAD_AREA!$CB$13:$CD$113,3,FALSE)) -> 
E139: =IF(D139="","",VLOOKUP(D139,CAD_AREA!$CB$13:$CD$113,3,FALSE)) -> 
E140: =IF(D140="","",VLOOKUP(D140,CAD_AREA!$CB$13:$CD$113,3,FALSE)) -> 
E141: =IF(D141="","",VLOOKUP(D141,CAD_AREA!$CB$13:$CD$113,3,FALSE)) -> 
E142: =IF(D142="","",VLOOKUP(D142,CAD_AREA!$CB$13:$CD$113,3,FALSE)) ->  | M142: =IF(B142="","",VLOOKUP(MONTH(B142),$J$13:$K$24,2,FALSE)) -> 
E143: =IF(D143="","",VLOOKUP(D143,CAD_AREA!$CB$13:$CD$113,3,FALSE)) -> 
E144: =IF(D144="","",VLOOKUP(D144,CAD_AREA!$CB$13:$CD$113,3,FALSE)) -> 
E145: =IF(D145="","",VLOOKUP(D145,CAD_AREA!$CB$13:$CD$113,3,FALSE)) -> 
E146: =IF(D146="","",VLOOKUP(D146,CAD_AREA!$CB$13:$CD$113,3,FALSE)) -> 
E147: =IF(D147="","",VLOOKUP(D147,CAD_AREA!$CB$13:$CD$113,3,FALSE)) -> 
E148: =IF(D148="","",VLOOKUP(D148,CAD_AREA!$CB$13:$CD$113,3,FALSE)) -> 
E149: =IF(D149="","",VLOOKUP(D149,CAD_AREA!$CB$13:$CD$113,3,FALSE)) -> 
E150: =IF(D150="","",VLOOKUP(D150,CAD_AREA!$CB$13:$CD$113,3,FALSE)) -> 
E151: =IF(D151="","",VLOOKUP(D151,CAD_AREA!$CB$13:$CD$113,3,FALSE)) -> 
E152: =IF(D152="","",VLOOKUP(D152,CAD_AREA!$CB$13:$CD$113,3,FALSE)) -> 
E153: =IF(D153="","",VLOOKUP(D153,CAD_AREA!$CB$13:$CD$113,3,FALSE)) -> 
E154: =IF(D154="","",VLOOKUP(D154,CAD_AREA!$CB$13:$CD$113,3,FALSE)) -> 
E155: =IF(D155="","",VLOOKUP(D155,CAD_AREA!$CB$13:$CD$113,3,FALSE)) -> 
E156: =IF(D156="","",VLOOKUP(D156,CAD_AREA!$CB$13:$CD$113,3,FALSE)) -> 
E157: =IF(D157="","",VLOOKUP(D157,CAD_AREA!$CB$13:$CD$113,3,FALSE)) -> 
E158: =IF(D158="","",VLOOKUP(D158,CAD_AREA!$CB$13:$CD$113,3,FALSE)) -> 
E159: =IF(D159="","",VLOOKUP(D159,CAD_AREA!$CB$13:$CD$113,3,FALSE)) -> 
E160: =IF(D160="","",VLOOKUP(D160,CAD_AREA!$CB$13:$CD$113,3,FALSE)) -> 
E161: =IF(D161="","",VLOOKUP(D161,CAD_AREA!$CB$13:$CD$113,3,FALSE)) -> 
E162: =IF(D162="","",VLOOKUP(D162,CAD_AREA!$CB$13:$CD$113,3,FALSE)) -> 
E163: =IF(D163="","",VLOOKUP(D163,CAD_AREA!$CB$13:$CD$113,3,FALSE)) -> 
E164: =IF(D164="","",VLOOKUP(D164,CAD_AREA!$CB$13:$CD$113,3,FALSE)) -> 
E165: =IF(D165="","",VLOOKUP(D165,CAD_AREA!$CB$13:$CD$113,3,FALSE)) -> 
E166: =IF(D166="","",VLOOKUP(D166,CAD_AREA!$CB$13:$CD$113,3,FALSE)) -> 
E167: =IF(D167="","",VLOOKUP(D167,CAD_AREA!$CB$13:$CD$113,3,FALSE)) -> 
E168: =IF(D168="","",VLOOKUP(D168,CAD_AREA!$CB$13:$CD$113,3,FALSE)) -> 
E169: =IF(D169="","",VLOOKUP(D169,CAD_AREA!$CB$13:$CD$113,3,FALSE)) -> 
E170: =IF(D170="","",VLOOKUP(D170,CAD_AREA!$CB$13:$CD$113,3,FALSE)) -> 
E171: =IF(D171="","",VLOOKUP(D171,CAD_AREA!$CB$13:$CD$113,3,FALSE)) -> 
E172: =IF(D172="","",VLOOKUP(D172,CAD_AREA!$CB$13:$CD$113,3,FALSE)) -> 
E173: =IF(D173="","",VLOOKUP(D173,CAD_AREA!$CB$13:$CD$113,3,FALSE)) -> 
E174: =IF(D174="","",VLOOKUP(D174,CAD_AREA!$CB$13:$CD$113,3,FALSE)) -> 
E175: =IF(D175="","",VLOOKUP(D175,CAD_AREA!$CB$13:$CD$113,3,FALSE)) -> 
E176: =IF(D176="","",VLOOKUP(D176,CAD_AREA!$CB$13:$CD$113,3,FALSE)) -> 
E177: =IF(D177="","",VLOOKUP(D177,CAD_AREA!$CB$13:$CD$113,3,FALSE)) -> 
E178: =IF(D178="","",VLOOKUP(D178,CAD_AREA!$CB$13:$CD$113,3,FALSE)) -> 
E179: =IF(D179="","",VLOOKUP(D179,CAD_AREA!$CB$13:$CD$113,3,FALSE)) -> 
E180: =IF(D180="","",VLOOKUP(D180,CAD_AREA!$CB$13:$CD$113,3,FALSE)) -> 
E181: =IF(D181="","",VLOOKUP(D181,CAD_AREA!$CB$13:$CD$113,3,FALSE)) -> 
E182: =IF(D182="","",VLOOKUP(D182,CAD_AREA!$CB$13:$CD$113,3,FALSE)) -> 
E183: =IF(D183="","",VLOOKUP(D183,CAD_AREA!$CB$13:$CD$113,3,FALSE)) -> 
E184: =IF(D184="","",VLOOKUP(D184,CAD_AREA!$CB$13:$CD$113,3,FALSE)) -> 
E185: =IF(D185="","",VLOOKUP(D185,CAD_AREA!$CB$13:$CD$113,3,FALSE)) -> 
E186: =IF(D186="","",VLOOKUP(D186,CAD_AREA!$CB$13:$CD$113,3,FALSE)) -> 
E187: =IF(D187="","",VLOOKUP(D187,CAD_AREA!$CB$13:$CD$113,3,FALSE)) -> 
E188: =IF(D188="","",VLOOKUP(D188,CAD_AREA!$CB$13:$CD$113,3,FALSE)) -> 
E189: =IF(D189="","",VLOOKUP(D189,CAD_AREA!$CB$13:$CD$113,3,FALSE)) -> 
E190: =IF(D190="","",VLOOKUP(D190,CAD_AREA!$CB$13:$CD$113,3,FALSE)) -> 
E191: =IF(D191="","",VLOOKUP(D191,CAD_AREA!$CB$13:$CD$113,3,FALSE)) -> 
E192: =IF(D192="","",VLOOKUP(D192,CAD_AREA!$CB$13:$CD$113,3,FALSE)) -> 
E193: =IF(D193="","",VLOOKUP(D193,CAD_AREA!$CB$13:$CD$113,3,FALSE)) -> 
E194: =IF(D194="","",VLOOKUP(D194,CAD_AREA!$CB$13:$CD$113,3,FALSE)) -> 
E195: =IF(D195="","",VLOOKUP(D195,CAD_AREA!$CB$13:$CD$113,3,FALSE)) -> 
E196: =IF(D196="","",VLOOKUP(D196,CAD_AREA!$CB$13:$CD$113,3,FALSE)) -> 
E197: =IF(D197="","",VLOOKUP(D197,CAD_AREA!$CB$13:$CD$113,3,FALSE)) -> 
E198: =IF(D198="","",VLOOKUP(D198,CAD_AREA!$CB$13:$CD$113,3,FALSE)) -> 
E199: =IF(D199="","",VLOOKUP(D199,CAD_AREA!$CB$13:$CD$113,3,FALSE)) -> 
E200: =IF(D200="","",VLOOKUP(D200,CAD_AREA!$CB$13:$CD$113,3,FALSE)) -> 
E201: =IF(D201="","",VLOOKUP(D201,CAD_AREA!$CB$13:$CD$113,3,FALSE)) -> 
E202: =IF(D202="","",VLOOKUP(D202,CAD_AREA!$CB$13:$CD$113,3,FALSE)) -> 
E203: =IF(D203="","",VLOOKUP(D203,CAD_AREA!$CB$13:$CD$113,3,FALSE)) -> 
E204: =IF(D204="","",VLOOKUP(D204,CAD_AREA!$CB$13:$CD$113,3,FALSE)) -> 
E205: =IF(D205="","",VLOOKUP(D205,CAD_AREA!$CB$13:$CD$113,3,FALSE)) -> 
E206: =IF(D206="","",VLOOKUP(D206,CAD_AREA!$CB$13:$CD$113,3,FALSE)) ->  | M206: =IF(B206="","",VLOOKUP(MONTH(B206),$J$13:$K$24,2,FALSE)) -> 
E207: =IF(D207="","",VLOOKUP(D207,CAD_AREA!$CB$13:$CD$113,3,FALSE)) -> 
E208: =IF(D208="","",VLOOKUP(D208,CAD_AREA!$CB$13:$CD$113,3,FALSE)) -> 
E209: =IF(D209="","",VLOOKUP(D209,CAD_AREA!$CB$13:$CD$113,3,FALSE)) -> 
E210: =IF(D210="","",VLOOKUP(D210,CAD_AREA!$CB$13:$CD$113,3,FALSE)) -> 
E211: =IF(D211="","",VLOOKUP(D211,CAD_AREA!$CB$13:$CD$113,3,FALSE)) -> 
... 803 more rows

Sheet C-E
B12: Colaborador | C12: Cargo | D12: Área | E12: Exame | F12: Periodicidade | G12: Data da realização do exame | H12: Resultado | I12: Recomendação Médica | J12: Data da próxima realização | K12: Status | R12: desempate | S12: data prox realizacao
A13: =IF(S13="","",SUM(R13:S13)) ->  | B13: João Pedro | C13: =IF(B13="","",VLOOKUP(B13,CAD_AREA!$CB$13:$CD$113,2,FALSE)) -> Auxiliar | D13: =IF(B13="","",VLOOKUP(B13,CAD_AREA!$CB$13:$CD$113,3,FALSE)) -> PROD | E13: Audiometria | F13: =IF(E13="","",VLOOKUP(E13,PCMSO!$B$13:$E$614,4,FALSE)) -> Anualmente | G13: 2020-01-01 | H13: O exame não apontou complicações | I13: Ok. | J13: =IF(F13="","",VLOOKUP(F13,$N$13:$O$19,2,FALSE)+G13) -> 2020-12-31 | K13: =IF(J13="","",IF(J13-TODAY()<0,"Vencido",IF(J13-TODAY()=0,"Realizar hoje","Realizar em "&J13-TODAY()&" dias"))) -> Vencido | L13: =IF(G13="","",VLOOKUP(MONTH(G13),'C-A'!$J$13:$K$24,2,FALSE)) -> Janeiro | N13: Diariamente | O13: 1 | R13: 1e-06 | S13: =IF(K13="Vencido","",J13) -> 
A14: =IF(S14="","",SUM(R14:S14)) ->  | C14: =IF(B14="","",VLOOKUP(B14,CAD_AREA!$CB$13:$CD$113,2,FALSE)) ->  | D14: =IF(B14="","",VLOOKUP(B14,CAD_AREA!$CB$13:$CD$113,3,FALSE)) ->  | F14: =IF(E14="","",VLOOKUP(E14,PCMSO!$B$13:$E$614,4,FALSE)) ->  | K14: =IF(J14="","",IF(J14-TODAY()<0,"Vencido",IF(J14-TODAY()=0,"Realizar hoje","Realizar em "&J14-TODAY()&" dias"))) ->  | L14: =IF(G14="","",VLOOKUP(MONTH(G14),'C-A'!$J$13:$K$24,2,FALSE)) ->  | N14: Semanalmente | O14: 7 | R14: =R13+$R$13 -> 2e-06
C15: =IF(B15="","",VLOOKUP(B15,CAD_AREA!$CB$13:$CD$113,2,FALSE)) ->  | D15: =IF(B15="","",VLOOKUP(B15,CAD_AREA!$CB$13:$CD$113,3,FALSE)) ->  | F15: =IF(E15="","",VLOOKUP(E15,PCMSO!$B$13:$E$614,4,FALSE)) ->  | L15: =IF(G15="","",VLOOKUP(MONTH(G15),'C-A'!$J$13:$K$24,2,FALSE)) ->  | N15: Quinzenalmente | O15: 15 | R15: =R14+$R$13 -> 3e-06
C16: =IF(B16="","",VLOOKUP(B16,CAD_AREA!$CB$13:$CD$113,2,FALSE)) ->  | D16: =IF(B16="","",VLOOKUP(B16,CAD_AREA!$CB$13:$CD$113,3,FALSE)) ->  | F16: =IF(E16="","",VLOOKUP(E16,PCMSO!$B$13:$E$614,4,FALSE)) ->  | L16: =IF(G16="","",VLOOKUP(MONTH(G16),'C-A'!$J$13:$K$24,2,FALSE)) ->  | N16: Mensalmente | O16: 31 | R16: 4e-06
C17: =IF(B17="","",VLOOKUP(B17,CAD_AREA!$CB$13:$CD$113,2,FALSE)) ->  | D17: =IF(B17="","",VLOOKUP(B17,CAD_AREA!$CB$13:$CD$113,3,FALSE)) ->  | F17: =IF(E17="","",VLOOKUP(E17,PCMSO!$B$13:$E$614,4,FALSE)) ->  | L17: =IF(G17="","",VLOOKUP(MONTH(G17),'C-A'!$J$13:$K$24,2,FALSE)) ->  | N17: Trimestralmente | O17: 122 | R17: 5e-06
C18: =IF(B18="","",VLOOKUP(B18,CAD_AREA!$CB$13:$CD$113,2,FALSE)) ->  | D18: =IF(B18="","",VLOOKUP(B18,CAD_AREA!$CB$13:$CD$113,3,FALSE)) ->  | F18: =IF(E18="","",VLOOKUP(E18,PCMSO!$B$13:$E$614,4,FALSE)) ->  | L18: =IF(G18="","",VLOOKUP(MONTH(G18),'C-A'!$J$13:$K$24,2,FALSE)) ->  | N18: Semestralmente | O18: 183 | R18: 6e-06
C19: =IF(B19="","",VLOOKUP(B19,CAD_AREA!$CB$13:$CD$113,2,FALSE)) ->  | D19: =IF(B19="","",VLOOKUP(B19,CAD_AREA!$CB$13:$CD$113,3,FALSE)) ->  | F19: =IF(E19="","",VLOOKUP(E19,PCMSO!$B$13:$E$614,4,FALSE)) ->  | L19: =IF(G19="","",VLOOKUP(MONTH(G19),'C-A'!$J$13:$K$24,2,FALSE)) ->  | N19: Anualmente | O19: 365 | R19: 7e-06
C20: =IF(B20="","",VLOOKUP(B20,CAD_AREA!$CB$13:$CD$113,2,FALSE)) ->  | D20: =IF(B20="","",VLOOKUP(B20,CAD_AREA!$CB$13:$CD$113,3,FALSE)) ->  | F20: =IF(E20="","",VLOOKUP(E20,PCMSO!$B$13:$E$614,4,FALSE)) ->  | L20: =IF(G20="","",VLOOKUP(MONTH(G20),'C-A'!$J$13:$K$24,2,FALSE)) ->  | R20: 8e-06
C21: =IF(B21="","",VLOOKUP(B21,CAD_AREA!$CB$13:$CD$113,2,FALSE)) ->  | D21: =IF(B21="","",VLOOKUP(B21,CAD_AREA!$CB$13:$CD$113,3,FALSE)) ->  | F21: =IF(E21="","",VLOOKUP(E21,PCMSO!$B$13:$E$614,4,FALSE)) ->  | L21: =IF(G21="","",VLOOKUP(MONTH(G21),'C-A'!$J$13:$K$24,2,FALSE)) ->  | R21: 9e-06
C22: =IF(B22="","",VLOOKUP(B22,CAD_AREA!$CB$13:$CD$113,2,FALSE)) ->  | D22: =IF(B22="","",VLOOKUP(B22,CAD_AREA!$CB$13:$CD$113,3,FALSE)) ->  | F22: =IF(E22="","",VLOOKUP(E22,PCMSO!$B$13:$E$614,4,FALSE)) ->  | L22: =IF(G22="","",VLOOKUP(MONTH(G22),'C-A'!$J$13:$K$24,2,FALSE)) ->  | R22: 1e-05
C23: =IF(B23="","",VLOOKUP(B23,CAD_AREA!$CB$13:$CD$113,2,FALSE)) ->  | D23: =IF(B23="","",VLOOKUP(B23,CAD_AREA!$CB$13:$CD$113,3,FALSE)) ->  | F23: =IF(E23="","",VLOOKUP(E23,PCMSO!$B$13:$E$614,4,FALSE)) ->  | L23: =IF(G23="","",VLOOKUP(MONTH(G23),'C-A'!$J$13:$K$24,2,FALSE)) ->  | R23: 1.1e-05
C24: =IF(B24="","",VLOOKUP(B24,CAD_AREA!$CB$13:$CD$113,2,FALSE)) ->  | D24: =IF(B24="","",VLOOKUP(B24,CAD_AREA!$CB$13:$CD$113,3,FALSE)) ->  | F24: =IF(E24="","",VLOOKUP(E24,PCMSO!$B$13:$E$614,4,FALSE)) ->  | L24: =IF(G24="","",VLOOKUP(MONTH(G24),'C-A'!$J$13:$K$24,2,FALSE)) ->  | R24: 1.2e-05
C25: =IF(B25="","",VLOOKUP(B25,CAD_AREA!$CB$13:$CD$113,2,FALSE)) ->  | D25: =IF(B25="","",VLOOKUP(B25,CAD_AREA!$CB$13:$CD$113,3,FALSE)) ->  | F25: =IF(E25="","",VLOOKUP(E25,PCMSO!$B$13:$E$614,4,FALSE)) ->  | L25: =IF(G25="","",VLOOKUP(MONTH(G25),'C-A'!$J$13:$K$24,2,FALSE)) ->  | R25: 1.3e-05
A26: =IF(S26="","",SUM(R26:S26)) ->  | C26: =IF(B26="","",VLOOKUP(B26,CAD_AREA!$CB$13:$CD$113,2,FALSE)) ->  | D26: =IF(B26="","",VLOOKUP(B26,CAD_AREA!$CB$13:$CD$113,3,FALSE)) ->  | F26: =IF(E26="","",VLOOKUP(E26,PCMSO!$B$13:$E$614,4,FALSE)) ->  | L26: =IF(G26="","",VLOOKUP(MONTH(G26),'C-A'!$J$13:$K$24,2,FALSE)) ->  | R26: 1.4e-05
C27: =IF(B27="","",VLOOKUP(B27,CAD_AREA!$CB$13:$CD$113,2,FALSE)) ->  | D27: =IF(B27="","",VLOOKUP(B27,CAD_AREA!$CB$13:$CD$113,3,FALSE)) ->  | F27: =IF(E27="","",VLOOKUP(E27,PCMSO!$B$13:$E$614,4,FALSE)) ->  | L27: =IF(G27="","",VLOOKUP(MONTH(G27),'C-A'!$J$13:$K$24,2,FALSE)) ->  | R27: 1.5e-05
C28: =IF(B28="","",VLOOKUP(B28,CAD_AREA!$CB$13:$CD$113,2,FALSE)) ->  | D28: =IF(B28="","",VLOOKUP(B28,CAD_AREA!$CB$13:$CD$113,3,FALSE)) ->  | F28: =IF(E28="","",VLOOKUP(E28,PCMSO!$B$13:$E$614,4,FALSE)) ->  | L28: =IF(G28="","",VLOOKUP(MONTH(G28),'C-A'!$J$13:$K$24,2,FALSE)) ->  | R28: 1.6e-05
C29: =IF(B29="","",VLOOKUP(B29,CAD_AREA!$CB$13:$CD$113,2,FALSE)) ->  | D29: =IF(B29="","",VLOOKUP(B29,CAD_AREA!$CB$13:$CD$113,3,FALSE)) ->  | F29: =IF(E29="","",VLOOKUP(E29,PCMSO!$B$13:$E$614,4,FALSE)) ->  | L29: =IF(G29="","",VLOOKUP(MONTH(G29),'C-A'!$J$13:$K$24,2,FALSE)) ->  | R29: 1.7e-05
C30: =IF(B30="","",VLOOKUP(B30,CAD_AREA!$CB$13:$CD$113,2,FALSE)) ->  | D30: =IF(B30="","",VLOOKUP(B30,CAD_AREA!$CB$13:$CD$113,3,FALSE)) ->  | F30: =IF(E30="","",VLOOKUP(E30,PCMSO!$B$13:$E$614,4,FALSE)) ->  | L30: =IF(G30="","",VLOOKUP(MONTH(G30),'C-A'!$J$13:$K$24,2,FALSE)) ->  | R30: 1.8e-05
C31: =IF(B31="","",VLOOKUP(B31,CAD_AREA!$CB$13:$CD$113,2,FALSE)) ->  | D31: =IF(B31="","",VLOOKUP(B31,CAD_AREA!$CB$13:$CD$113,3,FALSE)) ->  | F31: =IF(E31="","",VLOOKUP(E31,PCMSO!$B$13:$E$614,4,FALSE)) ->  | L31: =IF(G31="","",VLOOKUP(MONTH(G31),'C-A'!$J$13:$K$24,2,FALSE)) ->  | R31: 1.9e-05
C32: =IF(B32="","",VLOOKUP(B32,CAD_AREA!$CB$13:$CD$113,2,FALSE)) ->  | D32: =IF(B32="","",VLOOKUP(B32,CAD_AREA!$CB$13:$CD$113,3,FALSE)) ->  | F32: =IF(E32="","",VLOOKUP(E32,PCMSO!$B$13:$E$614,4,FALSE)) ->  | L32: =IF(G32="","",VLOOKUP(MONTH(G32),'C-A'!$J$13:$K$24,2,FALSE)) ->  | R32: 2e-05
C33: =IF(B33="","",VLOOKUP(B33,CAD_AREA!$CB$13:$CD$113,2,FALSE)) ->  | D33: =IF(B33="","",VLOOKUP(B33,CAD_AREA!$CB$13:$CD$113,3,FALSE)) ->  | F33: =IF(E33="","",VLOOKUP(E33,PCMSO!$B$13:$E$614,4,FALSE)) ->  | L33: =IF(G33="","",VLOOKUP(MONTH(G33),'C-A'!$J$13:$K$24,2,FALSE)) ->  | R33: 2.1e-05
C34: =IF(B34="","",VLOOKUP(B34,CAD_AREA!$CB$13:$CD$113,2,FALSE)) ->  | D34: =IF(B34="","",VLOOKUP(B34,CAD_AREA!$CB$13:$CD$113,3,FALSE)) ->  | F34: =IF(E34="","",VLOOKUP(E34,PCMSO!$B$13:$E$614,4,FALSE)) ->  | L34: =IF(G34="","",VLOOKUP(MONTH(G34),'C-A'!$J$13:$K$24,2,FALSE)) ->  | R34: 2.2e-05
C35: =IF(B35="","",VLOOKUP(B35,CAD_AREA!$CB$13:$CD$113,2,FALSE)) ->  | D35: =IF(B35="","",VLOOKUP(B35,CAD_AREA!$CB$13:$CD$113,3,FALSE)) ->  | F35: =IF(E35="","",VLOOKUP(E35,PCMSO!$B$13:$E$614,4,FALSE)) ->  | L35: =IF(G35="","",VLOOKUP(MONTH(G35),'C-A'!$J$13:$K$24,2,FALSE)) ->  | R35: 2.3e-05
C36: =IF(B36="","",VLOOKUP(B36,CAD_AREA!$CB$13:$CD$113,2,FALSE)) ->  | D36: =IF(B36="","",VLOOKUP(B36,CAD_AREA!$CB$13:$CD$113,3,FALSE)) ->  | F36: =IF(E36="","",VLOOKUP(E36,PCMSO!$B$13:$E$614,4,FALSE)) ->  | L36: =IF(G36="","",VLOOKUP(MONTH(G36),'C-A'!$J$13:$K$24,2,FALSE)) ->  | R36: 2.4e-05
C37: =IF(B37="","",VLOOKUP(B37,CAD_AREA!$CB$13:$CD$113,2,FALSE)) ->  | D37: =IF(B37="","",VLOOKUP(B37,CAD_AREA!$CB$13:$CD$113,3,FALSE)) ->  | F37: =IF(E37="","",VLOOKUP(E37,PCMSO!$B$13:$E$614,4,FALSE)) ->  | L37: =IF(G37="","",VLOOKUP(MONTH(G37),'C-A'!$J$13:$K$24,2,FALSE)) ->  | R37: 2.5e-05
C38: =IF(B38="","",VLOOKUP(B38,CAD_AREA!$CB$13:$CD$113,2,FALSE)) ->  | D38: =IF(B38="","",VLOOKUP(B38,CAD_AREA!$CB$13:$CD$113,3,FALSE)) ->  | F38: =IF(E38="","",VLOOKUP(E38,PCMSO!$B$13:$E$614,4,FALSE)) ->  | L38: =IF(G38="","",VLOOKUP(MONTH(G38),'C-A'!$J$13:$K$24,2,FALSE)) ->  | R38: 2.6e-05
C39: =IF(B39="","",VLOOKUP(B39,CAD_AREA!$CB$13:$CD$113,2,FALSE)) ->  | D39: =IF(B39="","",VLOOKUP(B39,CAD_AREA!$CB$13:$CD$113,3,FALSE)) ->  | F39: =IF(E39="","",VLOOKUP(E39,PCMSO!$B$13:$E$614,4,FALSE)) ->  | L39: =IF(G39="","",VLOOKUP(MONTH(G39),'C-A'!$J$13:$K$24,2,FALSE)) ->  | R39: 2.7e-05
C40: =IF(B40="","",VLOOKUP(B40,CAD_AREA!$CB$13:$CD$113,2,FALSE)) ->  | D40: =IF(B40="","",VLOOKUP(B40,CAD_AREA!$CB$13:$CD$113,3,FALSE)) ->  | F40: =IF(E40="","",VLOOKUP(E40,PCMSO!$B$13:$E$614,4,FALSE)) ->  | L40: =IF(G40="","",VLOOKUP(MONTH(G40),'C-A'!$J$13:$K$24,2,FALSE)) ->  | R40: 2.8e-05
C41: =IF(B41="","",VLOOKUP(B41,CAD_AREA!$CB$13:$CD$113,2,FALSE)) ->  | D41: =IF(B41="","",VLOOKUP(B41,CAD_AREA!$CB$13:$CD$113,3,FALSE)) ->  | F41: =IF(E41="","",VLOOKUP(E41,PCMSO!$B$13:$E$614,4,FALSE)) ->  | L41: =IF(G41="","",VLOOKUP(MONTH(G41),'C-A'!$J$13:$K$24,2,FALSE)) ->  | R41: 2.9e-05
C42: =IF(B42="","",VLOOKUP(B42,CAD_AREA!$CB$13:$CD$113,2,FALSE)) ->  | D42: =IF(B42="","",VLOOKUP(B42,CAD_AREA!$CB$13:$CD$113,3,FALSE)) ->  | F42: =IF(E42="","",VLOOKUP(E42,PCMSO!$B$13:$E$614,4,FALSE)) ->  | L42: =IF(G42="","",VLOOKUP(MONTH(G42),'C-A'!$J$13:$K$24,2,FALSE)) ->  | R42: 3e-05
C43: =IF(B43="","",VLOOKUP(B43,CAD_AREA!$CB$13:$CD$113,2,FALSE)) ->  | D43: =IF(B43="","",VLOOKUP(B43,CAD_AREA!$CB$13:$CD$113,3,FALSE)) ->  | F43: =IF(E43="","",VLOOKUP(E43,PCMSO!$B$13:$E$614,4,FALSE)) ->  | L43: =IF(G43="","",VLOOKUP(MONTH(G43),'C-A'!$J$13:$K$24,2,FALSE)) ->  | R43: 3.1e-05
C44: =IF(B44="","",VLOOKUP(B44,CAD_AREA!$CB$13:$CD$113,2,FALSE)) ->  | D44: =IF(B44="","",VLOOKUP(B44,CAD_AREA!$CB$13:$CD$113,3,FALSE)) ->  | F44: =IF(E44="","",VLOOKUP(E44,PCMSO!$B$13:$E$614,4,FALSE)) ->  | L44: =IF(G44="","",VLOOKUP(MONTH(G44),'C-A'!$J$13:$K$24,2,FALSE)) ->  | R44: 3.2e-05
C45: =IF(B45="","",VLOOKUP(B45,CAD_AREA!$CB$13:$CD$113,2,FALSE)) ->  | D45: =IF(B45="","",VLOOKUP(B45,CAD_AREA!$CB$13:$CD$113,3,FALSE)) ->  | F45: =IF(E45="","",VLOOKUP(E45,PCMSO!$B$13:$E$614,4,FALSE)) ->  | L45: =IF(G45="","",VLOOKUP(MONTH(G45),'C-A'!$J$13:$K$24,2,FALSE)) ->  | R45: 3.3e-05
C46: =IF(B46="","",VLOOKUP(B46,CAD_AREA!$CB$13:$CD$113,2,FALSE)) ->  | D46: =IF(B46="","",VLOOKUP(B46,CAD_AREA!$CB$13:$CD$113,3,FALSE)) ->  | F46: =IF(E46="","",VLOOKUP(E46,PCMSO!$B$13:$E$614,4,FALSE)) ->  | L46: =IF(G46="","",VLOOKUP(MONTH(G46),'C-A'!$J$13:$K$24,2,FALSE)) ->  | R46: 3.4e-05
C47: =IF(B47="","",VLOOKUP(B47,CAD_AREA!$CB$13:$CD$113,2,FALSE)) ->  | D47: =IF(B47="","",VLOOKUP(B47,CAD_AREA!$CB$13:$CD$113,3,FALSE)) ->  | F47: =IF(E47="","",VLOOKUP(E47,PCMSO!$B$13:$E$614,4,FALSE)) ->  | L47: =IF(G47="","",VLOOKUP(MONTH(G47),'C-A'!$J$13:$K$24,2,FALSE)) ->  | R47: 3.5e-05
C48: =IF(B48="","",VLOOKUP(B48,CAD_AREA!$CB$13:$CD$113,2,FALSE)) ->  | D48: =IF(B48="","",VLOOKUP(B48,CAD_AREA!$CB$13:$CD$113,3,FALSE)) ->  | F48: =IF(E48="","",VLOOKUP(E48,PCMSO!$B$13:$E$614,4,FALSE)) ->  | L48: =IF(G48="","",VLOOKUP(MONTH(G48),'C-A'!$J$13:$K$24,2,FALSE)) ->  | R48: 3.6e-05
C49: =IF(B49="","",VLOOKUP(B49,CAD_AREA!$CB$13:$CD$113,2,FALSE)) ->  | D49: =IF(B49="","",VLOOKUP(B49,CAD_AREA!$CB$13:$CD$113,3,FALSE)) ->  | F49: =IF(E49="","",VLOOKUP(E49,PCMSO!$B$13:$E$614,4,FALSE)) ->  | L49: =IF(G49="","",VLOOKUP(MONTH(G49),'C-A'!$J$13:$K$24,2,FALSE)) ->  | R49: 3.7e-05
C50: =IF(B50="","",VLOOKUP(B50,CAD_AREA!$CB$13:$CD$113,2,FALSE)) ->  | D50: =IF(B50="","",VLOOKUP(B50,CAD_AREA!$CB$13:$CD$113,3,FALSE)) ->  | F50: =IF(E50="","",VLOOKUP(E50,PCMSO!$B$13:$E$614,4,FALSE)) ->  | L50: =IF(G50="","",VLOOKUP(MONTH(G50),'C-A'!$J$13:$K$24,2,FALSE)) ->  | R50: 3.8e-05
C51: =IF(B51="","",VLOOKUP(B51,CAD_AREA!$CB$13:$CD$113,2,FALSE)) ->  | D51: =IF(B51="","",VLOOKUP(B51,CAD_AREA!$CB$13:$CD$113,3,FALSE)) ->  | F51: =IF(E51="","",VLOOKUP(E51,PCMSO!$B$13:$E$614,4,FALSE)) ->  | L51: =IF(G51="","",VLOOKUP(MONTH(G51),'C-A'!$J$13:$K$24,2,FALSE)) ->  | R51: 3.9e-05
C52: =IF(B52="","",VLOOKUP(B52,CAD_AREA!$CB$13:$CD$113,2,FALSE)) ->  | D52: =IF(B52="","",VLOOKUP(B52,CAD_AREA!$CB$13:$CD$113,3,FALSE)) ->  | F52: =IF(E52="","",VLOOKUP(E52,PCMSO!$B$13:$E$614,4,FALSE)) ->  | L52: =IF(G52="","",VLOOKUP(MONTH(G52),'C-A'!$J$13:$K$24,2,FALSE)) ->  | R52: 4e-05
C53: =IF(B53="","",VLOOKUP(B53,CAD_AREA!$CB$13:$CD$113,2,FALSE)) ->  | D53: =IF(B53="","",VLOOKUP(B53,CAD_AREA!$CB$13:$CD$113,3,FALSE)) ->  | F53: =IF(E53="","",VLOOKUP(E53,PCMSO!$B$13:$E$614,4,FALSE)) ->  | L53: =IF(G53="","",VLOOKUP(MONTH(G53),'C-A'!$J$13:$K$24,2,FALSE)) ->  | R53: 4.1e-05
C54: =IF(B54="","",VLOOKUP(B54,CAD_AREA!$CB$13:$CD$113,2,FALSE)) ->  | D54: =IF(B54="","",VLOOKUP(B54,CAD_AREA!$CB$13:$CD$113,3,FALSE)) ->  | F54: =IF(E54="","",VLOOKUP(E54,PCMSO!$B$13:$E$614,4,FALSE)) ->  | L54: =IF(G54="","",VLOOKUP(MONTH(G54),'C-A'!$J$13:$K$24,2,FALSE)) ->  | R54: 4.2e-05
C55: =IF(B55="","",VLOOKUP(B55,CAD_AREA!$CB$13:$CD$113,2,FALSE)) ->  | D55: =IF(B55="","",VLOOKUP(B55,CAD_AREA!$CB$13:$CD$113,3,FALSE)) ->  | F55: =IF(E55="","",VLOOKUP(E55,PCMSO!$B$13:$E$614,4,FALSE)) ->  | L55: =IF(G55="","",VLOOKUP(MONTH(G55),'C-A'!$J$13:$K$24,2,FALSE)) ->  | R55: 4.3e-05
C56: =IF(B56="","",VLOOKUP(B56,CAD_AREA!$CB$13:$CD$113,2,FALSE)) ->  | D56: =IF(B56="","",VLOOKUP(B56,CAD_AREA!$CB$13:$CD$113,3,FALSE)) ->  | F56: =IF(E56="","",VLOOKUP(E56,PCMSO!$B$13:$E$614,4,FALSE)) ->  | L56: =IF(G56="","",VLOOKUP(MONTH(G56),'C-A'!$J$13:$K$24,2,FALSE)) ->  | R56: 4.4e-05
C57: =IF(B57="","",VLOOKUP(B57,CAD_AREA!$CB$13:$CD$113,2,FALSE)) ->  | D57: =IF(B57="","",VLOOKUP(B57,CAD_AREA!$CB$13:$CD$113,3,FALSE)) ->  | F57: =IF(E57="","",VLOOKUP(E57,PCMSO!$B$13:$E$614,4,FALSE)) ->  | L57: =IF(G57="","",VLOOKUP(MONTH(G57),'C-A'!$J$13:$K$24,2,FALSE)) ->  | R57: 4.5e-05
C58: =IF(B58="","",VLOOKUP(B58,CAD_AREA!$CB$13:$CD$113,2,FALSE)) ->  | D58: =IF(B58="","",VLOOKUP(B58,CAD_AREA!$CB$13:$CD$113,3,FALSE)) ->  | F58: =IF(E58="","",VLOOKUP(E58,PCMSO!$B$13:$E$614,4,FALSE)) ->  | L58: =IF(G58="","",VLOOKUP(MONTH(G58),'C-A'!$J$13:$K$24,2,FALSE)) ->  | R58: 4.6e-05
C59: =IF(B59="","",VLOOKUP(B59,CAD_AREA!$CB$13:$CD$113,2,FALSE)) ->  | D59: =IF(B59="","",VLOOKUP(B59,CAD_AREA!$CB$13:$CD$113,3,FALSE)) ->  | F59: =IF(E59="","",VLOOKUP(E59,PCMSO!$B$13:$E$614,4,FALSE)) ->  | L59: =IF(G59="","",VLOOKUP(MONTH(G59),'C-A'!$J$13:$K$24,2,FALSE)) ->  | R59: 4.7e-05
C60: =IF(B60="","",VLOOKUP(B60,CAD_AREA!$CB$13:$CD$113,2,FALSE)) ->  | D60: =IF(B60="","",VLOOKUP(B60,CAD_AREA!$CB$13:$CD$113,3,FALSE)) ->  | F60: =IF(E60="","",VLOOKUP(E60,PCMSO!$B$13:$E$614,4,FALSE)) ->  | L60: =IF(G60="","",VLOOKUP(MONTH(G60),'C-A'!$J$13:$K$24,2,FALSE)) ->  | R60: 4.8e-05
C61: =IF(B61="","",VLOOKUP(B61,CAD_AREA!$CB$13:$CD$113,2,FALSE)) ->  | D61: =IF(B61="","",VLOOKUP(B61,CAD_AREA!$CB$13:$CD$113,3,FALSE)) ->  | F61: =IF(E61="","",VLOOKUP(E61,PCMSO!$B$13:$E$614,4,FALSE)) ->  | L61: =IF(G61="","",VLOOKUP(MONTH(G61),'C-A'!$J$13:$K$24,2,FALSE)) ->  | R61: 4.9e-05
C62: =IF(B62="","",VLOOKUP(B62,CAD_AREA!$CB$13:$CD$113,2,FALSE)) ->  | D62: =IF(B62="","",VLOOKUP(B62,CAD_AREA!$CB$13:$CD$113,3,FALSE)) ->  | F62: =IF(E62="","",VLOOKUP(E62,PCMSO!$B$13:$E$614,4,FALSE)) ->  | L62: =IF(G62="","",VLOOKUP(MONTH(G62),'C-A'!$J$13:$K$24,2,FALSE)) ->  | R62: 5e-05
C63: =IF(B63="","",VLOOKUP(B63,CAD_AREA!$CB$13:$CD$113,2,FALSE)) ->  | D63: =IF(B63="","",VLOOKUP(B63,CAD_AREA!$CB$13:$CD$113,3,FALSE)) ->  | F63: =IF(E63="","",VLOOKUP(E63,PCMSO!$B$13:$E$614,4,FALSE)) ->  | L63: =IF(G63="","",VLOOKUP(MONTH(G63),'C-A'!$J$13:$K$24,2,FALSE)) ->  | R63: 5.1e-05
C64: =IF(B64="","",VLOOKUP(B64,CAD_AREA!$CB$13:$CD$113,2,FALSE)) ->  | D64: =IF(B64="","",VLOOKUP(B64,CAD_AREA!$CB$13:$CD$113,3,FALSE)) ->  | F64: =IF(E64="","",VLOOKUP(E64,PCMSO!$B$13:$E$614,4,FALSE)) ->  | L64: =IF(G64="","",VLOOKUP(MONTH(G64),'C-A'!$J$13:$K$24,2,FALSE)) ->  | R64: 5.2e-05
C65: =IF(B65="","",VLOOKUP(B65,CAD_AREA!$CB$13:$CD$113,2,FALSE)) ->  | D65: =IF(B65="","",VLOOKUP(B65,CAD_AREA!$CB$13:$CD$113,3,FALSE)) ->  | F65: =IF(E65="","",VLOOKUP(E65,PCMSO!$B$13:$E$614,4,FALSE)) ->  | L65: =IF(G65="","",VLOOKUP(MONTH(G65),'C-A'!$J$13:$K$24,2,FALSE)) ->  | R65: 5.3e-05
C66: =IF(B66="","",VLOOKUP(B66,CAD_AREA!$CB$13:$CD$113,2,FALSE)) ->  | D66: =IF(B66="","",VLOOKUP(B66,CAD_AREA!$CB$13:$CD$113,3,FALSE)) ->  | F66: =IF(E66="","",VLOOKUP(E66,PCMSO!$B$13:$E$614,4,FALSE)) ->  | L66: =IF(G66="","",VLOOKUP(MONTH(G66),'C-A'!$J$13:$K$24,2,FALSE)) ->  | R66: 5.4e-05
C67: =IF(B67="","",VLOOKUP(B67,CAD_AREA!$CB$13:$CD$113,2,FALSE)) ->  | D67: =IF(B67="","",VLOOKUP(B67,CAD_AREA!$CB$13:$CD$113,3,FALSE)) ->  | F67: =IF(E67="","",VLOOKUP(E67,PCMSO!$B$13:$E$614,4,FALSE)) ->  | L67: =IF(G67="","",VLOOKUP(MONTH(G67),'C-A'!$J$13:$K$24,2,FALSE)) ->  | R67: 5.5e-05
C68: =IF(B68="","",VLOOKUP(B68,CAD_AREA!$CB$13:$CD$113,2,FALSE)) ->  | D68: =IF(B68="","",VLOOKUP(B68,CAD_AREA!$CB$13:$CD$113,3,FALSE)) ->  | F68: =IF(E68="","",VLOOKUP(E68,PCMSO!$B$13:$E$614,4,FALSE)) ->  | L68: =IF(G68="","",VLOOKUP(MONTH(G68),'C-A'!$J$13:$K$24,2,FALSE)) ->  | R68: 5.6e-05
C69: =IF(B69="","",VLOOKUP(B69,CAD_AREA!$CB$13:$CD$113,2,FALSE)) ->  | D69: =IF(B69="","",VLOOKUP(B69,CAD_AREA!$CB$13:$CD$113,3,FALSE)) ->  | F69: =IF(E69="","",VLOOKUP(E69,PCMSO!$B$13:$E$614,4,FALSE)) ->  | L69: =IF(G69="","",VLOOKUP(MONTH(G69),'C-A'!$J$13:$K$24,2,FALSE)) ->  | R69: 5.7e-05
C70: =IF(B70="","",VLOOKUP(B70,CAD_AREA!$CB$13:$CD$113,2,FALSE)) ->  | D70: =IF(B70="","",VLOOKUP(B70,CAD_AREA!$CB$13:$CD$113,3,FALSE)) ->  | F70: =IF(E70="","",VLOOKUP(E70,PCMSO!$B$13:$E$614,4,FALSE)) ->  | L70: =IF(G70="","",VLOOKUP(MONTH(G70),'C-A'!$J$13:$K$24,2,FALSE)) ->  | R70: 5.8e-05
C71: =IF(B71="","",VLOOKUP(B71,CAD_AREA!$CB$13:$CD$113,2,FALSE)) ->  | D71: =IF(B71="","",VLOOKUP(B71,CAD_AREA!$CB$13:$CD$113,3,FALSE)) ->  | F71: =IF(E71="","",VLOOKUP(E71,PCMSO!$B$13:$E$614,4,FALSE)) ->  | L71: =IF(G71="","",VLOOKUP(MONTH(G71),'C-A'!$J$13:$K$24,2,FALSE)) ->  | R71: 5.9e-05
C72: =IF(B72="","",VLOOKUP(B72,CAD_AREA!$CB$13:$CD$113,2,FALSE)) ->  | D72: =IF(B72="","",VLOOKUP(B72,CAD_AREA!$CB$13:$CD$113,3,FALSE)) ->  | F72: =IF(E72="","",VLOOKUP(E72,PCMSO!$B$13:$E$614,4,FALSE)) ->  | L72: =IF(G72="","",VLOOKUP(MONTH(G72),'C-A'!$J$13:$K$24,2,FALSE)) ->  | R72: 6e-05
C73: =IF(B73="","",VLOOKUP(B73,CAD_AREA!$CB$13:$CD$113,2,FALSE)) ->  | D73: =IF(B73="","",VLOOKUP(B73,CAD_AREA!$CB$13:$CD$113,3,FALSE)) ->  | F73: =IF(E73="","",VLOOKUP(E73,PCMSO!$B$13:$E$614,4,FALSE)) ->  | L73: =IF(G73="","",VLOOKUP(MONTH(G73),'C-A'!$J$13:$K$24,2,FALSE)) ->  | R73: 6.1e-05
C74: =IF(B74="","",VLOOKUP(B74,CAD_AREA!$CB$13:$CD$113,2,FALSE)) ->  | D74: =IF(B74="","",VLOOKUP(B74,CAD_AREA!$CB$13:$CD$113,3,FALSE)) ->  | F74: =IF(E74="","",VLOOKUP(E74,PCMSO!$B$13:$E$614,4,FALSE)) ->  | L74: =IF(G74="","",VLOOKUP(MONTH(G74),'C-A'!$J$13:$K$24,2,FALSE)) ->  | R74: 6.2e-05
C75: =IF(B75="","",VLOOKUP(B75,CAD_AREA!$CB$13:$CD$113,2,FALSE)) ->  | D75: =IF(B75="","",VLOOKUP(B75,CAD_AREA!$CB$13:$CD$113,3,FALSE)) ->  | F75: =IF(E75="","",VLOOKUP(E75,PCMSO!$B$13:$E$614,4,FALSE)) ->  | L75: =IF(G75="","",VLOOKUP(MONTH(G75),'C-A'!$J$13:$K$24,2,FALSE)) ->  | R75: 6.3e-05
C76: =IF(B76="","",VLOOKUP(B76,CAD_AREA!$CB$13:$CD$113,2,FALSE)) ->  | D76: =IF(B76="","",VLOOKUP(B76,CAD_AREA!$CB$13:$CD$113,3,FALSE)) ->  | F76: =IF(E76="","",VLOOKUP(E76,PCMSO!$B$13:$E$614,4,FALSE)) ->  | L76: =IF(G76="","",VLOOKUP(MONTH(G76),'C-A'!$J$13:$K$24,2,FALSE)) ->  | R76: 6.4e-05
C77: =IF(B77="","",VLOOKUP(B77,CAD_AREA!$CB$13:$CD$113,2,FALSE)) ->  | D77: =IF(B77="","",VLOOKUP(B77,CAD_AREA!$CB$13:$CD$113,3,FALSE)) ->  | F77: =IF(E77="","",VLOOKUP(E77,PCMSO!$B$13:$E$614,4,FALSE)) ->  | J77: =IF(F77="","",VLOOKUP(F77,$N$13:$O$19,2,FALSE)+G77) ->  | L77: =IF(G77="","",VLOOKUP(MONTH(G77),'C-A'!$J$13:$K$24,2,FALSE)) ->  | R77: 6.5e-05 | S77: =IF(K77="Vencido","",J77) -> 
C78: =IF(B78="","",VLOOKUP(B78,CAD_AREA!$CB$13:$CD$113,2,FALSE)) ->  | D78: =IF(B78="","",VLOOKUP(B78,CAD_AREA!$CB$13:$CD$113,3,FALSE)) ->  | F78: =IF(E78="","",VLOOKUP(E78,PCMSO!$B$13:$E$614,4,FALSE)) ->  | K78: =IF(J78="","",IF(J78-TODAY()<0,"Vencido",IF(J78-TODAY()=0,"Realizar hoje","Realizar em "&J78-TODAY()&" dias"))) ->  | L78: =IF(G78="","",VLOOKUP(MONTH(G78),'C-A'!$J$13:$K$24,2,FALSE)) ->  | R78: 6.6e-05
C79: =IF(B79="","",VLOOKUP(B79,CAD_AREA!$CB$13:$CD$113,2,FALSE)) ->  | D79: =IF(B79="","",VLOOKUP(B79,CAD_AREA!$CB$13:$CD$113,3,FALSE)) ->  | F79: =IF(E79="","",VLOOKUP(E79,PCMSO!$B$13:$E$614,4,FALSE)) ->  | L79: =IF(G79="","",VLOOKUP(MONTH(G79),'C-A'!$J$13:$K$24,2,FALSE)) ->  | R79: =R78+$R$13 -> 6.7e-05
C80: =IF(B80="","",VLOOKUP(B80,CAD_AREA!$CB$13:$CD$113,2,FALSE)) ->  | D80: =IF(B80="","",VLOOKUP(B80,CAD_AREA!$CB$13:$CD$113,3,FALSE)) ->  | F80: =IF(E80="","",VLOOKUP(E80,PCMSO!$B$13:$E$614,4,FALSE)) ->  | L80: =IF(G80="","",VLOOKUP(MONTH(G80),'C-A'!$J$13:$K$24,2,FALSE)) ->  | R80: 6.8e-05
C81: =IF(B81="","",VLOOKUP(B81,CAD_AREA!$CB$13:$CD$113,2,FALSE)) ->  | D81: =IF(B81="","",VLOOKUP(B81,CAD_AREA!$CB$13:$CD$113,3,FALSE)) ->  | F81: =IF(E81="","",VLOOKUP(E81,PCMSO!$B$13:$E$614,4,FALSE)) ->  | L81: =IF(G81="","",VLOOKUP(MONTH(G81),'C-A'!$J$13:$K$24,2,FALSE)) ->  | R81: 6.9e-05
C82: =IF(B82="","",VLOOKUP(B82,CAD_AREA!$CB$13:$CD$113,2,FALSE)) ->  | D82: =IF(B82="","",VLOOKUP(B82,CAD_AREA!$CB$13:$CD$113,3,FALSE)) ->  | F82: =IF(E82="","",VLOOKUP(E82,PCMSO!$B$13:$E$614,4,FALSE)) ->  | L82: =IF(G82="","",VLOOKUP(MONTH(G82),'C-A'!$J$13:$K$24,2,FALSE)) ->  | R82: 7e-05
C83: =IF(B83="","",VLOOKUP(B83,CAD_AREA!$CB$13:$CD$113,2,FALSE)) ->  | D83: =IF(B83="","",VLOOKUP(B83,CAD_AREA!$CB$13:$CD$113,3,FALSE)) ->  | F83: =IF(E83="","",VLOOKUP(E83,PCMSO!$B$13:$E$614,4,FALSE)) ->  | L83: =IF(G83="","",VLOOKUP(MONTH(G83),'C-A'!$J$13:$K$24,2,FALSE)) ->  | R83: 7.1e-05
C84: =IF(B84="","",VLOOKUP(B84,CAD_AREA!$CB$13:$CD$113,2,FALSE)) ->  | D84: =IF(B84="","",VLOOKUP(B84,CAD_AREA!$CB$13:$CD$113,3,FALSE)) ->  | F84: =IF(E84="","",VLOOKUP(E84,PCMSO!$B$13:$E$614,4,FALSE)) ->  | L84: =IF(G84="","",VLOOKUP(MONTH(G84),'C-A'!$J$13:$K$24,2,FALSE)) ->  | R84: 7.2e-05
C85: =IF(B85="","",VLOOKUP(B85,CAD_AREA!$CB$13:$CD$113,2,FALSE)) ->  | D85: =IF(B85="","",VLOOKUP(B85,CAD_AREA!$CB$13:$CD$113,3,FALSE)) ->  | F85: =IF(E85="","",VLOOKUP(E85,PCMSO!$B$13:$E$614,4,FALSE)) ->  | L85: =IF(G85="","",VLOOKUP(MONTH(G85),'C-A'!$J$13:$K$24,2,FALSE)) ->  | R85: 7.3e-05
C86: =IF(B86="","",VLOOKUP(B86,CAD_AREA!$CB$13:$CD$113,2,FALSE)) ->  | D86: =IF(B86="","",VLOOKUP(B86,CAD_AREA!$CB$13:$CD$113,3,FALSE)) ->  | F86: =IF(E86="","",VLOOKUP(E86,PCMSO!$B$13:$E$614,4,FALSE)) ->  | L86: =IF(G86="","",VLOOKUP(MONTH(G86),'C-A'!$J$13:$K$24,2,FALSE)) ->  | R86: 7.4e-05
C87: =IF(B87="","",VLOOKUP(B87,CAD_AREA!$CB$13:$CD$113,2,FALSE)) ->  | D87: =IF(B87="","",VLOOKUP(B87,CAD_AREA!$CB$13:$CD$113,3,FALSE)) ->  | F87: =IF(E87="","",VLOOKUP(E87,PCMSO!$B$13:$E$614,4,FALSE)) ->  | L87: =IF(G87="","",VLOOKUP(MONTH(G87),'C-A'!$J$13:$K$24,2,FALSE)) ->  | R87: 7.5e-05
C88: =IF(B88="","",VLOOKUP(B88,CAD_AREA!$CB$13:$CD$113,2,FALSE)) ->  | D88: =IF(B88="","",VLOOKUP(B88,CAD_AREA!$CB$13:$CD$113,3,FALSE)) ->  | F88: =IF(E88="","",VLOOKUP(E88,PCMSO!$B$13:$E$614,4,FALSE)) ->  | L88: =IF(G88="","",VLOOKUP(MONTH(G88),'C-A'!$J$13:$K$24,2,FALSE)) ->  | R88: 7.6e-05
C89: =IF(B89="","",VLOOKUP(B89,CAD_AREA!$CB$13:$CD$113,2,FALSE)) ->  | D89: =IF(B89="","",VLOOKUP(B89,CAD_AREA!$CB$13:$CD$113,3,FALSE)) ->  | F89: =IF(E89="","",VLOOKUP(E89,PCMSO!$B$13:$E$614,4,FALSE)) ->  | L89: =IF(G89="","",VLOOKUP(MONTH(G89),'C-A'!$J$13:$K$24,2,FALSE)) ->  | R89: 7.7e-05
C90: =IF(B90="","",VLOOKUP(B90,CAD_AREA!$CB$13:$CD$113,2,FALSE)) ->  | D90: =IF(B90="","",VLOOKUP(B90,CAD_AREA!$CB$13:$CD$113,3,FALSE)) ->  | F90: =IF(E90="","",VLOOKUP(E90,PCMSO!$B$13:$E$614,4,FALSE)) ->  | L90: =IF(G90="","",VLOOKUP(MONTH(G90),'C-A'!$J$13:$K$24,2,FALSE)) ->  | R90: 7.8e-05
C91: =IF(B91="","",VLOOKUP(B91,CAD_AREA!$CB$13:$CD$113,2,FALSE)) ->  | D91: =IF(B91="","",VLOOKUP(B91,CAD_AREA!$CB$13:$CD$113,3,FALSE)) ->  | F91: =IF(E91="","",VLOOKUP(E91,PCMSO!$B$13:$E$614,4,FALSE)) ->  | L91: =IF(G91="","",VLOOKUP(MONTH(G91),'C-A'!$J$13:$K$24,2,FALSE)) ->  | R91: 7.9e-05
C92: =IF(B92="","",VLOOKUP(B92,CAD_AREA!$CB$13:$CD$113,2,FALSE)) ->  | D92: =IF(B92="","",VLOOKUP(B92,CAD_AREA!$CB$13:$CD$113,3,FALSE)) ->  | F92: =IF(E92="","",VLOOKUP(E92,PCMSO!$B$13:$E$614,4,FALSE)) ->  | L92: =IF(G92="","",VLOOKUP(MONTH(G92),'C-A'!$J$13:$K$24,2,FALSE)) ->  | R92: 8e-05
C93: =IF(B93="","",VLOOKUP(B93,CAD_AREA!$CB$13:$CD$113,2,FALSE)) ->  | D93: =IF(B93="","",VLOOKUP(B93,CAD_AREA!$CB$13:$CD$113,3,FALSE)) ->  | F93: =IF(E93="","",VLOOKUP(E93,PCMSO!$B$13:$E$614,4,FALSE)) ->  | L93: =IF(G93="","",VLOOKUP(MONTH(G93),'C-A'!$J$13:$K$24,2,FALSE)) ->  | R93: 8.1e-05
C94: =IF(B94="","",VLOOKUP(B94,CAD_AREA!$CB$13:$CD$113,2,FALSE)) ->  | D94: =IF(B94="","",VLOOKUP(B94,CAD_AREA!$CB$13:$CD$113,3,FALSE)) ->  | F94: =IF(E94="","",VLOOKUP(E94,PCMSO!$B$13:$E$614,4,FALSE)) ->  | L94: =IF(G94="","",VLOOKUP(MONTH(G94),'C-A'!$J$13:$K$24,2,FALSE)) ->  | R94: 8.2e-05
C95: =IF(B95="","",VLOOKUP(B95,CAD_AREA!$CB$13:$CD$113,2,FALSE)) ->  | D95: =IF(B95="","",VLOOKUP(B95,CAD_AREA!$CB$13:$CD$113,3,FALSE)) ->  | F95: =IF(E95="","",VLOOKUP(E95,PCMSO!$B$13:$E$614,4,FALSE)) ->  | L95: =IF(G95="","",VLOOKUP(MONTH(G95),'C-A'!$J$13:$K$24,2,FALSE)) ->  | R95: 8.3e-05
C96: =IF(B96="","",VLOOKUP(B96,CAD_AREA!$CB$13:$CD$113,2,FALSE)) ->  | D96: =IF(B96="","",VLOOKUP(B96,CAD_AREA!$CB$13:$CD$113,3,FALSE)) ->  | F96: =IF(E96="","",VLOOKUP(E96,PCMSO!$B$13:$E$614,4,FALSE)) ->  | L96: =IF(G96="","",VLOOKUP(MONTH(G96),'C-A'!$J$13:$K$24,2,FALSE)) ->  | R96: 8.4e-05
C97: =IF(B97="","",VLOOKUP(B97,CAD_AREA!$CB$13:$CD$113,2,FALSE)) ->  | D97: =IF(B97="","",VLOOKUP(B97,CAD_AREA!$CB$13:$CD$113,3,FALSE)) ->  | F97: =IF(E97="","",VLOOKUP(E97,PCMSO!$B$13:$E$614,4,FALSE)) ->  | L97: =IF(G97="","",VLOOKUP(MONTH(G97),'C-A'!$J$13:$K$24,2,FALSE)) ->  | R97: 8.5e-05
C98: =IF(B98="","",VLOOKUP(B98,CAD_AREA!$CB$13:$CD$113,2,FALSE)) ->  | D98: =IF(B98="","",VLOOKUP(B98,CAD_AREA!$CB$13:$CD$113,3,FALSE)) ->  | F98: =IF(E98="","",VLOOKUP(E98,PCMSO!$B$13:$E$614,4,FALSE)) ->  | L98: =IF(G98="","",VLOOKUP(MONTH(G98),'C-A'!$J$13:$K$24,2,FALSE)) ->  | R98: 8.6e-05
C99: =IF(B99="","",VLOOKUP(B99,CAD_AREA!$CB$13:$CD$113,2,FALSE)) ->  | D99: =IF(B99="","",VLOOKUP(B99,CAD_AREA!$CB$13:$CD$113,3,FALSE)) ->  | F99: =IF(E99="","",VLOOKUP(E99,PCMSO!$B$13:$E$614,4,FALSE)) ->  | L99: =IF(G99="","",VLOOKUP(MONTH(G99),'C-A'!$J$13:$K$24,2,FALSE)) ->  | R99: 8.7e-05
C100: =IF(B100="","",VLOOKUP(B100,CAD_AREA!$CB$13:$CD$113,2,FALSE)) ->  | D100: =IF(B100="","",VLOOKUP(B100,CAD_AREA!$CB$13:$CD$113,3,FALSE)) ->  | F100: =IF(E100="","",VLOOKUP(E100,PCMSO!$B$13:$E$614,4,FALSE)) ->  | L100: =IF(G100="","",VLOOKUP(MONTH(G100),'C-A'!$J$13:$K$24,2,FALSE)) ->  | R100: 8.8e-05
C101: =IF(B101="","",VLOOKUP(B101,CAD_AREA!$CB$13:$CD$113,2,FALSE)) ->  | D101: =IF(B101="","",VLOOKUP(B101,CAD_AREA!$CB$13:$CD$113,3,FALSE)) ->  | F101: =IF(E101="","",VLOOKUP(E101,PCMSO!$B$13:$E$614,4,FALSE)) ->  | L101: =IF(G101="","",VLOOKUP(MONTH(G101),'C-A'!$J$13:$K$24,2,FALSE)) ->  | R101: 8.9e-05
C102: =IF(B102="","",VLOOKUP(B102,CAD_AREA!$CB$13:$CD$113,2,FALSE)) ->  | D102: =IF(B102="","",VLOOKUP(B102,CAD_AREA!$CB$13:$CD$113,3,FALSE)) ->  | F102: =IF(E102="","",VLOOKUP(E102,PCMSO!$B$13:$E$614,4,FALSE)) ->  | L102: =IF(G102="","",VLOOKUP(MONTH(G102),'C-A'!$J$13:$K$24,2,FALSE)) ->  | R102: 9e-05
C103: =IF(B103="","",VLOOKUP(B103,CAD_AREA!$CB$13:$CD$113,2,FALSE)) ->  | D103: =IF(B103="","",VLOOKUP(B103,CAD_AREA!$CB$13:$CD$113,3,FALSE)) ->  | F103: =IF(E103="","",VLOOKUP(E103,PCMSO!$B$13:$E$614,4,FALSE)) ->  | L103: =IF(G103="","",VLOOKUP(MONTH(G103),'C-A'!$J$13:$K$24,2,FALSE)) ->  | R103: 9.1e-05
C104: =IF(B104="","",VLOOKUP(B104,CAD_AREA!$CB$13:$CD$113,2,FALSE)) ->  | D104: =IF(B104="","",VLOOKUP(B104,CAD_AREA!$CB$13:$CD$113,3,FALSE)) ->  | F104: =IF(E104="","",VLOOKUP(E104,PCMSO!$B$13:$E$614,4,FALSE)) ->  | L104: =IF(G104="","",VLOOKUP(MONTH(G104),'C-A'!$J$13:$K$24,2,FALSE)) ->  | R104: 9.2e-05
C105: =IF(B105="","",VLOOKUP(B105,CAD_AREA!$CB$13:$CD$113,2,FALSE)) ->  | D105: =IF(B105="","",VLOOKUP(B105,CAD_AREA!$CB$13:$CD$113,3,FALSE)) ->  | F105: =IF(E105="","",VLOOKUP(E105,PCMSO!$B$13:$E$614,4,FALSE)) ->  | L105: =IF(G105="","",VLOOKUP(MONTH(G105),'C-A'!$J$13:$K$24,2,FALSE)) ->  | R105: 9.3e-05
C106: =IF(B106="","",VLOOKUP(B106,CAD_AREA!$CB$13:$CD$113,2,FALSE)) ->  | D106: =IF(B106="","",VLOOKUP(B106,CAD_AREA!$CB$13:$CD$113,3,FALSE)) ->  | F106: =IF(E106="","",VLOOKUP(E106,PCMSO!$B$13:$E$614,4,FALSE)) ->  | L106: =IF(G106="","",VLOOKUP(MONTH(G106),'C-A'!$J$13:$K$24,2,FALSE)) ->  | R106: 9.4e-05
C107: =IF(B107="","",VLOOKUP(B107,CAD_AREA!$CB$13:$CD$113,2,FALSE)) ->  | D107: =IF(B107="","",VLOOKUP(B107,CAD_AREA!$CB$13:$CD$113,3,FALSE)) ->  | F107: =IF(E107="","",VLOOKUP(E107,PCMSO!$B$13:$E$614,4,FALSE)) ->  | L107: =IF(G107="","",VLOOKUP(MONTH(G107),'C-A'!$J$13:$K$24,2,FALSE)) ->  | R107: 9.5e-05
C108: =IF(B108="","",VLOOKUP(B108,CAD_AREA!$CB$13:$CD$113,2,FALSE)) ->  | D108: =IF(B108="","",VLOOKUP(B108,CAD_AREA!$CB$13:$CD$113,3,FALSE)) ->  | F108: =IF(E108="","",VLOOKUP(E108,PCMSO!$B$13:$E$614,4,FALSE)) ->  | L108: =IF(G108="","",VLOOKUP(MONTH(G108),'C-A'!$J$13:$K$24,2,FALSE)) ->  | R108: 9.6e-05
C109: =IF(B109="","",VLOOKUP(B109,CAD_AREA!$CB$13:$CD$113,2,FALSE)) ->  | D109: =IF(B109="","",VLOOKUP(B109,CAD_AREA!$CB$13:$CD$113,3,FALSE)) ->  | F109: =IF(E109="","",VLOOKUP(E109,PCMSO!$B$13:$E$614,4,FALSE)) ->  | L109: =IF(G109="","",VLOOKUP(MONTH(G109),'C-A'!$J$13:$K$24,2,FALSE)) ->  | R109: 9.7e-05
C110: =IF(B110="","",VLOOKUP(B110,CAD_AREA!$CB$13:$CD$113,2,FALSE)) ->  | D110: =IF(B110="","",VLOOKUP(B110,CAD_AREA!$CB$13:$CD$113,3,FALSE)) ->  | F110: =IF(E110="","",VLOOKUP(E110,PCMSO!$B$13:$E$614,4,FALSE)) ->  | L110: =IF(G110="","",VLOOKUP(MONTH(G110),'C-A'!$J$13:$K$24,2,FALSE)) ->  | R110: 9.8e-05
C111: =IF(B111="","",VLOOKUP(B111,CAD_AREA!$CB$13:$CD$113,2,FALSE)) ->  | D111: =IF(B111="","",VLOOKUP(B111,CAD_AREA!$CB$13:$CD$113,3,FALSE)) ->  | F111: =IF(E111="","",VLOOKUP(E111,PCMSO!$B$13:$E$614,4,FALSE)) ->  | L111: =IF(G111="","",VLOOKUP(MONTH(G111),'C-A'!$J$13:$K$24,2,FALSE)) ->  | R111: 9.9e-05
C112: =IF(B112="","",VLOOKUP(B112,CAD_AREA!$CB$13:$CD$113,2,FALSE)) ->  | D112: =IF(B112="","",VLOOKUP(B112,CAD_AREA!$CB$13:$CD$113,3,FALSE)) ->  | F112: =IF(E112="","",VLOOKUP(E112,PCMSO!$B$13:$E$614,4,FALSE)) ->  | L112: =IF(G112="","",VLOOKUP(MONTH(G112),'C-A'!$J$13:$K$24,2,FALSE)) ->  | R112: 0.0001
C113: =IF(B113="","",VLOOKUP(B113,CAD_AREA!$CB$13:$CD$113,2,FALSE)) ->  | D113: =IF(B113="","",VLOOKUP(B113,CAD_AREA!$CB$13:$CD$113,3,FALSE)) ->  | F113: =IF(E113="","",VLOOKUP(E113,PCMSO!$B$13:$E$614,4,FALSE)) ->  | L113: =IF(G113="","",VLOOKUP(MONTH(G113),'C-A'!$J$13:$K$24,2,FALSE)) ->  | R113: 0.000101
C114: =IF(B114="","",VLOOKUP(B114,CAD_AREA!$CB$13:$CD$113,2,FALSE)) ->  | D114: =IF(B114="","",VLOOKUP(B114,CAD_AREA!$CB$13:$CD$113,3,FALSE)) ->  | F114: =IF(E114="","",VLOOKUP(E114,PCMSO!$B$13:$E$614,4,FALSE)) ->  | L114: =IF(G114="","",VLOOKUP(MONTH(G114),'C-A'!$J$13:$K$24,2,FALSE)) ->  | R114: 0.000102
C115: =IF(B115="","",VLOOKUP(B115,CAD_AREA!$CB$13:$CD$113,2,FALSE)) ->  | D115: =IF(B115="","",VLOOKUP(B115,CAD_AREA!$CB$13:$CD$113,3,FALSE)) ->  | F115: =IF(E115="","",VLOOKUP(E115,PCMSO!$B$13:$E$614,4,FALSE)) ->  | L115: =IF(G115="","",VLOOKUP(MONTH(G115),'C-A'!$J$13:$K$24,2,FALSE)) ->  | R115: 0.000103
C116: =IF(B116="","",VLOOKUP(B116,CAD_AREA!$CB$13:$CD$113,2,FALSE)) ->  | D116: =IF(B116="","",VLOOKUP(B116,CAD_AREA!$CB$13:$CD$113,3,FALSE)) ->  | F116: =IF(E116="","",VLOOKUP(E116,PCMSO!$B$13:$E$614,4,FALSE)) ->  | L116: =IF(G116="","",VLOOKUP(MONTH(G116),'C-A'!$J$13:$K$24,2,FALSE)) ->  | R116: 0.000104
C117: =IF(B117="","",VLOOKUP(B117,CAD_AREA!$CB$13:$CD$113,2,FALSE)) ->  | D117: =IF(B117="","",VLOOKUP(B117,CAD_AREA!$CB$13:$CD$113,3,FALSE)) ->  | F117: =IF(E117="","",VLOOKUP(E117,PCMSO!$B$13:$E$614,4,FALSE)) ->  | L117: =IF(G117="","",VLOOKUP(MONTH(G117),'C-A'!$J$13:$K$24,2,FALSE)) ->  | R117: 0.000105
C118: =IF(B118="","",VLOOKUP(B118,CAD_AREA!$CB$13:$CD$113,2,FALSE)) ->  | D118: =IF(B118="","",VLOOKUP(B118,CAD_AREA!$CB$13:$CD$113,3,FALSE)) ->  | F118: =IF(E118="","",VLOOKUP(E118,PCMSO!$B$13:$E$614,4,FALSE)) ->  | L118: =IF(G118="","",VLOOKUP(MONTH(G118),'C-A'!$J$13:$K$24,2,FALSE)) ->  | R118: 0.000106
C119: =IF(B119="","",VLOOKUP(B119,CAD_AREA!$CB$13:$CD$113,2,FALSE)) ->  | D119: =IF(B119="","",VLOOKUP(B119,CAD_AREA!$CB$13:$CD$113,3,FALSE)) ->  | F119: =IF(E119="","",VLOOKUP(E119,PCMSO!$B$13:$E$614,4,FALSE)) ->  | L119: =IF(G119="","",VLOOKUP(MONTH(G119),'C-A'!$J$13:$K$24,2,FALSE)) ->  | R119: 0.000107
C120: =IF(B120="","",VLOOKUP(B120,CAD_AREA!$CB$13:$CD$113,2,FALSE)) ->  | D120: =IF(B120="","",VLOOKUP(B120,CAD_AREA!$CB$13:$CD$113,3,FALSE)) ->  | F120: =IF(E120="","",VLOOKUP(E120,PCMSO!$B$13:$E$614,4,FALSE)) ->  | L120: =IF(G120="","",VLOOKUP(MONTH(G120),'C-A'!$J$13:$K$24,2,FALSE)) ->  | R120: 0.000108
C121: =IF(B121="","",VLOOKUP(B121,CAD_AREA!$CB$13:$CD$113,2,FALSE)) ->  | D121: =IF(B121="","",VLOOKUP(B121,CAD_AREA!$CB$13:$CD$113,3,FALSE)) ->  | F121: =IF(E121="","",VLOOKUP(E121,PCMSO!$B$13:$E$614,4,FALSE)) ->  | L121: =IF(G121="","",VLOOKUP(MONTH(G121),'C-A'!$J$13:$K$24,2,FALSE)) ->  | R121: 0.000109
C122: =IF(B122="","",VLOOKUP(B122,CAD_AREA!$CB$13:$CD$113,2,FALSE)) ->  | D122: =IF(B122="","",VLOOKUP(B122,CAD_AREA!$CB$13:$CD$113,3,FALSE)) ->  | F122: =IF(E122="","",VLOOKUP(E122,PCMSO!$B$13:$E$614,4,FALSE)) ->  | L122: =IF(G122="","",VLOOKUP(MONTH(G122),'C-A'!$J$13:$K$24,2,FALSE)) ->  | R122: 0.00011
C123: =IF(B123="","",VLOOKUP(B123,CAD_AREA!$CB$13:$CD$113,2,FALSE)) ->  | D123: =IF(B123="","",VLOOKUP(B123,CAD_AREA!$CB$13:$CD$113,3,FALSE)) ->  | F123: =IF(E123="","",VLOOKUP(E123,PCMSO!$B$13:$E$614,4,FALSE)) ->  | L123: =IF(G123="","",VLOOKUP(MONTH(G123),'C-A'!$J$13:$K$24,2,FALSE)) ->  | R123: 0.000111
C124: =IF(B124="","",VLOOKUP(B124,CAD_AREA!$CB$13:$CD$113,2,FALSE)) ->  | D124: =IF(B124="","",VLOOKUP(B124,CAD_AREA!$CB$13:$CD$113,3,FALSE)) ->  | F124: =IF(E124="","",VLOOKUP(E124,PCMSO!$B$13:$E$614,4,FALSE)) ->  | L124: =IF(G124="","",VLOOKUP(MONTH(G124),'C-A'!$J$13:$K$24,2,FALSE)) ->  | R124: 0.000112
C125: =IF(B125="","",VLOOKUP(B125,CAD_AREA!$CB$13:$CD$113,2,FALSE)) ->  | D125: =IF(B125="","",VLOOKUP(B125,CAD_AREA!$CB$13:$CD$113,3,FALSE)) ->  | F125: =IF(E125="","",VLOOKUP(E125,PCMSO!$B$13:$E$614,4,FALSE)) ->  | L125: =IF(G125="","",VLOOKUP(MONTH(G125),'C-A'!$J$13:$K$24,2,FALSE)) ->  | R125: 0.000113
C126: =IF(B126="","",VLOOKUP(B126,CAD_AREA!$CB$13:$CD$113,2,FALSE)) ->  | D126: =IF(B126="","",VLOOKUP(B126,CAD_AREA!$CB$13:$CD$113,3,FALSE)) ->  | F126: =IF(E126="","",VLOOKUP(E126,PCMSO!$B$13:$E$614,4,FALSE)) ->  | L126: =IF(G126="","",VLOOKUP(MONTH(G126),'C-A'!$J$13:$K$24,2,FALSE)) ->  | R126: 0.000114
C127: =IF(B127="","",VLOOKUP(B127,CAD_AREA!$CB$13:$CD$113,2,FALSE)) ->  | D127: =IF(B127="","",VLOOKUP(B127,CAD_AREA!$CB$13:$CD$113,3,FALSE)) ->  | F127: =IF(E127="","",VLOOKUP(E127,PCMSO!$B$13:$E$614,4,FALSE)) ->  | L127: =IF(G127="","",VLOOKUP(MONTH(G127),'C-A'!$J$13:$K$24,2,FALSE)) ->  | R127: 0.000115
C128: =IF(B128="","",VLOOKUP(B128,CAD_AREA!$CB$13:$CD$113,2,FALSE)) ->  | D128: =IF(B128="","",VLOOKUP(B128,CAD_AREA!$CB$13:$CD$113,3,FALSE)) ->  | F128: =IF(E128="","",VLOOKUP(E128,PCMSO!$B$13:$E$614,4,FALSE)) ->  | L128: =IF(G128="","",VLOOKUP(MONTH(G128),'C-A'!$J$13:$K$24,2,FALSE)) ->  | R128: 0.000116
C129: =IF(B129="","",VLOOKUP(B129,CAD_AREA!$CB$13:$CD$113,2,FALSE)) ->  | D129: =IF(B129="","",VLOOKUP(B129,CAD_AREA!$CB$13:$CD$113,3,FALSE)) ->  | F129: =IF(E129="","",VLOOKUP(E129,PCMSO!$B$13:$E$614,4,FALSE)) ->  | L129: =IF(G129="","",VLOOKUP(MONTH(G129),'C-A'!$J$13:$K$24,2,FALSE)) ->  | R129: 0.000117
C130: =IF(B130="","",VLOOKUP(B130,CAD_AREA!$CB$13:$CD$113,2,FALSE)) ->  | D130: =IF(B130="","",VLOOKUP(B130,CAD_AREA!$CB$13:$CD$113,3,FALSE)) ->  | F130: =IF(E130="","",VLOOKUP(E130,PCMSO!$B$13:$E$614,4,FALSE)) ->  | L130: =IF(G130="","",VLOOKUP(MONTH(G130),'C-A'!$J$13:$K$24,2,FALSE)) ->  | R130: 0.000118
C131: =IF(B131="","",VLOOKUP(B131,CAD_AREA!$CB$13:$CD$113,2,FALSE)) ->  | D131: =IF(B131="","",VLOOKUP(B131,CAD_AREA!$CB$13:$CD$113,3,FALSE)) ->  | F131: =IF(E131="","",VLOOKUP(E131,PCMSO!$B$13:$E$614,4,FALSE)) ->  | L131: =IF(G131="","",VLOOKUP(MONTH(G131),'C-A'!$J$13:$K$24,2,FALSE)) ->  | R131: 0.000119
C132: =IF(B132="","",VLOOKUP(B132,CAD_AREA!$CB$13:$CD$113,2,FALSE)) ->  | D132: =IF(B132="","",VLOOKUP(B132,CAD_AREA!$CB$13:$CD$113,3,FALSE)) ->  | F132: =IF(E132="","",VLOOKUP(E132,PCMSO!$B$13:$E$614,4,FALSE)) ->  | L132: =IF(G132="","",VLOOKUP(MONTH(G132),'C-A'!$J$13:$K$24,2,FALSE)) ->  | R132: 0.00012
C133: =IF(B133="","",VLOOKUP(B133,CAD_AREA!$CB$13:$CD$113,2,FALSE)) ->  | D133: =IF(B133="","",VLOOKUP(B133,CAD_AREA!$CB$13:$CD$113,3,FALSE)) ->  | F133: =IF(E133="","",VLOOKUP(E133,PCMSO!$B$13:$E$614,4,FALSE)) ->  | L133: =IF(G133="","",VLOOKUP(MONTH(G133),'C-A'!$J$13:$K$24,2,FALSE)) ->  | R133: 0.000121
C134: =IF(B134="","",VLOOKUP(B134,CAD_AREA!$CB$13:$CD$113,2,FALSE)) ->  | D134: =IF(B134="","",VLOOKUP(B134,CAD_AREA!$CB$13:$CD$113,3,FALSE)) ->  | F134: =IF(E134="","",VLOOKUP(E134,PCMSO!$B$13:$E$614,4,FALSE)) ->  | L134: =IF(G134="","",VLOOKUP(MONTH(G134),'C-A'!$J$13:$K$24,2,FALSE)) ->  | R134: 0.000122
C135: =IF(B135="","",VLOOKUP(B135,CAD_AREA!$CB$13:$CD$113,2,FALSE)) ->  | D135: =IF(B135="","",VLOOKUP(B135,CAD_AREA!$CB$13:$CD$113,3,FALSE)) ->  | F135: =IF(E135="","",VLOOKUP(E135,PCMSO!$B$13:$E$614,4,FALSE)) ->  | L135: =IF(G135="","",VLOOKUP(MONTH(G135),'C-A'!$J$13:$K$24,2,FALSE)) ->  | R135: 0.000123
C136: =IF(B136="","",VLOOKUP(B136,CAD_AREA!$CB$13:$CD$113,2,FALSE)) ->  | D136: =IF(B136="","",VLOOKUP(B136,CAD_AREA!$CB$13:$CD$113,3,FALSE)) ->  | F136: =IF(E136="","",VLOOKUP(E136,PCMSO!$B$13:$E$614,4,FALSE)) ->  | L136: =IF(G136="","",VLOOKUP(MONTH(G136),'C-A'!$J$13:$K$24,2,FALSE)) ->  | R136: 0.000124
C137: =IF(B137="","",VLOOKUP(B137,CAD_AREA!$CB$13:$CD$113,2,FALSE)) ->  | D137: =IF(B137="","",VLOOKUP(B137,CAD_AREA!$CB$13:$CD$113,3,FALSE)) ->  | F137: =IF(E137="","",VLOOKUP(E137,PCMSO!$B$13:$E$614,4,FALSE)) ->  | L137: =IF(G137="","",VLOOKUP(MONTH(G137),'C-A'!$J$13:$K$24,2,FALSE)) ->  | R137: 0.000125
C138: =IF(B138="","",VLOOKUP(B138,CAD_AREA!$CB$13:$CD$113,2,FALSE)) ->  | D138: =IF(B138="","",VLOOKUP(B138,CAD_AREA!$CB$13:$CD$113,3,FALSE)) ->  | F138: =IF(E138="","",VLOOKUP(E138,PCMSO!$B$13:$E$614,4,FALSE)) ->  | L138: =IF(G138="","",VLOOKUP(MONTH(G138),'C-A'!$J$13:$K$24,2,FALSE)) ->  | R138: 0.000126
C139: =IF(B139="","",VLOOKUP(B139,CAD_AREA!$CB$13:$CD$113,2,FALSE)) ->  | D139: =IF(B139="","",VLOOKUP(B139,CAD_AREA!$CB$13:$CD$113,3,FALSE)) ->  | F139: =IF(E139="","",VLOOKUP(E139,PCMSO!$B$13:$E$614,4,FALSE)) ->  | L139: =IF(G139="","",VLOOKUP(MONTH(G139),'C-A'!$J$13:$K$24,2,FALSE)) ->  | R139: 0.000127
C140: =IF(B140="","",VLOOKUP(B140,CAD_AREA!$CB$13:$CD$113,2,FALSE)) ->  | D140: =IF(B140="","",VLOOKUP(B140,CAD_AREA!$CB$13:$CD$113,3,FALSE)) ->  | F140: =IF(E140="","",VLOOKUP(E140,PCMSO!$B$13:$E$614,4,FALSE)) ->  | L140: =IF(G140="","",VLOOKUP(MONTH(G140),'C-A'!$J$13:$K$24,2,FALSE)) ->  | R140: 0.000128
C141: =IF(B141="","",VLOOKUP(B141,CAD_AREA!$CB$13:$CD$113,2,FALSE)) ->  | D141: =IF(B141="","",VLOOKUP(B141,CAD_AREA!$CB$13:$CD$113,3,FALSE)) ->  | F141: =IF(E141="","",VLOOKUP(E141,PCMSO!$B$13:$E$614,4,FALSE)) ->  | J141: =IF(F141="","",VLOOKUP(F141,$N$13:$O$19,2,FALSE)+G141) ->  | L141: =IF(G141="","",VLOOKUP(MONTH(G141),'C-A'!$J$13:$K$24,2,FALSE)) ->  | R141: 0.000129 | S141: =IF(K141="Vencido","",J141) -> 
C142: =IF(B142="","",VLOOKUP(B142,CAD_AREA!$CB$13:$CD$113,2,FALSE)) ->  | D142: =IF(B142="","",VLOOKUP(B142,CAD_AREA!$CB$13:$CD$113,3,FALSE)) ->  | F142: =IF(E142="","",VLOOKUP(E142,PCMSO!$B$13:$E$614,4,FALSE)) ->  | K142: =IF(J142="","",IF(J142-TODAY()<0,"Vencido",IF(J142-TODAY()=0,"Realizar hoje","Realizar em "&J142-TODAY()&" dias"))) ->  | L142: =IF(G142="","",VLOOKUP(MONTH(G142),'C-A'!$J$13:$K$24,2,FALSE)) ->  | R142: 0.00013
C143: =IF(B143="","",VLOOKUP(B143,CAD_AREA!$CB$13:$CD$113,2,FALSE)) ->  | D143: =IF(B143="","",VLOOKUP(B143,CAD_AREA!$CB$13:$CD$113,3,FALSE)) ->  | F143: =IF(E143="","",VLOOKUP(E143,PCMSO!$B$13:$E$614,4,FALSE)) ->  | L143: =IF(G143="","",VLOOKUP(MONTH(G143),'C-A'!$J$13:$K$24,2,FALSE)) ->  | R143: =R142+$R$13 -> 0.000131
C144: =IF(B144="","",VLOOKUP(B144,CAD_AREA!$CB$13:$CD$113,2,FALSE)) ->  | D144: =IF(B144="","",VLOOKUP(B144,CAD_AREA!$CB$13:$CD$113,3,FALSE)) ->  | F144: =IF(E144="","",VLOOKUP(E144,PCMSO!$B$13:$E$614,4,FALSE)) ->  | L144: =IF(G144="","",VLOOKUP(MONTH(G144),'C-A'!$J$13:$K$24,2,FALSE)) ->  | R144: 0.000132
C145: =IF(B145="","",VLOOKUP(B145,CAD_AREA!$CB$13:$CD$113,2,FALSE)) ->  | D145: =IF(B145="","",VLOOKUP(B145,CAD_AREA!$CB$13:$CD$113,3,FALSE)) ->  | F145: =IF(E145="","",VLOOKUP(E145,PCMSO!$B$13:$E$614,4,FALSE)) ->  | L145: =IF(G145="","",VLOOKUP(MONTH(G145),'C-A'!$J$13:$K$24,2,FALSE)) ->  | R145: 0.000133
C146: =IF(B146="","",VLOOKUP(B146,CAD_AREA!$CB$13:$CD$113,2,FALSE)) ->  | D146: =IF(B146="","",VLOOKUP(B146,CAD_AREA!$CB$13:$CD$113,3,FALSE)) ->  | F146: =IF(E146="","",VLOOKUP(E146,PCMSO!$B$13:$E$614,4,FALSE)) ->  | L146: =IF(G146="","",VLOOKUP(MONTH(G146),'C-A'!$J$13:$K$24,2,FALSE)) ->  | R146: 0.000134
C147: =IF(B147="","",VLOOKUP(B147,CAD_AREA!$CB$13:$CD$113,2,FALSE)) ->  | D147: =IF(B147="","",VLOOKUP(B147,CAD_AREA!$CB$13:$CD$113,3,FALSE)) ->  | F147: =IF(E147="","",VLOOKUP(E147,PCMSO!$B$13:$E$614,4,FALSE)) ->  | L147: =IF(G147="","",VLOOKUP(MONTH(G147),'C-A'!$J$13:$K$24,2,FALSE)) ->  | R147: 0.000135
C148: =IF(B148="","",VLOOKUP(B148,CAD_AREA!$CB$13:$CD$113,2,FALSE)) ->  | D148: =IF(B148="","",VLOOKUP(B148,CAD_AREA!$CB$13:$CD$113,3,FALSE)) ->  | F148: =IF(E148="","",VLOOKUP(E148,PCMSO!$B$13:$E$614,4,FALSE)) ->  | L148: =IF(G148="","",VLOOKUP(MONTH(G148),'C-A'!$J$13:$K$24,2,FALSE)) ->  | R148: 0.000136
C149: =IF(B149="","",VLOOKUP(B149,CAD_AREA!$CB$13:$CD$113,2,FALSE)) ->  | D149: =IF(B149="","",VLOOKUP(B149,CAD_AREA!$CB$13:$CD$113,3,FALSE)) ->  | F149: =IF(E149="","",VLOOKUP(E149,PCMSO!$B$13:$E$614,4,FALSE)) ->  | L149: =IF(G149="","",VLOOKUP(MONTH(G149),'C-A'!$J$13:$K$24,2,FALSE)) ->  | R149: 0.000137
C150: =IF(B150="","",VLOOKUP(B150,CAD_AREA!$CB$13:$CD$113,2,FALSE)) ->  | D150: =IF(B150="","",VLOOKUP(B150,CAD_AREA!$CB$13:$CD$113,3,FALSE)) ->  | F150: =IF(E150="","",VLOOKUP(E150,PCMSO!$B$13:$E$614,4,FALSE)) ->  | L150: =IF(G150="","",VLOOKUP(MONTH(G150),'C-A'!$J$13:$K$24,2,FALSE)) ->  | R150: 0.000138
C151: =IF(B151="","",VLOOKUP(B151,CAD_AREA!$CB$13:$CD$113,2,FALSE)) ->  | D151: =IF(B151="","",VLOOKUP(B151,CAD_AREA!$CB$13:$CD$113,3,FALSE)) ->  | F151: =IF(E151="","",VLOOKUP(E151,PCMSO!$B$13:$E$614,4,FALSE)) ->  | L151: =IF(G151="","",VLOOKUP(MONTH(G151),'C-A'!$J$13:$K$24,2,FALSE)) ->  | R151: 0.000139
C152: =IF(B152="","",VLOOKUP(B152,CAD_AREA!$CB$13:$CD$113,2,FALSE)) ->  | D152: =IF(B152="","",VLOOKUP(B152,CAD_AREA!$CB$13:$CD$113,3,FALSE)) ->  | F152: =IF(E152="","",VLOOKUP(E152,PCMSO!$B$13:$E$614,4,FALSE)) ->  | L152: =IF(G152="","",VLOOKUP(MONTH(G152),'C-A'!$J$13:$K$24,2,FALSE)) ->  | R152: 0.00014
C153: =IF(B153="","",VLOOKUP(B153,CAD_AREA!$CB$13:$CD$113,2,FALSE)) ->  | D153: =IF(B153="","",VLOOKUP(B153,CAD_AREA!$CB$13:$CD$113,3,FALSE)) ->  | F153: =IF(E153="","",VLOOKUP(E153,PCMSO!$B$13:$E$614,4,FALSE)) ->  | L153: =IF(G153="","",VLOOKUP(MONTH(G153),'C-A'!$J$13:$K$24,2,FALSE)) ->  | R153: 0.000141
C154: =IF(B154="","",VLOOKUP(B154,CAD_AREA!$CB$13:$CD$113,2,FALSE)) ->  | D154: =IF(B154="","",VLOOKUP(B154,CAD_AREA!$CB$13:$CD$113,3,FALSE)) ->  | F154: =IF(E154="","",VLOOKUP(E154,PCMSO!$B$13:$E$614,4,FALSE)) ->  | L154: =IF(G154="","",VLOOKUP(MONTH(G154),'C-A'!$J$13:$K$24,2,FALSE)) ->  | R154: 0.000142
C155: =IF(B155="","",VLOOKUP(B155,CAD_AREA!$CB$13:$CD$113,2,FALSE)) ->  | D155: =IF(B155="","",VLOOKUP(B155,CAD_AREA!$CB$13:$CD$113,3,FALSE)) ->  | F155: =IF(E155="","",VLOOKUP(E155,PCMSO!$B$13:$E$614,4,FALSE)) ->  | L155: =IF(G155="","",VLOOKUP(MONTH(G155),'C-A'!$J$13:$K$24,2,FALSE)) ->  | R155: 0.000143
C156: =IF(B156="","",VLOOKUP(B156,CAD_AREA!$CB$13:$CD$113,2,FALSE)) ->  | D156: =IF(B156="","",VLOOKUP(B156,CAD_AREA!$CB$13:$CD$113,3,FALSE)) ->  | F156: =IF(E156="","",VLOOKUP(E156,PCMSO!$B$13:$E$614,4,FALSE)) ->  | L156: =IF(G156="","",VLOOKUP(MONTH(G156),'C-A'!$J$13:$K$24,2,FALSE)) ->  | R156: 0.000144
C157: =IF(B157="","",VLOOKUP(B157,CAD_AREA!$CB$13:$CD$113,2,FALSE)) ->  | D157: =IF(B157="","",VLOOKUP(B157,CAD_AREA!$CB$13:$CD$113,3,FALSE)) ->  | F157: =IF(E157="","",VLOOKUP(E157,PCMSO!$B$13:$E$614,4,FALSE)) ->  | L157: =IF(G157="","",VLOOKUP(MONTH(G157),'C-A'!$J$13:$K$24,2,FALSE)) ->  | R157: 0.000145
C158: =IF(B158="","",VLOOKUP(B158,CAD_AREA!$CB$13:$CD$113,2,FALSE)) ->  | D158: =IF(B158="","",VLOOKUP(B158,CAD_AREA!$CB$13:$CD$113,3,FALSE)) ->  | F158: =IF(E158="","",VLOOKUP(E158,PCMSO!$B$13:$E$614,4,FALSE)) ->  | L158: =IF(G158="","",VLOOKUP(MONTH(G158),'C-A'!$J$13:$K$24,2,FALSE)) ->  | R158: 0.000146
C159: =IF(B159="","",VLOOKUP(B159,CAD_AREA!$CB$13:$CD$113,2,FALSE)) ->  | D159: =IF(B159="","",VLOOKUP(B159,CAD_AREA!$CB$13:$CD$113,3,FALSE)) ->  | F159: =IF(E159="","",VLOOKUP(E159,PCMSO!$B$13:$E$614,4,FALSE)) ->  | L159: =IF(G159="","",VLOOKUP(MONTH(G159),'C-A'!$J$13:$K$24,2,FALSE)) ->  | R159: 0.000147
C160: =IF(B160="","",VLOOKUP(B160,CAD_AREA!$CB$13:$CD$113,2,FALSE)) ->  | D160: =IF(B160="","",VLOOKUP(B160,CAD_AREA!$CB$13:$CD$113,3,FALSE)) ->  | F160: =IF(E160="","",VLOOKUP(E160,PCMSO!$B$13:$E$614,4,FALSE)) ->  | L160: =IF(G160="","",VLOOKUP(MONTH(G160),'C-A'!$J$13:$K$24,2,FALSE)) ->  | R160: 0.000148
C161: =IF(B161="","",VLOOKUP(B161,CAD_AREA!$CB$13:$CD$113,2,FALSE)) ->  | D161: =IF(B161="","",VLOOKUP(B161,CAD_AREA!$CB$13:$CD$113,3,FALSE)) ->  | F161: =IF(E161="","",VLOOKUP(E161,PCMSO!$B$13:$E$614,4,FALSE)) ->  | L161: =IF(G161="","",VLOOKUP(MONTH(G161),'C-A'!$J$13:$K$24,2,FALSE)) ->  | R161: 0.000149
C162: =IF(B162="","",VLOOKUP(B162,CAD_AREA!$CB$13:$CD$113,2,FALSE)) ->  | D162: =IF(B162="","",VLOOKUP(B162,CAD_AREA!$CB$13:$CD$113,3,FALSE)) ->  | F162: =IF(E162="","",VLOOKUP(E162,PCMSO!$B$13:$E$614,4,FALSE)) ->  | L162: =IF(G162="","",VLOOKUP(MONTH(G162),'C-A'!$J$13:$K$24,2,FALSE)) ->  | R162: 0.00015
C163: =IF(B163="","",VLOOKUP(B163,CAD_AREA!$CB$13:$CD$113,2,FALSE)) ->  | D163: =IF(B163="","",VLOOKUP(B163,CAD_AREA!$CB$13:$CD$113,3,FALSE)) ->  | F163: =IF(E163="","",VLOOKUP(E163,PCMSO!$B$13:$E$614,4,FALSE)) ->  | L163: =IF(G163="","",VLOOKUP(MONTH(G163),'C-A'!$J$13:$K$24,2,FALSE)) ->  | R163: 0.000151
C164: =IF(B164="","",VLOOKUP(B164,CAD_AREA!$CB$13:$CD$113,2,FALSE)) ->  | D164: =IF(B164="","",VLOOKUP(B164,CAD_AREA!$CB$13:$CD$113,3,FALSE)) ->  | F164: =IF(E164="","",VLOOKUP(E164,PCMSO!$B$13:$E$614,4,FALSE)) ->  | L164: =IF(G164="","",VLOOKUP(MONTH(G164),'C-A'!$J$13:$K$24,2,FALSE)) ->  | R164: 0.000152
C165: =IF(B165="","",VLOOKUP(B165,CAD_AREA!$CB$13:$CD$113,2,FALSE)) ->  | D165: =IF(B165="","",VLOOKUP(B165,CAD_AREA!$CB$13:$CD$113,3,FALSE)) ->  | F165: =IF(E165="","",VLOOKUP(E165,PCMSO!$B$13:$E$614,4,FALSE)) ->  | L165: =IF(G165="","",VLOOKUP(MONTH(G165),'C-A'!$J$13:$K$24,2,FALSE)) ->  | R165: 0.000153
C166: =IF(B166="","",VLOOKUP(B166,CAD_AREA!$CB$13:$CD$113,2,FALSE)) ->  | D166: =IF(B166="","",VLOOKUP(B166,CAD_AREA!$CB$13:$CD$113,3,FALSE)) ->  | F166: =IF(E166="","",VLOOKUP(E166,PCMSO!$B$13:$E$614,4,FALSE)) ->  | L166: =IF(G166="","",VLOOKUP(MONTH(G166),'C-A'!$J$13:$K$24,2,FALSE)) ->  | R166: 0.000154
C167: =IF(B167="","",VLOOKUP(B167,CAD_AREA!$CB$13:$CD$113,2,FALSE)) ->  | D167: =IF(B167="","",VLOOKUP(B167,CAD_AREA!$CB$13:$CD$113,3,FALSE)) ->  | F167: =IF(E167="","",VLOOKUP(E167,PCMSO!$B$13:$E$614,4,FALSE)) ->  | L167: =IF(G167="","",VLOOKUP(MONTH(G167),'C-A'!$J$13:$K$24,2,FALSE)) ->  | R167: 0.000155
C168: =IF(B168="","",VLOOKUP(B168,CAD_AREA!$CB$13:$CD$113,2,FALSE)) ->  | D168: =IF(B168="","",VLOOKUP(B168,CAD_AREA!$CB$13:$CD$113,3,FALSE)) ->  | F168: =IF(E168="","",VLOOKUP(E168,PCMSO!$B$13:$E$614,4,FALSE)) ->  | L168: =IF(G168="","",VLOOKUP(MONTH(G168),'C-A'!$J$13:$K$24,2,FALSE)) ->  | R168: 0.000156
C169: =IF(B169="","",VLOOKUP(B169,CAD_AREA!$CB$13:$CD$113,2,FALSE)) ->  | D169: =IF(B169="","",VLOOKUP(B169,CAD_AREA!$CB$13:$CD$113,3,FALSE)) ->  | F169: =IF(E169="","",VLOOKUP(E169,PCMSO!$B$13:$E$614,4,FALSE)) ->  | L169: =IF(G169="","",VLOOKUP(MONTH(G169),'C-A'!$J$13:$K$24,2,FALSE)) ->  | R169: 0.000157
C170: =IF(B170="","",VLOOKUP(B170,CAD_AREA!$CB$13:$CD$113,2,FALSE)) ->  | D170: =IF(B170="","",VLOOKUP(B170,CAD_AREA!$CB$13:$CD$113,3,FALSE)) ->  | F170: =IF(E170="","",VLOOKUP(E170,PCMSO!$B$13:$E$614,4,FALSE)) ->  | L170: =IF(G170="","",VLOOKUP(MONTH(G170),'C-A'!$J$13:$K$24,2,FALSE)) ->  | R170: 0.000158
C171: =IF(B171="","",VLOOKUP(B171,CAD_AREA!$CB$13:$CD$113,2,FALSE)) ->  | D171: =IF(B171="","",VLOOKUP(B171,CAD_AREA!$CB$13:$CD$113,3,FALSE)) ->  | F171: =IF(E171="","",VLOOKUP(E171,PCMSO!$B$13:$E$614,4,FALSE)) ->  | L171: =IF(G171="","",VLOOKUP(MONTH(G171),'C-A'!$J$13:$K$24,2,FALSE)) ->  | R171: 0.000159
C172: =IF(B172="","",VLOOKUP(B172,CAD_AREA!$CB$13:$CD$113,2,FALSE)) ->  | D172: =IF(B172="","",VLOOKUP(B172,CAD_AREA!$CB$13:$CD$113,3,FALSE)) ->  | F172: =IF(E172="","",VLOOKUP(E172,PCMSO!$B$13:$E$614,4,FALSE)) ->  | L172: =IF(G172="","",VLOOKUP(MONTH(G172),'C-A'!$J$13:$K$24,2,FALSE)) ->  | R172: 0.00016
C173: =IF(B173="","",VLOOKUP(B173,CAD_AREA!$CB$13:$CD$113,2,FALSE)) ->  | D173: =IF(B173="","",VLOOKUP(B173,CAD_AREA!$CB$13:$CD$113,3,FALSE)) ->  | F173: =IF(E173="","",VLOOKUP(E173,PCMSO!$B$13:$E$614,4,FALSE)) ->  | L173: =IF(G173="","",VLOOKUP(MONTH(G173),'C-A'!$J$13:$K$24,2,FALSE)) ->  | R173: 0.000161
C174: =IF(B174="","",VLOOKUP(B174,CAD_AREA!$CB$13:$CD$113,2,FALSE)) ->  | D174: =IF(B174="","",VLOOKUP(B174,CAD_AREA!$CB$13:$CD$113,3,FALSE)) ->  | F174: =IF(E174="","",VLOOKUP(E174,PCMSO!$B$13:$E$614,4,FALSE)) ->  | L174: =IF(G174="","",VLOOKUP(MONTH(G174),'C-A'!$J$13:$K$24,2,FALSE)) ->  | R174: 0.000162
C175: =IF(B175="","",VLOOKUP(B175,CAD_AREA!$CB$13:$CD$113,2,FALSE)) ->  | D175: =IF(B175="","",VLOOKUP(B175,CAD_AREA!$CB$13:$CD$113,3,FALSE)) ->  | F175: =IF(E175="","",VLOOKUP(E175,PCMSO!$B$13:$E$614,4,FALSE)) ->  | L175: =IF(G175="","",VLOOKUP(MONTH(G175),'C-A'!$J$13:$K$24,2,FALSE)) ->  | R175: 0.000163
C176: =IF(B176="","",VLOOKUP(B176,CAD_AREA!$CB$13:$CD$113,2,FALSE)) ->  | D176: =IF(B176="","",VLOOKUP(B176,CAD_AREA!$CB$13:$CD$113,3,FALSE)) ->  | F176: =IF(E176="","",VLOOKUP(E176,PCMSO!$B$13:$E$614,4,FALSE)) ->  | L176: =IF(G176="","",VLOOKUP(MONTH(G176),'C-A'!$J$13:$K$24,2,FALSE)) ->  | R176: 0.000164
C177: =IF(B177="","",VLOOKUP(B177,CAD_AREA!$CB$13:$CD$113,2,FALSE)) ->  | D177: =IF(B177="","",VLOOKUP(B177,CAD_AREA!$CB$13:$CD$113,3,FALSE)) ->  | F177: =IF(E177="","",VLOOKUP(E177,PCMSO!$B$13:$E$614,4,FALSE)) ->  | L177: =IF(G177="","",VLOOKUP(MONTH(G177),'C-A'!$J$13:$K$24,2,FALSE)) ->  | R177: 0.000165
C178: =IF(B178="","",VLOOKUP(B178,CAD_AREA!$CB$13:$CD$113,2,FALSE)) ->  | D178: =IF(B178="","",VLOOKUP(B178,CAD_AREA!$CB$13:$CD$113,3,FALSE)) ->  | F178: =IF(E178="","",VLOOKUP(E178,PCMSO!$B$13:$E$614,4,FALSE)) ->  | L178: =IF(G178="","",VLOOKUP(MONTH(G178),'C-A'!$J$13:$K$24,2,FALSE)) ->  | R178: 0.000166
C179: =IF(B179="","",VLOOKUP(B179,CAD_AREA!$CB$13:$CD$113,2,FALSE)) ->  | D179: =IF(B179="","",VLOOKUP(B179,CAD_AREA!$CB$13:$CD$113,3,FALSE)) ->  | F179: =IF(E179="","",VLOOKUP(E179,PCMSO!$B$13:$E$614,4,FALSE)) ->  | L179: =IF(G179="","",VLOOKUP(MONTH(G179),'C-A'!$J$13:$K$24,2,FALSE)) ->  | R179: 0.000167
C180: =IF(B180="","",VLOOKUP(B180,CAD_AREA!$CB$13:$CD$113,2,FALSE)) ->  | D180: =IF(B180="","",VLOOKUP(B180,CAD_AREA!$CB$13:$CD$113,3,FALSE)) ->  | F180: =IF(E180="","",VLOOKUP(E180,PCMSO!$B$13:$E$614,4,FALSE)) ->  | L180: =IF(G180="","",VLOOKUP(MONTH(G180),'C-A'!$J$13:$K$24,2,FALSE)) ->  | R180: 0.000168
C181: =IF(B181="","",VLOOKUP(B181,CAD_AREA!$CB$13:$CD$113,2,FALSE)) ->  | D181: =IF(B181="","",VLOOKUP(B181,CAD_AREA!$CB$13:$CD$113,3,FALSE)) ->  | F181: =IF(E181="","",VLOOKUP(E181,PCMSO!$B$13:$E$614,4,FALSE)) ->  | L181: =IF(G181="","",VLOOKUP(MONTH(G181),'C-A'!$J$13:$K$24,2,FALSE)) ->  | R181: 0.000169
C182: =IF(B182="","",VLOOKUP(B182,CAD_AREA!$CB$13:$CD$113,2,FALSE)) ->  | D182: =IF(B182="","",VLOOKUP(B182,CAD_AREA!$CB$13:$CD$113,3,FALSE)) ->  | F182: =IF(E182="","",VLOOKUP(E182,PCMSO!$B$13:$E$614,4,FALSE)) ->  | L182: =IF(G182="","",VLOOKUP(MONTH(G182),'C-A'!$J$13:$K$24,2,FALSE)) ->  | R182: 0.00017
C183: =IF(B183="","",VLOOKUP(B183,CAD_AREA!$CB$13:$CD$113,2,FALSE)) ->  | D183: =IF(B183="","",VLOOKUP(B183,CAD_AREA!$CB$13:$CD$113,3,FALSE)) ->  | F183: =IF(E183="","",VLOOKUP(E183,PCMSO!$B$13:$E$614,4,FALSE)) ->  | L183: =IF(G183="","",VLOOKUP(MONTH(G183),'C-A'!$J$13:$K$24,2,FALSE)) ->  | R183: 0.000171
C184: =IF(B184="","",VLOOKUP(B184,CAD_AREA!$CB$13:$CD$113,2,FALSE)) ->  | D184: =IF(B184="","",VLOOKUP(B184,CAD_AREA!$CB$13:$CD$113,3,FALSE)) ->  | F184: =IF(E184="","",VLOOKUP(E184,PCMSO!$B$13:$E$614,4,FALSE)) ->  | L184: =IF(G184="","",VLOOKUP(MONTH(G184),'C-A'!$J$13:$K$24,2,FALSE)) ->  | R184: 0.000172
C185: =IF(B185="","",VLOOKUP(B185,CAD_AREA!$CB$13:$CD$113,2,FALSE)) ->  | D185: =IF(B185="","",VLOOKUP(B185,CAD_AREA!$CB$13:$CD$113,3,FALSE)) ->  | F185: =IF(E185="","",VLOOKUP(E185,PCMSO!$B$13:$E$614,4,FALSE)) ->  | L185: =IF(G185="","",VLOOKUP(MONTH(G185),'C-A'!$J$13:$K$24,2,FALSE)) ->  | R185: 0.000173
C186: =IF(B186="","",VLOOKUP(B186,CAD_AREA!$CB$13:$CD$113,2,FALSE)) ->  | D186: =IF(B186="","",VLOOKUP(B186,CAD_AREA!$CB$13:$CD$113,3,FALSE)) ->  | F186: =IF(E186="","",VLOOKUP(E186,PCMSO!$B$13:$E$614,4,FALSE)) ->  | L186: =IF(G186="","",VLOOKUP(MONTH(G186),'C-A'!$J$13:$K$24,2,FALSE)) ->  | R186: 0.000174
C187: =IF(B187="","",VLOOKUP(B187,CAD_AREA!$CB$13:$CD$113,2,FALSE)) ->  | D187: =IF(B187="","",VLOOKUP(B187,CAD_AREA!$CB$13:$CD$113,3,FALSE)) ->  | F187: =IF(E187="","",VLOOKUP(E187,PCMSO!$B$13:$E$614,4,FALSE)) ->  | L187: =IF(G187="","",VLOOKUP(MONTH(G187),'C-A'!$J$13:$K$24,2,FALSE)) ->  | R187: 0.000175
C188: =IF(B188="","",VLOOKUP(B188,CAD_AREA!$CB$13:$CD$113,2,FALSE)) ->  | D188: =IF(B188="","",VLOOKUP(B188,CAD_AREA!$CB$13:$CD$113,3,FALSE)) ->  | F188: =IF(E188="","",VLOOKUP(E188,PCMSO!$B$13:$E$614,4,FALSE)) ->  | L188: =IF(G188="","",VLOOKUP(MONTH(G188),'C-A'!$J$13:$K$24,2,FALSE)) ->  | R188: 0.000176
C189: =IF(B189="","",VLOOKUP(B189,CAD_AREA!$CB$13:$CD$113,2,FALSE)) ->  | D189: =IF(B189="","",VLOOKUP(B189,CAD_AREA!$CB$13:$CD$113,3,FALSE)) ->  | F189: =IF(E189="","",VLOOKUP(E189,PCMSO!$B$13:$E$614,4,FALSE)) ->  | L189: =IF(G189="","",VLOOKUP(MONTH(G189),'C-A'!$J$13:$K$24,2,FALSE)) ->  | R189: 0.000177
C190: =IF(B190="","",VLOOKUP(B190,CAD_AREA!$CB$13:$CD$113,2,FALSE)) ->  | D190: =IF(B190="","",VLOOKUP(B190,CAD_AREA!$CB$13:$CD$113,3,FALSE)) ->  | F190: =IF(E190="","",VLOOKUP(E190,PCMSO!$B$13:$E$614,4,FALSE)) ->  | L190: =IF(G190="","",VLOOKUP(MONTH(G190),'C-A'!$J$13:$K$24,2,FALSE)) ->  | R190: 0.000178
C191: =IF(B191="","",VLOOKUP(B191,CAD_AREA!$CB$13:$CD$113,2,FALSE)) ->  | D191: =IF(B191="","",VLOOKUP(B191,CAD_AREA!$CB$13:$CD$113,3,FALSE)) ->  | F191: =IF(E191="","",VLOOKUP(E191,PCMSO!$B$13:$E$614,4,FALSE)) ->  | L191: =IF(G191="","",VLOOKUP(MONTH(G191),'C-A'!$J$13:$K$24,2,FALSE)) ->  | R191: 0.000179
C192: =IF(B192="","",VLOOKUP(B192,CAD_AREA!$CB$13:$CD$113,2,FALSE)) ->  | D192: =IF(B192="","",VLOOKUP(B192,CAD_AREA!$CB$13:$CD$113,3,FALSE)) ->  | F192: =IF(E192="","",VLOOKUP(E192,PCMSO!$B$13:$E$614,4,FALSE)) ->  | L192: =IF(G192="","",VLOOKUP(MONTH(G192),'C-A'!$J$13:$K$24,2,FALSE)) ->  | R192: 0.00018
C193: =IF(B193="","",VLOOKUP(B193,CAD_AREA!$CB$13:$CD$113,2,FALSE)) ->  | D193: =IF(B193="","",VLOOKUP(B193,CAD_AREA!$CB$13:$CD$113,3,FALSE)) ->  | F193: =IF(E193="","",VLOOKUP(E193,PCMSO!$B$13:$E$614,4,FALSE)) ->  | L193: =IF(G193="","",VLOOKUP(MONTH(G193),'C-A'!$J$13:$K$24,2,FALSE)) ->  | R193: 0.000181
C194: =IF(B194="","",VLOOKUP(B194,CAD_AREA!$CB$13:$CD$113,2,FALSE)) ->  | D194: =IF(B194="","",VLOOKUP(B194,CAD_AREA!$CB$13:$CD$113,3,FALSE)) ->  | F194: =IF(E194="","",VLOOKUP(E194,PCMSO!$B$13:$E$614,4,FALSE)) ->  | L194: =IF(G194="","",VLOOKUP(MONTH(G194),'C-A'!$J$13:$K$24,2,FALSE)) ->  | R194: 0.000182
C195: =IF(B195="","",VLOOKUP(B195,CAD_AREA!$CB$13:$CD$113,2,FALSE)) ->  | D195: =IF(B195="","",VLOOKUP(B195,CAD_AREA!$CB$13:$CD$113,3,FALSE)) ->  | F195: =IF(E195="","",VLOOKUP(E195,PCMSO!$B$13:$E$614,4,FALSE)) ->  | L195: =IF(G195="","",VLOOKUP(MONTH(G195),'C-A'!$J$13:$K$24,2,FALSE)) ->  | R195: 0.000183
C196: =IF(B196="","",VLOOKUP(B196,CAD_AREA!$CB$13:$CD$113,2,FALSE)) ->  | D196: =IF(B196="","",VLOOKUP(B196,CAD_AREA!$CB$13:$CD$113,3,FALSE)) ->  | F196: =IF(E196="","",VLOOKUP(E196,PCMSO!$B$13:$E$614,4,FALSE)) ->  | L196: =IF(G196="","",VLOOKUP(MONTH(G196),'C-A'!$J$13:$K$24,2,FALSE)) ->  | R196: 0.000184
C197: =IF(B197="","",VLOOKUP(B197,CAD_AREA!$CB$13:$CD$113,2,FALSE)) ->  | D197: =IF(B197="","",VLOOKUP(B197,CAD_AREA!$CB$13:$CD$113,3,FALSE)) ->  | F197: =IF(E197="","",VLOOKUP(E197,PCMSO!$B$13:$E$614,4,FALSE)) ->  | L197: =IF(G197="","",VLOOKUP(MONTH(G197),'C-A'!$J$13:$K$24,2,FALSE)) ->  | R197: 0.000185
C198: =IF(B198="","",VLOOKUP(B198,CAD_AREA!$CB$13:$CD$113,2,FALSE)) ->  | D198: =IF(B198="","",VLOOKUP(B198,CAD_AREA!$CB$13:$CD$113,3,FALSE)) ->  | F198: =IF(E198="","",VLOOKUP(E198,PCMSO!$B$13:$E$614,4,FALSE)) ->  | L198: =IF(G198="","",VLOOKUP(MONTH(G198),'C-A'!$J$13:$K$24,2,FALSE)) ->  | R198: 0.000186
C199: =IF(B199="","",VLOOKUP(B199,CAD_AREA!$CB$13:$CD$113,2,FALSE)) ->  | D199: =IF(B199="","",VLOOKUP(B199,CAD_AREA!$CB$13:$CD$113,3,FALSE)) ->  | F199: =IF(E199="","",VLOOKUP(E199,PCMSO!$B$13:$E$614,4,FALSE)) ->  | L199: =IF(G199="","",VLOOKUP(MONTH(G199),'C-A'!$J$13:$K$24,2,FALSE)) ->  | R199: 0.000187
C200: =IF(B200="","",VLOOKUP(B200,CAD_AREA!$CB$13:$CD$113,2,FALSE)) ->  | D200: =IF(B200="","",VLOOKUP(B200,CAD_AREA!$CB$13:$CD$113,3,FALSE)) ->  | F200: =IF(E200="","",VLOOKUP(E200,PCMSO!$B$13:$E$614,4,FALSE)) ->  | L200: =IF(G200="","",VLOOKUP(MONTH(G200),'C-A'!$J$13:$K$24,2,FALSE)) ->  | R200: 0.000188
C201: =IF(B201="","",VLOOKUP(B201,CAD_AREA!$CB$13:$CD$113,2,FALSE)) ->  | D201: =IF(B201="","",VLOOKUP(B201,CAD_AREA!$CB$13:$CD$113,3,FALSE)) ->  | F201: =IF(E201="","",VLOOKUP(E201,PCMSO!$B$13:$E$614,4,FALSE)) ->  | L201: =IF(G201="","",VLOOKUP(MONTH(G201),'C-A'!$J$13:$K$24,2,FALSE)) ->  | R201: 0.000189
C202: =IF(B202="","",VLOOKUP(B202,CAD_AREA!$CB$13:$CD$113,2,FALSE)) ->  | D202: =IF(B202="","",VLOOKUP(B202,CAD_AREA!$CB$13:$CD$113,3,FALSE)) ->  | F202: =IF(E202="","",VLOOKUP(E202,PCMSO!$B$13:$E$614,4,FALSE)) ->  | L202: =IF(G202="","",VLOOKUP(MONTH(G202),'C-A'!$J$13:$K$24,2,FALSE)) ->  | R202: 0.00019
C203: =IF(B203="","",VLOOKUP(B203,CAD_AREA!$CB$13:$CD$113,2,FALSE)) ->  | D203: =IF(B203="","",VLOOKUP(B203,CAD_AREA!$CB$13:$CD$113,3,FALSE)) ->  | F203: =IF(E203="","",VLOOKUP(E203,PCMSO!$B$13:$E$614,4,FALSE)) ->  | L203: =IF(G203="","",VLOOKUP(MONTH(G203),'C-A'!$J$13:$K$24,2,FALSE)) ->  | R203: 0.000191
C204: =IF(B204="","",VLOOKUP(B204,CAD_AREA!$CB$13:$CD$113,2,FALSE)) ->  | D204: =IF(B204="","",VLOOKUP(B204,CAD_AREA!$CB$13:$CD$113,3,FALSE)) ->  | F204: =IF(E204="","",VLOOKUP(E204,PCMSO!$B$13:$E$614,4,FALSE)) ->  | L204: =IF(G204="","",VLOOKUP(MONTH(G204),'C-A'!$J$13:$K$24,2,FALSE)) ->  | R204: 0.000192
C205: =IF(B205="","",VLOOKUP(B205,CAD_AREA!$CB$13:$CD$113,2,FALSE)) ->  | D205: =IF(B205="","",VLOOKUP(B205,CAD_AREA!$CB$13:$CD$113,3,FALSE)) ->  | F205: =IF(E205="","",VLOOKUP(E205,PCMSO!$B$13:$E$614,4,FALSE)) ->  | J205: =IF(F205="","",VLOOKUP(F205,$N$13:$O$19,2,FALSE)+G205) ->  | L205: =IF(G205="","",VLOOKUP(MONTH(G205),'C-A'!$J$13:$K$24,2,FALSE)) ->  | R205: 0.000193 | S205: =IF(K205="Vencido","",J205) -> 
C206: =IF(B206="","",VLOOKUP(B206,CAD_AREA!$CB$13:$CD$113,2,FALSE)) ->  | D206: =IF(B206="","",VLOOKUP(B206,CAD_AREA!$CB$13:$CD$113,3,FALSE)) ->  | F206: =IF(E206="","",VLOOKUP(E206,PCMSO!$B$13:$E$614,4,FALSE)) ->  | K206: =IF(J206="","",IF(J206-TODAY()<0,"Vencido",IF(J206-TODAY()=0,"Realizar hoje","Realizar em "&J206-TODAY()&" dias"))) ->  | L206: =IF(G206="","",VLOOKUP(MONTH(G206),'C-A'!$J$13:$K$24,2,FALSE)) ->  | R206: 0.000194
C207: =IF(B207="","",VLOOKUP(B207,CAD_AREA!$CB$13:$CD$113,2,FALSE)) ->  | D207: =IF(B207="","",VLOOKUP(B207,CAD_AREA!$CB$13:$CD$113,3,FALSE)) ->  | F207: =IF(E207="","",VLOOKUP(E207,PCMSO!$B$13:$E$614,4,FALSE)) ->  | L207: =IF(G207="","",VLOOKUP(MONTH(G207),'C-A'!$J$13:$K$24,2,FALSE)) ->  | R207: =R206+$R$13 -> 0.000195
C208: =IF(B208="","",VLOOKUP(B208,CAD_AREA!$CB$13:$CD$113,2,FALSE)) ->  | D208: =IF(B208="","",VLOOKUP(B208,CAD_AREA!$CB$13:$CD$113,3,FALSE)) ->  | F208: =IF(E208="","",VLOOKUP(E208,PCMSO!$B$13:$E$614,4,FALSE)) ->  | L208: =IF(G208="","",VLOOKUP(MONTH(G208),'C-A'!$J$13:$K$24,2,FALSE)) ->  | R208: 0.000196
C209: =IF(B209="","",VLOOKUP(B209,CAD_AREA!$CB$13:$CD$113,2,FALSE)) ->  | D209: =IF(B209="","",VLOOKUP(B209,CAD_AREA!$CB$13:$CD$113,3,FALSE)) ->  | F209: =IF(E209="","",VLOOKUP(E209,PCMSO!$B$13:$E$614,4,FALSE)) ->  | L209: =IF(G209="","",VLOOKUP(MONTH(G209),'C-A'!$J$13:$K$24,2,FALSE)) ->  | R209: 0.000197
C210: =IF(B210="","",VLOOKUP(B210,CAD_AREA!$CB$13:$CD$113,2,FALSE)) ->  | D210: =IF(B210="","",VLOOKUP(B210,CAD_AREA!$CB$13:$CD$113,3,FALSE)) ->  | F210: =IF(E210="","",VLOOKUP(E210,PCMSO!$B$13:$E$614,4,FALSE)) ->  | L210: =IF(G210="","",VLOOKUP(MONTH(G210),'C-A'!$J$13:$K$24,2,FALSE)) ->  | R210: 0.000198
C211: =IF(B211="","",VLOOKUP(B211,CAD_AREA!$CB$13:$CD$113,2,FALSE)) ->  | D211: =IF(B211="","",VLOOKUP(B211,CAD_AREA!$CB$13:$CD$113,3,FALSE)) ->  | F211: =IF(E211="","",VLOOKUP(E211,PCMSO!$B$13:$E$614,4,FALSE)) ->  | L211: =IF(G211="","",VLOOKUP(MONTH(G211),'C-A'!$J$13:$K$24,2,FALSE)) ->  | R211: 0.000199
... 791 more rows

Sheet RC_ACID
C11: 4 | D11: 5 | E11: 6 | F11: 7 | G11: 8 | K11: 4 | L11: 5 | M11: 6
B12: Áreas mais perigosas | J12: Análise dos Riscos
B13: TOP 5 áreas mais perigosas | C13: Total de Riscos | D13: Biológicos | E13: Físicos | F13: Químicos | G13: Outro | J13: TOP 5 Riscos mais graves | K13: =PPRA!E12 -> Frequência de Exposição | L13: =PPRA!F12 -> Possíveis danos à saúde | M13: =PPRA!G12 -> Graduação do Risco
A14: 1 | B14: =IF(VLOOKUP(LARGE(CAD_AREA!$J$13:$J$63,RC_ACID!A14),CAD_AREA!$J$13:$K$63,2,FALSE)=0,"",VLOOKUP(LARGE(CAD_AREA!$J$13:$J$63,RC_ACID!A14),CAD_AREA!$J$13:$K$63,2,FALSE)) -> ADM | C14: =IF($B14="","",VLOOKUP($B14,CAD_AREA!$B$13:$I$63,RC_ACID!C$11,FALSE)) -> 1 | D14: =IF($B14="","",VLOOKUP($B14,CAD_AREA!$B$13:$I$63,RC_ACID!D$11,FALSE)) -> 0 | E14: =IF($B14="","",VLOOKUP($B14,CAD_AREA!$B$13:$I$63,RC_ACID!E$11,FALSE)) -> 1 | F14: =IF($B14="","",VLOOKUP($B14,CAD_AREA!$B$13:$I$63,RC_ACID!F$11,FALSE)) -> 0 | G14: =IF($B14="","",VLOOKUP($B14,CAD_AREA!$B$13:$I$63,RC_ACID!G$11,FALSE)) -> 0 | I14: 1 | J14: =IF(VLOOKUP(LARGE(PPRA!$A$13:$A$614,RC_ACID!I14),PPRA!$A$13:$B$614,2,FALSE)=0,"",VLOOKUP(LARGE(PPRA!$A$13:$A$614,RC_ACID!I14),PPRA!$A$13:$B$614,2,FALSE)) -> r 1 | K14: =IF($J14="","",VLOOKUP($J14,PPRA!$B$13:$G$614,K$11,FALSE)) -> Intermitente | L14: =IF($J14="","",VLOOKUP($J14,PPRA!$B$13:$G$614,L$11,FALSE)) -> Médio | M14: =IF($J14="","",VLOOKUP($J14,PPRA!$B$13:$G$614,M$11,FALSE)) -> Alto
A15: 2 | B15: =IF(VLOOKUP(LARGE(CAD_AREA!$J$13:$J$63,RC_ACID!A15),CAD_AREA!$J$13:$K$63,2,FALSE)=0,"",VLOOKUP(LARGE(CAD_AREA!$J$13:$J$63,RC_ACID!A15),CAD_AREA!$J$13:$K$63,2,FALSE)) -> PROD | C15: =IF($B15="","",VLOOKUP($B15,CAD_AREA!$B$13:$I$63,RC_ACID!C$11,FALSE)) -> 0 | D15: =IF($B15="","",VLOOKUP($B15,CAD_AREA!$B$13:$I$63,RC_ACID!D$11,FALSE)) -> 0 | E15: =IF($B15="","",VLOOKUP($B15,CAD_AREA!$B$13:$I$63,RC_ACID!E$11,FALSE)) -> 0 | F15: =IF($B15="","",VLOOKUP($B15,CAD_AREA!$B$13:$I$63,RC_ACID!F$11,FALSE)) -> 0 | G15: =IF($B15="","",VLOOKUP($B15,CAD_AREA!$B$13:$I$63,RC_ACID!G$11,FALSE)) -> 0 | I15: 2 | J15: =IF(VLOOKUP(LARGE(PPRA!$A$13:$A$614,RC_ACID!I15),PPRA!$A$13:$B$614,2,FALSE)=0,"",VLOOKUP(LARGE(PPRA!$A$13:$A$614,RC_ACID!I15),PPRA!$A$13:$B$614,2,FALSE)) ->  | K15: =IF($J15="","",VLOOKUP($J15,PPRA!$B$13:$G$614,K$11,FALSE)) ->  | L15: =IF($J15="","",VLOOKUP($J15,PPRA!$B$13:$G$614,L$11,FALSE)) ->  | M15: =IF($J15="","",VLOOKUP($J15,PPRA!$B$13:$G$614,M$11,FALSE)) -> 
A16: 3 | B16: =IF(VLOOKUP(LARGE(CAD_AREA!$J$13:$J$63,RC_ACID!A16),CAD_AREA!$J$13:$K$63,2,FALSE)=0,"",VLOOKUP(LARGE(CAD_AREA!$J$13:$J$63,RC_ACID!A16),CAD_AREA!$J$13:$K$63,2,FALSE)) -> PROD | C16: =IF($B16="","",VLOOKUP($B16,CAD_AREA!$B$13:$I$63,RC_ACID!C$11,FALSE)) -> 0 | D16: =IF($B16="","",VLOOKUP($B16,CAD_AREA!$B$13:$I$63,RC_ACID!D$11,FALSE)) -> 0 | E16: =IF($B16="","",VLOOKUP($B16,CAD_AREA!$B$13:$I$63,RC_ACID!E$11,FALSE)) -> 0 | F16: =IF($B16="","",VLOOKUP($B16,CAD_AREA!$B$13:$I$63,RC_ACID!F$11,FALSE)) -> 0 | G16: =IF($B16="","",VLOOKUP($B16,CAD_AREA!$B$13:$I$63,RC_ACID!G$11,FALSE)) -> 0 | I16: 3 | J16: =IF(VLOOKUP(LARGE(PPRA!$A$13:$A$614,RC_ACID!I16),PPRA!$A$13:$B$614,2,FALSE)=0,"",VLOOKUP(LARGE(PPRA!$A$13:$A$614,RC_ACID!I16),PPRA!$A$13:$B$614,2,FALSE)) ->  | K16: =IF($J16="","",VLOOKUP($J16,PPRA!$B$13:$G$614,K$11,FALSE)) ->  | L16: =IF($J16="","",VLOOKUP($J16,PPRA!$B$13:$G$614,L$11,FALSE)) ->  | M16: =IF($J16="","",VLOOKUP($J16,PPRA!$B$13:$G$614,M$11,FALSE)) -> 
A17: 4 | B17: =IF(VLOOKUP(LARGE(CAD_AREA!$J$13:$J$63,RC_ACID!A17),CAD_AREA!$J$13:$K$63,2,FALSE)=0,"",VLOOKUP(LARGE(CAD_AREA!$J$13:$J$63,RC_ACID!A17),CAD_AREA!$J$13:$K$63,2,FALSE)) -> PROD | C17: =IF($B17="","",VLOOKUP($B17,CAD_AREA!$B$13:$I$63,RC_ACID!C$11,FALSE)) -> 0 | D17: =IF($B17="","",VLOOKUP($B17,CAD_AREA!$B$13:$I$63,RC_ACID!D$11,FALSE)) -> 0 | E17: =IF($B17="","",VLOOKUP($B17,CAD_AREA!$B$13:$I$63,RC_ACID!E$11,FALSE)) -> 0 | F17: =IF($B17="","",VLOOKUP($B17,CAD_AREA!$B$13:$I$63,RC_ACID!F$11,FALSE)) -> 0 | G17: =IF($B17="","",VLOOKUP($B17,CAD_AREA!$B$13:$I$63,RC_ACID!G$11,FALSE)) -> 0 | I17: 4 | J17: =IF(VLOOKUP(LARGE(PPRA!$A$13:$A$614,RC_ACID!I17),PPRA!$A$13:$B$614,2,FALSE)=0,"",VLOOKUP(LARGE(PPRA!$A$13:$A$614,RC_ACID!I17),PPRA!$A$13:$B$614,2,FALSE)) ->  | K17: =IF($J17="","",VLOOKUP($J17,PPRA!$B$13:$G$614,K$11,FALSE)) ->  | L17: =IF($J17="","",VLOOKUP($J17,PPRA!$B$13:$G$614,L$11,FALSE)) ->  | M17: =IF($J17="","",VLOOKUP($J17,PPRA!$B$13:$G$614,M$11,FALSE)) -> 
A18: 5 | B18: =IF(VLOOKUP(LARGE(CAD_AREA!$J$13:$J$63,RC_ACID!A18),CAD_AREA!$J$13:$K$63,2,FALSE)=0,"",VLOOKUP(LARGE(CAD_AREA!$J$13:$J$63,RC_ACID!A18),CAD_AREA!$J$13:$K$63,2,FALSE)) -> PROD | C18: =IF($B18="","",VLOOKUP($B18,CAD_AREA!$B$13:$I$63,RC_ACID!C$11,FALSE)) -> 0 | D18: =IF($B18="","",VLOOKUP($B18,CAD_AREA!$B$13:$I$63,RC_ACID!D$11,FALSE)) -> 0 | E18: =IF($B18="","",VLOOKUP($B18,CAD_AREA!$B$13:$I$63,RC_ACID!E$11,FALSE)) -> 0 | F18: =IF($B18="","",VLOOKUP($B18,CAD_AREA!$B$13:$I$63,RC_ACID!F$11,FALSE)) -> 0 | G18: =IF($B18="","",VLOOKUP($B18,CAD_AREA!$B$13:$I$63,RC_ACID!G$11,FALSE)) -> 0 | I18: 5 | J18: =IF(VLOOKUP(LARGE(PPRA!$A$13:$A$614,RC_ACID!I18),PPRA!$A$13:$B$614,2,FALSE)=0,"",VLOOKUP(LARGE(PPRA!$A$13:$A$614,RC_ACID!I18),PPRA!$A$13:$B$614,2,FALSE)) ->  | K18: =IF($J18="","",VLOOKUP($J18,PPRA!$B$13:$G$614,K$11,FALSE)) ->  | L18: =IF($J18="","",VLOOKUP($J18,PPRA!$B$13:$G$614,L$11,FALSE)) ->  | M18: =IF($J18="","",VLOOKUP($J18,PPRA!$B$13:$G$614,M$11,FALSE)) -> 
A19: 6 | B19: =IF(VLOOKUP(LARGE(CAD_AREA!$J$13:$J$63,RC_ACID!A19),CAD_AREA!$J$13:$K$63,2,FALSE)=0,"",VLOOKUP(LARGE(CAD_AREA!$J$13:$J$63,RC_ACID!A19),CAD_AREA!$J$13:$K$63,2,FALSE)) -> PROD | C19: =IF($B19="","",VLOOKUP($B19,CAD_AREA!$B$13:$I$63,RC_ACID!C$11,FALSE)) -> 0 | D19: =IF($B19="","",VLOOKUP($B19,CAD_AREA!$B$13:$I$63,RC_ACID!D$11,FALSE)) -> 0 | E19: =IF($B19="","",VLOOKUP($B19,CAD_AREA!$B$13:$I$63,RC_ACID!E$11,FALSE)) -> 0 | F19: =IF($B19="","",VLOOKUP($B19,CAD_AREA!$B$13:$I$63,RC_ACID!F$11,FALSE)) -> 0 | G19: =IF($B19="","",VLOOKUP($B19,CAD_AREA!$B$13:$I$63,RC_ACID!G$11,FALSE)) -> 0 | I19: 6 | J19: =IF(VLOOKUP(LARGE(PPRA!$A$13:$A$614,RC_ACID!I19),PPRA!$A$13:$B$614,2,FALSE)=0,"",VLOOKUP(LARGE(PPRA!$A$13:$A$614,RC_ACID!I19),PPRA!$A$13:$B$614,2,FALSE)) ->  | K19: =IF($J19="","",VLOOKUP($J19,PPRA!$B$13:$G$614,K$11,FALSE)) ->  | L19: =IF($J19="","",VLOOKUP($J19,PPRA!$B$13:$G$614,L$11,FALSE)) ->  | M19: =IF($J19="","",VLOOKUP($J19,PPRA!$B$13:$G$614,M$11,FALSE)) -> 
A20: 7 | B20: =IF(VLOOKUP(LARGE(CAD_AREA!$J$13:$J$63,RC_ACID!A20),CAD_AREA!$J$13:$K$63,2,FALSE)=0,"",VLOOKUP(LARGE(CAD_AREA!$J$13:$J$63,RC_ACID!A20),CAD_AREA!$J$13:$K$63,2,FALSE)) -> PROD | C20: =IF($B20="","",VLOOKUP($B20,CAD_AREA!$B$13:$I$63,RC_ACID!C$11,FALSE)) -> 0 | D20: =IF($B20="","",VLOOKUP($B20,CAD_AREA!$B$13:$I$63,RC_ACID!D$11,FALSE)) -> 0 | E20: =IF($B20="","",VLOOKUP($B20,CAD_AREA!$B$13:$I$63,RC_ACID!E$11,FALSE)) -> 0 | F20: =IF($B20="","",VLOOKUP($B20,CAD_AREA!$B$13:$I$63,RC_ACID!F$11,FALSE)) -> 0 | G20: =IF($B20="","",VLOOKUP($B20,CAD_AREA!$B$13:$I$63,RC_ACID!G$11,FALSE)) -> 0 | I20: 7 | J20: =IF(VLOOKUP(LARGE(PPRA!$A$13:$A$614,RC_ACID!I20),PPRA!$A$13:$B$614,2,FALSE)=0,"",VLOOKUP(LARGE(PPRA!$A$13:$A$614,RC_ACID!I20),PPRA!$A$13:$B$614,2,FALSE)) ->  | K20: =IF($J20="","",VLOOKUP($J20,PPRA!$B$13:$G$614,K$11,FALSE)) ->  | L20: =IF($J20="","",VLOOKUP($J20,PPRA!$B$13:$G$614,L$11,FALSE)) ->  | M20: =IF($J20="","",VLOOKUP($J20,PPRA!$B$13:$G$614,M$11,FALSE)) -> 
A21: 8 | B21: =IF(VLOOKUP(LARGE(CAD_AREA!$J$13:$J$63,RC_ACID!A21),CAD_AREA!$J$13:$K$63,2,FALSE)=0,"",VLOOKUP(LARGE(CAD_AREA!$J$13:$J$63,RC_ACID!A21),CAD_AREA!$J$13:$K$63,2,FALSE)) -> PROD | C21: =IF($B21="","",VLOOKUP($B21,CAD_AREA!$B$13:$I$63,RC_ACID!C$11,FALSE)) -> 0 | D21: =IF($B21="","",VLOOKUP($B21,CAD_AREA!$B$13:$I$63,RC_ACID!D$11,FALSE)) -> 0 | E21: =IF($B21="","",VLOOKUP($B21,CAD_AREA!$B$13:$I$63,RC_ACID!E$11,FALSE)) -> 0 | F21: =IF($B21="","",VLOOKUP($B21,CAD_AREA!$B$13:$I$63,RC_ACID!F$11,FALSE)) -> 0 | G21: =IF($B21="","",VLOOKUP($B21,CAD_AREA!$B$13:$I$63,RC_ACID!G$11,FALSE)) -> 0 | I21: 8 | J21: =IF(VLOOKUP(LARGE(PPRA!$A$13:$A$614,RC_ACID!I21),PPRA!$A$13:$B$614,2,FALSE)=0,"",VLOOKUP(LARGE(PPRA!$A$13:$A$614,RC_ACID!I21),PPRA!$A$13:$B$614,2,FALSE)) ->  | K21: =IF($J21="","",VLOOKUP($J21,PPRA!$B$13:$G$614,K$11,FALSE)) ->  | L21: =IF($J21="","",VLOOKUP($J21,PPRA!$B$13:$G$614,L$11,FALSE)) ->  | M21: =IF($J21="","",VLOOKUP($J21,PPRA!$B$13:$G$614,M$11,FALSE)) -> 
A22: 9 | B22: =IF(VLOOKUP(LARGE(CAD_AREA!$J$13:$J$63,RC_ACID!A22),CAD_AREA!$J$13:$K$63,2,FALSE)=0,"",VLOOKUP(LARGE(CAD_AREA!$J$13:$J$63,RC_ACID!A22),CAD_AREA!$J$13:$K$63,2,FALSE)) -> PROD | C22: =IF($B22="","",VLOOKUP($B22,CAD_AREA!$B$13:$I$63,RC_ACID!C$11,FALSE)) -> 0 | D22: =IF($B22="","",VLOOKUP($B22,CAD_AREA!$B$13:$I$63,RC_ACID!D$11,FALSE)) -> 0 | E22: =IF($B22="","",VLOOKUP($B22,CAD_AREA!$B$13:$I$63,RC_ACID!E$11,FALSE)) -> 0 | F22: =IF($B22="","",VLOOKUP($B22,CAD_AREA!$B$13:$I$63,RC_ACID!F$11,FALSE)) -> 0 | G22: =IF($B22="","",VLOOKUP($B22,CAD_AREA!$B$13:$I$63,RC_ACID!G$11,FALSE)) -> 0 | I22: 9 | J22: =IF(VLOOKUP(LARGE(PPRA!$A$13:$A$614,RC_ACID!I22),PPRA!$A$13:$B$614,2,FALSE)=0,"",VLOOKUP(LARGE(PPRA!$A$13:$A$614,RC_ACID!I22),PPRA!$A$13:$B$614,2,FALSE)) ->  | K22: =IF($J22="","",VLOOKUP($J22,PPRA!$B$13:$G$614,K$11,FALSE)) ->  | L22: =IF($J22="","",VLOOKUP($J22,PPRA!$B$13:$G$614,L$11,FALSE)) ->  | M22: =IF($J22="","",VLOOKUP($J22,PPRA!$B$13:$G$614,M$11,FALSE)) -> 
A23: 10 | B23: =IF(VLOOKUP(LARGE(CAD_AREA!$J$13:$J$63,RC_ACID!A23),CAD_AREA!$J$13:$K$63,2,FALSE)=0,"",VLOOKUP(LARGE(CAD_AREA!$J$13:$J$63,RC_ACID!A23),CAD_AREA!$J$13:$K$63,2,FALSE)) -> PROD | C23: =IF($B23="","",VLOOKUP($B23,CAD_AREA!$B$13:$I$63,RC_ACID!C$11,FALSE)) -> 0 | D23: =IF($B23="","",VLOOKUP($B23,CAD_AREA!$B$13:$I$63,RC_ACID!D$11,FALSE)) -> 0 | E23: =IF($B23="","",VLOOKUP($B23,CAD_AREA!$B$13:$I$63,RC_ACID!E$11,FALSE)) -> 0 | F23: =IF($B23="","",VLOOKUP($B23,CAD_AREA!$B$13:$I$63,RC_ACID!F$11,FALSE)) -> 0 | G23: =IF($B23="","",VLOOKUP($B23,CAD_AREA!$B$13:$I$63,RC_ACID!G$11,FALSE)) -> 0 | I23: 10 | J23: =IF(VLOOKUP(LARGE(PPRA!$A$13:$A$614,RC_ACID!I23),PPRA!$A$13:$B$614,2,FALSE)=0,"",VLOOKUP(LARGE(PPRA!$A$13:$A$614,RC_ACID!I23),PPRA!$A$13:$B$614,2,FALSE)) ->  | K23: =IF($J23="","",VLOOKUP($J23,PPRA!$B$13:$G$614,K$11,FALSE)) ->  | L23: =IF($J23="","",VLOOKUP($J23,PPRA!$B$13:$G$614,L$11,FALSE)) ->  | M23: =IF($J23="","",VLOOKUP($J23,PPRA!$B$13:$G$614,M$11,FALSE)) -> 
D37: Ferida levemente | E37: Ferida | F37: Ferida gravemente | G37: Óbito | L37: 2 | M37: 3 | N37: 4 | O37: 5
B38: Análise de Acidentes | J38: Análise de Acidentes por Área
B39: Item | C39: Acidentes que ocorreram | D39: Feridos levemente | E39: Feridos | F39: Feridos gravemente | G39: Óbito | J39: TOP 5 áreas com mais acidentes | K39: Acidentes que ocorreram | L39: Feridos levemente | M39: Feridos | N39: Feridos gravemente | O39: Óbito | P39: Meta de acidente | Q39: Quantidade de acidentes
B40: Janeiro | C40: =COUNTIFS('C-A'!$M$13:$M$1013,RC_ACID!B40) -> 0 | D40: =COUNTIFS('C-A'!$G$13:$G$1013,RC_ACID!D$37,'C-A'!$M$13:$M$1013,RC_ACID!$B40) -> 0 | E40: =COUNTIFS('C-A'!$G$13:$G$1013,RC_ACID!E$37,'C-A'!$M$13:$M$1013,RC_ACID!$B40) -> 0 | F40: =COUNTIFS('C-A'!$G$13:$G$1013,RC_ACID!F$37,'C-A'!$M$13:$M$1013,RC_ACID!$B40) -> 0 | G40: =COUNTIFS('C-A'!$G$13:$G$1013,RC_ACID!G$37,'C-A'!$M$13:$M$1013,RC_ACID!$B40) -> 0 | I40: 1 | J40: =IF(VLOOKUP(LARGE(CAD_AREA!$N$13:$N$63,RC_ACID!$I40),CAD_AREA!$N$13:$P$63,3,FALSE)=0,"",VLOOKUP(LARGE(CAD_AREA!$N$13:$N$63,RC_ACID!$I40),CAD_AREA!$N$13:$P$63,3,FALSE)) -> PROD | K40: =IF(J40="","",SUM(L40:O40)) -> 1 | L40: =IF($J40="","",VLOOKUP(RC_ACID!$J40,CAD_AREA!$P$13:$T$63,RC_ACID!L$37,FALSE)) -> 0 | M40: =IF($J40="","",VLOOKUP(RC_ACID!$J40,CAD_AREA!$P$13:$T$63,RC_ACID!M$37,FALSE)) -> 1 | N40: =IF($J40="","",VLOOKUP(RC_ACID!$J40,CAD_AREA!$P$13:$T$63,RC_ACID!N$37,FALSE)) -> 0 | O40: =IF($J40="","",VLOOKUP(RC_ACID!$J40,CAD_AREA!$P$13:$T$63,RC_ACID!O$37,FALSE)) -> 0 | P40: =IF($J40="","",VLOOKUP($J40,CAD_AREA!$B$13:$C$63,2,FALSE)) -> 1 | Q40: =IF(J40="","",VLOOKUP(J40,CAD_AREA!$P$13:$V$63,6,FALSE)) -> 1
B41: Fevereiro | C41: =COUNTIFS('C-A'!$M$13:$M$1013,RC_ACID!B41) -> 0 | D41: =COUNTIFS('C-A'!$G$13:$G$1013,RC_ACID!D$37,'C-A'!$M$13:$M$1013,RC_ACID!$B41) -> 0 | E41: =COUNTIFS('C-A'!$G$13:$G$1013,RC_ACID!E$37,'C-A'!$M$13:$M$1013,RC_ACID!$B41) -> 0 | F41: =COUNTIFS('C-A'!$G$13:$G$1013,RC_ACID!F$37,'C-A'!$M$13:$M$1013,RC_ACID!$B41) -> 0 | G41: =COUNTIFS('C-A'!$G$13:$G$1013,RC_ACID!G$37,'C-A'!$M$13:$M$1013,RC_ACID!$B41) -> 0 | I41: 2 | J41: =IF(VLOOKUP(LARGE(CAD_AREA!$N$13:$N$63,RC_ACID!$I41),CAD_AREA!$N$13:$P$63,3,FALSE)=0,"",VLOOKUP(LARGE(CAD_AREA!$N$13:$N$63,RC_ACID!$I41),CAD_AREA!$N$13:$P$63,3,FALSE)) ->  | K41: =IF(J41="","",SUM(L41:O41)) ->  | L41: =IF($J41="","",VLOOKUP(RC_ACID!$J41,CAD_AREA!$P$13:$T$63,RC_ACID!L$37,FALSE)) ->  | M41: =IF($J41="","",VLOOKUP(RC_ACID!$J41,CAD_AREA!$P$13:$T$63,RC_ACID!M$37,FALSE)) ->  | N41: =IF($J41="","",VLOOKUP(RC_ACID!$J41,CAD_AREA!$P$13:$T$63,RC_ACID!N$37,FALSE)) ->  | O41: =IF($J41="","",VLOOKUP(RC_ACID!$J41,CAD_AREA!$P$13:$T$63,RC_ACID!O$37,FALSE)) ->  | P41: =IF($J41="","",VLOOKUP($J41,CAD_AREA!$B$13:$C$63,2,FALSE)) ->  | Q41: =IF(J41="","",VLOOKUP(J41,CAD_AREA!$P$13:$V$63,6,FALSE)) -> 
B42: Março | C42: =COUNTIFS('C-A'!$M$13:$M$1013,RC_ACID!B42) -> 0 | D42: =COUNTIFS('C-A'!$G$13:$G$1013,RC_ACID!D$37,'C-A'!$M$13:$M$1013,RC_ACID!$B42) -> 0 | E42: =COUNTIFS('C-A'!$G$13:$G$1013,RC_ACID!E$37,'C-A'!$M$13:$M$1013,RC_ACID!$B42) -> 0 | F42: =COUNTIFS('C-A'!$G$13:$G$1013,RC_ACID!F$37,'C-A'!$M$13:$M$1013,RC_ACID!$B42) -> 0 | G42: =COUNTIFS('C-A'!$G$13:$G$1013,RC_ACID!G$37,'C-A'!$M$13:$M$1013,RC_ACID!$B42) -> 0 | I42: 3 | J42: =IF(VLOOKUP(LARGE(CAD_AREA!$N$13:$N$63,RC_ACID!$I42),CAD_AREA!$N$13:$P$63,3,FALSE)=0,"",VLOOKUP(LARGE(CAD_AREA!$N$13:$N$63,RC_ACID!$I42),CAD_AREA!$N$13:$P$63,3,FALSE)) ->  | L42: =IF($J42="","",VLOOKUP(RC_ACID!$J42,CAD_AREA!$P$13:$T$63,RC_ACID!L$37,FALSE)) ->  | M42: =IF($J42="","",VLOOKUP(RC_ACID!$J42,CAD_AREA!$P$13:$T$63,RC_ACID!M$37,FALSE)) ->  | N42: =IF($J42="","",VLOOKUP(RC_ACID!$J42,CAD_AREA!$P$13:$T$63,RC_ACID!N$37,FALSE)) ->  | O42: =IF($J42="","",VLOOKUP(RC_ACID!$J42,CAD_AREA!$P$13:$T$63,RC_ACID!O$37,FALSE)) ->  | P42: =IF($J42="","",VLOOKUP($J42,CAD_AREA!$B$13:$C$63,2,FALSE)) ->  | Q42: =IF(J42="","",VLOOKUP(J42,CAD_AREA!$P$13:$V$63,6,FALSE)) -> 
B43: Abril | C43: =COUNTIFS('C-A'!$M$13:$M$1013,RC_ACID!B43) -> 0 | D43: =COUNTIFS('C-A'!$G$13:$G$1013,RC_ACID!D$37,'C-A'!$M$13:$M$1013,RC_ACID!$B43) -> 0 | E43: =COUNTIFS('C-A'!$G$13:$G$1013,RC_ACID!E$37,'C-A'!$M$13:$M$1013,RC_ACID!$B43) -> 0 | F43: =COUNTIFS('C-A'!$G$13:$G$1013,RC_ACID!F$37,'C-A'!$M$13:$M$1013,RC_ACID!$B43) -> 0 | G43: =COUNTIFS('C-A'!$G$13:$G$1013,RC_ACID!G$37,'C-A'!$M$13:$M$1013,RC_ACID!$B43) -> 0 | I43: 4 | J43: =IF(VLOOKUP(LARGE(CAD_AREA!$N$13:$N$63,RC_ACID!$I43),CAD_AREA!$N$13:$P$63,3,FALSE)=0,"",VLOOKUP(LARGE(CAD_AREA!$N$13:$N$63,RC_ACID!$I43),CAD_AREA!$N$13:$P$63,3,FALSE)) ->  | L43: =IF($J43="","",VLOOKUP(RC_ACID!$J43,CAD_AREA!$P$13:$T$63,RC_ACID!L$37,FALSE)) ->  | M43: =IF($J43="","",VLOOKUP(RC_ACID!$J43,CAD_AREA!$P$13:$T$63,RC_ACID!M$37,FALSE)) ->  | N43: =IF($J43="","",VLOOKUP(RC_ACID!$J43,CAD_AREA!$P$13:$T$63,RC_ACID!N$37,FALSE)) ->  | O43: =IF($J43="","",VLOOKUP(RC_ACID!$J43,CAD_AREA!$P$13:$T$63,RC_ACID!O$37,FALSE)) ->  | P43: =IF($J43="","",VLOOKUP($J43,CAD_AREA!$B$13:$C$63,2,FALSE)) ->  | Q43: =IF(J43="","",VLOOKUP(J43,CAD_AREA!$P$13:$V$63,6,FALSE)) -> 
B44: Maio | C44: =COUNTIFS('C-A'!$M$13:$M$1013,RC_ACID!B44) -> 0 | D44: =COUNTIFS('C-A'!$G$13:$G$1013,RC_ACID!D$37,'C-A'!$M$13:$M$1013,RC_ACID!$B44) -> 0 | E44: =COUNTIFS('C-A'!$G$13:$G$1013,RC_ACID!E$37,'C-A'!$M$13:$M$1013,RC_ACID!$B44) -> 0 | F44: =COUNTIFS('C-A'!$G$13:$G$1013,RC_ACID!F$37,'C-A'!$M$13:$M$1013,RC_ACID!$B44) -> 0 | G44: =COUNTIFS('C-A'!$G$13:$G$1013,RC_ACID!G$37,'C-A'!$M$13:$M$1013,RC_ACID!$B44) -> 0 | I44: 5 | J44: =IF(VLOOKUP(LARGE(CAD_AREA!$N$13:$N$63,RC_ACID!$I44),CAD_AREA!$N$13:$P$63,3,FALSE)=0,"",VLOOKUP(LARGE(CAD_AREA!$N$13:$N$63,RC_ACID!$I44),CAD_AREA!$N$13:$P$63,3,FALSE)) ->  | L44: =IF($J44="","",VLOOKUP(RC_ACID!$J44,CAD_AREA!$P$13:$T$63,RC_ACID!L$37,FALSE)) ->  | M44: =IF($J44="","",VLOOKUP(RC_ACID!$J44,CAD_AREA!$P$13:$T$63,RC_ACID!M$37,FALSE)) ->  | N44: =IF($J44="","",VLOOKUP(RC_ACID!$J44,CAD_AREA!$P$13:$T$63,RC_ACID!N$37,FALSE)) ->  | O44: =IF($J44="","",VLOOKUP(RC_ACID!$J44,CAD_AREA!$P$13:$T$63,RC_ACID!O$37,FALSE)) ->  | P44: =IF($J44="","",VLOOKUP($J44,CAD_AREA!$B$13:$C$63,2,FALSE)) ->  | Q44: =IF(J44="","",VLOOKUP(J44,CAD_AREA!$P$13:$V$63,6,FALSE)) -> 
B45: Junho | C45: =COUNTIFS('C-A'!$M$13:$M$1013,RC_ACID!B45) -> 0 | D45: =COUNTIFS('C-A'!$G$13:$G$1013,RC_ACID!D$37,'C-A'!$M$13:$M$1013,RC_ACID!$B45) -> 0 | E45: =COUNTIFS('C-A'!$G$13:$G$1013,RC_ACID!E$37,'C-A'!$M$13:$M$1013,RC_ACID!$B45) -> 0 | F45: =COUNTIFS('C-A'!$G$13:$G$1013,RC_ACID!F$37,'C-A'!$M$13:$M$1013,RC_ACID!$B45) -> 0 | G45: =COUNTIFS('C-A'!$G$13:$G$1013,RC_ACID!G$37,'C-A'!$M$13:$M$1013,RC_ACID!$B45) -> 0
B46: Julho | C46: =COUNTIFS('C-A'!$M$13:$M$1013,RC_ACID!B46) -> 0 | D46: =COUNTIFS('C-A'!$G$13:$G$1013,RC_ACID!D$37,'C-A'!$M$13:$M$1013,RC_ACID!$B46) -> 0 | E46: =COUNTIFS('C-A'!$G$13:$G$1013,RC_ACID!E$37,'C-A'!$M$13:$M$1013,RC_ACID!$B46) -> 0 | F46: =COUNTIFS('C-A'!$G$13:$G$1013,RC_ACID!F$37,'C-A'!$M$13:$M$1013,RC_ACID!$B46) -> 0 | G46: =COUNTIFS('C-A'!$G$13:$G$1013,RC_ACID!G$37,'C-A'!$M$13:$M$1013,RC_ACID!$B46) -> 0
B47: Agosto | C47: =COUNTIFS('C-A'!$M$13:$M$1013,RC_ACID!B47) -> 0 | D47: =COUNTIFS('C-A'!$G$13:$G$1013,RC_ACID!D$37,'C-A'!$M$13:$M$1013,RC_ACID!$B47) -> 0 | E47: =COUNTIFS('C-A'!$G$13:$G$1013,RC_ACID!E$37,'C-A'!$M$13:$M$1013,RC_ACID!$B47) -> 0 | F47: =COUNTIFS('C-A'!$G$13:$G$1013,RC_ACID!F$37,'C-A'!$M$13:$M$1013,RC_ACID!$B47) -> 0 | G47: =COUNTIFS('C-A'!$G$13:$G$1013,RC_ACID!G$37,'C-A'!$M$13:$M$1013,RC_ACID!$B47) -> 0
B48: Setembro | C48: =COUNTIFS('C-A'!$M$13:$M$1013,RC_ACID!B48) -> 1 | D48: =COUNTIFS('C-A'!$G$13:$G$1013,RC_ACID!D$37,'C-A'!$M$13:$M$1013,RC_ACID!$B48) -> 0 | E48: =COUNTIFS('C-A'!$G$13:$G$1013,RC_ACID!E$37,'C-A'!$M$13:$M$1013,RC_ACID!$B48) -> 1 | F48: =COUNTIFS('C-A'!$G$13:$G$1013,RC_ACID!F$37,'C-A'!$M$13:$M$1013,RC_ACID!$B48) -> 0 | G48: =COUNTIFS('C-A'!$G$13:$G$1013,RC_ACID!G$37,'C-A'!$M$13:$M$1013,RC_ACID!$B48) -> 0
B49: Outubro | C49: =COUNTIFS('C-A'!$M$13:$M$1013,RC_ACID!B49) -> 0 | D49: =COUNTIFS('C-A'!$G$13:$G$1013,RC_ACID!D$37,'C-A'!$M$13:$M$1013,RC_ACID!$B49) -> 0 | E49: =COUNTIFS('C-A'!$G$13:$G$1013,RC_ACID!E$37,'C-A'!$M$13:$M$1013,RC_ACID!$B49) -> 0 | F49: =COUNTIFS('C-A'!$G$13:$G$1013,RC_ACID!F$37,'C-A'!$M$13:$M$1013,RC_ACID!$B49) -> 0 | G49: =COUNTIFS('C-A'!$G$13:$G$1013,RC_ACID!G$37,'C-A'!$M$13:$M$1013,RC_ACID!$B49) -> 0
B50: Novembro | C50: =COUNTIFS('C-A'!$M$13:$M$1013,RC_ACID!B50) -> 0 | D50: =COUNTIFS('C-A'!$G$13:$G$1013,RC_ACID!D$37,'C-A'!$M$13:$M$1013,RC_ACID!$B50) -> 0 | E50: =COUNTIFS('C-A'!$G$13:$G$1013,RC_ACID!E$37,'C-A'!$M$13:$M$1013,RC_ACID!$B50) -> 0 | F50: =COUNTIFS('C-A'!$G$13:$G$1013,RC_ACID!F$37,'C-A'!$M$13:$M$1013,RC_ACID!$B50) -> 0 | G50: =COUNTIFS('C-A'!$G$13:$G$1013,RC_ACID!G$37,'C-A'!$M$13:$M$1013,RC_ACID!$B50) -> 0
B51: Dezembro | C51: =COUNTIFS('C-A'!$M$13:$M$1013,RC_ACID!B51) -> 0 | D51: =COUNTIFS('C-A'!$G$13:$G$1013,RC_ACID!D$37,'C-A'!$M$13:$M$1013,RC_ACID!$B51) -> 0 | E51: =COUNTIFS('C-A'!$G$13:$G$1013,RC_ACID!E$37,'C-A'!$M$13:$M$1013,RC_ACID!$B51) -> 0 | F51: =COUNTIFS('C-A'!$G$13:$G$1013,RC_ACID!F$37,'C-A'!$M$13:$M$1013,RC_ACID!$B51) -> 0 | G51: =COUNTIFS('C-A'!$G$13:$G$1013,RC_ACID!G$37,'C-A'!$M$13:$M$1013,RC_ACID!$B51) -> 0

Sheet RC_EXAM
C11: 3 | D11: 4 | E11: 5 | I11: 3 | J11: 4
B12: Quantidade de Exames Realizados | G12: Funcionários com mais complicações
B13: TOP 5 Exames | C13: Exames realizados | D13: O exame não apontou complicações | E13: O exame apontou complicações | G13: TOP 5 Funcionários | H13: Exames realizados | I13: O exame não apontou complicações | J13: O exame apontou complicações
A14: 1 | B14: =IF(VLOOKUP(LARGE(PCMSO!$A$13:$A$614,RC_EXAM!A14),PCMSO!$A$13:$B$614,2,FALSE)=0,"",VLOOKUP(LARGE(PCMSO!$A$13:$A$614,RC_EXAM!A14),PCMSO!$A$13:$B$614,2,FALSE)) -> Audiometria | C14: =IF(B14="","",VLOOKUP($B14,PCMSO!$G$13:$K$614,C$11,FALSE)) -> 1 | D14: =IF(C14="","",VLOOKUP($B14,PCMSO!$G$13:$K$614,D$11,FALSE)) -> 1 | E14: =IF(D14="","",VLOOKUP($B14,PCMSO!$G$13:$K$614,E$11,FALSE)) -> 0 | F14: 1 | G14: =IF(VLOOKUP(LARGE(CAD_AREA!$CA$13:$CA$113,RC_EXAM!$F14),CAD_AREA!$CA$13:$CB$113,2,FALSE)=0,"",VLOOKUP(LARGE(CAD_AREA!$CA$13:$CA$113,RC_EXAM!$F14),CAD_AREA!$CA$13:$CB$113,2,FALSE)) ->  | H14: =IF(G14="","",SUM(I14:J14)) ->  | I14: =IF($G14="","",VLOOKUP($G14,CAD_AREA!$CE$13:$CH$113,RC_EXAM!I$11,FALSE)) ->  | J14: =IF($G14="","",VLOOKUP($G14,CAD_AREA!$CE$13:$CH$113,RC_EXAM!J$11,FALSE)) -> 
A15: 2 | B15: =IF(VLOOKUP(LARGE(PCMSO!$A$13:$A$614,RC_EXAM!A15),PCMSO!$A$13:$B$614,2,FALSE)=0,"",VLOOKUP(LARGE(PCMSO!$A$13:$A$614,RC_EXAM!A15),PCMSO!$A$13:$B$614,2,FALSE)) ->  | C15: =IF(B15="","",VLOOKUP($B15,PCMSO!$G$13:$K$614,C$11,FALSE)) ->  | D15: =IF(C15="","",VLOOKUP($B15,PCMSO!$G$13:$K$614,D$11,FALSE)) ->  | E15: =IF(D15="","",VLOOKUP($B15,PCMSO!$G$13:$K$614,E$11,FALSE)) ->  | F15: 2 | G15: =IF(VLOOKUP(LARGE(CAD_AREA!$CA$13:$CA$113,RC_EXAM!$F15),CAD_AREA!$CA$13:$CB$113,2,FALSE)=0,"",VLOOKUP(LARGE(CAD_AREA!$CA$13:$CA$113,RC_EXAM!$F15),CAD_AREA!$CA$13:$CB$113,2,FALSE)) ->  | H15: =IF(G15="","",SUM(I15:J15)) ->  | I15: =IF($G15="","",VLOOKUP($G15,CAD_AREA!$CE$13:$CH$113,RC_EXAM!I$11,FALSE)) ->  | J15: =IF($G15="","",VLOOKUP($G15,CAD_AREA!$CE$13:$CH$113,RC_EXAM!J$11,FALSE)) -> 
A16: 3 | B16: =IF(VLOOKUP(LARGE(PCMSO!$A$13:$A$614,RC_EXAM!A16),PCMSO!$A$13:$B$614,2,FALSE)=0,"",VLOOKUP(LARGE(PCMSO!$A$13:$A$614,RC_EXAM!A16),PCMSO!$A$13:$B$614,2,FALSE)) ->  | C16: =IF(B16="","",VLOOKUP($B16,PCMSO!$G$13:$K$614,C$11,FALSE)) ->  | D16: =IF(C16="","",VLOOKUP($B16,PCMSO!$G$13:$K$614,D$11,FALSE)) ->  | E16: =IF(D16="","",VLOOKUP($B16,PCMSO!$G$13:$K$614,E$11,FALSE)) ->  | F16: 3 | G16: =IF(VLOOKUP(LARGE(CAD_AREA!$CA$13:$CA$113,RC_EXAM!$F16),CAD_AREA!$CA$13:$CB$113,2,FALSE)=0,"",VLOOKUP(LARGE(CAD_AREA!$CA$13:$CA$113,RC_EXAM!$F16),CAD_AREA!$CA$13:$CB$113,2,FALSE)) ->  | I16: =IF($G16="","",VLOOKUP($G16,CAD_AREA!$CE$13:$CH$113,RC_EXAM!I$11,FALSE)) ->  | J16: =IF($G16="","",VLOOKUP($G16,CAD_AREA!$CE$13:$CH$113,RC_EXAM!J$11,FALSE)) -> 
A17: 4 | B17: =IF(VLOOKUP(LARGE(PCMSO!$A$13:$A$614,RC_EXAM!A17),PCMSO!$A$13:$B$614,2,FALSE)=0,"",VLOOKUP(LARGE(PCMSO!$A$13:$A$614,RC_EXAM!A17),PCMSO!$A$13:$B$614,2,FALSE)) ->  | C17: =IF(B17="","",VLOOKUP($B17,PCMSO!$G$13:$K$614,C$11,FALSE)) ->  | D17: =IF(C17="","",VLOOKUP($B17,PCMSO!$G$13:$K$614,D$11,FALSE)) ->  | E17: =IF(D17="","",VLOOKUP($B17,PCMSO!$G$13:$K$614,E$11,FALSE)) ->  | F17: 4 | G17: =IF(VLOOKUP(LARGE(CAD_AREA!$CA$13:$CA$113,RC_EXAM!$F17),CAD_AREA!$CA$13:$CB$113,2,FALSE)=0,"",VLOOKUP(LARGE(CAD_AREA!$CA$13:$CA$113,RC_EXAM!$F17),CAD_AREA!$CA$13:$CB$113,2,FALSE)) ->  | I17: =IF($G17="","",VLOOKUP($G17,CAD_AREA!$CE$13:$CH$113,RC_EXAM!I$11,FALSE)) ->  | J17: =IF($G17="","",VLOOKUP($G17,CAD_AREA!$CE$13:$CH$113,RC_EXAM!J$11,FALSE)) -> 
A18: 5 | B18: =IF(VLOOKUP(LARGE(PCMSO!$A$13:$A$614,RC_EXAM!A18),PCMSO!$A$13:$B$614,2,FALSE)=0,"",VLOOKUP(LARGE(PCMSO!$A$13:$A$614,RC_EXAM!A18),PCMSO!$A$13:$B$614,2,FALSE)) ->  | C18: =IF(B18="","",VLOOKUP($B18,PCMSO!$G$13:$K$614,C$11,FALSE)) ->  | D18: =IF(C18="","",VLOOKUP($B18,PCMSO!$G$13:$K$614,D$11,FALSE)) ->  | E18: =IF(D18="","",VLOOKUP($B18,PCMSO!$G$13:$K$614,E$11,FALSE)) ->  | F18: 5 | G18: =IF(VLOOKUP(LARGE(CAD_AREA!$CA$13:$CA$113,RC_EXAM!$F18),CAD_AREA!$CA$13:$CB$113,2,FALSE)=0,"",VLOOKUP(LARGE(CAD_AREA!$CA$13:$CA$113,RC_EXAM!$F18),CAD_AREA!$CA$13:$CB$113,2,FALSE)) ->  | I18: =IF($G18="","",VLOOKUP($G18,CAD_AREA!$CE$13:$CH$113,RC_EXAM!I$11,FALSE)) ->  | J18: =IF($G18="","",VLOOKUP($G18,CAD_AREA!$CE$13:$CH$113,RC_EXAM!J$11,FALSE)) -> 
A19: 6 | B19: =IF(VLOOKUP(LARGE(PCMSO!$A$13:$A$614,RC_EXAM!A19),PCMSO!$A$13:$B$614,2,FALSE)=0,"",VLOOKUP(LARGE(PCMSO!$A$13:$A$614,RC_EXAM!A19),PCMSO!$A$13:$B$614,2,FALSE)) ->  | C19: =IF(B19="","",VLOOKUP($B19,PCMSO!$G$13:$K$614,C$11,FALSE)) ->  | D19: =IF(C19="","",VLOOKUP($B19,PCMSO!$G$13:$K$614,D$11,FALSE)) ->  | E19: =IF(D19="","",VLOOKUP($B19,PCMSO!$G$13:$K$614,E$11,FALSE)) ->  | F19: 6 | G19: =IF(VLOOKUP(LARGE(CAD_AREA!$CA$13:$CA$113,RC_EXAM!$F19),CAD_AREA!$CA$13:$CB$113,2,FALSE)=0,"",VLOOKUP(LARGE(CAD_AREA!$CA$13:$CA$113,RC_EXAM!$F19),CAD_AREA!$CA$13:$CB$113,2,FALSE)) ->  | I19: =IF($G19="","",VLOOKUP($G19,CAD_AREA!$CE$13:$CH$113,RC_EXAM!I$11,FALSE)) ->  | J19: =IF($G19="","",VLOOKUP($G19,CAD_AREA!$CE$13:$CH$113,RC_EXAM!J$11,FALSE)) -> 
A20: 7 | B20: =IF(VLOOKUP(LARGE(PCMSO!$A$13:$A$614,RC_EXAM!A20),PCMSO!$A$13:$B$614,2,FALSE)=0,"",VLOOKUP(LARGE(PCMSO!$A$13:$A$614,RC_EXAM!A20),PCMSO!$A$13:$B$614,2,FALSE)) ->  | C20: =IF(B20="","",VLOOKUP($B20,PCMSO!$G$13:$K$614,C$11,FALSE)) ->  | D20: =IF(C20="","",VLOOKUP($B20,PCMSO!$G$13:$K$614,D$11,FALSE)) ->  | E20: =IF(D20="","",VLOOKUP($B20,PCMSO!$G$13:$K$614,E$11,FALSE)) ->  | F20: 7 | G20: =IF(VLOOKUP(LARGE(CAD_AREA!$CA$13:$CA$113,RC_EXAM!$F20),CAD_AREA!$CA$13:$CB$113,2,FALSE)=0,"",VLOOKUP(LARGE(CAD_AREA!$CA$13:$CA$113,RC_EXAM!$F20),CAD_AREA!$CA$13:$CB$113,2,FALSE)) ->  | I20: =IF($G20="","",VLOOKUP($G20,CAD_AREA!$CE$13:$CH$113,RC_EXAM!I$11,FALSE)) ->  | J20: =IF($G20="","",VLOOKUP($G20,CAD_AREA!$CE$13:$CH$113,RC_EXAM!J$11,FALSE)) -> 
A21: 8 | B21: =IF(VLOOKUP(LARGE(PCMSO!$A$13:$A$614,RC_EXAM!A21),PCMSO!$A$13:$B$614,2,FALSE)=0,"",VLOOKUP(LARGE(PCMSO!$A$13:$A$614,RC_EXAM!A21),PCMSO!$A$13:$B$614,2,FALSE)) ->  | C21: =IF(B21="","",VLOOKUP($B21,PCMSO!$G$13:$K$614,C$11,FALSE)) ->  | D21: =IF(C21="","",VLOOKUP($B21,PCMSO!$G$13:$K$614,D$11,FALSE)) ->  | E21: =IF(D21="","",VLOOKUP($B21,PCMSO!$G$13:$K$614,E$11,FALSE)) ->  | F21: 8 | G21: =IF(VLOOKUP(LARGE(CAD_AREA!$CA$13:$CA$113,RC_EXAM!$F21),CAD_AREA!$CA$13:$CB$113,2,FALSE)=0,"",VLOOKUP(LARGE(CAD_AREA!$CA$13:$CA$113,RC_EXAM!$F21),CAD_AREA!$CA$13:$CB$113,2,FALSE)) ->  | I21: =IF($G21="","",VLOOKUP($G21,CAD_AREA!$CE$13:$CH$113,RC_EXAM!I$11,FALSE)) ->  | J21: =IF($G21="","",VLOOKUP($G21,CAD_AREA!$CE$13:$CH$113,RC_EXAM!J$11,FALSE)) -> 
A22: 9 | B22: =IF(VLOOKUP(LARGE(PCMSO!$A$13:$A$614,RC_EXAM!A22),PCMSO!$A$13:$B$614,2,FALSE)=0,"",VLOOKUP(LARGE(PCMSO!$A$13:$A$614,RC_EXAM!A22),PCMSO!$A$13:$B$614,2,FALSE)) ->  | C22: =IF(B22="","",VLOOKUP($B22,PCMSO!$G$13:$K$614,C$11,FALSE)) ->  | D22: =IF(C22="","",VLOOKUP($B22,PCMSO!$G$13:$K$614,D$11,FALSE)) ->  | E22: =IF(D22="","",VLOOKUP($B22,PCMSO!$G$13:$K$614,E$11,FALSE)) ->  | F22: 9 | G22: =IF(VLOOKUP(LARGE(CAD_AREA!$CA$13:$CA$113,RC_EXAM!$F22),CAD_AREA!$CA$13:$CB$113,2,FALSE)=0,"",VLOOKUP(LARGE(CAD_AREA!$CA$13:$CA$113,RC_EXAM!$F22),CAD_AREA!$CA$13:$CB$113,2,FALSE)) ->  | I22: =IF($G22="","",VLOOKUP($G22,CAD_AREA!$CE$13:$CH$113,RC_EXAM!I$11,FALSE)) ->  | J22: =IF($G22="","",VLOOKUP($G22,CAD_AREA!$CE$13:$CH$113,RC_EXAM!J$11,FALSE)) -> 
A23: 10 | B23: =IF(VLOOKUP(LARGE(PCMSO!$A$13:$A$614,RC_EXAM!A23),PCMSO!$A$13:$B$614,2,FALSE)=0,"",VLOOKUP(LARGE(PCMSO!$A$13:$A$614,RC_EXAM!A23),PCMSO!$A$13:$B$614,2,FALSE)) ->  | C23: =IF(B23="","",VLOOKUP($B23,PCMSO!$G$13:$K$614,C$11,FALSE)) ->  | D23: =IF(C23="","",VLOOKUP($B23,PCMSO!$G$13:$K$614,D$11,FALSE)) ->  | E23: =IF(D23="","",VLOOKUP($B23,PCMSO!$G$13:$K$614,E$11,FALSE)) ->  | F23: 10 | G23: =IF(VLOOKUP(LARGE(CAD_AREA!$CA$13:$CA$113,RC_EXAM!$F23),CAD_AREA!$CA$13:$CB$113,2,FALSE)=0,"",VLOOKUP(LARGE(CAD_AREA!$CA$13:$CA$113,RC_EXAM!$F23),CAD_AREA!$CA$13:$CB$113,2,FALSE)) ->  | I23: =IF($G23="","",VLOOKUP($G23,CAD_AREA!$CE$13:$CH$113,RC_EXAM!I$11,FALSE)) ->  | J23: =IF($G23="","",VLOOKUP($G23,CAD_AREA!$CE$13:$CH$113,RC_EXAM!J$11,FALSE)) -> 
C24: 3 | D24: 4 | E24: 5
B25: Quantidade de exames realizados por mês | G25: Área com mais exames realizados
B26: Item | C26: Exames realizados | D26: O exame não apontou complicações | E26: O exame apontou complicações | G26: TOP 5 Exames | H26: Exames realizados | I26: O exame não apontou complicações | J26: O exame apontou complicações
A27: 1 | B27: Janeiro | C27: =COUNTIFS('C-E'!$L$13:$L$1001,RC_EXAM!B27) -> 1 | D27: =COUNTIFS('C-E'!$L$13:$L$1001,RC_EXAM!$B27,'C-E'!$H$13:$H$1001,RC_EXAM!D$26) -> 1 | E27: =COUNTIFS('C-E'!$L$13:$L$1001,RC_EXAM!$B27,'C-E'!$H$13:$H$1001,RC_EXAM!E$26) -> 0 | G27: =IF(VLOOKUP(LARGE(CAD_AREA!$X$13:$X$63,RC_EXAM!$A27),CAD_AREA!$X$13:$Y$63,2,FALSE)=0,"",VLOOKUP(LARGE(CAD_AREA!$X$13:$X$63,RC_EXAM!$A27),CAD_AREA!$X$13:$Y$63,2,FALSE)) -> PROD | H27: =IF($G27="","",VLOOKUP($G27,CAD_AREA!$Y$13:$AC$63,RC_EXAM!C$24,FALSE)) -> 1 | I27: =IF($G27="","",VLOOKUP($G27,CAD_AREA!$Y$13:$AC$63,RC_EXAM!D$24,FALSE)) -> 1 | J27: =IF($G27="","",VLOOKUP($G27,CAD_AREA!$Y$13:$AC$63,RC_EXAM!E$24,FALSE)) -> 0
A28: 2 | B28: Fevereiro | C28: =COUNTIFS('C-E'!$L$13:$L$1001,RC_EXAM!B28) -> 0 | D28: =COUNTIFS('C-E'!$L$13:$L$1001,RC_EXAM!$B28,'C-E'!$H$13:$H$1001,RC_EXAM!D$26) -> 0 | E28: =COUNTIFS('C-E'!$L$13:$L$1001,RC_EXAM!$B28,'C-E'!$H$13:$H$1001,RC_EXAM!E$26) -> 0 | G28: =IF(VLOOKUP(LARGE(CAD_AREA!$X$13:$X$63,RC_EXAM!$A28),CAD_AREA!$X$13:$Y$63,2,FALSE)=0,"",VLOOKUP(LARGE(CAD_AREA!$X$13:$X$63,RC_EXAM!$A28),CAD_AREA!$X$13:$Y$63,2,FALSE)) ->  | H28: =IF($G28="","",VLOOKUP($G28,CAD_AREA!$Y$13:$AC$63,RC_EXAM!C$24,FALSE)) ->  | I28: =IF($G28="","",VLOOKUP($G28,CAD_AREA!$Y$13:$AC$63,RC_EXAM!D$24,FALSE)) ->  | J28: =IF($G28="","",VLOOKUP($G28,CAD_AREA!$Y$13:$AC$63,RC_EXAM!E$24,FALSE)) -> 
A29: 34 | B29: Março | C29: =COUNTIFS('C-E'!$L$13:$L$1001,RC_EXAM!B29) -> 0 | D29: =COUNTIFS('C-E'!$L$13:$L$1001,RC_EXAM!$B29,'C-E'!$H$13:$H$1001,RC_EXAM!D$26) -> 0 | E29: =COUNTIFS('C-E'!$L$13:$L$1001,RC_EXAM!$B29,'C-E'!$H$13:$H$1001,RC_EXAM!E$26) -> 0 | G29: =IF(VLOOKUP(LARGE(CAD_AREA!$X$13:$X$63,RC_EXAM!$A29),CAD_AREA!$X$13:$Y$63,2,FALSE)=0,"",VLOOKUP(LARGE(CAD_AREA!$X$13:$X$63,RC_EXAM!$A29),CAD_AREA!$X$13:$Y$63,2,FALSE)) ->  | H29: =IF($G29="","",VLOOKUP($G29,CAD_AREA!$Y$13:$AC$63,RC_EXAM!C$24,FALSE)) ->  | I29: =IF($G29="","",VLOOKUP($G29,CAD_AREA!$Y$13:$AC$63,RC_EXAM!D$24,FALSE)) ->  | J29: =IF($G29="","",VLOOKUP($G29,CAD_AREA!$Y$13:$AC$63,RC_EXAM!E$24,FALSE)) -> 
A30: 5 | B30: Abril | C30: =COUNTIFS('C-E'!$L$13:$L$1001,RC_EXAM!B30) -> 0 | D30: =COUNTIFS('C-E'!$L$13:$L$1001,RC_EXAM!$B30,'C-E'!$H$13:$H$1001,RC_EXAM!D$26) -> 0 | E30: =COUNTIFS('C-E'!$L$13:$L$1001,RC_EXAM!$B30,'C-E'!$H$13:$H$1001,RC_EXAM!E$26) -> 0 | G30: =IF(VLOOKUP(LARGE(CAD_AREA!$X$13:$X$63,RC_EXAM!$A30),CAD_AREA!$X$13:$Y$63,2,FALSE)=0,"",VLOOKUP(LARGE(CAD_AREA!$X$13:$X$63,RC_EXAM!$A30),CAD_AREA!$X$13:$Y$63,2,FALSE)) ->  | H30: =IF($G30="","",VLOOKUP($G30,CAD_AREA!$Y$13:$AC$63,RC_EXAM!C$24,FALSE)) ->  | I30: =IF($G30="","",VLOOKUP($G30,CAD_AREA!$Y$13:$AC$63,RC_EXAM!D$24,FALSE)) ->  | J30: =IF($G30="","",VLOOKUP($G30,CAD_AREA!$Y$13:$AC$63,RC_EXAM!E$24,FALSE)) -> 
A31: 6 | B31: Maio | C31: =COUNTIFS('C-E'!$L$13:$L$1001,RC_EXAM!B31) -> 0 | D31: =COUNTIFS('C-E'!$L$13:$L$1001,RC_EXAM!$B31,'C-E'!$H$13:$H$1001,RC_EXAM!D$26) -> 0 | E31: =COUNTIFS('C-E'!$L$13:$L$1001,RC_EXAM!$B31,'C-E'!$H$13:$H$1001,RC_EXAM!E$26) -> 0 | G31: =IF(VLOOKUP(LARGE(CAD_AREA!$X$13:$X$63,RC_EXAM!$A31),CAD_AREA!$X$13:$Y$63,2,FALSE)=0,"",VLOOKUP(LARGE(CAD_AREA!$X$13:$X$63,RC_EXAM!$A31),CAD_AREA!$X$13:$Y$63,2,FALSE)) ->  | H31: =IF($G31="","",VLOOKUP($G31,CAD_AREA!$Y$13:$AC$63,RC_EXAM!C$24,FALSE)) ->  | I31: =IF($G31="","",VLOOKUP($G31,CAD_AREA!$Y$13:$AC$63,RC_EXAM!D$24,FALSE)) ->  | J31: =IF($G31="","",VLOOKUP($G31,CAD_AREA!$Y$13:$AC$63,RC_EXAM!E$24,FALSE)) -> 
A32: 7 | B32: Junho | C32: =COUNTIFS('C-E'!$L$13:$L$1001,RC_EXAM!B32) -> 0 | D32: =COUNTIFS('C-E'!$L$13:$L$1001,RC_EXAM!$B32,'C-E'!$H$13:$H$1001,RC_EXAM!D$26) -> 0 | E32: =COUNTIFS('C-E'!$L$13:$L$1001,RC_EXAM!$B32,'C-E'!$H$13:$H$1001,RC_EXAM!E$26) -> 0
A33: 8 | B33: Julho | C33: =COUNTIFS('C-E'!$L$13:$L$1001,RC_EXAM!B33) -> 0 | D33: =COUNTIFS('C-E'!$L$13:$L$1001,RC_EXAM!$B33,'C-E'!$H$13:$H$1001,RC_EXAM!D$26) -> 0 | E33: =COUNTIFS('C-E'!$L$13:$L$1001,RC_EXAM!$B33,'C-E'!$H$13:$H$1001,RC_EXAM!E$26) -> 0
A34: 9 | B34: Agosto | C34: =COUNTIFS('C-E'!$L$13:$L$1001,RC_EXAM!B34) -> 0 | D34: =COUNTIFS('C-E'!$L$13:$L$1001,RC_EXAM!$B34,'C-E'!$H$13:$H$1001,RC_EXAM!D$26) -> 0 | E34: =COUNTIFS('C-E'!$L$13:$L$1001,RC_EXAM!$B34,'C-E'!$H$13:$H$1001,RC_EXAM!E$26) -> 0
A35: 9 | B35: Setembro | C35: =COUNTIFS('C-E'!$L$13:$L$1001,RC_EXAM!B35) -> 0 | D35: =COUNTIFS('C-E'!$L$13:$L$1001,RC_EXAM!$B35,'C-E'!$H$13:$H$1001,RC_EXAM!D$26) -> 0 | E35: =COUNTIFS('C-E'!$L$13:$L$1001,RC_EXAM!$B35,'C-E'!$H$13:$H$1001,RC_EXAM!E$26) -> 0
A36: 10 | B36: Outubro | C36: =COUNTIFS('C-E'!$L$13:$L$1001,RC_EXAM!B36) -> 0 | D36: =COUNTIFS('C-E'!$L$13:$L$1001,RC_EXAM!$B36,'C-E'!$H$13:$H$1001,RC_EXAM!D$26) -> 0 | E36: =COUNTIFS('C-E'!$L$13:$L$1001,RC_EXAM!$B36,'C-E'!$H$13:$H$1001,RC_EXAM!E$26) -> 0
A37: 11 | B37: Novembro | C37: =COUNTIFS('C-E'!$L$13:$L$1001,RC_EXAM!B37) -> 0 | D37: =COUNTIFS('C-E'!$L$13:$L$1001,RC_EXAM!$B37,'C-E'!$H$13:$H$1001,RC_EXAM!D$26) -> 0 | E37: =COUNTIFS('C-E'!$L$13:$L$1001,RC_EXAM!$B37,'C-E'!$H$13:$H$1001,RC_EXAM!E$26) -> 0
A38: 12 | B38: Dezembro | C38: =COUNTIFS('C-E'!$L$13:$L$1001,RC_EXAM!B38) -> 0 | D38: =COUNTIFS('C-E'!$L$13:$L$1001,RC_EXAM!$B38,'C-E'!$H$13:$H$1001,RC_EXAM!D$26) -> 0 | E38: =COUNTIFS('C-E'!$L$13:$L$1001,RC_EXAM!$B38,'C-E'!$H$13:$H$1001,RC_EXAM!E$26) -> 0
B39: 10 | C39: 5 | D39: 2 | E39: 3 | G39: 4
B40: Próximos exames a serem realizados
B41: Data | C41: Exame | D41: Funcionário | E41: ='C-E'!C12 -> Cargo | G41: ='C-E'!D12 -> Área
A42: 1 | B42: =IFERROR(VLOOKUP(SMALL('C-E'!$A$13:$A$1001,RC_EXAM!$A42),'C-E'!$A$13:$J$1001,B$39,FALSE),"") ->  | C42: =IFERROR(VLOOKUP(SMALL('C-E'!$A$13:$A$1001,RC_EXAM!$A42),'C-E'!$A$13:$J$1001,C$39,FALSE),"") ->  | D42: =IFERROR(VLOOKUP(SMALL('C-E'!$A$13:$A$1001,RC_EXAM!$A42),'C-E'!$A$13:$J$1001,D$39,FALSE),"") ->  | E42: =IFERROR(VLOOKUP(SMALL('C-E'!$A$13:$A$1001,RC_EXAM!$A42),'C-E'!$A$13:$J$1001,E$39,FALSE),"") ->  | G42: =IFERROR(VLOOKUP(SMALL('C-E'!$A$13:$A$1001,RC_EXAM!$A42),'C-E'!$A$13:$J$1001,G$39,FALSE),"") -> 
A43: 2 | B43: =IFERROR(VLOOKUP(SMALL('C-E'!$A$13:$A$1001,RC_EXAM!$A43),'C-E'!$A$13:$J$1001,B$39,FALSE),"") ->  | C43: =IFERROR(VLOOKUP(SMALL('C-E'!$A$13:$A$1001,RC_EXAM!$A43),'C-E'!$A$13:$J$1001,C$39,FALSE),"") ->  | D43: =IFERROR(VLOOKUP(SMALL('C-E'!$A$13:$A$1001,RC_EXAM!$A43),'C-E'!$A$13:$J$1001,D$39,FALSE),"") ->  | E43: =IFERROR(VLOOKUP(SMALL('C-E'!$A$13:$A$1001,RC_EXAM!$A43),'C-E'!$A$13:$J$1001,E$39,FALSE),"") ->  | G43: =IFERROR(VLOOKUP(SMALL('C-E'!$A$13:$A$1001,RC_EXAM!$A43),'C-E'!$A$13:$J$1001,G$39,FALSE),"") -> 
A44: 3 | B44: =IFERROR(VLOOKUP(SMALL('C-E'!$A$13:$A$1001,RC_EXAM!$A44),'C-E'!$A$13:$J$1001,B$39,FALSE),"") ->  | C44: =IFERROR(VLOOKUP(SMALL('C-E'!$A$13:$A$1001,RC_EXAM!$A44),'C-E'!$A$13:$J$1001,C$39,FALSE),"") ->  | D44: =IFERROR(VLOOKUP(SMALL('C-E'!$A$13:$A$1001,RC_EXAM!$A44),'C-E'!$A$13:$J$1001,D$39,FALSE),"") ->  | E44: =IFERROR(VLOOKUP(SMALL('C-E'!$A$13:$A$1001,RC_EXAM!$A44),'C-E'!$A$13:$J$1001,E$39,FALSE),"") ->  | G44: =IFERROR(VLOOKUP(SMALL('C-E'!$A$13:$A$1001,RC_EXAM!$A44),'C-E'!$A$13:$J$1001,G$39,FALSE),"") -> 
A45: 4 | B45: =IFERROR(VLOOKUP(SMALL('C-E'!$A$13:$A$1001,RC_EXAM!$A45),'C-E'!$A$13:$J$1001,B$39,FALSE),"") ->  | C45: =IFERROR(VLOOKUP(SMALL('C-E'!$A$13:$A$1001,RC_EXAM!$A45),'C-E'!$A$13:$J$1001,C$39,FALSE),"") ->  | D45: =IFERROR(VLOOKUP(SMALL('C-E'!$A$13:$A$1001,RC_EXAM!$A45),'C-E'!$A$13:$J$1001,D$39,FALSE),"") ->  | E45: =IFERROR(VLOOKUP(SMALL('C-E'!$A$13:$A$1001,RC_EXAM!$A45),'C-E'!$A$13:$J$1001,E$39,FALSE),"") ->  | G45: =IFERROR(VLOOKUP(SMALL('C-E'!$A$13:$A$1001,RC_EXAM!$A45),'C-E'!$A$13:$J$1001,G$39,FALSE),"") -> 
A46: 5 | B46: =IFERROR(VLOOKUP(SMALL('C-E'!$A$13:$A$1001,RC_EXAM!$A46),'C-E'!$A$13:$J$1001,B$39,FALSE),"") ->  | C46: =IFERROR(VLOOKUP(SMALL('C-E'!$A$13:$A$1001,RC_EXAM!$A46),'C-E'!$A$13:$J$1001,C$39,FALSE),"") ->  | D46: =IFERROR(VLOOKUP(SMALL('C-E'!$A$13:$A$1001,RC_EXAM!$A46),'C-E'!$A$13:$J$1001,D$39,FALSE),"") ->  | E46: =IFERROR(VLOOKUP(SMALL('C-E'!$A$13:$A$1001,RC_EXAM!$A46),'C-E'!$A$13:$J$1001,E$39,FALSE),"") ->  | G46: =IFERROR(VLOOKUP(SMALL('C-E'!$A$13:$A$1001,RC_EXAM!$A46),'C-E'!$A$13:$J$1001,G$39,FALSE),"") -> 
A47: 6 | B47: =IFERROR(VLOOKUP(SMALL('C-E'!$A$13:$A$1001,RC_EXAM!$A47),'C-E'!$A$13:$J$1001,B$39,FALSE),"") ->  | C47: =IFERROR(VLOOKUP(SMALL('C-E'!$A$13:$A$1001,RC_EXAM!$A47),'C-E'!$A$13:$J$1001,C$39,FALSE),"") ->  | D47: =IFERROR(VLOOKUP(SMALL('C-E'!$A$13:$A$1001,RC_EXAM!$A47),'C-E'!$A$13:$J$1001,D$39,FALSE),"") ->  | E47: =IFERROR(VLOOKUP(SMALL('C-E'!$A$13:$A$1001,RC_EXAM!$A47),'C-E'!$A$13:$J$1001,E$39,FALSE),"") ->  | G47: =IFERROR(VLOOKUP(SMALL('C-E'!$A$13:$A$1001,RC_EXAM!$A47),'C-E'!$A$13:$J$1001,G$39,FALSE),"") -> 
A48: 7 | B48: =IFERROR(VLOOKUP(SMALL('C-E'!$A$13:$A$1001,RC_EXAM!$A48),'C-E'!$A$13:$J$1001,B$39,FALSE),"") ->  | C48: =IFERROR(VLOOKUP(SMALL('C-E'!$A$13:$A$1001,RC_EXAM!$A48),'C-E'!$A$13:$J$1001,C$39,FALSE),"") ->  | D48: =IFERROR(VLOOKUP(SMALL('C-E'!$A$13:$A$1001,RC_EXAM!$A48),'C-E'!$A$13:$J$1001,D$39,FALSE),"") ->  | E48: =IFERROR(VLOOKUP(SMALL('C-E'!$A$13:$A$1001,RC_EXAM!$A48),'C-E'!$A$13:$J$1001,E$39,FALSE),"") ->  | G48: =IFERROR(VLOOKUP(SMALL('C-E'!$A$13:$A$1001,RC_EXAM!$A48),'C-E'!$A$13:$J$1001,G$39,FALSE),"") -> 
A49: 8 | B49: =IFERROR(VLOOKUP(SMALL('C-E'!$A$13:$A$1001,RC_EXAM!$A49),'C-E'!$A$13:$J$1001,B$39,FALSE),"") ->  | C49: =IFERROR(VLOOKUP(SMALL('C-E'!$A$13:$A$1001,RC_EXAM!$A49),'C-E'!$A$13:$J$1001,C$39,FALSE),"") ->  | D49: =IFERROR(VLOOKUP(SMALL('C-E'!$A$13:$A$1001,RC_EXAM!$A49),'C-E'!$A$13:$J$1001,D$39,FALSE),"") ->  | E49: =IFERROR(VLOOKUP(SMALL('C-E'!$A$13:$A$1001,RC_EXAM!$A49),'C-E'!$A$13:$J$1001,E$39,FALSE),"") ->  | G49: =IFERROR(VLOOKUP(SMALL('C-E'!$A$13:$A$1001,RC_EXAM!$A49),'C-E'!$A$13:$J$1001,G$39,FALSE),"") -> 
A50: 9 | B50: =IFERROR(VLOOKUP(SMALL('C-E'!$A$13:$A$1001,RC_EXAM!$A50),'C-E'!$A$13:$J$1001,B$39,FALSE),"") ->  | C50: =IFERROR(VLOOKUP(SMALL('C-E'!$A$13:$A$1001,RC_EXAM!$A50),'C-E'!$A$13:$J$1001,C$39,FALSE),"") ->  | D50: =IFERROR(VLOOKUP(SMALL('C-E'!$A$13:$A$1001,RC_EXAM!$A50),'C-E'!$A$13:$J$1001,D$39,FALSE),"") ->  | E50: =IFERROR(VLOOKUP(SMALL('C-E'!$A$13:$A$1001,RC_EXAM!$A50),'C-E'!$A$13:$J$1001,E$39,FALSE),"") ->  | G50: =IFERROR(VLOOKUP(SMALL('C-E'!$A$13:$A$1001,RC_EXAM!$A50),'C-E'!$A$13:$J$1001,G$39,FALSE),"") -> 
A51: 10 | B51: =IFERROR(VLOOKUP(SMALL('C-E'!$A$13:$A$1001,RC_EXAM!$A51),'C-E'!$A$13:$J$1001,B$39,FALSE),"") ->  | C51: =IFERROR(VLOOKUP(SMALL('C-E'!$A$13:$A$1001,RC_EXAM!$A51),'C-E'!$A$13:$J$1001,C$39,FALSE),"") ->  | D51: =IFERROR(VLOOKUP(SMALL('C-E'!$A$13:$A$1001,RC_EXAM!$A51),'C-E'!$A$13:$J$1001,D$39,FALSE),"") ->  | E51: =IFERROR(VLOOKUP(SMALL('C-E'!$A$13:$A$1001,RC_EXAM!$A51),'C-E'!$A$13:$J$1001,E$39,FALSE),"") ->  | G51: =IFERROR(VLOOKUP(SMALL('C-E'!$A$13:$A$1001,RC_EXAM!$A51),'C-E'!$A$13:$J$1001,G$39,FALSE),"") -> 
A52: 11 | B52: =IFERROR(VLOOKUP(SMALL('C-E'!$A$13:$A$1001,RC_EXAM!$A52),'C-E'!$A$13:$J$1001,B$39,FALSE),"") ->  | C52: =IFERROR(VLOOKUP(SMALL('C-E'!$A$13:$A$1001,RC_EXAM!$A52),'C-E'!$A$13:$J$1001,C$39,FALSE),"") ->  | D52: =IFERROR(VLOOKUP(SMALL('C-E'!$A$13:$A$1001,RC_EXAM!$A52),'C-E'!$A$13:$J$1001,D$39,FALSE),"") ->  | E52: =IFERROR(VLOOKUP(SMALL('C-E'!$A$13:$A$1001,RC_EXAM!$A52),'C-E'!$A$13:$J$1001,E$39,FALSE),"") ->  | G52: =IFERROR(VLOOKUP(SMALL('C-E'!$A$13:$A$1001,RC_EXAM!$A52),'C-E'!$A$13:$J$1001,G$39,FALSE),"") -> 
A53: 12 | B53: =IFERROR(VLOOKUP(SMALL('C-E'!$A$13:$A$1001,RC_EXAM!$A53),'C-E'!$A$13:$J$1001,B$39,FALSE),"") ->  | C53: =IFERROR(VLOOKUP(SMALL('C-E'!$A$13:$A$1001,RC_EXAM!$A53),'C-E'!$A$13:$J$1001,C$39,FALSE),"") ->  | D53: =IFERROR(VLOOKUP(SMALL('C-E'!$A$13:$A$1001,RC_EXAM!$A53),'C-E'!$A$13:$J$1001,D$39,FALSE),"") ->  | E53: =IFERROR(VLOOKUP(SMALL('C-E'!$A$13:$A$1001,RC_EXAM!$A53),'C-E'!$A$13:$J$1001,E$39,FALSE),"") ->  | G53: =IFERROR(VLOOKUP(SMALL('C-E'!$A$13:$A$1001,RC_EXAM!$A53),'C-E'!$A$13:$J$1001,G$39,FALSE),"") -> 
A54: 13 | B54: =IFERROR(VLOOKUP(SMALL('C-E'!$A$13:$A$1001,RC_EXAM!$A54),'C-E'!$A$13:$J$1001,B$39,FALSE),"") ->  | C54: =IFERROR(VLOOKUP(SMALL('C-E'!$A$13:$A$1001,RC_EXAM!$A54),'C-E'!$A$13:$J$1001,C$39,FALSE),"") ->  | D54: =IFERROR(VLOOKUP(SMALL('C-E'!$A$13:$A$1001,RC_EXAM!$A54),'C-E'!$A$13:$J$1001,D$39,FALSE),"") ->  | E54: =IFERROR(VLOOKUP(SMALL('C-E'!$A$13:$A$1001,RC_EXAM!$A54),'C-E'!$A$13:$J$1001,E$39,FALSE),"") ->  | G54: =IFERROR(VLOOKUP(SMALL('C-E'!$A$13:$A$1001,RC_EXAM!$A54),'C-E'!$A$13:$J$1001,G$39,FALSE),"") -> 
A55: 14 | B55: =IFERROR(VLOOKUP(SMALL('C-E'!$A$13:$A$1001,RC_EXAM!$A55),'C-E'!$A$13:$J$1001,B$39,FALSE),"") ->  | C55: =IFERROR(VLOOKUP(SMALL('C-E'!$A$13:$A$1001,RC_EXAM!$A55),'C-E'!$A$13:$J$1001,C$39,FALSE),"") ->  | D55: =IFERROR(VLOOKUP(SMALL('C-E'!$A$13:$A$1001,RC_EXAM!$A55),'C-E'!$A$13:$J$1001,D$39,FALSE),"") ->  | E55: =IFERROR(VLOOKUP(SMALL('C-E'!$A$13:$A$1001,RC_EXAM!$A55),'C-E'!$A$13:$J$1001,E$39,FALSE),"") ->  | G55: =IFERROR(VLOOKUP(SMALL('C-E'!$A$13:$A$1001,RC_EXAM!$A55),'C-E'!$A$13:$J$1001,G$39,FALSE),"") -> 
A56: 15 | B56: =IFERROR(VLOOKUP(SMALL('C-E'!$A$13:$A$1001,RC_EXAM!$A56),'C-E'!$A$13:$J$1001,B$39,FALSE),"") ->  | C56: =IFERROR(VLOOKUP(SMALL('C-E'!$A$13:$A$1001,RC_EXAM!$A56),'C-E'!$A$13:$J$1001,C$39,FALSE),"") ->  | D56: =IFERROR(VLOOKUP(SMALL('C-E'!$A$13:$A$1001,RC_EXAM!$A56),'C-E'!$A$13:$J$1001,D$39,FALSE),"") ->  | E56: =IFERROR(VLOOKUP(SMALL('C-E'!$A$13:$A$1001,RC_EXAM!$A56),'C-E'!$A$13:$J$1001,E$39,FALSE),"") ->  | G56: =IFERROR(VLOOKUP(SMALL('C-E'!$A$13:$A$1001,RC_EXAM!$A56),'C-E'!$A$13:$J$1001,G$39,FALSE),"") -> 
A57: 16 | B57: =IFERROR(VLOOKUP(SMALL('C-E'!$A$13:$A$1001,RC_EXAM!$A57),'C-E'!$A$13:$J$1001,B$39,FALSE),"") ->  | C57: =IFERROR(VLOOKUP(SMALL('C-E'!$A$13:$A$1001,RC_EXAM!$A57),'C-E'!$A$13:$J$1001,C$39,FALSE),"") ->  | D57: =IFERROR(VLOOKUP(SMALL('C-E'!$A$13:$A$1001,RC_EXAM!$A57),'C-E'!$A$13:$J$1001,D$39,FALSE),"") ->  | E57: =IFERROR(VLOOKUP(SMALL('C-E'!$A$13:$A$1001,RC_EXAM!$A57),'C-E'!$A$13:$J$1001,E$39,FALSE),"") ->  | G57: =IFERROR(VLOOKUP(SMALL('C-E'!$A$13:$A$1001,RC_EXAM!$A57),'C-E'!$A$13:$J$1001,G$39,FALSE),"") -> 
A58: 17 | B58: =IFERROR(VLOOKUP(SMALL('C-E'!$A$13:$A$1001,RC_EXAM!$A58),'C-E'!$A$13:$J$1001,B$39,FALSE),"") ->  | C58: =IFERROR(VLOOKUP(SMALL('C-E'!$A$13:$A$1001,RC_EXAM!$A58),'C-E'!$A$13:$J$1001,C$39,FALSE),"") ->  | D58: =IFERROR(VLOOKUP(SMALL('C-E'!$A$13:$A$1001,RC_EXAM!$A58),'C-E'!$A$13:$J$1001,D$39,FALSE),"") ->  | E58: =IFERROR(VLOOKUP(SMALL('C-E'!$A$13:$A$1001,RC_EXAM!$A58),'C-E'!$A$13:$J$1001,E$39,FALSE),"") ->  | G58: =IFERROR(VLOOKUP(SMALL('C-E'!$A$13:$A$1001,RC_EXAM!$A58),'C-E'!$A$13:$J$1001,G$39,FALSE),"") -> 
A59: 18 | B59: =IFERROR(VLOOKUP(SMALL('C-E'!$A$13:$A$1001,RC_EXAM!$A59),'C-E'!$A$13:$J$1001,B$39,FALSE),"") ->  | C59: =IFERROR(VLOOKUP(SMALL('C-E'!$A$13:$A$1001,RC_EXAM!$A59),'C-E'!$A$13:$J$1001,C$39,FALSE),"") ->  | D59: =IFERROR(VLOOKUP(SMALL('C-E'!$A$13:$A$1001,RC_EXAM!$A59),'C-E'!$A$13:$J$1001,D$39,FALSE),"") ->  | E59: =IFERROR(VLOOKUP(SMALL('C-E'!$A$13:$A$1001,RC_EXAM!$A59),'C-E'!$A$13:$J$1001,E$39,FALSE),"") ->  | G59: =IFERROR(VLOOKUP(SMALL('C-E'!$A$13:$A$1001,RC_EXAM!$A59),'C-E'!$A$13:$J$1001,G$39,FALSE),"") -> 
A60: 19 | B60: =IFERROR(VLOOKUP(SMALL('C-E'!$A$13:$A$1001,RC_EXAM!$A60),'C-E'!$A$13:$J$1001,B$39,FALSE),"") ->  | C60: =IFERROR(VLOOKUP(SMALL('C-E'!$A$13:$A$1001,RC_EXAM!$A60),'C-E'!$A$13:$J$1001,C$39,FALSE),"") ->  | D60: =IFERROR(VLOOKUP(SMALL('C-E'!$A$13:$A$1001,RC_EXAM!$A60),'C-E'!$A$13:$J$1001,D$39,FALSE),"") ->  | E60: =IFERROR(VLOOKUP(SMALL('C-E'!$A$13:$A$1001,RC_EXAM!$A60),'C-E'!$A$13:$J$1001,E$39,FALSE),"") ->  | G60: =IFERROR(VLOOKUP(SMALL('C-E'!$A$13:$A$1001,RC_EXAM!$A60),'C-E'!$A$13:$J$1001,G$39,FALSE),"") -> 
A61: 20 | B61: =IFERROR(VLOOKUP(SMALL('C-E'!$A$13:$A$1001,RC_EXAM!$A61),'C-E'!$A$13:$J$1001,B$39,FALSE),"") ->  | C61: =IFERROR(VLOOKUP(SMALL('C-E'!$A$13:$A$1001,RC_EXAM!$A61),'C-E'!$A$13:$J$1001,C$39,FALSE),"") ->  | D61: =IFERROR(VLOOKUP(SMALL('C-E'!$A$13:$A$1001,RC_EXAM!$A61),'C-E'!$A$13:$J$1001,D$39,FALSE),"") ->  | E61: =IFERROR(VLOOKUP(SMALL('C-E'!$A$13:$A$1001,RC_EXAM!$A61),'C-E'!$A$13:$J$1001,E$39,FALSE),"") ->  | G61: =IFERROR(VLOOKUP(SMALL('C-E'!$A$13:$A$1001,RC_EXAM!$A61),'C-E'!$A$13:$J$1001,G$39,FALSE),"") -> 
A62: 21 | B62: =IFERROR(VLOOKUP(SMALL('C-E'!$A$13:$A$1001,RC_EXAM!$A62),'C-E'!$A$13:$J$1001,B$39,FALSE),"") ->  | C62: =IFERROR(VLOOKUP(SMALL('C-E'!$A$13:$A$1001,RC_EXAM!$A62),'C-E'!$A$13:$J$1001,C$39,FALSE),"") ->  | D62: =IFERROR(VLOOKUP(SMALL('C-E'!$A$13:$A$1001,RC_EXAM!$A62),'C-E'!$A$13:$J$1001,D$39,FALSE),"") ->  | E62: =IFERROR(VLOOKUP(SMALL('C-E'!$A$13:$A$1001,RC_EXAM!$A62),'C-E'!$A$13:$J$1001,E$39,FALSE),"") ->  | G62: =IFERROR(VLOOKUP(SMALL('C-E'!$A$13:$A$1001,RC_EXAM!$A62),'C-E'!$A$13:$J$1001,G$39,FALSE),"") -> 
A63: 22 | B63: =IFERROR(VLOOKUP(SMALL('C-E'!$A$13:$A$1001,RC_EXAM!$A63),'C-E'!$A$13:$J$1001,B$39,FALSE),"") ->  | C63: =IFERROR(VLOOKUP(SMALL('C-E'!$A$13:$A$1001,RC_EXAM!$A63),'C-E'!$A$13:$J$1001,C$39,FALSE),"") ->  | D63: =IFERROR(VLOOKUP(SMALL('C-E'!$A$13:$A$1001,RC_EXAM!$A63),'C-E'!$A$13:$J$1001,D$39,FALSE),"") ->  | E63: =IFERROR(VLOOKUP(SMALL('C-E'!$A$13:$A$1001,RC_EXAM!$A63),'C-E'!$A$13:$J$1001,E$39,FALSE),"") ->  | G63: =IFERROR(VLOOKUP(SMALL('C-E'!$A$13:$A$1001,RC_EXAM!$A63),'C-E'!$A$13:$J$1001,G$39,FALSE),"") -> 
A64: 23 | B64: =IFERROR(VLOOKUP(SMALL('C-E'!$A$13:$A$1001,RC_EXAM!$A64),'C-E'!$A$13:$J$1001,B$39,FALSE),"") ->  | C64: =IFERROR(VLOOKUP(SMALL('C-E'!$A$13:$A$1001,RC_EXAM!$A64),'C-E'!$A$13:$J$1001,C$39,FALSE),"") ->  | D64: =IFERROR(VLOOKUP(SMALL('C-E'!$A$13:$A$1001,RC_EXAM!$A64),'C-E'!$A$13:$J$1001,D$39,FALSE),"") ->  | E64: =IFERROR(VLOOKUP(SMALL('C-E'!$A$13:$A$1001,RC_EXAM!$A64),'C-E'!$A$13:$J$1001,E$39,FALSE),"") ->  | G64: =IFERROR(VLOOKUP(SMALL('C-E'!$A$13:$A$1001,RC_EXAM!$A64),'C-E'!$A$13:$J$1001,G$39,FALSE),"") -> 
A65: 24 | B65: =IFERROR(VLOOKUP(SMALL('C-E'!$A$13:$A$1001,RC_EXAM!$A65),'C-E'!$A$13:$J$1001,B$39,FALSE),"") ->  | C65: =IFERROR(VLOOKUP(SMALL('C-E'!$A$13:$A$1001,RC_EXAM!$A65),'C-E'!$A$13:$J$1001,C$39,FALSE),"") ->  | D65: =IFERROR(VLOOKUP(SMALL('C-E'!$A$13:$A$1001,RC_EXAM!$A65),'C-E'!$A$13:$J$1001,D$39,FALSE),"") ->  | E65: =IFERROR(VLOOKUP(SMALL('C-E'!$A$13:$A$1001,RC_EXAM!$A65),'C-E'!$A$13:$J$1001,E$39,FALSE),"") ->  | G65: =IFERROR(VLOOKUP(SMALL('C-E'!$A$13:$A$1001,RC_EXAM!$A65),'C-E'!$A$13:$J$1001,G$39,FALSE),"") -> 
A66: 25 | B66: =IFERROR(VLOOKUP(SMALL('C-E'!$A$13:$A$1001,RC_EXAM!$A66),'C-E'!$A$13:$J$1001,B$39,FALSE),"") ->  | C66: =IFERROR(VLOOKUP(SMALL('C-E'!$A$13:$A$1001,RC_EXAM!$A66),'C-E'!$A$13:$J$1001,C$39,FALSE),"") ->  | D66: =IFERROR(VLOOKUP(SMALL('C-E'!$A$13:$A$1001,RC_EXAM!$A66),'C-E'!$A$13:$J$1001,D$39,FALSE),"") ->  | E66: =IFERROR(VLOOKUP(SMALL('C-E'!$A$13:$A$1001,RC_EXAM!$A66),'C-E'!$A$13:$J$1001,E$39,FALSE),"") ->  | G66: =IFERROR(VLOOKUP(SMALL('C-E'!$A$13:$A$1001,RC_EXAM!$A66),'C-E'!$A$13:$J$1001,G$39,FALSE),"") -> 
A67: 26 | B67: =IFERROR(VLOOKUP(SMALL('C-E'!$A$13:$A$1001,RC_EXAM!$A67),'C-E'!$A$13:$J$1001,B$39,FALSE),"") ->  | C67: =IFERROR(VLOOKUP(SMALL('C-E'!$A$13:$A$1001,RC_EXAM!$A67),'C-E'!$A$13:$J$1001,C$39,FALSE),"") ->  | D67: =IFERROR(VLOOKUP(SMALL('C-E'!$A$13:$A$1001,RC_EXAM!$A67),'C-E'!$A$13:$J$1001,D$39,FALSE),"") ->  | E67: =IFERROR(VLOOKUP(SMALL('C-E'!$A$13:$A$1001,RC_EXAM!$A67),'C-E'!$A$13:$J$1001,E$39,FALSE),"") ->  | G67: =IFERROR(VLOOKUP(SMALL('C-E'!$A$13:$A$1001,RC_EXAM!$A67),'C-E'!$A$13:$J$1001,G$39,FALSE),"") -> 
A68: 27 | B68: =IFERROR(VLOOKUP(SMALL('C-E'!$A$13:$A$1001,RC_EXAM!$A68),'C-E'!$A$13:$J$1001,B$39,FALSE),"") ->  | C68: =IFERROR(VLOOKUP(SMALL('C-E'!$A$13:$A$1001,RC_EXAM!$A68),'C-E'!$A$13:$J$1001,C$39,FALSE),"") ->  | D68: =IFERROR(VLOOKUP(SMALL('C-E'!$A$13:$A$1001,RC_EXAM!$A68),'C-E'!$A$13:$J$1001,D$39,FALSE),"") ->  | E68: =IFERROR(VLOOKUP(SMALL('C-E'!$A$13:$A$1001,RC_EXAM!$A68),'C-E'!$A$13:$J$1001,E$39,FALSE),"") ->  | G68: =IFERROR(VLOOKUP(SMALL('C-E'!$A$13:$A$1001,RC_EXAM!$A68),'C-E'!$A$13:$J$1001,G$39,FALSE),"") -> 
A69: 28 | B69: =IFERROR(VLOOKUP(SMALL('C-E'!$A$13:$A$1001,RC_EXAM!$A69),'C-E'!$A$13:$J$1001,B$39,FALSE),"") ->  | C69: =IFERROR(VLOOKUP(SMALL('C-E'!$A$13:$A$1001,RC_EXAM!$A69),'C-E'!$A$13:$J$1001,C$39,FALSE),"") ->  | D69: =IFERROR(VLOOKUP(SMALL('C-E'!$A$13:$A$1001,RC_EXAM!$A69),'C-E'!$A$13:$J$1001,D$39,FALSE),"") ->  | E69: =IFERROR(VLOOKUP(SMALL('C-E'!$A$13:$A$1001,RC_EXAM!$A69),'C-E'!$A$13:$J$1001,E$39,FALSE),"") ->  | G69: =IFERROR(VLOOKUP(SMALL('C-E'!$A$13:$A$1001,RC_EXAM!$A69),'C-E'!$A$13:$J$1001,G$39,FALSE),"") -> 
A70: 29 | B70: =IFERROR(VLOOKUP(SMALL('C-E'!$A$13:$A$1001,RC_EXAM!$A70),'C-E'!$A$13:$J$1001,B$39,FALSE),"") ->  | C70: =IFERROR(VLOOKUP(SMALL('C-E'!$A$13:$A$1001,RC_EXAM!$A70),'C-E'!$A$13:$J$1001,C$39,FALSE),"") ->  | D70: =IFERROR(VLOOKUP(SMALL('C-E'!$A$13:$A$1001,RC_EXAM!$A70),'C-E'!$A$13:$J$1001,D$39,FALSE),"") ->  | E70: =IFERROR(VLOOKUP(SMALL('C-E'!$A$13:$A$1001,RC_EXAM!$A70),'C-E'!$A$13:$J$1001,E$39,FALSE),"") ->  | G70: =IFERROR(VLOOKUP(SMALL('C-E'!$A$13:$A$1001,RC_EXAM!$A70),'C-E'!$A$13:$J$1001,G$39,FALSE),"") -> 
A71: 30 | B71: =IFERROR(VLOOKUP(SMALL('C-E'!$A$13:$A$1001,RC_EXAM!$A71),'C-E'!$A$13:$J$1001,B$39,FALSE),"") ->  | C71: =IFERROR(VLOOKUP(SMALL('C-E'!$A$13:$A$1001,RC_EXAM!$A71),'C-E'!$A$13:$J$1001,C$39,FALSE),"") ->  | D71: =IFERROR(VLOOKUP(SMALL('C-E'!$A$13:$A$1001,RC_EXAM!$A71),'C-E'!$A$13:$J$1001,D$39,FALSE),"") ->  | E71: =IFERROR(VLOOKUP(SMALL('C-E'!$A$13:$A$1001,RC_EXAM!$A71),'C-E'!$A$13:$J$1001,E$39,FALSE),"") ->  | G71: =IFERROR(VLOOKUP(SMALL('C-E'!$A$13:$A$1001,RC_EXAM!$A71),'C-E'!$A$13:$J$1001,G$39,FALSE),"") -> 
A72: 31 | B72: =IFERROR(VLOOKUP(SMALL('C-E'!$A$13:$A$1001,RC_EXAM!$A72),'C-E'!$A$13:$J$1001,B$39,FALSE),"") ->  | C72: =IFERROR(VLOOKUP(SMALL('C-E'!$A$13:$A$1001,RC_EXAM!$A72),'C-E'!$A$13:$J$1001,C$39,FALSE),"") ->  | D72: =IFERROR(VLOOKUP(SMALL('C-E'!$A$13:$A$1001,RC_EXAM!$A72),'C-E'!$A$13:$J$1001,D$39,FALSE),"") ->  | E72: =IFERROR(VLOOKUP(SMALL('C-E'!$A$13:$A$1001,RC_EXAM!$A72),'C-E'!$A$13:$J$1001,E$39,FALSE),"") ->  | G72: =IFERROR(VLOOKUP(SMALL('C-E'!$A$13:$A$1001,RC_EXAM!$A72),'C-E'!$A$13:$J$1001,G$39,FALSE),"") -> 
A73: 32 | B73: =IFERROR(VLOOKUP(SMALL('C-E'!$A$13:$A$1001,RC_EXAM!$A73),'C-E'!$A$13:$J$1001,B$39,FALSE),"") ->  | C73: =IFERROR(VLOOKUP(SMALL('C-E'!$A$13:$A$1001,RC_EXAM!$A73),'C-E'!$A$13:$J$1001,C$39,FALSE),"") ->  | D73: =IFERROR(VLOOKUP(SMALL('C-E'!$A$13:$A$1001,RC_EXAM!$A73),'C-E'!$A$13:$J$1001,D$39,FALSE),"") ->  | E73: =IFERROR(VLOOKUP(SMALL('C-E'!$A$13:$A$1001,RC_EXAM!$A73),'C-E'!$A$13:$J$1001,E$39,FALSE),"") ->  | G73: =IFERROR(VLOOKUP(SMALL('C-E'!$A$13:$A$1001,RC_EXAM!$A73),'C-E'!$A$13:$J$1001,G$39,FALSE),"") -> 
A74: 33 | B74: =IFERROR(VLOOKUP(SMALL('C-E'!$A$13:$A$1001,RC_EXAM!$A74),'C-E'!$A$13:$J$1001,B$39,FALSE),"") ->  | C74: =IFERROR(VLOOKUP(SMALL('C-E'!$A$13:$A$1001,RC_EXAM!$A74),'C-E'!$A$13:$J$1001,C$39,FALSE),"") ->  | D74: =IFERROR(VLOOKUP(SMALL('C-E'!$A$13:$A$1001,RC_EXAM!$A74),'C-E'!$A$13:$J$1001,D$39,FALSE),"") ->  | E74: =IFERROR(VLOOKUP(SMALL('C-E'!$A$13:$A$1001,RC_EXAM!$A74),'C-E'!$A$13:$J$1001,E$39,FALSE),"") ->  | G74: =IFERROR(VLOOKUP(SMALL('C-E'!$A$13:$A$1001,RC_EXAM!$A74),'C-E'!$A$13:$J$1001,G$39,FALSE),"") -> 
A75: 34 | B75: =IFERROR(VLOOKUP(SMALL('C-E'!$A$13:$A$1001,RC_EXAM!$A75),'C-E'!$A$13:$J$1001,B$39,FALSE),"") ->  | C75: =IFERROR(VLOOKUP(SMALL('C-E'!$A$13:$A$1001,RC_EXAM!$A75),'C-E'!$A$13:$J$1001,C$39,FALSE),"") ->  | D75: =IFERROR(VLOOKUP(SMALL('C-E'!$A$13:$A$1001,RC_EXAM!$A75),'C-E'!$A$13:$J$1001,D$39,FALSE),"") ->  | E75: =IFERROR(VLOOKUP(SMALL('C-E'!$A$13:$A$1001,RC_EXAM!$A75),'C-E'!$A$13:$J$1001,E$39,FALSE),"") ->  | G75: =IFERROR(VLOOKUP(SMALL('C-E'!$A$13:$A$1001,RC_EXAM!$A75),'C-E'!$A$13:$J$1001,G$39,FALSE),"") -> 
A76: 35 | B76: =IFERROR(VLOOKUP(SMALL('C-E'!$A$13:$A$1001,RC_EXAM!$A76),'C-E'!$A$13:$J$1001,B$39,FALSE),"") ->  | C76: =IFERROR(VLOOKUP(SMALL('C-E'!$A$13:$A$1001,RC_EXAM!$A76),'C-E'!$A$13:$J$1001,C$39,FALSE),"") ->  | D76: =IFERROR(VLOOKUP(SMALL('C-E'!$A$13:$A$1001,RC_EXAM!$A76),'C-E'!$A$13:$J$1001,D$39,FALSE),"") ->  | E76: =IFERROR(VLOOKUP(SMALL('C-E'!$A$13:$A$1001,RC_EXAM!$A76),'C-E'!$A$13:$J$1001,E$39,FALSE),"") ->  | G76: =IFERROR(VLOOKUP(SMALL('C-E'!$A$13:$A$1001,RC_EXAM!$A76),'C-E'!$A$13:$J$1001,G$39,FALSE),"") -> 
A77: 36 | B77: =IFERROR(VLOOKUP(SMALL('C-E'!$A$13:$A$1001,RC_EXAM!$A77),'C-E'!$A$13:$J$1001,B$39,FALSE),"") ->  | C77: =IFERROR(VLOOKUP(SMALL('C-E'!$A$13:$A$1001,RC_EXAM!$A77),'C-E'!$A$13:$J$1001,C$39,FALSE),"") ->  | D77: =IFERROR(VLOOKUP(SMALL('C-E'!$A$13:$A$1001,RC_EXAM!$A77),'C-E'!$A$13:$J$1001,D$39,FALSE),"") ->  | E77: =IFERROR(VLOOKUP(SMALL('C-E'!$A$13:$A$1001,RC_EXAM!$A77),'C-E'!$A$13:$J$1001,E$39,FALSE),"") ->  | G77: =IFERROR(VLOOKUP(SMALL('C-E'!$A$13:$A$1001,RC_EXAM!$A77),'C-E'!$A$13:$J$1001,G$39,FALSE),"") -> 
A78: 37 | B78: =IFERROR(VLOOKUP(SMALL('C-E'!$A$13:$A$1001,RC_EXAM!$A78),'C-E'!$A$13:$J$1001,B$39,FALSE),"") ->  | C78: =IFERROR(VLOOKUP(SMALL('C-E'!$A$13:$A$1001,RC_EXAM!$A78),'C-E'!$A$13:$J$1001,C$39,FALSE),"") ->  | D78: =IFERROR(VLOOKUP(SMALL('C-E'!$A$13:$A$1001,RC_EXAM!$A78),'C-E'!$A$13:$J$1001,D$39,FALSE),"") ->  | E78: =IFERROR(VLOOKUP(SMALL('C-E'!$A$13:$A$1001,RC_EXAM!$A78),'C-E'!$A$13:$J$1001,E$39,FALSE),"") ->  | G78: =IFERROR(VLOOKUP(SMALL('C-E'!$A$13:$A$1001,RC_EXAM!$A78),'C-E'!$A$13:$J$1001,G$39,FALSE),"") -> 
A79: 38 | B79: =IFERROR(VLOOKUP(SMALL('C-E'!$A$13:$A$1001,RC_EXAM!$A79),'C-E'!$A$13:$J$1001,B$39,FALSE),"") ->  | C79: =IFERROR(VLOOKUP(SMALL('C-E'!$A$13:$A$1001,RC_EXAM!$A79),'C-E'!$A$13:$J$1001,C$39,FALSE),"") ->  | D79: =IFERROR(VLOOKUP(SMALL('C-E'!$A$13:$A$1001,RC_EXAM!$A79),'C-E'!$A$13:$J$1001,D$39,FALSE),"") ->  | E79: =IFERROR(VLOOKUP(SMALL('C-E'!$A$13:$A$1001,RC_EXAM!$A79),'C-E'!$A$13:$J$1001,E$39,FALSE),"") ->  | G79: =IFERROR(VLOOKUP(SMALL('C-E'!$A$13:$A$1001,RC_EXAM!$A79),'C-E'!$A$13:$J$1001,G$39,FALSE),"") -> 
A80: 39 | B80: =IFERROR(VLOOKUP(SMALL('C-E'!$A$13:$A$1001,RC_EXAM!$A80),'C-E'!$A$13:$J$1001,B$39,FALSE),"") ->  | C80: =IFERROR(VLOOKUP(SMALL('C-E'!$A$13:$A$1001,RC_EXAM!$A80),'C-E'!$A$13:$J$1001,C$39,FALSE),"") ->  | D80: =IFERROR(VLOOKUP(SMALL('C-E'!$A$13:$A$1001,RC_EXAM!$A80),'C-E'!$A$13:$J$1001,D$39,FALSE),"") ->  | E80: =IFERROR(VLOOKUP(SMALL('C-E'!$A$13:$A$1001,RC_EXAM!$A80),'C-E'!$A$13:$J$1001,E$39,FALSE),"") ->  | G80: =IFERROR(VLOOKUP(SMALL('C-E'!$A$13:$A$1001,RC_EXAM!$A80),'C-E'!$A$13:$J$1001,G$39,FALSE),"") -> 
A81: 40 | B81: =IFERROR(VLOOKUP(SMALL('C-E'!$A$13:$A$1001,RC_EXAM!$A81),'C-E'!$A$13:$J$1001,B$39,FALSE),"") ->  | C81: =IFERROR(VLOOKUP(SMALL('C-E'!$A$13:$A$1001,RC_EXAM!$A81),'C-E'!$A$13:$J$1001,C$39,FALSE),"") ->  | D81: =IFERROR(VLOOKUP(SMALL('C-E'!$A$13:$A$1001,RC_EXAM!$A81),'C-E'!$A$13:$J$1001,D$39,FALSE),"") ->  | E81: =IFERROR(VLOOKUP(SMALL('C-E'!$A$13:$A$1001,RC_EXAM!$A81),'C-E'!$A$13:$J$1001,E$39,FALSE),"") ->  | G81: =IFERROR(VLOOKUP(SMALL('C-E'!$A$13:$A$1001,RC_EXAM!$A81),'C-E'!$A$13:$J$1001,G$39,FALSE),"") -> 
A82: 41 | B82: =IFERROR(VLOOKUP(SMALL('C-E'!$A$13:$A$1001,RC_EXAM!$A82),'C-E'!$A$13:$J$1001,B$39,FALSE),"") ->  | C82: =IFERROR(VLOOKUP(SMALL('C-E'!$A$13:$A$1001,RC_EXAM!$A82),'C-E'!$A$13:$J$1001,C$39,FALSE),"") ->  | D82: =IFERROR(VLOOKUP(SMALL('C-E'!$A$13:$A$1001,RC_EXAM!$A82),'C-E'!$A$13:$J$1001,D$39,FALSE),"") ->  | E82: =IFERROR(VLOOKUP(SMALL('C-E'!$A$13:$A$1001,RC_EXAM!$A82),'C-E'!$A$13:$J$1001,E$39,FALSE),"") ->  | G82: =IFERROR(VLOOKUP(SMALL('C-E'!$A$13:$A$1001,RC_EXAM!$A82),'C-E'!$A$13:$J$1001,G$39,FALSE),"") -> 
A83: 42 | B83: =IFERROR(VLOOKUP(SMALL('C-E'!$A$13:$A$1001,RC_EXAM!$A83),'C-E'!$A$13:$J$1001,B$39,FALSE),"") ->  | C83: =IFERROR(VLOOKUP(SMALL('C-E'!$A$13:$A$1001,RC_EXAM!$A83),'C-E'!$A$13:$J$1001,C$39,FALSE),"") ->  | D83: =IFERROR(VLOOKUP(SMALL('C-E'!$A$13:$A$1001,RC_EXAM!$A83),'C-E'!$A$13:$J$1001,D$39,FALSE),"") ->  | E83: =IFERROR(VLOOKUP(SMALL('C-E'!$A$13:$A$1001,RC_EXAM!$A83),'C-E'!$A$13:$J$1001,E$39,FALSE),"") ->  | G83: =IFERROR(VLOOKUP(SMALL('C-E'!$A$13:$A$1001,RC_EXAM!$A83),'C-E'!$A$13:$J$1001,G$39,FALSE),"") -> 
A84: 43 | B84: =IFERROR(VLOOKUP(SMALL('C-E'!$A$13:$A$1001,RC_EXAM!$A84),'C-E'!$A$13:$J$1001,B$39,FALSE),"") ->  | C84: =IFERROR(VLOOKUP(SMALL('C-E'!$A$13:$A$1001,RC_EXAM!$A84),'C-E'!$A$13:$J$1001,C$39,FALSE),"") ->  | D84: =IFERROR(VLOOKUP(SMALL('C-E'!$A$13:$A$1001,RC_EXAM!$A84),'C-E'!$A$13:$J$1001,D$39,FALSE),"") ->  | E84: =IFERROR(VLOOKUP(SMALL('C-E'!$A$13:$A$1001,RC_EXAM!$A84),'C-E'!$A$13:$J$1001,E$39,FALSE),"") ->  | G84: =IFERROR(VLOOKUP(SMALL('C-E'!$A$13:$A$1001,RC_EXAM!$A84),'C-E'!$A$13:$J$1001,G$39,FALSE),"") -> 
A85: 44 | B85: =IFERROR(VLOOKUP(SMALL('C-E'!$A$13:$A$1001,RC_EXAM!$A85),'C-E'!$A$13:$J$1001,B$39,FALSE),"") ->  | C85: =IFERROR(VLOOKUP(SMALL('C-E'!$A$13:$A$1001,RC_EXAM!$A85),'C-E'!$A$13:$J$1001,C$39,FALSE),"") ->  | D85: =IFERROR(VLOOKUP(SMALL('C-E'!$A$13:$A$1001,RC_EXAM!$A85),'C-E'!$A$13:$J$1001,D$39,FALSE),"") ->  | E85: =IFERROR(VLOOKUP(SMALL('C-E'!$A$13:$A$1001,RC_EXAM!$A85),'C-E'!$A$13:$J$1001,E$39,FALSE),"") ->  | G85: =IFERROR(VLOOKUP(SMALL('C-E'!$A$13:$A$1001,RC_EXAM!$A85),'C-E'!$A$13:$J$1001,G$39,FALSE),"") -> 
A86: 45 | B86: =IFERROR(VLOOKUP(SMALL('C-E'!$A$13:$A$1001,RC_EXAM!$A86),'C-E'!$A$13:$J$1001,B$39,FALSE),"") ->  | C86: =IFERROR(VLOOKUP(SMALL('C-E'!$A$13:$A$1001,RC_EXAM!$A86),'C-E'!$A$13:$J$1001,C$39,FALSE),"") ->  | D86: =IFERROR(VLOOKUP(SMALL('C-E'!$A$13:$A$1001,RC_EXAM!$A86),'C-E'!$A$13:$J$1001,D$39,FALSE),"") ->  | E86: =IFERROR(VLOOKUP(SMALL('C-E'!$A$13:$A$1001,RC_EXAM!$A86),'C-E'!$A$13:$J$1001,E$39,FALSE),"") ->  | G86: =IFERROR(VLOOKUP(SMALL('C-E'!$A$13:$A$1001,RC_EXAM!$A86),'C-E'!$A$13:$J$1001,G$39,FALSE),"") -> 
A87: 46 | B87: =IFERROR(VLOOKUP(SMALL('C-E'!$A$13:$A$1001,RC_EXAM!$A87),'C-E'!$A$13:$J$1001,B$39,FALSE),"") ->  | C87: =IFERROR(VLOOKUP(SMALL('C-E'!$A$13:$A$1001,RC_EXAM!$A87),'C-E'!$A$13:$J$1001,C$39,FALSE),"") ->  | D87: =IFERROR(VLOOKUP(SMALL('C-E'!$A$13:$A$1001,RC_EXAM!$A87),'C-E'!$A$13:$J$1001,D$39,FALSE),"") ->  | E87: =IFERROR(VLOOKUP(SMALL('C-E'!$A$13:$A$1001,RC_EXAM!$A87),'C-E'!$A$13:$J$1001,E$39,FALSE),"") ->  | G87: =IFERROR(VLOOKUP(SMALL('C-E'!$A$13:$A$1001,RC_EXAM!$A87),'C-E'!$A$13:$J$1001,G$39,FALSE),"") -> 
A88: 47 | B88: =IFERROR(VLOOKUP(SMALL('C-E'!$A$13:$A$1001,RC_EXAM!$A88),'C-E'!$A$13:$J$1001,B$39,FALSE),"") ->  | C88: =IFERROR(VLOOKUP(SMALL('C-E'!$A$13:$A$1001,RC_EXAM!$A88),'C-E'!$A$13:$J$1001,C$39,FALSE),"") ->  | D88: =IFERROR(VLOOKUP(SMALL('C-E'!$A$13:$A$1001,RC_EXAM!$A88),'C-E'!$A$13:$J$1001,D$39,FALSE),"") ->  | E88: =IFERROR(VLOOKUP(SMALL('C-E'!$A$13:$A$1001,RC_EXAM!$A88),'C-E'!$A$13:$J$1001,E$39,FALSE),"") ->  | G88: =IFERROR(VLOOKUP(SMALL('C-E'!$A$13:$A$1001,RC_EXAM!$A88),'C-E'!$A$13:$J$1001,G$39,FALSE),"") -> 
A89: 48 | B89: =IFERROR(VLOOKUP(SMALL('C-E'!$A$13:$A$1001,RC_EXAM!$A89),'C-E'!$A$13:$J$1001,B$39,FALSE),"") ->  | C89: =IFERROR(VLOOKUP(SMALL('C-E'!$A$13:$A$1001,RC_EXAM!$A89),'C-E'!$A$13:$J$1001,C$39,FALSE),"") ->  | D89: =IFERROR(VLOOKUP(SMALL('C-E'!$A$13:$A$1001,RC_EXAM!$A89),'C-E'!$A$13:$J$1001,D$39,FALSE),"") ->  | E89: =IFERROR(VLOOKUP(SMALL('C-E'!$A$13:$A$1001,RC_EXAM!$A89),'C-E'!$A$13:$J$1001,E$39,FALSE),"") ->  | G89: =IFERROR(VLOOKUP(SMALL('C-E'!$A$13:$A$1001,RC_EXAM!$A89),'C-E'!$A$13:$J$1001,G$39,FALSE),"") -> 
A90: 49 | B90: =IFERROR(VLOOKUP(SMALL('C-E'!$A$13:$A$1001,RC_EXAM!$A90),'C-E'!$A$13:$J$1001,B$39,FALSE),"") ->  | C90: =IFERROR(VLOOKUP(SMALL('C-E'!$A$13:$A$1001,RC_EXAM!$A90),'C-E'!$A$13:$J$1001,C$39,FALSE),"") ->  | D90: =IFERROR(VLOOKUP(SMALL('C-E'!$A$13:$A$1001,RC_EXAM!$A90),'C-E'!$A$13:$J$1001,D$39,FALSE),"") ->  | E90: =IFERROR(VLOOKUP(SMALL('C-E'!$A$13:$A$1001,RC_EXAM!$A90),'C-E'!$A$13:$J$1001,E$39,FALSE),"") ->  | G90: =IFERROR(VLOOKUP(SMALL('C-E'!$A$13:$A$1001,RC_EXAM!$A90),'C-E'!$A$13:$J$1001,G$39,FALSE),"") -> 
A91: 50 | B91: =IFERROR(VLOOKUP(SMALL('C-E'!$A$13:$A$1001,RC_EXAM!$A91),'C-E'!$A$13:$J$1001,B$39,FALSE),"") ->  | C91: =IFERROR(VLOOKUP(SMALL('C-E'!$A$13:$A$1001,RC_EXAM!$A91),'C-E'!$A$13:$J$1001,C$39,FALSE),"") ->  | D91: =IFERROR(VLOOKUP(SMALL('C-E'!$A$13:$A$1001,RC_EXAM!$A91),'C-E'!$A$13:$J$1001,D$39,FALSE),"") ->  | E91: =IFERROR(VLOOKUP(SMALL('C-E'!$A$13:$A$1001,RC_EXAM!$A91),'C-E'!$A$13:$J$1001,E$39,FALSE),"") ->  | G91: =IFERROR(VLOOKUP(SMALL('C-E'!$A$13:$A$1001,RC_EXAM!$A91),'C-E'!$A$13:$J$1001,G$39,FALSE),"") -> 
A92: 51 | B92: =IFERROR(VLOOKUP(SMALL('C-E'!$A$13:$A$1001,RC_EXAM!$A92),'C-E'!$A$13:$J$1001,B$39,FALSE),"") ->  | C92: =IFERROR(VLOOKUP(SMALL('C-E'!$A$13:$A$1001,RC_EXAM!$A92),'C-E'!$A$13:$J$1001,C$39,FALSE),"") ->  | D92: =IFERROR(VLOOKUP(SMALL('C-E'!$A$13:$A$1001,RC_EXAM!$A92),'C-E'!$A$13:$J$1001,D$39,FALSE),"") ->  | E92: =IFERROR(VLOOKUP(SMALL('C-E'!$A$13:$A$1001,RC_EXAM!$A92),'C-E'!$A$13:$J$1001,E$39,FALSE),"") ->  | G92: =IFERROR(VLOOKUP(SMALL('C-E'!$A$13:$A$1001,RC_EXAM!$A92),'C-E'!$A$13:$J$1001,G$39,FALSE),"") -> 
A93: 52 | B93: =IFERROR(VLOOKUP(SMALL('C-E'!$A$13:$A$1001,RC_EXAM!$A93),'C-E'!$A$13:$J$1001,B$39,FALSE),"") ->  | C93: =IFERROR(VLOOKUP(SMALL('C-E'!$A$13:$A$1001,RC_EXAM!$A93),'C-E'!$A$13:$J$1001,C$39,FALSE),"") ->  | D93: =IFERROR(VLOOKUP(SMALL('C-E'!$A$13:$A$1001,RC_EXAM!$A93),'C-E'!$A$13:$J$1001,D$39,FALSE),"") ->  | E93: =IFERROR(VLOOKUP(SMALL('C-E'!$A$13:$A$1001,RC_EXAM!$A93),'C-E'!$A$13:$J$1001,E$39,FALSE),"") ->  | G93: =IFERROR(VLOOKUP(SMALL('C-E'!$A$13:$A$1001,RC_EXAM!$A93),'C-E'!$A$13:$J$1001,G$39,FALSE),"") -> 
A94: 53 | B94: =IFERROR(VLOOKUP(SMALL('C-E'!$A$13:$A$1001,RC_EXAM!$A94),'C-E'!$A$13:$J$1001,B$39,FALSE),"") ->  | C94: =IFERROR(VLOOKUP(SMALL('C-E'!$A$13:$A$1001,RC_EXAM!$A94),'C-E'!$A$13:$J$1001,C$39,FALSE),"") ->  | D94: =IFERROR(VLOOKUP(SMALL('C-E'!$A$13:$A$1001,RC_EXAM!$A94),'C-E'!$A$13:$J$1001,D$39,FALSE),"") ->  | E94: =IFERROR(VLOOKUP(SMALL('C-E'!$A$13:$A$1001,RC_EXAM!$A94),'C-E'!$A$13:$J$1001,E$39,FALSE),"") ->  | G94: =IFERROR(VLOOKUP(SMALL('C-E'!$A$13:$A$1001,RC_EXAM!$A94),'C-E'!$A$13:$J$1001,G$39,FALSE),"") -> 
